{"text_format":"1","workbook":"xlsx","n_sheets":5,"sheets":["рсч_руб","Критерии руб_рсч","Справочник","Лист1","Без дубликатов"],"not_rendered":{"charts":0,"images":0,"macros":1,"external_links":2,"defined_names":2,"comments":0,"pivot_tables":0},"unopened":[],"bounds":{"document_bytes":16777216,"sheet_cells":100000,"rows_first":2000,"rows_last":500,"rows_between":2000,"halvings":0,"cell_chars":16384,"cell_head_chars":4096},"cells_cut":0,"cells_raw":0,"read":"whole","date_system":"1900"}

{"sheet":"рсч_руб","index":0,"n_rows":52,"n_cols":42,"rows_kept":52,"cut":false,"hidden":false,"merged":[]}
["№","дата","куда","дебет","кредит","$","Итого $","Итого RUR","Контрагент","описание","тип платежа","тип деятельности","месяц","год","группа","валюта","месяц признания расходов","год расходов","Склад","Вид операции из 1С","фин","bank","other","nachisl","ДДС","office","taxes","telef","marketing","insurance","security","deposit","deposit_return","c.soft","parking","goods_sale","arenda","goods","Income",null,"Значение если ошибка","-"]
["Солр4981","13.01.2015","Солид банк",0,600,null,null,null,"ЗАО \"СОЛИД БАНК\"","Абонентская плата за обслуживание с использованием Системы Ibank 2 за январь 2015 г.","o",{"$f":"VLOOKUP(O2,[1]Справочник!$A$2:$B$44,2,0)","v":"опер"},1,2015,{"$f":"IFERROR(IF(T2=\"Оплата от покупателя\",\"income\",INDEX('Критерии руб_рсч'!$D$2:$D$91,MATCH(TRUE,ISNUMBER(SEARCH('Критерии руб_рсч'!$C$2:$C$91,рсч_руб!J2)),0))),\"other\")","v":"bank"},"руб.",1,2015,"Правда","Прочее списание",{"$f":"IF(IFERROR(SEARCH('[1]Критерии руб_рсч'!$C$2,J2),IFERROR(SEARCH('[1]Критерии руб_рсч'!$C$3,J2),IFERROR(SEARCH('[1]Критерии руб_рсч'!$C$4,J2),IFERROR(SEARCH('[1]Критерии руб_рсч'!$C$5,J2),IFERROR(SEARCH('[1]Критерии руб_рсч'!$C$6,J2),IFERROR(SEARCH('[1]Критерии руб_рсч'!$C$7,J2),IFERROR(SEARCH('[1]Критерии руб_рсч'!$C$8,J2),IFERROR(SEARCH('[1]Критерии руб_рсч'!$C$8,J2),IFERROR(SEARCH('[1]Критерии руб_рсч'!$C$10,J2),IFERROR(SEARCH('[1]Критерии руб_рсч'!$C$11,J2),\"-\"))))))))))=$AP$1,\"-\",\"OK\")","v":"-"},{"$f":"IF(IFERROR(SEARCH('[1]Критерии руб_рсч'!$C$13,J2),IFERROR(SEARCH('[1]Критерии руб_рсч'!$C$14,J2),IFERROR(SEARCH('[1]Критерии руб_рсч'!$C$15,J2),IFERROR(SEARCH('[1]Критерии руб_рсч'!$C$16,J2),IFERROR(SEARCH('[1]Критерии руб_рсч'!$C$17,J2),IFERROR(SEARCH('[1]Критерии руб_рсч'!$C$18,J2),IFERROR(SEARCH('[1]Критерии руб_рсч'!$C$19,J2),IFERROR(SEARCH('[1]Критерии руб_рсч'!$C$20,J2),IFERROR(SEARCH('[1]Критерии руб_рсч'!$C$21,J2),IFERROR(SEARCH('[1]Критерии руб_рсч'!$C$22,J2),IFERROR(SEARCH('[1]Критерии руб_рсч'!$C$23,J2),IFERROR(SEARCH('[1]Критерии руб_рсч'!$C$24,J2),IFERROR(SEARCH('[1]Критерии руб_рсч'!$C$25,J2),IFERROR(SEARCH('[1]Критерии руб_рсч'!$C$26,J2),$AP$1))))))))))))))=$AP$1,\"-\",\"OK\")","v":"OK"},{"$f":"IF(IFERROR(SEARCH('[1]Критерии руб_рсч'!$C$28,J2),IFERROR(SEARCH('[1]Критерии руб_рсч'!$C$29,J2),IFERROR(SEARCH('[1]Критерии руб_рсч'!$C$30,J2),$AP$1)))=$AP$1,\"-\",\"OK\")","v":"-"},{"$f":"IF(IFERROR(SEARCH('[1]Критерии руб_рсч'!$C$32,J2),IFERROR(SEARCH('[1]Критерии руб_рсч'!$C$33,J2),IFERROR(SEARCH('[1]Критерии руб_рсч'!$C$34,J2),IFERROR(SEARCH('[1]Критерии руб_рсч'!$C$35,J2),IFERROR(SEARCH('[1]Критерии руб_рсч'!$C$36,J2),$AP$1)))))=$AP$1,\"-\",\"OK\")","v":"-"},{"$f":"IF(IFERROR(SEARCH('[1]Критерии руб_рсч'!$C$38,J2),IFERROR(SEARCH('[1]Критерии руб_рсч'!$C$39,J2),IFERROR(SEARCH('[1]Критерии руб_рсч'!$C$40,J2),IFERROR(SEARCH('[1]Критерии руб_рсч'!$C$41,J2),IFERROR(SEARCH('[1]Критерии руб_рсч'!$C$42,J2),IFERROR(SEARCH('[1]Критерии руб_рсч'!$C$43,J2),$AP$1))))))=$AP$1,\"-\",\"OK\")","v":"-"},{"$f":"IF(IFERROR(SEARCH('[1]Критерии руб_рсч'!$C$45,J2),IFERROR(SEARCH('[1]Критерии руб_рсч'!$C$46,J2),IFERROR(SEARCH('[1]Критерии руб_рсч'!$C$47,J2),IFERROR(SEARCH('[1]Критерии руб_рсч'!$C$48,J2),IFERROR(SEARCH('[1]Критерии руб_рсч'!$C$49,J2),IFERROR(SEARCH('[1]Критерии руб_рсч'!$C$50,J2),IFERROR(SEARCH('[1]Критерии руб_рсч'!$C$51,J2),$AP$1)))))))=$AP$1,\"-\",\"OK\")","v":"-"},{"$f":"IF(IFERROR(SEARCH('[1]Критерии руб_рсч'!$C$53,J2),$AP$1)=$AP$1,\"-\",\"OK\")","v":"-"},{"$f":"IF(IFERROR(SEARCH('[1]Критерии руб_рсч'!$C$55,J2),IFERROR(SEARCH('[1]Критерии руб_рсч'!$C$56,J2),IFERROR(SEARCH('[1]Критерии руб_рсч'!$C$57,J2),IFERROR(SEARCH('[1]Критерии руб_рсч'!$C$58,J2),IFERROR(SEARCH('[1]Критерии руб_рсч'!$C$59,J2),$AP$1)))))=$AP$1,\"-\",\"OK\")","v":"-"},{"$f":"IF(IFERROR(SEARCH('[1]Критерии руб_рсч'!$C$61,J2),IFERROR(SEARCH('[1]Критерии руб_рсч'!$C$62,J2),IFERROR(SEARCH('[1]Критерии руб_рсч'!$C$63,J2),IFERROR(SEARCH('[1]Критерии руб_рсч'!$C$64,J2),$AP$1))))=$AP$1,\"-\",\"OK\")","v":"-"},{"$f":"IF(IFERROR(SEARCH('[1]Критерии руб_рсч'!$C$66,J2),$AP$1)=$AP$1,\"-\",\"OK\")","v":"-"},{"$f":"IF(IFERROR(SEARCH('[1]Критерии руб_рсч'!$C$68,J2),IFERROR(SEARCH('[1]Критерии руб_рсч'!$C$69,J2),IFERROR(SEARCH('[1]Критерии руб_рсч'!$C$70,J2),IFERROR(SEARCH('[1]Критерии руб_рсч'!$C$71,J2),$AP$1))))=$AP$1,\"-\",\"OK\")","v":"-"},{"$f":"IF(IFERROR(SEARCH('[1]Критерии руб_рсч'!$C$73,J2),IFERROR(SEARCH('[1]Критерии руб_рсч'!$C$74,J2),IFERROR(SEARCH('[1]Критерии руб_рсч'!$C$75,J2),IFERROR(SEARCH('[1]Критерии руб_рсч'!$C$76,J2),$AP$1))))=$AP$1,\"-\",\"OK\")","v":"-"},{"$f":"IF(IFERROR(SEARCH('[1]Критерии руб_рсч'!$C$78,J2),IFERROR(SEARCH('[1]Критерии руб_рсч'!$C$79,J2),IFERROR(SEARCH('[1]Критерии руб_рсч'!$C$80,J2),IFERROR(SEARCH('[1]Критерии руб_рсч'!$C$81,J2),$AP$1))))=$AP$1,\"-\",\"OK\")","v":"-"},{"$f":"IF(IFERROR(SEARCH('[1]Критерии руб_рсч'!$C$83,J2),IFERROR(SEARCH('[1]Критерии руб_рсч'!$C$84,J2),$AP$1))=$AP$1,\"-\",\"OK\")","v":"-"},{"$f":"IF(IFERROR(SEARCH('[1]Критерии руб_рсч'!$C$86,J2),IFERROR(SEARCH('[1]Критерии руб_рсч'!$C$87,J2),IFERROR(SEARCH('[1]Критерии руб_рсч'!$C$88,J2),$AP$1)))=$AP$1,\"-\",\"OK\")","v":"-"},{"$f":"IF(IFERROR(SEARCH('[1]Критерии руб_рсч'!$C$90,J2),IFERROR(SEARCH('[1]Критерии руб_рсч'!$C$91,J2),IFERROR(SEARCH('[1]Критерии руб_рсч'!$C$92,J2),IFERROR(SEARCH('[1]Критерии руб_рсч'!$C$93,J2),$AP$1))))=$AP$1,\"-\",\"OK\")","v":"-"},{"$f":"IF(IFERROR(SEARCH('[1]Критерии руб_рсч'!$C$95,J2),IFERROR(SEARCH('[1]Критерии руб_рсч'!$C$96,J2),IFERROR(SEARCH('[1]Критерии руб_рсч'!$C$97,J2),IFERROR(SEARCH('[1]Критерии руб_рсч'!$C$98,J2),IFERROR(SEARCH('[1]Критерии руб_рсч'!$C$99,J2),IFERROR(SEARCH('[1]Критерии руб_рсч'!$C$100,J2),$AP$1))))))=$AP$1,\"-\",\"OK\")","v":"-"},{"$f":"IF(IFERROR(SEARCH('[1]Критерии руб_рсч'!$C$102,J2),IFERROR(SEARCH('[1]Критерии руб_рсч'!$C$103,J2),IFERROR(SEARCH('[1]Критерии руб_рсч'!$C$104,J2),IFERROR(SEARCH('[1]Критерии руб_рсч'!$C$105,J2),IFERROR(SEARCH('[1]Критерии руб_рсч'!$C$106,J2),IFERROR(SEARCH('[1]Критерии руб_рсч'!$C$107,J2),$AP$1))))))=$AP$1,\"-\",\"OK\")","v":"-"},{"$f":"IF(IFERROR(SEARCH('[1]Критерии руб_рсч'!$C$109,J2),IFERROR(SEARCH('[1]Критерии руб_рсч'!$C$109,J2),$AP$1))=$AP$1,\"-\",\"OK\")","v":"-"}]
["Солр4982","15.01.2015","Солид банк",2400,0,null,null,null,"Ведерникова В.М.","оплата за аренду бокса С158, по Договору об оказании складских услуг от 11.03.2012 г.","o",{"$f":"VLOOKUP(O3,[1]Справочник!$A$2:$B$44,2,0)","v":"опер"},1,2015,{"$f":"IFERROR(IF(T3=\"Оплата от покупателя\",\"income\",INDEX('Критерии руб_рсч'!$D$2:$D$91,MATCH(TRUE,ISNUMBER(SEARCH('Критерии руб_рсч'!$C$2:$C$91,рсч_руб!J3)),0))),\"other\")","v":"income"},"руб.",1,2015,"Правда","Оплата от покупателя",{"$f":"IF(IFERROR(SEARCH('[1]Критерии руб_рсч'!$C$2,J3),IFERROR(SEARCH('[1]Критерии руб_рсч'!$C$3,J3),IFERROR(SEARCH('[1]Критерии руб_рсч'!$C$4,J3),IFERROR(SEARCH('[1]Критерии руб_рсч'!$C$5,J3),IFERROR(SEARCH('[1]Критерии руб_рсч'!$C$6,J3),IFERROR(SEARCH('[1]Критерии руб_рсч'!$C$7,J3),IFERROR(SEARCH('[1]Критерии руб_рсч'!$C$8,J3),IFERROR(SEARCH('[1]Критерии руб_рсч'!$C$8,J3),IFERROR(SEARCH('[1]Критерии руб_рсч'!$C$10,J3),IFERROR(SEARCH('[1]Критерии руб_рсч'!$C$11,J3),\"-\"))))))))))=$AP$1,\"-\",\"OK\")","v":"-"},{"$f":"IF(IFERROR(SEARCH('[1]Критерии руб_рсч'!$C$13,J3),IFERROR(SEARCH('[1]Критерии руб_рсч'!$C$14,J3),IFERROR(SEARCH('[1]Критерии руб_рсч'!$C$15,J3),IFERROR(SEARCH('[1]Критерии руб_рсч'!$C$16,J3),IFERROR(SEARCH('[1]Критерии руб_рсч'!$C$17,J3),IFERROR(SEARCH('[1]Критерии руб_рсч'!$C$18,J3),IFERROR(SEARCH('[1]Критерии руб_рсч'!$C$19,J3),IFERROR(SEARCH('[1]Критерии руб_рсч'!$C$20,J3),IFERROR(SEARCH('[1]Критерии руб_рсч'!$C$21,J3),IFERROR(SEARCH('[1]Критерии руб_рсч'!$C$22,J3),IFERROR(SEARCH('[1]Критерии руб_рсч'!$C$23,J3),IFERROR(SEARCH('[1]Критерии руб_рсч'!$C$24,J3),IFERROR(SEARCH('[1]Критерии руб_рсч'!$C$25,J3),IFERROR(SEARCH('[1]Критерии руб_рсч'!$C$26,J3),$AP$1))))))))))))))=$AP$1,\"-\",\"OK\")","v":"-"},{"$f":"IF(IFERROR(SEARCH('[1]Критерии руб_рсч'!$C$28,J3),IFERROR(SEARCH('[1]Критерии руб_рсч'!$C$29,J3),IFERROR(SEARCH('[1]Критерии руб_рсч'!$C$30,J3),$AP$1)))=$AP$1,\"-\",\"OK\")","v":"-"},{"$f":"IF(IFERROR(SEARCH('[1]Критерии руб_рсч'!$C$32,J3),IFERROR(SEARCH('[1]Критерии руб_рсч'!$C$33,J3),IFERROR(SEARCH('[1]Критерии руб_рсч'!$C$34,J3),IFERROR(SEARCH('[1]Критерии руб_рсч'!$C$35,J3),IFERROR(SEARCH('[1]Критерии руб_рсч'!$C$36,J3),$AP$1)))))=$AP$1,\"-\",\"OK\")","v":"-"},{"$f":"IF(IFERROR(SEARCH('[1]Критерии руб_рсч'!$C$38,J3),IFERROR(SEARCH('[1]Критерии руб_рсч'!$C$39,J3),IFERROR(SEARCH('[1]Критерии руб_рсч'!$C$40,J3),IFERROR(SEARCH('[1]Критерии руб_рсч'!$C$41,J3),IFERROR(SEARCH('[1]Критерии руб_рсч'!$C$42,J3),IFERROR(SEARCH('[1]Критерии руб_рсч'!$C$43,J3),$AP$1))))))=$AP$1,\"-\",\"OK\")","v":"-"},{"$f":"IF(IFERROR(SEARCH('[1]Критерии руб_рсч'!$C$45,J3),IFERROR(SEARCH('[1]Критерии руб_рсч'!$C$46,J3),IFERROR(SEARCH('[1]Критерии руб_рсч'!$C$47,J3),IFERROR(SEARCH('[1]Критерии руб_рсч'!$C$48,J3),IFERROR(SEARCH('[1]Критерии руб_рсч'!$C$49,J3),IFERROR(SEARCH('[1]Критерии руб_рсч'!$C$50,J3),IFERROR(SEARCH('[1]Критерии руб_рсч'!$C$51,J3),$AP$1)))))))=$AP$1,\"-\",\"OK\")","v":"-"},{"$f":"IF(IFERROR(SEARCH('[1]Критерии руб_рсч'!$C$53,J3),$AP$1)=$AP$1,\"-\",\"OK\")","v":"-"},{"$f":"IF(IFERROR(SEARCH('[1]Критерии руб_рсч'!$C$55,J3),IFERROR(SEARCH('[1]Критерии руб_рсч'!$C$56,J3),IFERROR(SEARCH('[1]Критерии руб_рсч'!$C$57,J3),IFERROR(SEARCH('[1]Критерии руб_рсч'!$C$58,J3),IFERROR(SEARCH('[1]Критерии руб_рсч'!$C$59,J3),$AP$1)))))=$AP$1,\"-\",\"OK\")","v":"-"},{"$f":"IF(IFERROR(SEARCH('[1]Критерии руб_рсч'!$C$61,J3),IFERROR(SEARCH('[1]Критерии руб_рсч'!$C$62,J3),IFERROR(SEARCH('[1]Критерии руб_рсч'!$C$63,J3),IFERROR(SEARCH('[1]Критерии руб_рсч'!$C$64,J3),$AP$1))))=$AP$1,\"-\",\"OK\")","v":"-"},{"$f":"IF(IFERROR(SEARCH('[1]Критерии руб_рсч'!$C$66,J3),$AP$1)=$AP$1,\"-\",\"OK\")","v":"-"},{"$f":"IF(IFERROR(SEARCH('[1]Критерии руб_рсч'!$C$68,J3),IFERROR(SEARCH('[1]Критерии руб_рсч'!$C$69,J3),IFERROR(SEARCH('[1]Критерии руб_рсч'!$C$70,J3),IFERROR(SEARCH('[1]Критерии руб_рсч'!$C$71,J3),$AP$1))))=$AP$1,\"-\",\"OK\")","v":"-"},{"$f":"IF(IFERROR(SEARCH('[1]Критерии руб_рсч'!$C$73,J3),IFERROR(SEARCH('[1]Критерии руб_рсч'!$C$74,J3),IFERROR(SEARCH('[1]Критерии руб_рсч'!$C$75,J3),IFERROR(SEARCH('[1]Критерии руб_рсч'!$C$76,J3),$AP$1))))=$AP$1,\"-\",\"OK\")","v":"-"},{"$f":"IF(IFERROR(SEARCH('[1]Критерии руб_рсч'!$C$78,J3),IFERROR(SEARCH('[1]Критерии руб_рсч'!$C$79,J3),IFERROR(SEARCH('[1]Критерии руб_рсч'!$C$80,J3),IFERROR(SEARCH('[1]Критерии руб_рсч'!$C$81,J3),$AP$1))))=$AP$1,\"-\",\"OK\")","v":"-"},{"$f":"IF(IFERROR(SEARCH('[1]Критерии руб_рсч'!$C$83,J3),IFERROR(SEARCH('[1]Критерии руб_рсч'!$C$84,J3),$AP$1))=$AP$1,\"-\",\"OK\")","v":"-"},{"$f":"IF(IFERROR(SEARCH('[1]Критерии руб_рсч'!$C$86,J3),IFERROR(SEARCH('[1]Критерии руб_рсч'!$C$87,J3),IFERROR(SEARCH('[1]Критерии руб_рсч'!$C$88,J3),$AP$1)))=$AP$1,\"-\",\"OK\")","v":"-"},{"$f":"IF(IFERROR(SEARCH('[1]Критерии руб_рсч'!$C$90,J3),IFERROR(SEARCH('[1]Критерии руб_рсч'!$C$91,J3),IFERROR(SEARCH('[1]Критерии руб_рсч'!$C$92,J3),IFERROR(SEARCH('[1]Критерии руб_рсч'!$C$93,J3),$AP$1))))=$AP$1,\"-\",\"OK\")","v":"-"},{"$f":"IF(IFERROR(SEARCH('[1]Критерии руб_рсч'!$C$95,J3),IFERROR(SEARCH('[1]Критерии руб_рсч'!$C$96,J3),IFERROR(SEARCH('[1]Критерии руб_рсч'!$C$97,J3),IFERROR(SEARCH('[1]Критерии руб_рсч'!$C$98,J3),IFERROR(SEARCH('[1]Критерии руб_рсч'!$C$99,J3),IFERROR(SEARCH('[1]Критерии руб_рсч'!$C$100,J3),$AP$1))))))=$AP$1,\"-\",\"OK\")","v":"-"},{"$f":"IF(IFERROR(SEARCH('[1]Критерии руб_рсч'!$C$102,J3),IFERROR(SEARCH('[1]Критерии руб_рсч'!$C$103,J3),IFERROR(SEARCH('[1]Критерии руб_рсч'!$C$104,J3),IFERROR(SEARCH('[1]Критерии руб_рсч'!$C$105,J3),IFERROR(SEARCH('[1]Критерии руб_рсч'!$C$106,J3),IFERROR(SEARCH('[1]Критерии руб_рсч'!$C$107,J3),$AP$1))))))=$AP$1,\"-\",\"OK\")","v":"-"},{"$f":"IF(IFERROR(SEARCH('[1]Критерии руб_рсч'!$C$109,J3),IFERROR(SEARCH('[1]Критерии руб_рсч'!$C$109,J3),$AP$1))=$AP$1,\"-\",\"OK\")","v":"-"}]
["Солр4983","15.01.2015","Солид банк",0,25,null,null,null,"ЗАО \"СОЛИД БАНК\"","Комиссия за Перечисление денежных средств со счета Клиента в другие кредитные организации по платежным поручениям,  полученным по Системе Ibank2. Тариф 1.2.3.2","o",{"$f":"VLOOKUP(O4,[1]Справочник!$A$2:$B$44,2,0)","v":"опер"},1,2015,{"$f":"IFERROR(IF(T4=\"Оплата от покупателя\",\"income\",INDEX('Критерии руб_рсч'!$D$2:$D$91,MATCH(TRUE,ISNUMBER(SEARCH('Критерии руб_рсч'!$C$2:$C$91,рсч_руб!J4)),0))),\"other\")","v":"bank"},"руб.",1,2015,"Правда","Прочее списание",{"$f":"IF(IFERROR(SEARCH('[1]Критерии руб_рсч'!$C$2,J4),IFERROR(SEARCH('[1]Критерии руб_рсч'!$C$3,J4),IFERROR(SEARCH('[1]Критерии руб_рсч'!$C$4,J4),IFERROR(SEARCH('[1]Критерии руб_рсч'!$C$5,J4),IFERROR(SEARCH('[1]Критерии руб_рсч'!$C$6,J4),IFERROR(SEARCH('[1]Критерии руб_рсч'!$C$7,J4),IFERROR(SEARCH('[1]Критерии руб_рсч'!$C$8,J4),IFERROR(SEARCH('[1]Критерии руб_рсч'!$C$8,J4),IFERROR(SEARCH('[1]Критерии руб_рсч'!$C$10,J4),IFERROR(SEARCH('[1]Критерии руб_рсч'!$C$11,J4),\"-\"))))))))))=$AP$1,\"-\",\"OK\")","v":"-"},{"$f":"IF(IFERROR(SEARCH('[1]Критерии руб_рсч'!$C$13,J4),IFERROR(SEARCH('[1]Критерии руб_рсч'!$C$14,J4),IFERROR(SEARCH('[1]Критерии руб_рсч'!$C$15,J4),IFERROR(SEARCH('[1]Критерии руб_рсч'!$C$16,J4),IFERROR(SEARCH('[1]Критерии руб_рсч'!$C$17,J4),IFERROR(SEARCH('[1]Критерии руб_рсч'!$C$18,J4),IFERROR(SEARCH('[1]Критерии руб_рсч'!$C$19,J4),IFERROR(SEARCH('[1]Критерии руб_рсч'!$C$20,J4),IFERROR(SEARCH('[1]Критерии руб_рсч'!$C$21,J4),IFERROR(SEARCH('[1]Критерии руб_рсч'!$C$22,J4),IFERROR(SEARCH('[1]Критерии руб_рсч'!$C$23,J4),IFERROR(SEARCH('[1]Критерии руб_рсч'!$C$24,J4),IFERROR(SEARCH('[1]Критерии руб_рсч'!$C$25,J4),IFERROR(SEARCH('[1]Критерии руб_рсч'!$C$26,J4),$AP$1))))))))))))))=$AP$1,\"-\",\"OK\")","v":"OK"},{"$f":"IF(IFERROR(SEARCH('[1]Критерии руб_рсч'!$C$28,J4),IFERROR(SEARCH('[1]Критерии руб_рсч'!$C$29,J4),IFERROR(SEARCH('[1]Критерии руб_рсч'!$C$30,J4),$AP$1)))=$AP$1,\"-\",\"OK\")","v":"-"},{"$f":"IF(IFERROR(SEARCH('[1]Критерии руб_рсч'!$C$32,J4),IFERROR(SEARCH('[1]Критерии руб_рсч'!$C$33,J4),IFERROR(SEARCH('[1]Критерии руб_рсч'!$C$34,J4),IFERROR(SEARCH('[1]Критерии руб_рсч'!$C$35,J4),IFERROR(SEARCH('[1]Критерии руб_рсч'!$C$36,J4),$AP$1)))))=$AP$1,\"-\",\"OK\")","v":"-"},{"$f":"IF(IFERROR(SEARCH('[1]Критерии руб_рсч'!$C$38,J4),IFERROR(SEARCH('[1]Критерии руб_рсч'!$C$39,J4),IFERROR(SEARCH('[1]Критерии руб_рсч'!$C$40,J4),IFERROR(SEARCH('[1]Критерии руб_рсч'!$C$41,J4),IFERROR(SEARCH('[1]Критерии руб_рсч'!$C$42,J4),IFERROR(SEARCH('[1]Критерии руб_рсч'!$C$43,J4),$AP$1))))))=$AP$1,\"-\",\"OK\")","v":"-"},{"$f":"IF(IFERROR(SEARCH('[1]Критерии руб_рсч'!$C$45,J4),IFERROR(SEARCH('[1]Критерии руб_рсч'!$C$46,J4),IFERROR(SEARCH('[1]Критерии руб_рсч'!$C$47,J4),IFERROR(SEARCH('[1]Критерии руб_рсч'!$C$48,J4),IFERROR(SEARCH('[1]Критерии руб_рсч'!$C$49,J4),IFERROR(SEARCH('[1]Критерии руб_рсч'!$C$50,J4),IFERROR(SEARCH('[1]Критерии руб_рсч'!$C$51,J4),$AP$1)))))))=$AP$1,\"-\",\"OK\")","v":"-"},{"$f":"IF(IFERROR(SEARCH('[1]Критерии руб_рсч'!$C$53,J4),$AP$1)=$AP$1,\"-\",\"OK\")","v":"-"},{"$f":"IF(IFERROR(SEARCH('[1]Критерии руб_рсч'!$C$55,J4),IFERROR(SEARCH('[1]Критерии руб_рсч'!$C$56,J4),IFERROR(SEARCH('[1]Критерии руб_рсч'!$C$57,J4),IFERROR(SEARCH('[1]Критерии руб_рсч'!$C$58,J4),IFERROR(SEARCH('[1]Критерии руб_рсч'!$C$59,J4),$AP$1)))))=$AP$1,\"-\",\"OK\")","v":"-"},{"$f":"IF(IFERROR(SEARCH('[1]Критерии руб_рсч'!$C$61,J4),IFERROR(SEARCH('[1]Критерии руб_рсч'!$C$62,J4),IFERROR(SEARCH('[1]Критерии руб_рсч'!$C$63,J4),IFERROR(SEARCH('[1]Критерии руб_рсч'!$C$64,J4),$AP$1))))=$AP$1,\"-\",\"OK\")","v":"-"},{"$f":"IF(IFERROR(SEARCH('[1]Критерии руб_рсч'!$C$66,J4),$AP$1)=$AP$1,\"-\",\"OK\")","v":"-"},{"$f":"IF(IFERROR(SEARCH('[1]Критерии руб_рсч'!$C$68,J4),IFERROR(SEARCH('[1]Критерии руб_рсч'!$C$69,J4),IFERROR(SEARCH('[1]Критерии руб_рсч'!$C$70,J4),IFERROR(SEARCH('[1]Критерии руб_рсч'!$C$71,J4),$AP$1))))=$AP$1,\"-\",\"OK\")","v":"-"},{"$f":"IF(IFERROR(SEARCH('[1]Критерии руб_рсч'!$C$73,J4),IFERROR(SEARCH('[1]Критерии руб_рсч'!$C$74,J4),IFERROR(SEARCH('[1]Критерии руб_рсч'!$C$75,J4),IFERROR(SEARCH('[1]Критерии руб_рсч'!$C$76,J4),$AP$1))))=$AP$1,\"-\",\"OK\")","v":"-"},{"$f":"IF(IFERROR(SEARCH('[1]Критерии руб_рсч'!$C$78,J4),IFERROR(SEARCH('[1]Критерии руб_рсч'!$C$79,J4),IFERROR(SEARCH('[1]Критерии руб_рсч'!$C$80,J4),IFERROR(SEARCH('[1]Критерии руб_рсч'!$C$81,J4),$AP$1))))=$AP$1,\"-\",\"OK\")","v":"-"},{"$f":"IF(IFERROR(SEARCH('[1]Критерии руб_рсч'!$C$83,J4),IFERROR(SEARCH('[1]Критерии руб_рсч'!$C$84,J4),$AP$1))=$AP$1,\"-\",\"OK\")","v":"-"},{"$f":"IF(IFERROR(SEARCH('[1]Критерии руб_рсч'!$C$86,J4),IFERROR(SEARCH('[1]Критерии руб_рсч'!$C$87,J4),IFERROR(SEARCH('[1]Критерии руб_рсч'!$C$88,J4),$AP$1)))=$AP$1,\"-\",\"OK\")","v":"-"},{"$f":"IF(IFERROR(SEARCH('[1]Критерии руб_рсч'!$C$90,J4),IFERROR(SEARCH('[1]Критерии руб_рсч'!$C$91,J4),IFERROR(SEARCH('[1]Критерии руб_рсч'!$C$92,J4),IFERROR(SEARCH('[1]Критерии руб_рсч'!$C$93,J4),$AP$1))))=$AP$1,\"-\",\"OK\")","v":"-"},{"$f":"IF(IFERROR(SEARCH('[1]Критерии руб_рсч'!$C$95,J4),IFERROR(SEARCH('[1]Критерии руб_рсч'!$C$96,J4),IFERROR(SEARCH('[1]Критерии руб_рсч'!$C$97,J4),IFERROR(SEARCH('[1]Критерии руб_рсч'!$C$98,J4),IFERROR(SEARCH('[1]Критерии руб_рсч'!$C$99,J4),IFERROR(SEARCH('[1]Критерии руб_рсч'!$C$100,J4),$AP$1))))))=$AP$1,\"-\",\"OK\")","v":"-"},{"$f":"IF(IFERROR(SEARCH('[1]Критерии руб_рсч'!$C$102,J4),IFERROR(SEARCH('[1]Критерии руб_рсч'!$C$103,J4),IFERROR(SEARCH('[1]Критерии руб_рсч'!$C$104,J4),IFERROR(SEARCH('[1]Критерии руб_рсч'!$C$105,J4),IFERROR(SEARCH('[1]Критерии руб_рсч'!$C$106,J4),IFERROR(SEARCH('[1]Критерии руб_рсч'!$C$107,J4),$AP$1))))))=$AP$1,\"-\",\"OK\")","v":"-"},{"$f":"IF(IFERROR(SEARCH('[1]Критерии руб_рсч'!$C$109,J4),IFERROR(SEARCH('[1]Критерии руб_рсч'!$C$109,J4),$AP$1))=$AP$1,\"-\",\"OK\")","v":"-"}]
["Солр4984","15.01.2015","Солид банк",0,25,null,null,null,"ЗАО \"СОЛИД БАНК\"","Комиссия за Перечисление денежных средств со счета Клиента в другие кредитные организации по платежным поручениям,  полученным по Системе Ibank2. Тариф 1.2.3.2","o",{"$f":"VLOOKUP(O5,[1]Справочник!$A$2:$B$44,2,0)","v":"опер"},1,2015,{"$f":"IFERROR(IF(T5=\"Оплата от покупателя\",\"income\",INDEX('Критерии руб_рсч'!$D$2:$D$91,MATCH(TRUE,ISNUMBER(SEARCH('Критерии руб_рсч'!$C$2:$C$91,рсч_руб!J5)),0))),\"other\")","v":"bank"},"руб.",1,2015,"Правда","Прочее списание",{"$f":"IF(IFERROR(SEARCH('[1]Критерии руб_рсч'!$C$2,J5),IFERROR(SEARCH('[1]Критерии руб_рсч'!$C$3,J5),IFERROR(SEARCH('[1]Критерии руб_рсч'!$C$4,J5),IFERROR(SEARCH('[1]Критерии руб_рсч'!$C$5,J5),IFERROR(SEARCH('[1]Критерии руб_рсч'!$C$6,J5),IFERROR(SEARCH('[1]Критерии руб_рсч'!$C$7,J5),IFERROR(SEARCH('[1]Критерии руб_рсч'!$C$8,J5),IFERROR(SEARCH('[1]Критерии руб_рсч'!$C$8,J5),IFERROR(SEARCH('[1]Критерии руб_рсч'!$C$10,J5),IFERROR(SEARCH('[1]Критерии руб_рсч'!$C$11,J5),\"-\"))))))))))=$AP$1,\"-\",\"OK\")","v":"-"},{"$f":"IF(IFERROR(SEARCH('[1]Критерии руб_рсч'!$C$13,J5),IFERROR(SEARCH('[1]Критерии руб_рсч'!$C$14,J5),IFERROR(SEARCH('[1]Критерии руб_рсч'!$C$15,J5),IFERROR(SEARCH('[1]Критерии руб_рсч'!$C$16,J5),IFERROR(SEARCH('[1]Критерии руб_рсч'!$C$17,J5),IFERROR(SEARCH('[1]Критерии руб_рсч'!$C$18,J5),IFERROR(SEARCH('[1]Критерии руб_рсч'!$C$19,J5),IFERROR(SEARCH('[1]Критерии руб_рсч'!$C$20,J5),IFERROR(SEARCH('[1]Критерии руб_рсч'!$C$21,J5),IFERROR(SEARCH('[1]Критерии руб_рсч'!$C$22,J5),IFERROR(SEARCH('[1]Критерии руб_рсч'!$C$23,J5),IFERROR(SEARCH('[1]Критерии руб_рсч'!$C$24,J5),IFERROR(SEARCH('[1]Критерии руб_рсч'!$C$25,J5),IFERROR(SEARCH('[1]Критерии руб_рсч'!$C$26,J5),$AP$1))))))))))))))=$AP$1,\"-\",\"OK\")","v":"OK"},{"$f":"IF(IFERROR(SEARCH('[1]Критерии руб_рсч'!$C$28,J5),IFERROR(SEARCH('[1]Критерии руб_рсч'!$C$29,J5),IFERROR(SEARCH('[1]Критерии руб_рсч'!$C$30,J5),$AP$1)))=$AP$1,\"-\",\"OK\")","v":"-"},{"$f":"IF(IFERROR(SEARCH('[1]Критерии руб_рсч'!$C$32,J5),IFERROR(SEARCH('[1]Критерии руб_рсч'!$C$33,J5),IFERROR(SEARCH('[1]Критерии руб_рсч'!$C$34,J5),IFERROR(SEARCH('[1]Критерии руб_рсч'!$C$35,J5),IFERROR(SEARCH('[1]Критерии руб_рсч'!$C$36,J5),$AP$1)))))=$AP$1,\"-\",\"OK\")","v":"-"},{"$f":"IF(IFERROR(SEARCH('[1]Критерии руб_рсч'!$C$38,J5),IFERROR(SEARCH('[1]Критерии руб_рсч'!$C$39,J5),IFERROR(SEARCH('[1]Критерии руб_рсч'!$C$40,J5),IFERROR(SEARCH('[1]Критерии руб_рсч'!$C$41,J5),IFERROR(SEARCH('[1]Критерии руб_рсч'!$C$42,J5),IFERROR(SEARCH('[1]Критерии руб_рсч'!$C$43,J5),$AP$1))))))=$AP$1,\"-\",\"OK\")","v":"-"},{"$f":"IF(IFERROR(SEARCH('[1]Критерии руб_рсч'!$C$45,J5),IFERROR(SEARCH('[1]Критерии руб_рсч'!$C$46,J5),IFERROR(SEARCH('[1]Критерии руб_рсч'!$C$47,J5),IFERROR(SEARCH('[1]Критерии руб_рсч'!$C$48,J5),IFERROR(SEARCH('[1]Критерии руб_рсч'!$C$49,J5),IFERROR(SEARCH('[1]Критерии руб_рсч'!$C$50,J5),IFERROR(SEARCH('[1]Критерии руб_рсч'!$C$51,J5),$AP$1)))))))=$AP$1,\"-\",\"OK\")","v":"-"},{"$f":"IF(IFERROR(SEARCH('[1]Критерии руб_рсч'!$C$53,J5),$AP$1)=$AP$1,\"-\",\"OK\")","v":"-"},{"$f":"IF(IFERROR(SEARCH('[1]Критерии руб_рсч'!$C$55,J5),IFERROR(SEARCH('[1]Критерии руб_рсч'!$C$56,J5),IFERROR(SEARCH('[1]Критерии руб_рсч'!$C$57,J5),IFERROR(SEARCH('[1]Критерии руб_рсч'!$C$58,J5),IFERROR(SEARCH('[1]Критерии руб_рсч'!$C$59,J5),$AP$1)))))=$AP$1,\"-\",\"OK\")","v":"-"},{"$f":"IF(IFERROR(SEARCH('[1]Критерии руб_рсч'!$C$61,J5),IFERROR(SEARCH('[1]Критерии руб_рсч'!$C$62,J5),IFERROR(SEARCH('[1]Критерии руб_рсч'!$C$63,J5),IFERROR(SEARCH('[1]Критерии руб_рсч'!$C$64,J5),$AP$1))))=$AP$1,\"-\",\"OK\")","v":"-"},{"$f":"IF(IFERROR(SEARCH('[1]Критерии руб_рсч'!$C$66,J5),$AP$1)=$AP$1,\"-\",\"OK\")","v":"-"},{"$f":"IF(IFERROR(SEARCH('[1]Критерии руб_рсч'!$C$68,J5),IFERROR(SEARCH('[1]Критерии руб_рсч'!$C$69,J5),IFERROR(SEARCH('[1]Критерии руб_рсч'!$C$70,J5),IFERROR(SEARCH('[1]Критерии руб_рсч'!$C$71,J5),$AP$1))))=$AP$1,\"-\",\"OK\")","v":"-"},{"$f":"IF(IFERROR(SEARCH('[1]Критерии руб_рсч'!$C$73,J5),IFERROR(SEARCH('[1]Критерии руб_рсч'!$C$74,J5),IFERROR(SEARCH('[1]Критерии руб_рсч'!$C$75,J5),IFERROR(SEARCH('[1]Критерии руб_рсч'!$C$76,J5),$AP$1))))=$AP$1,\"-\",\"OK\")","v":"-"},{"$f":"IF(IFERROR(SEARCH('[1]Критерии руб_рсч'!$C$78,J5),IFERROR(SEARCH('[1]Критерии руб_рсч'!$C$79,J5),IFERROR(SEARCH('[1]Критерии руб_рсч'!$C$80,J5),IFERROR(SEARCH('[1]Критерии руб_рсч'!$C$81,J5),$AP$1))))=$AP$1,\"-\",\"OK\")","v":"-"},{"$f":"IF(IFERROR(SEARCH('[1]Критерии руб_рсч'!$C$83,J5),IFERROR(SEARCH('[1]Критерии руб_рсч'!$C$84,J5),$AP$1))=$AP$1,\"-\",\"OK\")","v":"-"},{"$f":"IF(IFERROR(SEARCH('[1]Критерии руб_рсч'!$C$86,J5),IFERROR(SEARCH('[1]Критерии руб_рсч'!$C$87,J5),IFERROR(SEARCH('[1]Критерии руб_рсч'!$C$88,J5),$AP$1)))=$AP$1,\"-\",\"OK\")","v":"-"},{"$f":"IF(IFERROR(SEARCH('[1]Критерии руб_рсч'!$C$90,J5),IFERROR(SEARCH('[1]Критерии руб_рсч'!$C$91,J5),IFERROR(SEARCH('[1]Критерии руб_рсч'!$C$92,J5),IFERROR(SEARCH('[1]Критерии руб_рсч'!$C$93,J5),$AP$1))))=$AP$1,\"-\",\"OK\")","v":"-"},{"$f":"IF(IFERROR(SEARCH('[1]Критерии руб_рсч'!$C$95,J5),IFERROR(SEARCH('[1]Критерии руб_рсч'!$C$96,J5),IFERROR(SEARCH('[1]Критерии руб_рсч'!$C$97,J5),IFERROR(SEARCH('[1]Критерии руб_рсч'!$C$98,J5),IFERROR(SEARCH('[1]Критерии руб_рсч'!$C$99,J5),IFERROR(SEARCH('[1]Критерии руб_рсч'!$C$100,J5),$AP$1))))))=$AP$1,\"-\",\"OK\")","v":"-"},{"$f":"IF(IFERROR(SEARCH('[1]Критерии руб_рсч'!$C$102,J5),IFERROR(SEARCH('[1]Критерии руб_рсч'!$C$103,J5),IFERROR(SEARCH('[1]Критерии руб_рсч'!$C$104,J5),IFERROR(SEARCH('[1]Критерии руб_рсч'!$C$105,J5),IFERROR(SEARCH('[1]Критерии руб_рсч'!$C$106,J5),IFERROR(SEARCH('[1]Критерии руб_рсч'!$C$107,J5),$AP$1))))))=$AP$1,\"-\",\"OK\")","v":"-"},{"$f":"IF(IFERROR(SEARCH('[1]Критерии руб_рсч'!$C$109,J5),IFERROR(SEARCH('[1]Критерии руб_рсч'!$C$109,J5),$AP$1))=$AP$1,\"-\",\"OK\")","v":"-"}]
["Солр4985","15.01.2015","Солид банк",0,25,null,null,null,"ЗАО \"СОЛИД БАНК\"","Комиссия за Перечисление денежных средств со счета Клиента в другие кредитные организации по платежным поручениям,  полученным по Системе Ibank2. Тариф 1.2.3.2","o",{"$f":"VLOOKUP(O6,[1]Справочник!$A$2:$B$44,2,0)","v":"опер"},1,2015,{"$f":"IFERROR(IF(T6=\"Оплата от покупателя\",\"income\",INDEX('Критерии руб_рсч'!$D$2:$D$91,MATCH(TRUE,ISNUMBER(SEARCH('Критерии руб_рсч'!$C$2:$C$91,рсч_руб!J6)),0))),\"other\")","v":"bank"},"руб.",1,2015,"Правда","Прочее списание",{"$f":"IF(IFERROR(SEARCH('[1]Критерии руб_рсч'!$C$2,J6),IFERROR(SEARCH('[1]Критерии руб_рсч'!$C$3,J6),IFERROR(SEARCH('[1]Критерии руб_рсч'!$C$4,J6),IFERROR(SEARCH('[1]Критерии руб_рсч'!$C$5,J6),IFERROR(SEARCH('[1]Критерии руб_рсч'!$C$6,J6),IFERROR(SEARCH('[1]Критерии руб_рсч'!$C$7,J6),IFERROR(SEARCH('[1]Критерии руб_рсч'!$C$8,J6),IFERROR(SEARCH('[1]Критерии руб_рсч'!$C$8,J6),IFERROR(SEARCH('[1]Критерии руб_рсч'!$C$10,J6),IFERROR(SEARCH('[1]Критерии руб_рсч'!$C$11,J6),\"-\"))))))))))=$AP$1,\"-\",\"OK\")","v":"-"},{"$f":"IF(IFERROR(SEARCH('[1]Критерии руб_рсч'!$C$13,J6),IFERROR(SEARCH('[1]Критерии руб_рсч'!$C$14,J6),IFERROR(SEARCH('[1]Критерии руб_рсч'!$C$15,J6),IFERROR(SEARCH('[1]Критерии руб_рсч'!$C$16,J6),IFERROR(SEARCH('[1]Критерии руб_рсч'!$C$17,J6),IFERROR(SEARCH('[1]Критерии руб_рсч'!$C$18,J6),IFERROR(SEARCH('[1]Критерии руб_рсч'!$C$19,J6),IFERROR(SEARCH('[1]Критерии руб_рсч'!$C$20,J6),IFERROR(SEARCH('[1]Критерии руб_рсч'!$C$21,J6),IFERROR(SEARCH('[1]Критерии руб_рсч'!$C$22,J6),IFERROR(SEARCH('[1]Критерии руб_рсч'!$C$23,J6),IFERROR(SEARCH('[1]Критерии руб_рсч'!$C$24,J6),IFERROR(SEARCH('[1]Критерии руб_рсч'!$C$25,J6),IFERROR(SEARCH('[1]Критерии руб_рсч'!$C$26,J6),$AP$1))))))))))))))=$AP$1,\"-\",\"OK\")","v":"OK"},{"$f":"IF(IFERROR(SEARCH('[1]Критерии руб_рсч'!$C$28,J6),IFERROR(SEARCH('[1]Критерии руб_рсч'!$C$29,J6),IFERROR(SEARCH('[1]Критерии руб_рсч'!$C$30,J6),$AP$1)))=$AP$1,\"-\",\"OK\")","v":"-"},{"$f":"IF(IFERROR(SEARCH('[1]Критерии руб_рсч'!$C$32,J6),IFERROR(SEARCH('[1]Критерии руб_рсч'!$C$33,J6),IFERROR(SEARCH('[1]Критерии руб_рсч'!$C$34,J6),IFERROR(SEARCH('[1]Критерии руб_рсч'!$C$35,J6),IFERROR(SEARCH('[1]Критерии руб_рсч'!$C$36,J6),$AP$1)))))=$AP$1,\"-\",\"OK\")","v":"-"},{"$f":"IF(IFERROR(SEARCH('[1]Критерии руб_рсч'!$C$38,J6),IFERROR(SEARCH('[1]Критерии руб_рсч'!$C$39,J6),IFERROR(SEARCH('[1]Критерии руб_рсч'!$C$40,J6),IFERROR(SEARCH('[1]Критерии руб_рсч'!$C$41,J6),IFERROR(SEARCH('[1]Критерии руб_рсч'!$C$42,J6),IFERROR(SEARCH('[1]Критерии руб_рсч'!$C$43,J6),$AP$1))))))=$AP$1,\"-\",\"OK\")","v":"-"},{"$f":"IF(IFERROR(SEARCH('[1]Критерии руб_рсч'!$C$45,J6),IFERROR(SEARCH('[1]Критерии руб_рсч'!$C$46,J6),IFERROR(SEARCH('[1]Критерии руб_рсч'!$C$47,J6),IFERROR(SEARCH('[1]Критерии руб_рсч'!$C$48,J6),IFERROR(SEARCH('[1]Критерии руб_рсч'!$C$49,J6),IFERROR(SEARCH('[1]Критерии руб_рсч'!$C$50,J6),IFERROR(SEARCH('[1]Критерии руб_рсч'!$C$51,J6),$AP$1)))))))=$AP$1,\"-\",\"OK\")","v":"-"},{"$f":"IF(IFERROR(SEARCH('[1]Критерии руб_рсч'!$C$53,J6),$AP$1)=$AP$1,\"-\",\"OK\")","v":"-"},{"$f":"IF(IFERROR(SEARCH('[1]Критерии руб_рсч'!$C$55,J6),IFERROR(SEARCH('[1]Критерии руб_рсч'!$C$56,J6),IFERROR(SEARCH('[1]Критерии руб_рсч'!$C$57,J6),IFERROR(SEARCH('[1]Критерии руб_рсч'!$C$58,J6),IFERROR(SEARCH('[1]Критерии руб_рсч'!$C$59,J6),$AP$1)))))=$AP$1,\"-\",\"OK\")","v":"-"},{"$f":"IF(IFERROR(SEARCH('[1]Критерии руб_рсч'!$C$61,J6),IFERROR(SEARCH('[1]Критерии руб_рсч'!$C$62,J6),IFERROR(SEARCH('[1]Критерии руб_рсч'!$C$63,J6),IFERROR(SEARCH('[1]Критерии руб_рсч'!$C$64,J6),$AP$1))))=$AP$1,\"-\",\"OK\")","v":"-"},{"$f":"IF(IFERROR(SEARCH('[1]Критерии руб_рсч'!$C$66,J6),$AP$1)=$AP$1,\"-\",\"OK\")","v":"-"},{"$f":"IF(IFERROR(SEARCH('[1]Критерии руб_рсч'!$C$68,J6),IFERROR(SEARCH('[1]Критерии руб_рсч'!$C$69,J6),IFERROR(SEARCH('[1]Критерии руб_рсч'!$C$70,J6),IFERROR(SEARCH('[1]Критерии руб_рсч'!$C$71,J6),$AP$1))))=$AP$1,\"-\",\"OK\")","v":"-"},{"$f":"IF(IFERROR(SEARCH('[1]Критерии руб_рсч'!$C$73,J6),IFERROR(SEARCH('[1]Критерии руб_рсч'!$C$74,J6),IFERROR(SEARCH('[1]Критерии руб_рсч'!$C$75,J6),IFERROR(SEARCH('[1]Критерии руб_рсч'!$C$76,J6),$AP$1))))=$AP$1,\"-\",\"OK\")","v":"-"},{"$f":"IF(IFERROR(SEARCH('[1]Критерии руб_рсч'!$C$78,J6),IFERROR(SEARCH('[1]Критерии руб_рсч'!$C$79,J6),IFERROR(SEARCH('[1]Критерии руб_рсч'!$C$80,J6),IFERROR(SEARCH('[1]Критерии руб_рсч'!$C$81,J6),$AP$1))))=$AP$1,\"-\",\"OK\")","v":"-"},{"$f":"IF(IFERROR(SEARCH('[1]Критерии руб_рсч'!$C$83,J6),IFERROR(SEARCH('[1]Критерии руб_рсч'!$C$84,J6),$AP$1))=$AP$1,\"-\",\"OK\")","v":"-"},{"$f":"IF(IFERROR(SEARCH('[1]Критерии руб_рсч'!$C$86,J6),IFERROR(SEARCH('[1]Критерии руб_рсч'!$C$87,J6),IFERROR(SEARCH('[1]Критерии руб_рсч'!$C$88,J6),$AP$1)))=$AP$1,\"-\",\"OK\")","v":"-"},{"$f":"IF(IFERROR(SEARCH('[1]Критерии руб_рсч'!$C$90,J6),IFERROR(SEARCH('[1]Критерии руб_рсч'!$C$91,J6),IFERROR(SEARCH('[1]Критерии руб_рсч'!$C$92,J6),IFERROR(SEARCH('[1]Критерии руб_рсч'!$C$93,J6),$AP$1))))=$AP$1,\"-\",\"OK\")","v":"-"},{"$f":"IF(IFERROR(SEARCH('[1]Критерии руб_рсч'!$C$95,J6),IFERROR(SEARCH('[1]Критерии руб_рсч'!$C$96,J6),IFERROR(SEARCH('[1]Критерии руб_рсч'!$C$97,J6),IFERROR(SEARCH('[1]Критерии руб_рсч'!$C$98,J6),IFERROR(SEARCH('[1]Критерии руб_рсч'!$C$99,J6),IFERROR(SEARCH('[1]Критерии руб_рсч'!$C$100,J6),$AP$1))))))=$AP$1,\"-\",\"OK\")","v":"-"},{"$f":"IF(IFERROR(SEARCH('[1]Критерии руб_рсч'!$C$102,J6),IFERROR(SEARCH('[1]Критерии руб_рсч'!$C$103,J6),IFERROR(SEARCH('[1]Критерии руб_рсч'!$C$104,J6),IFERROR(SEARCH('[1]Критерии руб_рсч'!$C$105,J6),IFERROR(SEARCH('[1]Критерии руб_рсч'!$C$106,J6),IFERROR(SEARCH('[1]Критерии руб_рсч'!$C$107,J6),$AP$1))))))=$AP$1,\"-\",\"OK\")","v":"-"},{"$f":"IF(IFERROR(SEARCH('[1]Критерии руб_рсч'!$C$109,J6),IFERROR(SEARCH('[1]Критерии руб_рсч'!$C$109,J6),$AP$1))=$AP$1,\"-\",\"OK\")","v":"-"}]
["Солр4986","15.01.2015","Солид банк",0,25,null,null,null,"ЗАО \"СОЛИД БАНК\"","Комиссия за Перечисление денежных средств со счета Клиента в другие кредитные организации по платежным поручениям,  полученным по Системе Ibank2. Тариф 1.2.3.2","o",{"$f":"VLOOKUP(O7,[1]Справочник!$A$2:$B$44,2,0)","v":"опер"},1,2015,{"$f":"IFERROR(IF(T7=\"Оплата от покупателя\",\"income\",INDEX('Критерии руб_рсч'!$D$2:$D$91,MATCH(TRUE,ISNUMBER(SEARCH('Критерии руб_рсч'!$C$2:$C$91,рсч_руб!J7)),0))),\"other\")","v":"bank"},"руб.",1,2015,"Правда","Прочее списание",{"$f":"IF(IFERROR(SEARCH('[1]Критерии руб_рсч'!$C$2,J7),IFERROR(SEARCH('[1]Критерии руб_рсч'!$C$3,J7),IFERROR(SEARCH('[1]Критерии руб_рсч'!$C$4,J7),IFERROR(SEARCH('[1]Критерии руб_рсч'!$C$5,J7),IFERROR(SEARCH('[1]Критерии руб_рсч'!$C$6,J7),IFERROR(SEARCH('[1]Критерии руб_рсч'!$C$7,J7),IFERROR(SEARCH('[1]Критерии руб_рсч'!$C$8,J7),IFERROR(SEARCH('[1]Критерии руб_рсч'!$C$8,J7),IFERROR(SEARCH('[1]Критерии руб_рсч'!$C$10,J7),IFERROR(SEARCH('[1]Критерии руб_рсч'!$C$11,J7),\"-\"))))))))))=$AP$1,\"-\",\"OK\")","v":"-"},{"$f":"IF(IFERROR(SEARCH('[1]Критерии руб_рсч'!$C$13,J7),IFERROR(SEARCH('[1]Критерии руб_рсч'!$C$14,J7),IFERROR(SEARCH('[1]Критерии руб_рсч'!$C$15,J7),IFERROR(SEARCH('[1]Критерии руб_рсч'!$C$16,J7),IFERROR(SEARCH('[1]Критерии руб_рсч'!$C$17,J7),IFERROR(SEARCH('[1]Критерии руб_рсч'!$C$18,J7),IFERROR(SEARCH('[1]Критерии руб_рсч'!$C$19,J7),IFERROR(SEARCH('[1]Критерии руб_рсч'!$C$20,J7),IFERROR(SEARCH('[1]Критерии руб_рсч'!$C$21,J7),IFERROR(SEARCH('[1]Критерии руб_рсч'!$C$22,J7),IFERROR(SEARCH('[1]Критерии руб_рсч'!$C$23,J7),IFERROR(SEARCH('[1]Критерии руб_рсч'!$C$24,J7),IFERROR(SEARCH('[1]Критерии руб_рсч'!$C$25,J7),IFERROR(SEARCH('[1]Критерии руб_рсч'!$C$26,J7),$AP$1))))))))))))))=$AP$1,\"-\",\"OK\")","v":"OK"},{"$f":"IF(IFERROR(SEARCH('[1]Критерии руб_рсч'!$C$28,J7),IFERROR(SEARCH('[1]Критерии руб_рсч'!$C$29,J7),IFERROR(SEARCH('[1]Критерии руб_рсч'!$C$30,J7),$AP$1)))=$AP$1,\"-\",\"OK\")","v":"-"},{"$f":"IF(IFERROR(SEARCH('[1]Критерии руб_рсч'!$C$32,J7),IFERROR(SEARCH('[1]Критерии руб_рсч'!$C$33,J7),IFERROR(SEARCH('[1]Критерии руб_рсч'!$C$34,J7),IFERROR(SEARCH('[1]Критерии руб_рсч'!$C$35,J7),IFERROR(SEARCH('[1]Критерии руб_рсч'!$C$36,J7),$AP$1)))))=$AP$1,\"-\",\"OK\")","v":"-"},{"$f":"IF(IFERROR(SEARCH('[1]Критерии руб_рсч'!$C$38,J7),IFERROR(SEARCH('[1]Критерии руб_рсч'!$C$39,J7),IFERROR(SEARCH('[1]Критерии руб_рсч'!$C$40,J7),IFERROR(SEARCH('[1]Критерии руб_рсч'!$C$41,J7),IFERROR(SEARCH('[1]Критерии руб_рсч'!$C$42,J7),IFERROR(SEARCH('[1]Критерии руб_рсч'!$C$43,J7),$AP$1))))))=$AP$1,\"-\",\"OK\")","v":"-"},{"$f":"IF(IFERROR(SEARCH('[1]Критерии руб_рсч'!$C$45,J7),IFERROR(SEARCH('[1]Критерии руб_рсч'!$C$46,J7),IFERROR(SEARCH('[1]Критерии руб_рсч'!$C$47,J7),IFERROR(SEARCH('[1]Критерии руб_рсч'!$C$48,J7),IFERROR(SEARCH('[1]Критерии руб_рсч'!$C$49,J7),IFERROR(SEARCH('[1]Критерии руб_рсч'!$C$50,J7),IFERROR(SEARCH('[1]Критерии руб_рсч'!$C$51,J7),$AP$1)))))))=$AP$1,\"-\",\"OK\")","v":"-"},{"$f":"IF(IFERROR(SEARCH('[1]Критерии руб_рсч'!$C$53,J7),$AP$1)=$AP$1,\"-\",\"OK\")","v":"-"},{"$f":"IF(IFERROR(SEARCH('[1]Критерии руб_рсч'!$C$55,J7),IFERROR(SEARCH('[1]Критерии руб_рсч'!$C$56,J7),IFERROR(SEARCH('[1]Критерии руб_рсч'!$C$57,J7),IFERROR(SEARCH('[1]Критерии руб_рсч'!$C$58,J7),IFERROR(SEARCH('[1]Критерии руб_рсч'!$C$59,J7),$AP$1)))))=$AP$1,\"-\",\"OK\")","v":"-"},{"$f":"IF(IFERROR(SEARCH('[1]Критерии руб_рсч'!$C$61,J7),IFERROR(SEARCH('[1]Критерии руб_рсч'!$C$62,J7),IFERROR(SEARCH('[1]Критерии руб_рсч'!$C$63,J7),IFERROR(SEARCH('[1]Критерии руб_рсч'!$C$64,J7),$AP$1))))=$AP$1,\"-\",\"OK\")","v":"-"},{"$f":"IF(IFERROR(SEARCH('[1]Критерии руб_рсч'!$C$66,J7),$AP$1)=$AP$1,\"-\",\"OK\")","v":"-"},{"$f":"IF(IFERROR(SEARCH('[1]Критерии руб_рсч'!$C$68,J7),IFERROR(SEARCH('[1]Критерии руб_рсч'!$C$69,J7),IFERROR(SEARCH('[1]Критерии руб_рсч'!$C$70,J7),IFERROR(SEARCH('[1]Критерии руб_рсч'!$C$71,J7),$AP$1))))=$AP$1,\"-\",\"OK\")","v":"-"},{"$f":"IF(IFERROR(SEARCH('[1]Критерии руб_рсч'!$C$73,J7),IFERROR(SEARCH('[1]Критерии руб_рсч'!$C$74,J7),IFERROR(SEARCH('[1]Критерии руб_рсч'!$C$75,J7),IFERROR(SEARCH('[1]Критерии руб_рсч'!$C$76,J7),$AP$1))))=$AP$1,\"-\",\"OK\")","v":"-"},{"$f":"IF(IFERROR(SEARCH('[1]Критерии руб_рсч'!$C$78,J7),IFERROR(SEARCH('[1]Критерии руб_рсч'!$C$79,J7),IFERROR(SEARCH('[1]Критерии руб_рсч'!$C$80,J7),IFERROR(SEARCH('[1]Критерии руб_рсч'!$C$81,J7),$AP$1))))=$AP$1,\"-\",\"OK\")","v":"-"},{"$f":"IF(IFERROR(SEARCH('[1]Критерии руб_рсч'!$C$83,J7),IFERROR(SEARCH('[1]Критерии руб_рсч'!$C$84,J7),$AP$1))=$AP$1,\"-\",\"OK\")","v":"-"},{"$f":"IF(IFERROR(SEARCH('[1]Критерии руб_рсч'!$C$86,J7),IFERROR(SEARCH('[1]Критерии руб_рсч'!$C$87,J7),IFERROR(SEARCH('[1]Критерии руб_рсч'!$C$88,J7),$AP$1)))=$AP$1,\"-\",\"OK\")","v":"-"},{"$f":"IF(IFERROR(SEARCH('[1]Критерии руб_рсч'!$C$90,J7),IFERROR(SEARCH('[1]Критерии руб_рсч'!$C$91,J7),IFERROR(SEARCH('[1]Критерии руб_рсч'!$C$92,J7),IFERROR(SEARCH('[1]Критерии руб_рсч'!$C$93,J7),$AP$1))))=$AP$1,\"-\",\"OK\")","v":"-"},{"$f":"IF(IFERROR(SEARCH('[1]Критерии руб_рсч'!$C$95,J7),IFERROR(SEARCH('[1]Критерии руб_рсч'!$C$96,J7),IFERROR(SEARCH('[1]Критерии руб_рсч'!$C$97,J7),IFERROR(SEARCH('[1]Критерии руб_рсч'!$C$98,J7),IFERROR(SEARCH('[1]Критерии руб_рсч'!$C$99,J7),IFERROR(SEARCH('[1]Критерии руб_рсч'!$C$100,J7),$AP$1))))))=$AP$1,\"-\",\"OK\")","v":"-"},{"$f":"IF(IFERROR(SEARCH('[1]Критерии руб_рсч'!$C$102,J7),IFERROR(SEARCH('[1]Критерии руб_рсч'!$C$103,J7),IFERROR(SEARCH('[1]Критерии руб_рсч'!$C$104,J7),IFERROR(SEARCH('[1]Критерии руб_рсч'!$C$105,J7),IFERROR(SEARCH('[1]Критерии руб_рсч'!$C$106,J7),IFERROR(SEARCH('[1]Критерии руб_рсч'!$C$107,J7),$AP$1))))))=$AP$1,\"-\",\"OK\")","v":"-"},{"$f":"IF(IFERROR(SEARCH('[1]Критерии руб_рсч'!$C$109,J7),IFERROR(SEARCH('[1]Критерии руб_рсч'!$C$109,J7),$AP$1))=$AP$1,\"-\",\"OK\")","v":"-"}]
["Солр4987","15.01.2015","Солид банк",0,25,null,null,null,"ЗАО \"СОЛИД БАНК\"","Комиссия за Перечисление денежных средств со счета Клиента в другие кредитные организации по платежным поручениям,  полученным по Системе Ibank2. Тариф 1.2.3.2","o",{"$f":"VLOOKUP(O8,[1]Справочник!$A$2:$B$44,2,0)","v":"опер"},1,2015,{"$f":"IFERROR(IF(T8=\"Оплата от покупателя\",\"income\",INDEX('Критерии руб_рсч'!$D$2:$D$91,MATCH(TRUE,ISNUMBER(SEARCH('Критерии руб_рсч'!$C$2:$C$91,рсч_руб!J8)),0))),\"other\")","v":"bank"},"руб.",1,2015,"Правда","Прочее списание",{"$f":"IF(IFERROR(SEARCH('[1]Критерии руб_рсч'!$C$2,J8),IFERROR(SEARCH('[1]Критерии руб_рсч'!$C$3,J8),IFERROR(SEARCH('[1]Критерии руб_рсч'!$C$4,J8),IFERROR(SEARCH('[1]Критерии руб_рсч'!$C$5,J8),IFERROR(SEARCH('[1]Критерии руб_рсч'!$C$6,J8),IFERROR(SEARCH('[1]Критерии руб_рсч'!$C$7,J8),IFERROR(SEARCH('[1]Критерии руб_рсч'!$C$8,J8),IFERROR(SEARCH('[1]Критерии руб_рсч'!$C$8,J8),IFERROR(SEARCH('[1]Критерии руб_рсч'!$C$10,J8),IFERROR(SEARCH('[1]Критерии руб_рсч'!$C$11,J8),\"-\"))))))))))=$AP$1,\"-\",\"OK\")","v":"-"},{"$f":"IF(IFERROR(SEARCH('[1]Критерии руб_рсч'!$C$13,J8),IFERROR(SEARCH('[1]Критерии руб_рсч'!$C$14,J8),IFERROR(SEARCH('[1]Критерии руб_рсч'!$C$15,J8),IFERROR(SEARCH('[1]Критерии руб_рсч'!$C$16,J8),IFERROR(SEARCH('[1]Критерии руб_рсч'!$C$17,J8),IFERROR(SEARCH('[1]Критерии руб_рсч'!$C$18,J8),IFERROR(SEARCH('[1]Критерии руб_рсч'!$C$19,J8),IFERROR(SEARCH('[1]Критерии руб_рсч'!$C$20,J8),IFERROR(SEARCH('[1]Критерии руб_рсч'!$C$21,J8),IFERROR(SEARCH('[1]Критерии руб_рсч'!$C$22,J8),IFERROR(SEARCH('[1]Критерии руб_рсч'!$C$23,J8),IFERROR(SEARCH('[1]Критерии руб_рсч'!$C$24,J8),IFERROR(SEARCH('[1]Критерии руб_рсч'!$C$25,J8),IFERROR(SEARCH('[1]Критерии руб_рсч'!$C$26,J8),$AP$1))))))))))))))=$AP$1,\"-\",\"OK\")","v":"OK"},{"$f":"IF(IFERROR(SEARCH('[1]Критерии руб_рсч'!$C$28,J8),IFERROR(SEARCH('[1]Критерии руб_рсч'!$C$29,J8),IFERROR(SEARCH('[1]Критерии руб_рсч'!$C$30,J8),$AP$1)))=$AP$1,\"-\",\"OK\")","v":"-"},{"$f":"IF(IFERROR(SEARCH('[1]Критерии руб_рсч'!$C$32,J8),IFERROR(SEARCH('[1]Критерии руб_рсч'!$C$33,J8),IFERROR(SEARCH('[1]Критерии руб_рсч'!$C$34,J8),IFERROR(SEARCH('[1]Критерии руб_рсч'!$C$35,J8),IFERROR(SEARCH('[1]Критерии руб_рсч'!$C$36,J8),$AP$1)))))=$AP$1,\"-\",\"OK\")","v":"-"},{"$f":"IF(IFERROR(SEARCH('[1]Критерии руб_рсч'!$C$38,J8),IFERROR(SEARCH('[1]Критерии руб_рсч'!$C$39,J8),IFERROR(SEARCH('[1]Критерии руб_рсч'!$C$40,J8),IFERROR(SEARCH('[1]Критерии руб_рсч'!$C$41,J8),IFERROR(SEARCH('[1]Критерии руб_рсч'!$C$42,J8),IFERROR(SEARCH('[1]Критерии руб_рсч'!$C$43,J8),$AP$1))))))=$AP$1,\"-\",\"OK\")","v":"-"},{"$f":"IF(IFERROR(SEARCH('[1]Критерии руб_рсч'!$C$45,J8),IFERROR(SEARCH('[1]Критерии руб_рсч'!$C$46,J8),IFERROR(SEARCH('[1]Критерии руб_рсч'!$C$47,J8),IFERROR(SEARCH('[1]Критерии руб_рсч'!$C$48,J8),IFERROR(SEARCH('[1]Критерии руб_рсч'!$C$49,J8),IFERROR(SEARCH('[1]Критерии руб_рсч'!$C$50,J8),IFERROR(SEARCH('[1]Критерии руб_рсч'!$C$51,J8),$AP$1)))))))=$AP$1,\"-\",\"OK\")","v":"-"},{"$f":"IF(IFERROR(SEARCH('[1]Критерии руб_рсч'!$C$53,J8),$AP$1)=$AP$1,\"-\",\"OK\")","v":"-"},{"$f":"IF(IFERROR(SEARCH('[1]Критерии руб_рсч'!$C$55,J8),IFERROR(SEARCH('[1]Критерии руб_рсч'!$C$56,J8),IFERROR(SEARCH('[1]Критерии руб_рсч'!$C$57,J8),IFERROR(SEARCH('[1]Критерии руб_рсч'!$C$58,J8),IFERROR(SEARCH('[1]Критерии руб_рсч'!$C$59,J8),$AP$1)))))=$AP$1,\"-\",\"OK\")","v":"-"},{"$f":"IF(IFERROR(SEARCH('[1]Критерии руб_рсч'!$C$61,J8),IFERROR(SEARCH('[1]Критерии руб_рсч'!$C$62,J8),IFERROR(SEARCH('[1]Критерии руб_рсч'!$C$63,J8),IFERROR(SEARCH('[1]Критерии руб_рсч'!$C$64,J8),$AP$1))))=$AP$1,\"-\",\"OK\")","v":"-"},{"$f":"IF(IFERROR(SEARCH('[1]Критерии руб_рсч'!$C$66,J8),$AP$1)=$AP$1,\"-\",\"OK\")","v":"-"},{"$f":"IF(IFERROR(SEARCH('[1]Критерии руб_рсч'!$C$68,J8),IFERROR(SEARCH('[1]Критерии руб_рсч'!$C$69,J8),IFERROR(SEARCH('[1]Критерии руб_рсч'!$C$70,J8),IFERROR(SEARCH('[1]Критерии руб_рсч'!$C$71,J8),$AP$1))))=$AP$1,\"-\",\"OK\")","v":"-"},{"$f":"IF(IFERROR(SEARCH('[1]Критерии руб_рсч'!$C$73,J8),IFERROR(SEARCH('[1]Критерии руб_рсч'!$C$74,J8),IFERROR(SEARCH('[1]Критерии руб_рсч'!$C$75,J8),IFERROR(SEARCH('[1]Критерии руб_рсч'!$C$76,J8),$AP$1))))=$AP$1,\"-\",\"OK\")","v":"-"},{"$f":"IF(IFERROR(SEARCH('[1]Критерии руб_рсч'!$C$78,J8),IFERROR(SEARCH('[1]Критерии руб_рсч'!$C$79,J8),IFERROR(SEARCH('[1]Критерии руб_рсч'!$C$80,J8),IFERROR(SEARCH('[1]Критерии руб_рсч'!$C$81,J8),$AP$1))))=$AP$1,\"-\",\"OK\")","v":"-"},{"$f":"IF(IFERROR(SEARCH('[1]Критерии руб_рсч'!$C$83,J8),IFERROR(SEARCH('[1]Критерии руб_рсч'!$C$84,J8),$AP$1))=$AP$1,\"-\",\"OK\")","v":"-"},{"$f":"IF(IFERROR(SEARCH('[1]Критерии руб_рсч'!$C$86,J8),IFERROR(SEARCH('[1]Критерии руб_рсч'!$C$87,J8),IFERROR(SEARCH('[1]Критерии руб_рсч'!$C$88,J8),$AP$1)))=$AP$1,\"-\",\"OK\")","v":"-"},{"$f":"IF(IFERROR(SEARCH('[1]Критерии руб_рсч'!$C$90,J8),IFERROR(SEARCH('[1]Критерии руб_рсч'!$C$91,J8),IFERROR(SEARCH('[1]Критерии руб_рсч'!$C$92,J8),IFERROR(SEARCH('[1]Критерии руб_рсч'!$C$93,J8),$AP$1))))=$AP$1,\"-\",\"OK\")","v":"-"},{"$f":"IF(IFERROR(SEARCH('[1]Критерии руб_рсч'!$C$95,J8),IFERROR(SEARCH('[1]Критерии руб_рсч'!$C$96,J8),IFERROR(SEARCH('[1]Критерии руб_рсч'!$C$97,J8),IFERROR(SEARCH('[1]Критерии руб_рсч'!$C$98,J8),IFERROR(SEARCH('[1]Критерии руб_рсч'!$C$99,J8),IFERROR(SEARCH('[1]Критерии руб_рсч'!$C$100,J8),$AP$1))))))=$AP$1,\"-\",\"OK\")","v":"-"},{"$f":"IF(IFERROR(SEARCH('[1]Критерии руб_рсч'!$C$102,J8),IFERROR(SEARCH('[1]Критерии руб_рсч'!$C$103,J8),IFERROR(SEARCH('[1]Критерии руб_рсч'!$C$104,J8),IFERROR(SEARCH('[1]Критерии руб_рсч'!$C$105,J8),IFERROR(SEARCH('[1]Критерии руб_рсч'!$C$106,J8),IFERROR(SEARCH('[1]Критерии руб_рсч'!$C$107,J8),$AP$1))))))=$AP$1,\"-\",\"OK\")","v":"-"},{"$f":"IF(IFERROR(SEARCH('[1]Критерии руб_рсч'!$C$109,J8),IFERROR(SEARCH('[1]Критерии руб_рсч'!$C$109,J8),$AP$1))=$AP$1,\"-\",\"OK\")","v":"-"}]
["Солр4988","15.01.2015","Солид банк",0,25,null,null,null,"ЗАО \"СОЛИД БАНК\"","Комиссия за Перечисление денежных средств со счета Клиента в другие кредитные организации по платежным поручениям,  полученным по Системе Ibank2. Тариф 1.2.3.2","o",{"$f":"VLOOKUP(O9,[1]Справочник!$A$2:$B$44,2,0)","v":"опер"},1,2015,{"$f":"IFERROR(IF(T9=\"Оплата от покупателя\",\"income\",INDEX('Критерии руб_рсч'!$D$2:$D$91,MATCH(TRUE,ISNUMBER(SEARCH('Критерии руб_рсч'!$C$2:$C$91,рсч_руб!J9)),0))),\"other\")","v":"bank"},"руб.",1,2015,"Правда","Прочее списание",{"$f":"IF(IFERROR(SEARCH('[1]Критерии руб_рсч'!$C$2,J9),IFERROR(SEARCH('[1]Критерии руб_рсч'!$C$3,J9),IFERROR(SEARCH('[1]Критерии руб_рсч'!$C$4,J9),IFERROR(SEARCH('[1]Критерии руб_рсч'!$C$5,J9),IFERROR(SEARCH('[1]Критерии руб_рсч'!$C$6,J9),IFERROR(SEARCH('[1]Критерии руб_рсч'!$C$7,J9),IFERROR(SEARCH('[1]Критерии руб_рсч'!$C$8,J9),IFERROR(SEARCH('[1]Критерии руб_рсч'!$C$8,J9),IFERROR(SEARCH('[1]Критерии руб_рсч'!$C$10,J9),IFERROR(SEARCH('[1]Критерии руб_рсч'!$C$11,J9),\"-\"))))))))))=$AP$1,\"-\",\"OK\")","v":"-"},{"$f":"IF(IFERROR(SEARCH('[1]Критерии руб_рсч'!$C$13,J9),IFERROR(SEARCH('[1]Критерии руб_рсч'!$C$14,J9),IFERROR(SEARCH('[1]Критерии руб_рсч'!$C$15,J9),IFERROR(SEARCH('[1]Критерии руб_рсч'!$C$16,J9),IFERROR(SEARCH('[1]Критерии руб_рсч'!$C$17,J9),IFERROR(SEARCH('[1]Критерии руб_рсч'!$C$18,J9),IFERROR(SEARCH('[1]Критерии руб_рсч'!$C$19,J9),IFERROR(SEARCH('[1]Критерии руб_рсч'!$C$20,J9),IFERROR(SEARCH('[1]Критерии руб_рсч'!$C$21,J9),IFERROR(SEARCH('[1]Критерии руб_рсч'!$C$22,J9),IFERROR(SEARCH('[1]Критерии руб_рсч'!$C$23,J9),IFERROR(SEARCH('[1]Критерии руб_рсч'!$C$24,J9),IFERROR(SEARCH('[1]Критерии руб_рсч'!$C$25,J9),IFERROR(SEARCH('[1]Критерии руб_рсч'!$C$26,J9),$AP$1))))))))))))))=$AP$1,\"-\",\"OK\")","v":"OK"},{"$f":"IF(IFERROR(SEARCH('[1]Критерии руб_рсч'!$C$28,J9),IFERROR(SEARCH('[1]Критерии руб_рсч'!$C$29,J9),IFERROR(SEARCH('[1]Критерии руб_рсч'!$C$30,J9),$AP$1)))=$AP$1,\"-\",\"OK\")","v":"-"},{"$f":"IF(IFERROR(SEARCH('[1]Критерии руб_рсч'!$C$32,J9),IFERROR(SEARCH('[1]Критерии руб_рсч'!$C$33,J9),IFERROR(SEARCH('[1]Критерии руб_рсч'!$C$34,J9),IFERROR(SEARCH('[1]Критерии руб_рсч'!$C$35,J9),IFERROR(SEARCH('[1]Критерии руб_рсч'!$C$36,J9),$AP$1)))))=$AP$1,\"-\",\"OK\")","v":"-"},{"$f":"IF(IFERROR(SEARCH('[1]Критерии руб_рсч'!$C$38,J9),IFERROR(SEARCH('[1]Критерии руб_рсч'!$C$39,J9),IFERROR(SEARCH('[1]Критерии руб_рсч'!$C$40,J9),IFERROR(SEARCH('[1]Критерии руб_рсч'!$C$41,J9),IFERROR(SEARCH('[1]Критерии руб_рсч'!$C$42,J9),IFERROR(SEARCH('[1]Критерии руб_рсч'!$C$43,J9),$AP$1))))))=$AP$1,\"-\",\"OK\")","v":"-"},{"$f":"IF(IFERROR(SEARCH('[1]Критерии руб_рсч'!$C$45,J9),IFERROR(SEARCH('[1]Критерии руб_рсч'!$C$46,J9),IFERROR(SEARCH('[1]Критерии руб_рсч'!$C$47,J9),IFERROR(SEARCH('[1]Критерии руб_рсч'!$C$48,J9),IFERROR(SEARCH('[1]Критерии руб_рсч'!$C$49,J9),IFERROR(SEARCH('[1]Критерии руб_рсч'!$C$50,J9),IFERROR(SEARCH('[1]Критерии руб_рсч'!$C$51,J9),$AP$1)))))))=$AP$1,\"-\",\"OK\")","v":"-"},{"$f":"IF(IFERROR(SEARCH('[1]Критерии руб_рсч'!$C$53,J9),$AP$1)=$AP$1,\"-\",\"OK\")","v":"-"},{"$f":"IF(IFERROR(SEARCH('[1]Критерии руб_рсч'!$C$55,J9),IFERROR(SEARCH('[1]Критерии руб_рсч'!$C$56,J9),IFERROR(SEARCH('[1]Критерии руб_рсч'!$C$57,J9),IFERROR(SEARCH('[1]Критерии руб_рсч'!$C$58,J9),IFERROR(SEARCH('[1]Критерии руб_рсч'!$C$59,J9),$AP$1)))))=$AP$1,\"-\",\"OK\")","v":"-"},{"$f":"IF(IFERROR(SEARCH('[1]Критерии руб_рсч'!$C$61,J9),IFERROR(SEARCH('[1]Критерии руб_рсч'!$C$62,J9),IFERROR(SEARCH('[1]Критерии руб_рсч'!$C$63,J9),IFERROR(SEARCH('[1]Критерии руб_рсч'!$C$64,J9),$AP$1))))=$AP$1,\"-\",\"OK\")","v":"-"},{"$f":"IF(IFERROR(SEARCH('[1]Критерии руб_рсч'!$C$66,J9),$AP$1)=$AP$1,\"-\",\"OK\")","v":"-"},{"$f":"IF(IFERROR(SEARCH('[1]Критерии руб_рсч'!$C$68,J9),IFERROR(SEARCH('[1]Критерии руб_рсч'!$C$69,J9),IFERROR(SEARCH('[1]Критерии руб_рсч'!$C$70,J9),IFERROR(SEARCH('[1]Критерии руб_рсч'!$C$71,J9),$AP$1))))=$AP$1,\"-\",\"OK\")","v":"-"},{"$f":"IF(IFERROR(SEARCH('[1]Критерии руб_рсч'!$C$73,J9),IFERROR(SEARCH('[1]Критерии руб_рсч'!$C$74,J9),IFERROR(SEARCH('[1]Критерии руб_рсч'!$C$75,J9),IFERROR(SEARCH('[1]Критерии руб_рсч'!$C$76,J9),$AP$1))))=$AP$1,\"-\",\"OK\")","v":"-"},{"$f":"IF(IFERROR(SEARCH('[1]Критерии руб_рсч'!$C$78,J9),IFERROR(SEARCH('[1]Критерии руб_рсч'!$C$79,J9),IFERROR(SEARCH('[1]Критерии руб_рсч'!$C$80,J9),IFERROR(SEARCH('[1]Критерии руб_рсч'!$C$81,J9),$AP$1))))=$AP$1,\"-\",\"OK\")","v":"-"},{"$f":"IF(IFERROR(SEARCH('[1]Критерии руб_рсч'!$C$83,J9),IFERROR(SEARCH('[1]Критерии руб_рсч'!$C$84,J9),$AP$1))=$AP$1,\"-\",\"OK\")","v":"-"},{"$f":"IF(IFERROR(SEARCH('[1]Критерии руб_рсч'!$C$86,J9),IFERROR(SEARCH('[1]Критерии руб_рсч'!$C$87,J9),IFERROR(SEARCH('[1]Критерии руб_рсч'!$C$88,J9),$AP$1)))=$AP$1,\"-\",\"OK\")","v":"-"},{"$f":"IF(IFERROR(SEARCH('[1]Критерии руб_рсч'!$C$90,J9),IFERROR(SEARCH('[1]Критерии руб_рсч'!$C$91,J9),IFERROR(SEARCH('[1]Критерии руб_рсч'!$C$92,J9),IFERROR(SEARCH('[1]Критерии руб_рсч'!$C$93,J9),$AP$1))))=$AP$1,\"-\",\"OK\")","v":"-"},{"$f":"IF(IFERROR(SEARCH('[1]Критерии руб_рсч'!$C$95,J9),IFERROR(SEARCH('[1]Критерии руб_рсч'!$C$96,J9),IFERROR(SEARCH('[1]Критерии руб_рсч'!$C$97,J9),IFERROR(SEARCH('[1]Критерии руб_рсч'!$C$98,J9),IFERROR(SEARCH('[1]Критерии руб_рсч'!$C$99,J9),IFERROR(SEARCH('[1]Критерии руб_рсч'!$C$100,J9),$AP$1))))))=$AP$1,\"-\",\"OK\")","v":"-"},{"$f":"IF(IFERROR(SEARCH('[1]Критерии руб_рсч'!$C$102,J9),IFERROR(SEARCH('[1]Критерии руб_рсч'!$C$103,J9),IFERROR(SEARCH('[1]Критерии руб_рсч'!$C$104,J9),IFERROR(SEARCH('[1]Критерии руб_рсч'!$C$105,J9),IFERROR(SEARCH('[1]Критерии руб_рсч'!$C$106,J9),IFERROR(SEARCH('[1]Критерии руб_рсч'!$C$107,J9),$AP$1))))))=$AP$1,\"-\",\"OK\")","v":"-"},{"$f":"IF(IFERROR(SEARCH('[1]Критерии руб_рсч'!$C$109,J9),IFERROR(SEARCH('[1]Критерии руб_рсч'!$C$109,J9),$AP$1))=$AP$1,\"-\",\"OK\")","v":"-"}]
["Солр4989","15.01.2015","Солид банк",0,87.65,null,null,null,"ЗАО \"ВЕСТ КОЛЛ ЛТД\"","Оплата за услуги международной и междугородной связи по договору №8С#ГИГ2 от 30.03.11 за декабрь 2014 Сумма 87-65 В т.ч. НДС  (18/118) 13-37","o",{"$f":"VLOOKUP(O10,[1]Справочник!$A$2:$B$44,2,0)","v":"опер"},1,2015,{"$f":"IFERROR(IF(T10=\"Оплата от покупателя\",\"income\",INDEX('Критерии руб_рсч'!$D$2:$D$91,MATCH(TRUE,ISNUMBER(SEARCH('Критерии руб_рсч'!$C$2:$C$91,рсч_руб!J10)),0))),\"other\")","v":"telef"},"руб.",12,2014,"Правда","Оплата поставщику",{"$f":"IF(IFERROR(SEARCH('[1]Критерии руб_рсч'!$C$2,J10),IFERROR(SEARCH('[1]Критерии руб_рсч'!$C$3,J10),IFERROR(SEARCH('[1]Критерии руб_рсч'!$C$4,J10),IFERROR(SEARCH('[1]Критерии руб_рсч'!$C$5,J10),IFERROR(SEARCH('[1]Критерии руб_рсч'!$C$6,J10),IFERROR(SEARCH('[1]Критерии руб_рсч'!$C$7,J10),IFERROR(SEARCH('[1]Критерии руб_рсч'!$C$8,J10),IFERROR(SEARCH('[1]Критерии руб_рсч'!$C$8,J10),IFERROR(SEARCH('[1]Критерии руб_рсч'!$C$10,J10),IFERROR(SEARCH('[1]Критерии руб_рсч'!$C$11,J10),\"-\"))))))))))=$AP$1,\"-\",\"OK\")","v":"-"},{"$f":"IF(IFERROR(SEARCH('[1]Критерии руб_рсч'!$C$13,J10),IFERROR(SEARCH('[1]Критерии руб_рсч'!$C$14,J10),IFERROR(SEARCH('[1]Критерии руб_рсч'!$C$15,J10),IFERROR(SEARCH('[1]Критерии руб_рсч'!$C$16,J10),IFERROR(SEARCH('[1]Критерии руб_рсч'!$C$17,J10),IFERROR(SEARCH('[1]Критерии руб_рсч'!$C$18,J10),IFERROR(SEARCH('[1]Критерии руб_рсч'!$C$19,J10),IFERROR(SEARCH('[1]Критерии руб_рсч'!$C$20,J10),IFERROR(SEARCH('[1]Критерии руб_рсч'!$C$21,J10),IFERROR(SEARCH('[1]Критерии руб_рсч'!$C$22,J10),IFERROR(SEARCH('[1]Критерии руб_рсч'!$C$23,J10),IFERROR(SEARCH('[1]Критерии руб_рсч'!$C$24,J10),IFERROR(SEARCH('[1]Критерии руб_рсч'!$C$25,J10),IFERROR(SEARCH('[1]Критерии руб_рсч'!$C$26,J10),$AP$1))))))))))))))=$AP$1,\"-\",\"OK\")","v":"-"},{"$f":"IF(IFERROR(SEARCH('[1]Критерии руб_рсч'!$C$28,J10),IFERROR(SEARCH('[1]Критерии руб_рсч'!$C$29,J10),IFERROR(SEARCH('[1]Критерии руб_рсч'!$C$30,J10),$AP$1)))=$AP$1,\"-\",\"OK\")","v":"-"},{"$f":"IF(IFERROR(SEARCH('[1]Критерии руб_рсч'!$C$32,J10),IFERROR(SEARCH('[1]Критерии руб_рсч'!$C$33,J10),IFERROR(SEARCH('[1]Критерии руб_рсч'!$C$34,J10),IFERROR(SEARCH('[1]Критерии руб_рсч'!$C$35,J10),IFERROR(SEARCH('[1]Критерии руб_рсч'!$C$36,J10),$AP$1)))))=$AP$1,\"-\",\"OK\")","v":"-"},{"$f":"IF(IFERROR(SEARCH('[1]Критерии руб_рсч'!$C$38,J10),IFERROR(SEARCH('[1]Критерии руб_рсч'!$C$39,J10),IFERROR(SEARCH('[1]Критерии руб_рсч'!$C$40,J10),IFERROR(SEARCH('[1]Критерии руб_рсч'!$C$41,J10),IFERROR(SEARCH('[1]Критерии руб_рсч'!$C$42,J10),IFERROR(SEARCH('[1]Критерии руб_рсч'!$C$43,J10),$AP$1))))))=$AP$1,\"-\",\"OK\")","v":"-"},{"$f":"IF(IFERROR(SEARCH('[1]Критерии руб_рсч'!$C$45,J10),IFERROR(SEARCH('[1]Критерии руб_рсч'!$C$46,J10),IFERROR(SEARCH('[1]Критерии руб_рсч'!$C$47,J10),IFERROR(SEARCH('[1]Критерии руб_рсч'!$C$48,J10),IFERROR(SEARCH('[1]Критерии руб_рсч'!$C$49,J10),IFERROR(SEARCH('[1]Критерии руб_рсч'!$C$50,J10),IFERROR(SEARCH('[1]Критерии руб_рсч'!$C$51,J10),$AP$1)))))))=$AP$1,\"-\",\"OK\")","v":"-"},{"$f":"IF(IFERROR(SEARCH('[1]Критерии руб_рсч'!$C$53,J10),$AP$1)=$AP$1,\"-\",\"OK\")","v":"-"},{"$f":"IF(IFERROR(SEARCH('[1]Критерии руб_рсч'!$C$55,J10),IFERROR(SEARCH('[1]Критерии руб_рсч'!$C$56,J10),IFERROR(SEARCH('[1]Критерии руб_рсч'!$C$57,J10),IFERROR(SEARCH('[1]Критерии руб_рсч'!$C$58,J10),IFERROR(SEARCH('[1]Критерии руб_рсч'!$C$59,J10),$AP$1)))))=$AP$1,\"-\",\"OK\")","v":"OK"},{"$f":"IF(IFERROR(SEARCH('[1]Критерии руб_рсч'!$C$61,J10),IFERROR(SEARCH('[1]Критерии руб_рсч'!$C$62,J10),IFERROR(SEARCH('[1]Критерии руб_рсч'!$C$63,J10),IFERROR(SEARCH('[1]Критерии руб_рсч'!$C$64,J10),$AP$1))))=$AP$1,\"-\",\"OK\")","v":"-"},{"$f":"IF(IFERROR(SEARCH('[1]Критерии руб_рсч'!$C$66,J10),$AP$1)=$AP$1,\"-\",\"OK\")","v":"-"},{"$f":"IF(IFERROR(SEARCH('[1]Критерии руб_рсч'!$C$68,J10),IFERROR(SEARCH('[1]Критерии руб_рсч'!$C$69,J10),IFERROR(SEARCH('[1]Критерии руб_рсч'!$C$70,J10),IFERROR(SEARCH('[1]Критерии руб_рсч'!$C$71,J10),$AP$1))))=$AP$1,\"-\",\"OK\")","v":"-"},{"$f":"IF(IFERROR(SEARCH('[1]Критерии руб_рсч'!$C$73,J10),IFERROR(SEARCH('[1]Критерии руб_рсч'!$C$74,J10),IFERROR(SEARCH('[1]Критерии руб_рсч'!$C$75,J10),IFERROR(SEARCH('[1]Критерии руб_рсч'!$C$76,J10),$AP$1))))=$AP$1,\"-\",\"OK\")","v":"-"},{"$f":"IF(IFERROR(SEARCH('[1]Критерии руб_рсч'!$C$78,J10),IFERROR(SEARCH('[1]Критерии руб_рсч'!$C$79,J10),IFERROR(SEARCH('[1]Критерии руб_рсч'!$C$80,J10),IFERROR(SEARCH('[1]Критерии руб_рсч'!$C$81,J10),$AP$1))))=$AP$1,\"-\",\"OK\")","v":"-"},{"$f":"IF(IFERROR(SEARCH('[1]Критерии руб_рсч'!$C$83,J10),IFERROR(SEARCH('[1]Критерии руб_рсч'!$C$84,J10),$AP$1))=$AP$1,\"-\",\"OK\")","v":"-"},{"$f":"IF(IFERROR(SEARCH('[1]Критерии руб_рсч'!$C$86,J10),IFERROR(SEARCH('[1]Критерии руб_рсч'!$C$87,J10),IFERROR(SEARCH('[1]Критерии руб_рсч'!$C$88,J10),$AP$1)))=$AP$1,\"-\",\"OK\")","v":"-"},{"$f":"IF(IFERROR(SEARCH('[1]Критерии руб_рсч'!$C$90,J10),IFERROR(SEARCH('[1]Критерии руб_рсч'!$C$91,J10),IFERROR(SEARCH('[1]Критерии руб_рсч'!$C$92,J10),IFERROR(SEARCH('[1]Критерии руб_рсч'!$C$93,J10),$AP$1))))=$AP$1,\"-\",\"OK\")","v":"-"},{"$f":"IF(IFERROR(SEARCH('[1]Критерии руб_рсч'!$C$95,J10),IFERROR(SEARCH('[1]Критерии руб_рсч'!$C$96,J10),IFERROR(SEARCH('[1]Критерии руб_рсч'!$C$97,J10),IFERROR(SEARCH('[1]Критерии руб_рсч'!$C$98,J10),IFERROR(SEARCH('[1]Критерии руб_рсч'!$C$99,J10),IFERROR(SEARCH('[1]Критерии руб_рсч'!$C$100,J10),$AP$1))))))=$AP$1,\"-\",\"OK\")","v":"-"},{"$f":"IF(IFERROR(SEARCH('[1]Критерии руб_рсч'!$C$102,J10),IFERROR(SEARCH('[1]Критерии руб_рсч'!$C$103,J10),IFERROR(SEARCH('[1]Критерии руб_рсч'!$C$104,J10),IFERROR(SEARCH('[1]Критерии руб_рсч'!$C$105,J10),IFERROR(SEARCH('[1]Критерии руб_рсч'!$C$106,J10),IFERROR(SEARCH('[1]Критерии руб_рсч'!$C$107,J10),$AP$1))))))=$AP$1,\"-\",\"OK\")","v":"-"},{"$f":"IF(IFERROR(SEARCH('[1]Критерии руб_рсч'!$C$109,J10),IFERROR(SEARCH('[1]Критерии руб_рсч'!$C$109,J10),$AP$1))=$AP$1,\"-\",\"OK\")","v":"-"}]
["Солр4990","15.01.2015","Солид банк",0,986.46,null,null,null,"СмартТелеком ООО","Оплата по договору 02/12 за SMS услуги (предоставление доступа к програмному приложению) за период с 01.12.14 по 31.12.14 Сумма 986-46 В т.ч. НДС  (18%) 150-48","o",{"$f":"VLOOKUP(O11,[1]Справочник!$A$2:$B$44,2,0)","v":"опер"},1,2015,{"$f":"IFERROR(IF(T11=\"Оплата от покупателя\",\"income\",INDEX('Критерии руб_рсч'!$D$2:$D$91,MATCH(TRUE,ISNUMBER(SEARCH('Критерии руб_рсч'!$C$2:$C$91,рсч_руб!J11)),0))),\"other\")","v":"telef"},"руб.",12,2014,"Правда","Оплата поставщику",{"$f":"IF(IFERROR(SEARCH('[1]Критерии руб_рсч'!$C$2,J11),IFERROR(SEARCH('[1]Критерии руб_рсч'!$C$3,J11),IFERROR(SEARCH('[1]Критерии руб_рсч'!$C$4,J11),IFERROR(SEARCH('[1]Критерии руб_рсч'!$C$5,J11),IFERROR(SEARCH('[1]Критерии руб_рсч'!$C$6,J11),IFERROR(SEARCH('[1]Критерии руб_рсч'!$C$7,J11),IFERROR(SEARCH('[1]Критерии руб_рсч'!$C$8,J11),IFERROR(SEARCH('[1]Критерии руб_рсч'!$C$8,J11),IFERROR(SEARCH('[1]Критерии руб_рсч'!$C$10,J11),IFERROR(SEARCH('[1]Критерии руб_рсч'!$C$11,J11),\"-\"))))))))))=$AP$1,\"-\",\"OK\")","v":"-"},{"$f":"IF(IFERROR(SEARCH('[1]Критерии руб_рсч'!$C$13,J11),IFERROR(SEARCH('[1]Критерии руб_рсч'!$C$14,J11),IFERROR(SEARCH('[1]Критерии руб_рсч'!$C$15,J11),IFERROR(SEARCH('[1]Критерии руб_рсч'!$C$16,J11),IFERROR(SEARCH('[1]Критерии руб_рсч'!$C$17,J11),IFERROR(SEARCH('[1]Критерии руб_рсч'!$C$18,J11),IFERROR(SEARCH('[1]Критерии руб_рсч'!$C$19,J11),IFERROR(SEARCH('[1]Критерии руб_рсч'!$C$20,J11),IFERROR(SEARCH('[1]Критерии руб_рсч'!$C$21,J11),IFERROR(SEARCH('[1]Критерии руб_рсч'!$C$22,J11),IFERROR(SEARCH('[1]Критерии руб_рсч'!$C$23,J11),IFERROR(SEARCH('[1]Критерии руб_рсч'!$C$24,J11),IFERROR(SEARCH('[1]Критерии руб_рсч'!$C$25,J11),IFERROR(SEARCH('[1]Критерии руб_рсч'!$C$26,J11),$AP$1))))))))))))))=$AP$1,\"-\",\"OK\")","v":"-"},{"$f":"IF(IFERROR(SEARCH('[1]Критерии руб_рсч'!$C$28,J11),IFERROR(SEARCH('[1]Критерии руб_рсч'!$C$29,J11),IFERROR(SEARCH('[1]Критерии руб_рсч'!$C$30,J11),$AP$1)))=$AP$1,\"-\",\"OK\")","v":"-"},{"$f":"IF(IFERROR(SEARCH('[1]Критерии руб_рсч'!$C$32,J11),IFERROR(SEARCH('[1]Критерии руб_рсч'!$C$33,J11),IFERROR(SEARCH('[1]Критерии руб_рсч'!$C$34,J11),IFERROR(SEARCH('[1]Критерии руб_рсч'!$C$35,J11),IFERROR(SEARCH('[1]Критерии руб_рсч'!$C$36,J11),$AP$1)))))=$AP$1,\"-\",\"OK\")","v":"-"},{"$f":"IF(IFERROR(SEARCH('[1]Критерии руб_рсч'!$C$38,J11),IFERROR(SEARCH('[1]Критерии руб_рсч'!$C$39,J11),IFERROR(SEARCH('[1]Критерии руб_рсч'!$C$40,J11),IFERROR(SEARCH('[1]Критерии руб_рсч'!$C$41,J11),IFERROR(SEARCH('[1]Критерии руб_рсч'!$C$42,J11),IFERROR(SEARCH('[1]Критерии руб_рсч'!$C$43,J11),$AP$1))))))=$AP$1,\"-\",\"OK\")","v":"-"},{"$f":"IF(IFERROR(SEARCH('[1]Критерии руб_рсч'!$C$45,J11),IFERROR(SEARCH('[1]Критерии руб_рсч'!$C$46,J11),IFERROR(SEARCH('[1]Критерии руб_рсч'!$C$47,J11),IFERROR(SEARCH('[1]Критерии руб_рсч'!$C$48,J11),IFERROR(SEARCH('[1]Критерии руб_рсч'!$C$49,J11),IFERROR(SEARCH('[1]Критерии руб_рсч'!$C$50,J11),IFERROR(SEARCH('[1]Критерии руб_рсч'!$C$51,J11),$AP$1)))))))=$AP$1,\"-\",\"OK\")","v":"-"},{"$f":"IF(IFERROR(SEARCH('[1]Критерии руб_рсч'!$C$53,J11),$AP$1)=$AP$1,\"-\",\"OK\")","v":"-"},{"$f":"IF(IFERROR(SEARCH('[1]Критерии руб_рсч'!$C$55,J11),IFERROR(SEARCH('[1]Критерии руб_рсч'!$C$56,J11),IFERROR(SEARCH('[1]Критерии руб_рсч'!$C$57,J11),IFERROR(SEARCH('[1]Критерии руб_рсч'!$C$58,J11),IFERROR(SEARCH('[1]Критерии руб_рсч'!$C$59,J11),$AP$1)))))=$AP$1,\"-\",\"OK\")","v":"OK"},{"$f":"IF(IFERROR(SEARCH('[1]Критерии руб_рсч'!$C$61,J11),IFERROR(SEARCH('[1]Критерии руб_рсч'!$C$62,J11),IFERROR(SEARCH('[1]Критерии руб_рсч'!$C$63,J11),IFERROR(SEARCH('[1]Критерии руб_рсч'!$C$64,J11),$AP$1))))=$AP$1,\"-\",\"OK\")","v":"-"},{"$f":"IF(IFERROR(SEARCH('[1]Критерии руб_рсч'!$C$66,J11),$AP$1)=$AP$1,\"-\",\"OK\")","v":"-"},{"$f":"IF(IFERROR(SEARCH('[1]Критерии руб_рсч'!$C$68,J11),IFERROR(SEARCH('[1]Критерии руб_рсч'!$C$69,J11),IFERROR(SEARCH('[1]Критерии руб_рсч'!$C$70,J11),IFERROR(SEARCH('[1]Критерии руб_рсч'!$C$71,J11),$AP$1))))=$AP$1,\"-\",\"OK\")","v":"-"},{"$f":"IF(IFERROR(SEARCH('[1]Критерии руб_рсч'!$C$73,J11),IFERROR(SEARCH('[1]Критерии руб_рсч'!$C$74,J11),IFERROR(SEARCH('[1]Критерии руб_рсч'!$C$75,J11),IFERROR(SEARCH('[1]Критерии руб_рсч'!$C$76,J11),$AP$1))))=$AP$1,\"-\",\"OK\")","v":"-"},{"$f":"IF(IFERROR(SEARCH('[1]Критерии руб_рсч'!$C$78,J11),IFERROR(SEARCH('[1]Критерии руб_рсч'!$C$79,J11),IFERROR(SEARCH('[1]Критерии руб_рсч'!$C$80,J11),IFERROR(SEARCH('[1]Критерии руб_рсч'!$C$81,J11),$AP$1))))=$AP$1,\"-\",\"OK\")","v":"-"},{"$f":"IF(IFERROR(SEARCH('[1]Критерии руб_рсч'!$C$83,J11),IFERROR(SEARCH('[1]Критерии руб_рсч'!$C$84,J11),$AP$1))=$AP$1,\"-\",\"OK\")","v":"-"},{"$f":"IF(IFERROR(SEARCH('[1]Критерии руб_рсч'!$C$86,J11),IFERROR(SEARCH('[1]Критерии руб_рсч'!$C$87,J11),IFERROR(SEARCH('[1]Критерии руб_рсч'!$C$88,J11),$AP$1)))=$AP$1,\"-\",\"OK\")","v":"-"},{"$f":"IF(IFERROR(SEARCH('[1]Критерии руб_рсч'!$C$90,J11),IFERROR(SEARCH('[1]Критерии руб_рсч'!$C$91,J11),IFERROR(SEARCH('[1]Критерии руб_рсч'!$C$92,J11),IFERROR(SEARCH('[1]Критерии руб_рсч'!$C$93,J11),$AP$1))))=$AP$1,\"-\",\"OK\")","v":"-"},{"$f":"IF(IFERROR(SEARCH('[1]Критерии руб_рсч'!$C$95,J11),IFERROR(SEARCH('[1]Критерии руб_рсч'!$C$96,J11),IFERROR(SEARCH('[1]Критерии руб_рсч'!$C$97,J11),IFERROR(SEARCH('[1]Критерии руб_рсч'!$C$98,J11),IFERROR(SEARCH('[1]Критерии руб_рсч'!$C$99,J11),IFERROR(SEARCH('[1]Критерии руб_рсч'!$C$100,J11),$AP$1))))))=$AP$1,\"-\",\"OK\")","v":"-"},{"$f":"IF(IFERROR(SEARCH('[1]Критерии руб_рсч'!$C$102,J11),IFERROR(SEARCH('[1]Критерии руб_рсч'!$C$103,J11),IFERROR(SEARCH('[1]Критерии руб_рсч'!$C$104,J11),IFERROR(SEARCH('[1]Критерии руб_рсч'!$C$105,J11),IFERROR(SEARCH('[1]Критерии руб_рсч'!$C$106,J11),IFERROR(SEARCH('[1]Критерии руб_рсч'!$C$107,J11),$AP$1))))))=$AP$1,\"-\",\"OK\")","v":"-"},{"$f":"IF(IFERROR(SEARCH('[1]Критерии руб_рсч'!$C$109,J11),IFERROR(SEARCH('[1]Критерии руб_рсч'!$C$109,J11),$AP$1))=$AP$1,\"-\",\"OK\")","v":"-"}]
["Солр4991","15.01.2015","Солид банк",0,1900,null,null,null,"Лангур ООО","Оплата по счету Л-00002726 от 15.01.2015 за Воду (18,9) 8 шт. Сумма 1900-00 В т.ч. НДС  (18%) 289-83","o",{"$f":"VLOOKUP(O12,[1]Справочник!$A$2:$B$44,2,0)","v":"опер"},1,2015,{"$f":"IFERROR(IF(T12=\"Оплата от покупателя\",\"income\",INDEX('Критерии руб_рсч'!$D$2:$D$91,MATCH(TRUE,ISNUMBER(SEARCH('Критерии руб_рсч'!$C$2:$C$91,рсч_руб!J12)),0))),\"other\")","v":"office"},"руб.",1,2015,"Правда","Оплата поставщику",{"$f":"IF(IFERROR(SEARCH('[1]Критерии руб_рсч'!$C$2,J12),IFERROR(SEARCH('[1]Критерии руб_рсч'!$C$3,J12),IFERROR(SEARCH('[1]Критерии руб_рсч'!$C$4,J12),IFERROR(SEARCH('[1]Критерии руб_рсч'!$C$5,J12),IFERROR(SEARCH('[1]Критерии руб_рсч'!$C$6,J12),IFERROR(SEARCH('[1]Критерии руб_рсч'!$C$7,J12),IFERROR(SEARCH('[1]Критерии руб_рсч'!$C$8,J12),IFERROR(SEARCH('[1]Критерии руб_рсч'!$C$8,J12),IFERROR(SEARCH('[1]Критерии руб_рсч'!$C$10,J12),IFERROR(SEARCH('[1]Критерии руб_рсч'!$C$11,J12),\"-\"))))))))))=$AP$1,\"-\",\"OK\")","v":"-"},{"$f":"IF(IFERROR(SEARCH('[1]Критерии руб_рсч'!$C$13,J12),IFERROR(SEARCH('[1]Критерии руб_рсч'!$C$14,J12),IFERROR(SEARCH('[1]Критерии руб_рсч'!$C$15,J12),IFERROR(SEARCH('[1]Критерии руб_рсч'!$C$16,J12),IFERROR(SEARCH('[1]Критерии руб_рсч'!$C$17,J12),IFERROR(SEARCH('[1]Критерии руб_рсч'!$C$18,J12),IFERROR(SEARCH('[1]Критерии руб_рсч'!$C$19,J12),IFERROR(SEARCH('[1]Критерии руб_рсч'!$C$20,J12),IFERROR(SEARCH('[1]Критерии руб_рсч'!$C$21,J12),IFERROR(SEARCH('[1]Критерии руб_рсч'!$C$22,J12),IFERROR(SEARCH('[1]Критерии руб_рсч'!$C$23,J12),IFERROR(SEARCH('[1]Критерии руб_рсч'!$C$24,J12),IFERROR(SEARCH('[1]Критерии руб_рсч'!$C$25,J12),IFERROR(SEARCH('[1]Критерии руб_рсч'!$C$26,J12),$AP$1))))))))))))))=$AP$1,\"-\",\"OK\")","v":"-"},{"$f":"IF(IFERROR(SEARCH('[1]Критерии руб_рсч'!$C$28,J12),IFERROR(SEARCH('[1]Критерии руб_рсч'!$C$29,J12),IFERROR(SEARCH('[1]Критерии руб_рсч'!$C$30,J12),$AP$1)))=$AP$1,\"-\",\"OK\")","v":"-"},{"$f":"IF(IFERROR(SEARCH('[1]Критерии руб_рсч'!$C$32,J12),IFERROR(SEARCH('[1]Критерии руб_рсч'!$C$33,J12),IFERROR(SEARCH('[1]Критерии руб_рсч'!$C$34,J12),IFERROR(SEARCH('[1]Критерии руб_рсч'!$C$35,J12),IFERROR(SEARCH('[1]Критерии руб_рсч'!$C$36,J12),$AP$1)))))=$AP$1,\"-\",\"OK\")","v":"-"},{"$f":"IF(IFERROR(SEARCH('[1]Критерии руб_рсч'!$C$38,J12),IFERROR(SEARCH('[1]Критерии руб_рсч'!$C$39,J12),IFERROR(SEARCH('[1]Критерии руб_рсч'!$C$40,J12),IFERROR(SEARCH('[1]Критерии руб_рсч'!$C$41,J12),IFERROR(SEARCH('[1]Критерии руб_рсч'!$C$42,J12),IFERROR(SEARCH('[1]Критерии руб_рсч'!$C$43,J12),$AP$1))))))=$AP$1,\"-\",\"OK\")","v":"-"},{"$f":"IF(IFERROR(SEARCH('[1]Критерии руб_рсч'!$C$45,J12),IFERROR(SEARCH('[1]Критерии руб_рсч'!$C$46,J12),IFERROR(SEARCH('[1]Критерии руб_рсч'!$C$47,J12),IFERROR(SEARCH('[1]Критерии руб_рсч'!$C$48,J12),IFERROR(SEARCH('[1]Критерии руб_рсч'!$C$49,J12),IFERROR(SEARCH('[1]Критерии руб_рсч'!$C$50,J12),IFERROR(SEARCH('[1]Критерии руб_рсч'!$C$51,J12),$AP$1)))))))=$AP$1,\"-\",\"OK\")","v":"OK"},{"$f":"IF(IFERROR(SEARCH('[1]Критерии руб_рсч'!$C$53,J12),$AP$1)=$AP$1,\"-\",\"OK\")","v":"-"},{"$f":"IF(IFERROR(SEARCH('[1]Критерии руб_рсч'!$C$55,J12),IFERROR(SEARCH('[1]Критерии руб_рсч'!$C$56,J12),IFERROR(SEARCH('[1]Критерии руб_рсч'!$C$57,J12),IFERROR(SEARCH('[1]Критерии руб_рсч'!$C$58,J12),IFERROR(SEARCH('[1]Критерии руб_рсч'!$C$59,J12),$AP$1)))))=$AP$1,\"-\",\"OK\")","v":"-"},{"$f":"IF(IFERROR(SEARCH('[1]Критерии руб_рсч'!$C$61,J12),IFERROR(SEARCH('[1]Критерии руб_рсч'!$C$62,J12),IFERROR(SEARCH('[1]Критерии руб_рсч'!$C$63,J12),IFERROR(SEARCH('[1]Критерии руб_рсч'!$C$64,J12),$AP$1))))=$AP$1,\"-\",\"OK\")","v":"-"},{"$f":"IF(IFERROR(SEARCH('[1]Критерии руб_рсч'!$C$66,J12),$AP$1)=$AP$1,\"-\",\"OK\")","v":"-"},{"$f":"IF(IFERROR(SEARCH('[1]Критерии руб_рсч'!$C$68,J12),IFERROR(SEARCH('[1]Критерии руб_рсч'!$C$69,J12),IFERROR(SEARCH('[1]Критерии руб_рсч'!$C$70,J12),IFERROR(SEARCH('[1]Критерии руб_рсч'!$C$71,J12),$AP$1))))=$AP$1,\"-\",\"OK\")","v":"-"},{"$f":"IF(IFERROR(SEARCH('[1]Критерии руб_рсч'!$C$73,J12),IFERROR(SEARCH('[1]Критерии руб_рсч'!$C$74,J12),IFERROR(SEARCH('[1]Критерии руб_рсч'!$C$75,J12),IFERROR(SEARCH('[1]Критерии руб_рсч'!$C$76,J12),$AP$1))))=$AP$1,\"-\",\"OK\")","v":"-"},{"$f":"IF(IFERROR(SEARCH('[1]Критерии руб_рсч'!$C$78,J12),IFERROR(SEARCH('[1]Критерии руб_рсч'!$C$79,J12),IFERROR(SEARCH('[1]Критерии руб_рсч'!$C$80,J12),IFERROR(SEARCH('[1]Критерии руб_рсч'!$C$81,J12),$AP$1))))=$AP$1,\"-\",\"OK\")","v":"-"},{"$f":"IF(IFERROR(SEARCH('[1]Критерии руб_рсч'!$C$83,J12),IFERROR(SEARCH('[1]Критерии руб_рсч'!$C$84,J12),$AP$1))=$AP$1,\"-\",\"OK\")","v":"-"},{"$f":"IF(IFERROR(SEARCH('[1]Критерии руб_рсч'!$C$86,J12),IFERROR(SEARCH('[1]Критерии руб_рсч'!$C$87,J12),IFERROR(SEARCH('[1]Критерии руб_рсч'!$C$88,J12),$AP$1)))=$AP$1,\"-\",\"OK\")","v":"-"},{"$f":"IF(IFERROR(SEARCH('[1]Критерии руб_рсч'!$C$90,J12),IFERROR(SEARCH('[1]Критерии руб_рсч'!$C$91,J12),IFERROR(SEARCH('[1]Критерии руб_рсч'!$C$92,J12),IFERROR(SEARCH('[1]Критерии руб_рсч'!$C$93,J12),$AP$1))))=$AP$1,\"-\",\"OK\")","v":"-"},{"$f":"IF(IFERROR(SEARCH('[1]Критерии руб_рсч'!$C$95,J12),IFERROR(SEARCH('[1]Критерии руб_рсч'!$C$96,J12),IFERROR(SEARCH('[1]Критерии руб_рсч'!$C$97,J12),IFERROR(SEARCH('[1]Критерии руб_рсч'!$C$98,J12),IFERROR(SEARCH('[1]Критерии руб_рсч'!$C$99,J12),IFERROR(SEARCH('[1]Критерии руб_рсч'!$C$100,J12),$AP$1))))))=$AP$1,\"-\",\"OK\")","v":"-"},{"$f":"IF(IFERROR(SEARCH('[1]Критерии руб_рсч'!$C$102,J12),IFERROR(SEARCH('[1]Критерии руб_рсч'!$C$103,J12),IFERROR(SEARCH('[1]Критерии руб_рсч'!$C$104,J12),IFERROR(SEARCH('[1]Критерии руб_рсч'!$C$105,J12),IFERROR(SEARCH('[1]Критерии руб_рсч'!$C$106,J12),IFERROR(SEARCH('[1]Критерии руб_рсч'!$C$107,J12),$AP$1))))))=$AP$1,\"-\",\"OK\")","v":"-"},{"$f":"IF(IFERROR(SEARCH('[1]Критерии руб_рсч'!$C$109,J12),IFERROR(SEARCH('[1]Критерии руб_рсч'!$C$109,J12),$AP$1))=$AP$1,\"-\",\"OK\")","v":"-"}]
["Солр4992","15.01.2015","Солид банк",0,4000,null,null,null,"Хорошие Люди ООО","Оплата по счету № 239 от 20.11.2014. Сопровождение ПП 1С на ноябрь  2014г. по договору №101-2013-07-01-1220 от 01.07.2013г. обновление конфигурации  Сумма 4000-00 В т.ч. НДС  (18%) 610-17","o",{"$f":"VLOOKUP(O13,[1]Справочник!$A$2:$B$44,2,0)","v":"опер"},1,2015,{"$f":"IFERROR(IF(T13=\"Оплата от покупателя\",\"income\",INDEX('Критерии руб_рсч'!$D$2:$D$91,MATCH(TRUE,ISNUMBER(SEARCH('Критерии руб_рсч'!$C$2:$C$91,рсч_руб!J13)),0))),\"other\")","v":"c.soft"},"руб.",1,2015,"Правда","Оплата поставщику",{"$f":"IF(IFERROR(SEARCH('[1]Критерии руб_рсч'!$C$2,J13),IFERROR(SEARCH('[1]Критерии руб_рсч'!$C$3,J13),IFERROR(SEARCH('[1]Критерии руб_рсч'!$C$4,J13),IFERROR(SEARCH('[1]Критерии руб_рсч'!$C$5,J13),IFERROR(SEARCH('[1]Критерии руб_рсч'!$C$6,J13),IFERROR(SEARCH('[1]Критерии руб_рсч'!$C$7,J13),IFERROR(SEARCH('[1]Критерии руб_рсч'!$C$8,J13),IFERROR(SEARCH('[1]Критерии руб_рсч'!$C$8,J13),IFERROR(SEARCH('[1]Критерии руб_рсч'!$C$10,J13),IFERROR(SEARCH('[1]Критерии руб_рсч'!$C$11,J13),\"-\"))))))))))=$AP$1,\"-\",\"OK\")","v":"-"},{"$f":"IF(IFERROR(SEARCH('[1]Критерии руб_рсч'!$C$13,J13),IFERROR(SEARCH('[1]Критерии руб_рсч'!$C$14,J13),IFERROR(SEARCH('[1]Критерии руб_рсч'!$C$15,J13),IFERROR(SEARCH('[1]Критерии руб_рсч'!$C$16,J13),IFERROR(SEARCH('[1]Критерии руб_рсч'!$C$17,J13),IFERROR(SEARCH('[1]Критерии руб_рсч'!$C$18,J13),IFERROR(SEARCH('[1]Критерии руб_рсч'!$C$19,J13),IFERROR(SEARCH('[1]Критерии руб_рсч'!$C$20,J13),IFERROR(SEARCH('[1]Критерии руб_рсч'!$C$21,J13),IFERROR(SEARCH('[1]Критерии руб_рсч'!$C$22,J13),IFERROR(SEARCH('[1]Критерии руб_рсч'!$C$23,J13),IFERROR(SEARCH('[1]Критерии руб_рсч'!$C$24,J13),IFERROR(SEARCH('[1]Критерии руб_рсч'!$C$25,J13),IFERROR(SEARCH('[1]Критерии руб_рсч'!$C$26,J13),$AP$1))))))))))))))=$AP$1,\"-\",\"OK\")","v":"-"},{"$f":"IF(IFERROR(SEARCH('[1]Критерии руб_рсч'!$C$28,J13),IFERROR(SEARCH('[1]Критерии руб_рсч'!$C$29,J13),IFERROR(SEARCH('[1]Критерии руб_рсч'!$C$30,J13),$AP$1)))=$AP$1,\"-\",\"OK\")","v":"-"},{"$f":"IF(IFERROR(SEARCH('[1]Критерии руб_рсч'!$C$32,J13),IFERROR(SEARCH('[1]Критерии руб_рсч'!$C$33,J13),IFERROR(SEARCH('[1]Критерии руб_рсч'!$C$34,J13),IFERROR(SEARCH('[1]Критерии руб_рсч'!$C$35,J13),IFERROR(SEARCH('[1]Критерии руб_рсч'!$C$36,J13),$AP$1)))))=$AP$1,\"-\",\"OK\")","v":"-"},{"$f":"IF(IFERROR(SEARCH('[1]Критерии руб_рсч'!$C$38,J13),IFERROR(SEARCH('[1]Критерии руб_рсч'!$C$39,J13),IFERROR(SEARCH('[1]Критерии руб_рсч'!$C$40,J13),IFERROR(SEARCH('[1]Критерии руб_рсч'!$C$41,J13),IFERROR(SEARCH('[1]Критерии руб_рсч'!$C$42,J13),IFERROR(SEARCH('[1]Критерии руб_рсч'!$C$43,J13),$AP$1))))))=$AP$1,\"-\",\"OK\")","v":"-"},{"$f":"IF(IFERROR(SEARCH('[1]Критерии руб_рсч'!$C$45,J13),IFERROR(SEARCH('[1]Критерии руб_рсч'!$C$46,J13),IFERROR(SEARCH('[1]Критерии руб_рсч'!$C$47,J13),IFERROR(SEARCH('[1]Критерии руб_рсч'!$C$48,J13),IFERROR(SEARCH('[1]Критерии руб_рсч'!$C$49,J13),IFERROR(SEARCH('[1]Критерии руб_рсч'!$C$50,J13),IFERROR(SEARCH('[1]Критерии руб_рсч'!$C$51,J13),$AP$1)))))))=$AP$1,\"-\",\"OK\")","v":"-"},{"$f":"IF(IFERROR(SEARCH('[1]Критерии руб_рсч'!$C$53,J13),$AP$1)=$AP$1,\"-\",\"OK\")","v":"-"},{"$f":"IF(IFERROR(SEARCH('[1]Критерии руб_рсч'!$C$55,J13),IFERROR(SEARCH('[1]Критерии руб_рсч'!$C$56,J13),IFERROR(SEARCH('[1]Критерии руб_рсч'!$C$57,J13),IFERROR(SEARCH('[1]Критерии руб_рсч'!$C$58,J13),IFERROR(SEARCH('[1]Критерии руб_рсч'!$C$59,J13),$AP$1)))))=$AP$1,\"-\",\"OK\")","v":"-"},{"$f":"IF(IFERROR(SEARCH('[1]Критерии руб_рсч'!$C$61,J13),IFERROR(SEARCH('[1]Критерии руб_рсч'!$C$62,J13),IFERROR(SEARCH('[1]Критерии руб_рсч'!$C$63,J13),IFERROR(SEARCH('[1]Критерии руб_рсч'!$C$64,J13),$AP$1))))=$AP$1,\"-\",\"OK\")","v":"-"},{"$f":"IF(IFERROR(SEARCH('[1]Критерии руб_рсч'!$C$66,J13),$AP$1)=$AP$1,\"-\",\"OK\")","v":"-"},{"$f":"IF(IFERROR(SEARCH('[1]Критерии руб_рсч'!$C$68,J13),IFERROR(SEARCH('[1]Критерии руб_рсч'!$C$69,J13),IFERROR(SEARCH('[1]Критерии руб_рсч'!$C$70,J13),IFERROR(SEARCH('[1]Критерии руб_рсч'!$C$71,J13),$AP$1))))=$AP$1,\"-\",\"OK\")","v":"-"},{"$f":"IF(IFERROR(SEARCH('[1]Критерии руб_рсч'!$C$73,J13),IFERROR(SEARCH('[1]Критерии руб_рсч'!$C$74,J13),IFERROR(SEARCH('[1]Критерии руб_рсч'!$C$75,J13),IFERROR(SEARCH('[1]Критерии руб_рсч'!$C$76,J13),$AP$1))))=$AP$1,\"-\",\"OK\")","v":"-"},{"$f":"IF(IFERROR(SEARCH('[1]Критерии руб_рсч'!$C$78,J13),IFERROR(SEARCH('[1]Критерии руб_рсч'!$C$79,J13),IFERROR(SEARCH('[1]Критерии руб_рсч'!$C$80,J13),IFERROR(SEARCH('[1]Критерии руб_рсч'!$C$81,J13),$AP$1))))=$AP$1,\"-\",\"OK\")","v":"-"},{"$f":"IF(IFERROR(SEARCH('[1]Критерии руб_рсч'!$C$83,J13),IFERROR(SEARCH('[1]Критерии руб_рсч'!$C$84,J13),$AP$1))=$AP$1,\"-\",\"OK\")","v":"OK"},{"$f":"IF(IFERROR(SEARCH('[1]Критерии руб_рсч'!$C$86,J13),IFERROR(SEARCH('[1]Критерии руб_рсч'!$C$87,J13),IFERROR(SEARCH('[1]Критерии руб_рсч'!$C$88,J13),$AP$1)))=$AP$1,\"-\",\"OK\")","v":"-"},{"$f":"IF(IFERROR(SEARCH('[1]Критерии руб_рсч'!$C$90,J13),IFERROR(SEARCH('[1]Критерии руб_рсч'!$C$91,J13),IFERROR(SEARCH('[1]Критерии руб_рсч'!$C$92,J13),IFERROR(SEARCH('[1]Критерии руб_рсч'!$C$93,J13),$AP$1))))=$AP$1,\"-\",\"OK\")","v":"-"},{"$f":"IF(IFERROR(SEARCH('[1]Критерии руб_рсч'!$C$95,J13),IFERROR(SEARCH('[1]Критерии руб_рсч'!$C$96,J13),IFERROR(SEARCH('[1]Критерии руб_рсч'!$C$97,J13),IFERROR(SEARCH('[1]Критерии руб_рсч'!$C$98,J13),IFERROR(SEARCH('[1]Критерии руб_рсч'!$C$99,J13),IFERROR(SEARCH('[1]Критерии руб_рсч'!$C$100,J13),$AP$1))))))=$AP$1,\"-\",\"OK\")","v":"-"},{"$f":"IF(IFERROR(SEARCH('[1]Критерии руб_рсч'!$C$102,J13),IFERROR(SEARCH('[1]Критерии руб_рсч'!$C$103,J13),IFERROR(SEARCH('[1]Критерии руб_рсч'!$C$104,J13),IFERROR(SEARCH('[1]Критерии руб_рсч'!$C$105,J13),IFERROR(SEARCH('[1]Критерии руб_рсч'!$C$106,J13),IFERROR(SEARCH('[1]Критерии руб_рсч'!$C$107,J13),$AP$1))))))=$AP$1,\"-\",\"OK\")","v":"-"},{"$f":"IF(IFERROR(SEARCH('[1]Критерии руб_рсч'!$C$109,J13),IFERROR(SEARCH('[1]Критерии руб_рсч'!$C$109,J13),$AP$1))=$AP$1,\"-\",\"OK\")","v":"-"}]
["Солр4993","15.01.2015","Солид банк",0,5096,null,null,null,"Авто-Транс ООО","Доплата по счету №29 от 12.01.2015 за короб №3 архивный Сумма 5096-00 В т.ч. НДС  (18%) 777-36","o",{"$f":"VLOOKUP(O14,[1]Справочник!$A$2:$B$44,2,0)","v":"опер"},1,2015,{"$f":"IFERROR(IF(T14=\"Оплата от покупателя\",\"income\",INDEX('Критерии руб_рсч'!$D$2:$D$91,MATCH(TRUE,ISNUMBER(SEARCH('Критерии руб_рсч'!$C$2:$C$91,рсч_руб!J14)),0))),\"other\")","v":"goods"},"руб.",1,2015,"Правда","Оплата поставщику",{"$f":"IF(IFERROR(SEARCH('[1]Критерии руб_рсч'!$C$2,J14),IFERROR(SEARCH('[1]Критерии руб_рсч'!$C$3,J14),IFERROR(SEARCH('[1]Критерии руб_рсч'!$C$4,J14),IFERROR(SEARCH('[1]Критерии руб_рсч'!$C$5,J14),IFERROR(SEARCH('[1]Критерии руб_рсч'!$C$6,J14),IFERROR(SEARCH('[1]Критерии руб_рсч'!$C$7,J14),IFERROR(SEARCH('[1]Критерии руб_рсч'!$C$8,J14),IFERROR(SEARCH('[1]Критерии руб_рсч'!$C$8,J14),IFERROR(SEARCH('[1]Критерии руб_рсч'!$C$10,J14),IFERROR(SEARCH('[1]Критерии руб_рсч'!$C$11,J14),\"-\"))))))))))=$AP$1,\"-\",\"OK\")","v":"-"},{"$f":"IF(IFERROR(SEARCH('[1]Критерии руб_рсч'!$C$13,J14),IFERROR(SEARCH('[1]Критерии руб_рсч'!$C$14,J14),IFERROR(SEARCH('[1]Критерии руб_рсч'!$C$15,J14),IFERROR(SEARCH('[1]Критерии руб_рсч'!$C$16,J14),IFERROR(SEARCH('[1]Критерии руб_рсч'!$C$17,J14),IFERROR(SEARCH('[1]Критерии руб_рсч'!$C$18,J14),IFERROR(SEARCH('[1]Критерии руб_рсч'!$C$19,J14),IFERROR(SEARCH('[1]Критерии руб_рсч'!$C$20,J14),IFERROR(SEARCH('[1]Критерии руб_рсч'!$C$21,J14),IFERROR(SEARCH('[1]Критерии руб_рсч'!$C$22,J14),IFERROR(SEARCH('[1]Критерии руб_рсч'!$C$23,J14),IFERROR(SEARCH('[1]Критерии руб_рсч'!$C$24,J14),IFERROR(SEARCH('[1]Критерии руб_рсч'!$C$25,J14),IFERROR(SEARCH('[1]Критерии руб_рсч'!$C$26,J14),$AP$1))))))))))))))=$AP$1,\"-\",\"OK\")","v":"-"},{"$f":"IF(IFERROR(SEARCH('[1]Критерии руб_рсч'!$C$28,J14),IFERROR(SEARCH('[1]Критерии руб_рсч'!$C$29,J14),IFERROR(SEARCH('[1]Критерии руб_рсч'!$C$30,J14),$AP$1)))=$AP$1,\"-\",\"OK\")","v":"-"},{"$f":"IF(IFERROR(SEARCH('[1]Критерии руб_рсч'!$C$32,J14),IFERROR(SEARCH('[1]Критерии руб_рсч'!$C$33,J14),IFERROR(SEARCH('[1]Критерии руб_рсч'!$C$34,J14),IFERROR(SEARCH('[1]Критерии руб_рсч'!$C$35,J14),IFERROR(SEARCH('[1]Критерии руб_рсч'!$C$36,J14),$AP$1)))))=$AP$1,\"-\",\"OK\")","v":"-"},{"$f":"IF(IFERROR(SEARCH('[1]Критерии руб_рсч'!$C$38,J14),IFERROR(SEARCH('[1]Критерии руб_рсч'!$C$39,J14),IFERROR(SEARCH('[1]Критерии руб_рсч'!$C$40,J14),IFERROR(SEARCH('[1]Критерии руб_рсч'!$C$41,J14),IFERROR(SEARCH('[1]Критерии руб_рсч'!$C$42,J14),IFERROR(SEARCH('[1]Критерии руб_рсч'!$C$43,J14),$AP$1))))))=$AP$1,\"-\",\"OK\")","v":"-"},{"$f":"IF(IFERROR(SEARCH('[1]Критерии руб_рсч'!$C$45,J14),IFERROR(SEARCH('[1]Критерии руб_рсч'!$C$46,J14),IFERROR(SEARCH('[1]Критерии руб_рсч'!$C$47,J14),IFERROR(SEARCH('[1]Критерии руб_рсч'!$C$48,J14),IFERROR(SEARCH('[1]Критерии руб_рсч'!$C$49,J14),IFERROR(SEARCH('[1]Критерии руб_рсч'!$C$50,J14),IFERROR(SEARCH('[1]Критерии руб_рсч'!$C$51,J14),$AP$1)))))))=$AP$1,\"-\",\"OK\")","v":"-"},{"$f":"IF(IFERROR(SEARCH('[1]Критерии руб_рсч'!$C$53,J14),$AP$1)=$AP$1,\"-\",\"OK\")","v":"-"},{"$f":"IF(IFERROR(SEARCH('[1]Критерии руб_рсч'!$C$55,J14),IFERROR(SEARCH('[1]Критерии руб_рсч'!$C$56,J14),IFERROR(SEARCH('[1]Критерии руб_рсч'!$C$57,J14),IFERROR(SEARCH('[1]Критерии руб_рсч'!$C$58,J14),IFERROR(SEARCH('[1]Критерии руб_рсч'!$C$59,J14),$AP$1)))))=$AP$1,\"-\",\"OK\")","v":"-"},{"$f":"IF(IFERROR(SEARCH('[1]Критерии руб_рсч'!$C$61,J14),IFERROR(SEARCH('[1]Критерии руб_рсч'!$C$62,J14),IFERROR(SEARCH('[1]Критерии руб_рсч'!$C$63,J14),IFERROR(SEARCH('[1]Критерии руб_рсч'!$C$64,J14),$AP$1))))=$AP$1,\"-\",\"OK\")","v":"-"},{"$f":"IF(IFERROR(SEARCH('[1]Критерии руб_рсч'!$C$66,J14),$AP$1)=$AP$1,\"-\",\"OK\")","v":"-"},{"$f":"IF(IFERROR(SEARCH('[1]Критерии руб_рсч'!$C$68,J14),IFERROR(SEARCH('[1]Критерии руб_рсч'!$C$69,J14),IFERROR(SEARCH('[1]Критерии руб_рсч'!$C$70,J14),IFERROR(SEARCH('[1]Критерии руб_рсч'!$C$71,J14),$AP$1))))=$AP$1,\"-\",\"OK\")","v":"-"},{"$f":"IF(IFERROR(SEARCH('[1]Критерии руб_рсч'!$C$73,J14),IFERROR(SEARCH('[1]Критерии руб_рсч'!$C$74,J14),IFERROR(SEARCH('[1]Критерии руб_рсч'!$C$75,J14),IFERROR(SEARCH('[1]Критерии руб_рсч'!$C$76,J14),$AP$1))))=$AP$1,\"-\",\"OK\")","v":"-"},{"$f":"IF(IFERROR(SEARCH('[1]Критерии руб_рсч'!$C$78,J14),IFERROR(SEARCH('[1]Критерии руб_рсч'!$C$79,J14),IFERROR(SEARCH('[1]Критерии руб_рсч'!$C$80,J14),IFERROR(SEARCH('[1]Критерии руб_рсч'!$C$81,J14),$AP$1))))=$AP$1,\"-\",\"OK\")","v":"-"},{"$f":"IF(IFERROR(SEARCH('[1]Критерии руб_рсч'!$C$83,J14),IFERROR(SEARCH('[1]Критерии руб_рсч'!$C$84,J14),$AP$1))=$AP$1,\"-\",\"OK\")","v":"-"},{"$f":"IF(IFERROR(SEARCH('[1]Критерии руб_рсч'!$C$86,J14),IFERROR(SEARCH('[1]Критерии руб_рсч'!$C$87,J14),IFERROR(SEARCH('[1]Критерии руб_рсч'!$C$88,J14),$AP$1)))=$AP$1,\"-\",\"OK\")","v":"-"},{"$f":"IF(IFERROR(SEARCH('[1]Критерии руб_рсч'!$C$90,J14),IFERROR(SEARCH('[1]Критерии руб_рсч'!$C$91,J14),IFERROR(SEARCH('[1]Критерии руб_рсч'!$C$92,J14),IFERROR(SEARCH('[1]Критерии руб_рсч'!$C$93,J14),$AP$1))))=$AP$1,\"-\",\"OK\")","v":"-"},{"$f":"IF(IFERROR(SEARCH('[1]Критерии руб_рсч'!$C$95,J14),IFERROR(SEARCH('[1]Критерии руб_рсч'!$C$96,J14),IFERROR(SEARCH('[1]Критерии руб_рсч'!$C$97,J14),IFERROR(SEARCH('[1]Критерии руб_рсч'!$C$98,J14),IFERROR(SEARCH('[1]Критерии руб_рсч'!$C$99,J14),IFERROR(SEARCH('[1]Критерии руб_рсч'!$C$100,J14),$AP$1))))))=$AP$1,\"-\",\"OK\")","v":"-"},{"$f":"IF(IFERROR(SEARCH('[1]Критерии руб_рсч'!$C$102,J14),IFERROR(SEARCH('[1]Критерии руб_рсч'!$C$103,J14),IFERROR(SEARCH('[1]Критерии руб_рсч'!$C$104,J14),IFERROR(SEARCH('[1]Критерии руб_рсч'!$C$105,J14),IFERROR(SEARCH('[1]Критерии руб_рсч'!$C$106,J14),IFERROR(SEARCH('[1]Критерии руб_рсч'!$C$107,J14),$AP$1))))))=$AP$1,\"-\",\"OK\")","v":"OK"},{"$f":"IF(IFERROR(SEARCH('[1]Критерии руб_рсч'!$C$109,J14),IFERROR(SEARCH('[1]Критерии руб_рсч'!$C$109,J14),$AP$1))=$AP$1,\"-\",\"OK\")","v":"-"}]
["Солр4994","15.01.2015","Солид банк",0,9097,null,null,null,"ЗАО \"ВЕСТ КОЛЛ ЛТД\"","Оплата за услуги электросвязи по договору №23743/1 от 30.03.11 за декабрь  2014 Сумма 9097-00 В т.ч. НДС  (18/118) 1387-68","o",{"$f":"VLOOKUP(O15,[1]Справочник!$A$2:$B$44,2,0)","v":"опер"},1,2015,{"$f":"IFERROR(IF(T15=\"Оплата от покупателя\",\"income\",INDEX('Критерии руб_рсч'!$D$2:$D$91,MATCH(TRUE,ISNUMBER(SEARCH('Критерии руб_рсч'!$C$2:$C$91,рсч_руб!J15)),0))),\"other\")","v":"telef"},"руб.",12,2014,"Правда","Оплата поставщику",{"$f":"IF(IFERROR(SEARCH('[1]Критерии руб_рсч'!$C$2,J15),IFERROR(SEARCH('[1]Критерии руб_рсч'!$C$3,J15),IFERROR(SEARCH('[1]Критерии руб_рсч'!$C$4,J15),IFERROR(SEARCH('[1]Критерии руб_рсч'!$C$5,J15),IFERROR(SEARCH('[1]Критерии руб_рсч'!$C$6,J15),IFERROR(SEARCH('[1]Критерии руб_рсч'!$C$7,J15),IFERROR(SEARCH('[1]Критерии руб_рсч'!$C$8,J15),IFERROR(SEARCH('[1]Критерии руб_рсч'!$C$8,J15),IFERROR(SEARCH('[1]Критерии руб_рсч'!$C$10,J15),IFERROR(SEARCH('[1]Критерии руб_рсч'!$C$11,J15),\"-\"))))))))))=$AP$1,\"-\",\"OK\")","v":"-"},{"$f":"IF(IFERROR(SEARCH('[1]Критерии руб_рсч'!$C$13,J15),IFERROR(SEARCH('[1]Критерии руб_рсч'!$C$14,J15),IFERROR(SEARCH('[1]Критерии руб_рсч'!$C$15,J15),IFERROR(SEARCH('[1]Критерии руб_рсч'!$C$16,J15),IFERROR(SEARCH('[1]Критерии руб_рсч'!$C$17,J15),IFERROR(SEARCH('[1]Критерии руб_рсч'!$C$18,J15),IFERROR(SEARCH('[1]Критерии руб_рсч'!$C$19,J15),IFERROR(SEARCH('[1]Критерии руб_рсч'!$C$20,J15),IFERROR(SEARCH('[1]Критерии руб_рсч'!$C$21,J15),IFERROR(SEARCH('[1]Критерии руб_рсч'!$C$22,J15),IFERROR(SEARCH('[1]Критерии руб_рсч'!$C$23,J15),IFERROR(SEARCH('[1]Критерии руб_рсч'!$C$24,J15),IFERROR(SEARCH('[1]Критерии руб_рсч'!$C$25,J15),IFERROR(SEARCH('[1]Критерии руб_рсч'!$C$26,J15),$AP$1))))))))))))))=$AP$1,\"-\",\"OK\")","v":"-"},{"$f":"IF(IFERROR(SEARCH('[1]Критерии руб_рсч'!$C$28,J15),IFERROR(SEARCH('[1]Критерии руб_рсч'!$C$29,J15),IFERROR(SEARCH('[1]Критерии руб_рсч'!$C$30,J15),$AP$1)))=$AP$1,\"-\",\"OK\")","v":"-"},{"$f":"IF(IFERROR(SEARCH('[1]Критерии руб_рсч'!$C$32,J15),IFERROR(SEARCH('[1]Критерии руб_рсч'!$C$33,J15),IFERROR(SEARCH('[1]Критерии руб_рсч'!$C$34,J15),IFERROR(SEARCH('[1]Критерии руб_рсч'!$C$35,J15),IFERROR(SEARCH('[1]Критерии руб_рсч'!$C$36,J15),$AP$1)))))=$AP$1,\"-\",\"OK\")","v":"-"},{"$f":"IF(IFERROR(SEARCH('[1]Критерии руб_рсч'!$C$38,J15),IFERROR(SEARCH('[1]Критерии руб_рсч'!$C$39,J15),IFERROR(SEARCH('[1]Критерии руб_рсч'!$C$40,J15),IFERROR(SEARCH('[1]Критерии руб_рсч'!$C$41,J15),IFERROR(SEARCH('[1]Критерии руб_рсч'!$C$42,J15),IFERROR(SEARCH('[1]Критерии руб_рсч'!$C$43,J15),$AP$1))))))=$AP$1,\"-\",\"OK\")","v":"-"},{"$f":"IF(IFERROR(SEARCH('[1]Критерии руб_рсч'!$C$45,J15),IFERROR(SEARCH('[1]Критерии руб_рсч'!$C$46,J15),IFERROR(SEARCH('[1]Критерии руб_рсч'!$C$47,J15),IFERROR(SEARCH('[1]Критерии руб_рсч'!$C$48,J15),IFERROR(SEARCH('[1]Критерии руб_рсч'!$C$49,J15),IFERROR(SEARCH('[1]Критерии руб_рсч'!$C$50,J15),IFERROR(SEARCH('[1]Критерии руб_рсч'!$C$51,J15),$AP$1)))))))=$AP$1,\"-\",\"OK\")","v":"-"},{"$f":"IF(IFERROR(SEARCH('[1]Критерии руб_рсч'!$C$53,J15),$AP$1)=$AP$1,\"-\",\"OK\")","v":"-"},{"$f":"IF(IFERROR(SEARCH('[1]Критерии руб_рсч'!$C$55,J15),IFERROR(SEARCH('[1]Критерии руб_рсч'!$C$56,J15),IFERROR(SEARCH('[1]Критерии руб_рсч'!$C$57,J15),IFERROR(SEARCH('[1]Критерии руб_рсч'!$C$58,J15),IFERROR(SEARCH('[1]Критерии руб_рсч'!$C$59,J15),$AP$1)))))=$AP$1,\"-\",\"OK\")","v":"OK"},{"$f":"IF(IFERROR(SEARCH('[1]Критерии руб_рсч'!$C$61,J15),IFERROR(SEARCH('[1]Критерии руб_рсч'!$C$62,J15),IFERROR(SEARCH('[1]Критерии руб_рсч'!$C$63,J15),IFERROR(SEARCH('[1]Критерии руб_рсч'!$C$64,J15),$AP$1))))=$AP$1,\"-\",\"OK\")","v":"-"},{"$f":"IF(IFERROR(SEARCH('[1]Критерии руб_рсч'!$C$66,J15),$AP$1)=$AP$1,\"-\",\"OK\")","v":"-"},{"$f":"IF(IFERROR(SEARCH('[1]Критерии руб_рсч'!$C$68,J15),IFERROR(SEARCH('[1]Критерии руб_рсч'!$C$69,J15),IFERROR(SEARCH('[1]Критерии руб_рсч'!$C$70,J15),IFERROR(SEARCH('[1]Критерии руб_рсч'!$C$71,J15),$AP$1))))=$AP$1,\"-\",\"OK\")","v":"-"},{"$f":"IF(IFERROR(SEARCH('[1]Критерии руб_рсч'!$C$73,J15),IFERROR(SEARCH('[1]Критерии руб_рсч'!$C$74,J15),IFERROR(SEARCH('[1]Критерии руб_рсч'!$C$75,J15),IFERROR(SEARCH('[1]Критерии руб_рсч'!$C$76,J15),$AP$1))))=$AP$1,\"-\",\"OK\")","v":"-"},{"$f":"IF(IFERROR(SEARCH('[1]Критерии руб_рсч'!$C$78,J15),IFERROR(SEARCH('[1]Критерии руб_рсч'!$C$79,J15),IFERROR(SEARCH('[1]Критерии руб_рсч'!$C$80,J15),IFERROR(SEARCH('[1]Критерии руб_рсч'!$C$81,J15),$AP$1))))=$AP$1,\"-\",\"OK\")","v":"-"},{"$f":"IF(IFERROR(SEARCH('[1]Критерии руб_рсч'!$C$83,J15),IFERROR(SEARCH('[1]Критерии руб_рсч'!$C$84,J15),$AP$1))=$AP$1,\"-\",\"OK\")","v":"-"},{"$f":"IF(IFERROR(SEARCH('[1]Критерии руб_рсч'!$C$86,J15),IFERROR(SEARCH('[1]Критерии руб_рсч'!$C$87,J15),IFERROR(SEARCH('[1]Критерии руб_рсч'!$C$88,J15),$AP$1)))=$AP$1,\"-\",\"OK\")","v":"-"},{"$f":"IF(IFERROR(SEARCH('[1]Критерии руб_рсч'!$C$90,J15),IFERROR(SEARCH('[1]Критерии руб_рсч'!$C$91,J15),IFERROR(SEARCH('[1]Критерии руб_рсч'!$C$92,J15),IFERROR(SEARCH('[1]Критерии руб_рсч'!$C$93,J15),$AP$1))))=$AP$1,\"-\",\"OK\")","v":"-"},{"$f":"IF(IFERROR(SEARCH('[1]Критерии руб_рсч'!$C$95,J15),IFERROR(SEARCH('[1]Критерии руб_рсч'!$C$96,J15),IFERROR(SEARCH('[1]Критерии руб_рсч'!$C$97,J15),IFERROR(SEARCH('[1]Критерии руб_рсч'!$C$98,J15),IFERROR(SEARCH('[1]Критерии руб_рсч'!$C$99,J15),IFERROR(SEARCH('[1]Критерии руб_рсч'!$C$100,J15),$AP$1))))))=$AP$1,\"-\",\"OK\")","v":"-"},{"$f":"IF(IFERROR(SEARCH('[1]Критерии руб_рсч'!$C$102,J15),IFERROR(SEARCH('[1]Критерии руб_рсч'!$C$103,J15),IFERROR(SEARCH('[1]Критерии руб_рсч'!$C$104,J15),IFERROR(SEARCH('[1]Критерии руб_рсч'!$C$105,J15),IFERROR(SEARCH('[1]Критерии руб_рсч'!$C$106,J15),IFERROR(SEARCH('[1]Критерии руб_рсч'!$C$107,J15),$AP$1))))))=$AP$1,\"-\",\"OK\")","v":"-"},{"$f":"IF(IFERROR(SEARCH('[1]Критерии руб_рсч'!$C$109,J15),IFERROR(SEARCH('[1]Критерии руб_рсч'!$C$109,J15),$AP$1))=$AP$1,\"-\",\"OK\")","v":"-"}]
["Солр4995","19.01.2015","Солид банк",13000,0,null,null,null,"МедРескью ООО","Оплата по счету N 12071 от 17.01.2015 за аренду бокса #C58 c 01.02.2015 по 28.02.2014. НДС не облагается.","o",{"$f":"VLOOKUP(O16,[1]Справочник!$A$2:$B$44,2,0)","v":"опер"},1,2015,{"$f":"IFERROR(IF(T16=\"Оплата от покупателя\",\"income\",INDEX('Критерии руб_рсч'!$D$2:$D$91,MATCH(TRUE,ISNUMBER(SEARCH('Критерии руб_рсч'!$C$2:$C$91,рсч_руб!J16)),0))),\"other\")","v":"income"},"руб.",1,2015,"Правда","Оплата от покупателя",{"$f":"IF(IFERROR(SEARCH('[1]Критерии руб_рсч'!$C$2,J16),IFERROR(SEARCH('[1]Критерии руб_рсч'!$C$3,J16),IFERROR(SEARCH('[1]Критерии руб_рсч'!$C$4,J16),IFERROR(SEARCH('[1]Критерии руб_рсч'!$C$5,J16),IFERROR(SEARCH('[1]Критерии руб_рсч'!$C$6,J16),IFERROR(SEARCH('[1]Критерии руб_рсч'!$C$7,J16),IFERROR(SEARCH('[1]Критерии руб_рсч'!$C$8,J16),IFERROR(SEARCH('[1]Критерии руб_рсч'!$C$8,J16),IFERROR(SEARCH('[1]Критерии руб_рсч'!$C$10,J16),IFERROR(SEARCH('[1]Критерии руб_рсч'!$C$11,J16),\"-\"))))))))))=$AP$1,\"-\",\"OK\")","v":"-"},{"$f":"IF(IFERROR(SEARCH('[1]Критерии руб_рсч'!$C$13,J16),IFERROR(SEARCH('[1]Критерии руб_рсч'!$C$14,J16),IFERROR(SEARCH('[1]Критерии руб_рсч'!$C$15,J16),IFERROR(SEARCH('[1]Критерии руб_рсч'!$C$16,J16),IFERROR(SEARCH('[1]Критерии руб_рсч'!$C$17,J16),IFERROR(SEARCH('[1]Критерии руб_рсч'!$C$18,J16),IFERROR(SEARCH('[1]Критерии руб_рсч'!$C$19,J16),IFERROR(SEARCH('[1]Критерии руб_рсч'!$C$20,J16),IFERROR(SEARCH('[1]Критерии руб_рсч'!$C$21,J16),IFERROR(SEARCH('[1]Критерии руб_рсч'!$C$22,J16),IFERROR(SEARCH('[1]Критерии руб_рсч'!$C$23,J16),IFERROR(SEARCH('[1]Критерии руб_рсч'!$C$24,J16),IFERROR(SEARCH('[1]Критерии руб_рсч'!$C$25,J16),IFERROR(SEARCH('[1]Критерии руб_рсч'!$C$26,J16),$AP$1))))))))))))))=$AP$1,\"-\",\"OK\")","v":"-"},{"$f":"IF(IFERROR(SEARCH('[1]Критерии руб_рсч'!$C$28,J16),IFERROR(SEARCH('[1]Критерии руб_рсч'!$C$29,J16),IFERROR(SEARCH('[1]Критерии руб_рсч'!$C$30,J16),$AP$1)))=$AP$1,\"-\",\"OK\")","v":"-"},{"$f":"IF(IFERROR(SEARCH('[1]Критерии руб_рсч'!$C$32,J16),IFERROR(SEARCH('[1]Критерии руб_рсч'!$C$33,J16),IFERROR(SEARCH('[1]Критерии руб_рсч'!$C$34,J16),IFERROR(SEARCH('[1]Критерии руб_рсч'!$C$35,J16),IFERROR(SEARCH('[1]Критерии руб_рсч'!$C$36,J16),$AP$1)))))=$AP$1,\"-\",\"OK\")","v":"-"},{"$f":"IF(IFERROR(SEARCH('[1]Критерии руб_рсч'!$C$38,J16),IFERROR(SEARCH('[1]Критерии руб_рсч'!$C$39,J16),IFERROR(SEARCH('[1]Критерии руб_рсч'!$C$40,J16),IFERROR(SEARCH('[1]Критерии руб_рсч'!$C$41,J16),IFERROR(SEARCH('[1]Критерии руб_рсч'!$C$42,J16),IFERROR(SEARCH('[1]Критерии руб_рсч'!$C$43,J16),$AP$1))))))=$AP$1,\"-\",\"OK\")","v":"-"},{"$f":"IF(IFERROR(SEARCH('[1]Критерии руб_рсч'!$C$45,J16),IFERROR(SEARCH('[1]Критерии руб_рсч'!$C$46,J16),IFERROR(SEARCH('[1]Критерии руб_рсч'!$C$47,J16),IFERROR(SEARCH('[1]Критерии руб_рсч'!$C$48,J16),IFERROR(SEARCH('[1]Критерии руб_рсч'!$C$49,J16),IFERROR(SEARCH('[1]Критерии руб_рсч'!$C$50,J16),IFERROR(SEARCH('[1]Критерии руб_рсч'!$C$51,J16),$AP$1)))))))=$AP$1,\"-\",\"OK\")","v":"-"},{"$f":"IF(IFERROR(SEARCH('[1]Критерии руб_рсч'!$C$53,J16),$AP$1)=$AP$1,\"-\",\"OK\")","v":"-"},{"$f":"IF(IFERROR(SEARCH('[1]Критерии руб_рсч'!$C$55,J16),IFERROR(SEARCH('[1]Критерии руб_рсч'!$C$56,J16),IFERROR(SEARCH('[1]Критерии руб_рсч'!$C$57,J16),IFERROR(SEARCH('[1]Критерии руб_рсч'!$C$58,J16),IFERROR(SEARCH('[1]Критерии руб_рсч'!$C$59,J16),$AP$1)))))=$AP$1,\"-\",\"OK\")","v":"-"},{"$f":"IF(IFERROR(SEARCH('[1]Критерии руб_рсч'!$C$61,J16),IFERROR(SEARCH('[1]Критерии руб_рсч'!$C$62,J16),IFERROR(SEARCH('[1]Критерии руб_рсч'!$C$63,J16),IFERROR(SEARCH('[1]Критерии руб_рсч'!$C$64,J16),$AP$1))))=$AP$1,\"-\",\"OK\")","v":"-"},{"$f":"IF(IFERROR(SEARCH('[1]Критерии руб_рсч'!$C$66,J16),$AP$1)=$AP$1,\"-\",\"OK\")","v":"-"},{"$f":"IF(IFERROR(SEARCH('[1]Критерии руб_рсч'!$C$68,J16),IFERROR(SEARCH('[1]Критерии руб_рсч'!$C$69,J16),IFERROR(SEARCH('[1]Критерии руб_рсч'!$C$70,J16),IFERROR(SEARCH('[1]Критерии руб_рсч'!$C$71,J16),$AP$1))))=$AP$1,\"-\",\"OK\")","v":"-"},{"$f":"IF(IFERROR(SEARCH('[1]Критерии руб_рсч'!$C$73,J16),IFERROR(SEARCH('[1]Критерии руб_рсч'!$C$74,J16),IFERROR(SEARCH('[1]Критерии руб_рсч'!$C$75,J16),IFERROR(SEARCH('[1]Критерии руб_рсч'!$C$76,J16),$AP$1))))=$AP$1,\"-\",\"OK\")","v":"-"},{"$f":"IF(IFERROR(SEARCH('[1]Критерии руб_рсч'!$C$78,J16),IFERROR(SEARCH('[1]Критерии руб_рсч'!$C$79,J16),IFERROR(SEARCH('[1]Критерии руб_рсч'!$C$80,J16),IFERROR(SEARCH('[1]Критерии руб_рсч'!$C$81,J16),$AP$1))))=$AP$1,\"-\",\"OK\")","v":"-"},{"$f":"IF(IFERROR(SEARCH('[1]Критерии руб_рсч'!$C$83,J16),IFERROR(SEARCH('[1]Критерии руб_рсч'!$C$84,J16),$AP$1))=$AP$1,\"-\",\"OK\")","v":"-"},{"$f":"IF(IFERROR(SEARCH('[1]Критерии руб_рсч'!$C$86,J16),IFERROR(SEARCH('[1]Критерии руб_рсч'!$C$87,J16),IFERROR(SEARCH('[1]Критерии руб_рсч'!$C$88,J16),$AP$1)))=$AP$1,\"-\",\"OK\")","v":"-"},{"$f":"IF(IFERROR(SEARCH('[1]Критерии руб_рсч'!$C$90,J16),IFERROR(SEARCH('[1]Критерии руб_рсч'!$C$91,J16),IFERROR(SEARCH('[1]Критерии руб_рсч'!$C$92,J16),IFERROR(SEARCH('[1]Критерии руб_рсч'!$C$93,J16),$AP$1))))=$AP$1,\"-\",\"OK\")","v":"-"},{"$f":"IF(IFERROR(SEARCH('[1]Критерии руб_рсч'!$C$95,J16),IFERROR(SEARCH('[1]Критерии руб_рсч'!$C$96,J16),IFERROR(SEARCH('[1]Критерии руб_рсч'!$C$97,J16),IFERROR(SEARCH('[1]Критерии руб_рсч'!$C$98,J16),IFERROR(SEARCH('[1]Критерии руб_рсч'!$C$99,J16),IFERROR(SEARCH('[1]Критерии руб_рсч'!$C$100,J16),$AP$1))))))=$AP$1,\"-\",\"OK\")","v":"-"},{"$f":"IF(IFERROR(SEARCH('[1]Критерии руб_рсч'!$C$102,J16),IFERROR(SEARCH('[1]Критерии руб_рсч'!$C$103,J16),IFERROR(SEARCH('[1]Критерии руб_рсч'!$C$104,J16),IFERROR(SEARCH('[1]Критерии руб_рсч'!$C$105,J16),IFERROR(SEARCH('[1]Критерии руб_рсч'!$C$106,J16),IFERROR(SEARCH('[1]Критерии руб_рсч'!$C$107,J16),$AP$1))))))=$AP$1,\"-\",\"OK\")","v":"-"},{"$f":"IF(IFERROR(SEARCH('[1]Критерии руб_рсч'!$C$109,J16),IFERROR(SEARCH('[1]Критерии руб_рсч'!$C$109,J16),$AP$1))=$AP$1,\"-\",\"OK\")","v":"-"}]
["Солр4996","21.01.2015","Солид банк",0,1000,null,null,null,"УФК по г. Москве (для ИФНС России №4 по г. Москве)","Государственная пошлина: подача кассационной жалобы","o",{"$f":"VLOOKUP(O17,[1]Справочник!$A$2:$B$44,2,0)","v":"опер"},1,2015,{"$f":"IFERROR(IF(T17=\"Оплата от покупателя\",\"income\",INDEX('Критерии руб_рсч'!$D$2:$D$91,MATCH(TRUE,ISNUMBER(SEARCH('Критерии руб_рсч'!$C$2:$C$91,рсч_руб!J17)),0))),\"other\")","v":"other"},"руб.",1,2015,"Правда","Перечисление налога",{"$f":"IF(IFERROR(SEARCH('[1]Критерии руб_рсч'!$C$2,J17),IFERROR(SEARCH('[1]Критерии руб_рсч'!$C$3,J17),IFERROR(SEARCH('[1]Критерии руб_рсч'!$C$4,J17),IFERROR(SEARCH('[1]Критерии руб_рсч'!$C$5,J17),IFERROR(SEARCH('[1]Критерии руб_рсч'!$C$6,J17),IFERROR(SEARCH('[1]Критерии руб_рсч'!$C$7,J17),IFERROR(SEARCH('[1]Критерии руб_рсч'!$C$8,J17),IFERROR(SEARCH('[1]Критерии руб_рсч'!$C$8,J17),IFERROR(SEARCH('[1]Критерии руб_рсч'!$C$10,J17),IFERROR(SEARCH('[1]Критерии руб_рсч'!$C$11,J17),\"-\"))))))))))=$AP$1,\"-\",\"OK\")","v":"-"},{"$f":"IF(IFERROR(SEARCH('[1]Критерии руб_рсч'!$C$13,J17),IFERROR(SEARCH('[1]Критерии руб_рсч'!$C$14,J17),IFERROR(SEARCH('[1]Критерии руб_рсч'!$C$15,J17),IFERROR(SEARCH('[1]Критерии руб_рсч'!$C$16,J17),IFERROR(SEARCH('[1]Критерии руб_рсч'!$C$17,J17),IFERROR(SEARCH('[1]Критерии руб_рсч'!$C$18,J17),IFERROR(SEARCH('[1]Критерии руб_рсч'!$C$19,J17),IFERROR(SEARCH('[1]Критерии руб_рсч'!$C$20,J17),IFERROR(SEARCH('[1]Критерии руб_рсч'!$C$21,J17),IFERROR(SEARCH('[1]Критерии руб_рсч'!$C$22,J17),IFERROR(SEARCH('[1]Критерии руб_рсч'!$C$23,J17),IFERROR(SEARCH('[1]Критерии руб_рсч'!$C$24,J17),IFERROR(SEARCH('[1]Критерии руб_рсч'!$C$25,J17),IFERROR(SEARCH('[1]Критерии руб_рсч'!$C$26,J17),$AP$1))))))))))))))=$AP$1,\"-\",\"OK\")","v":"-"},{"$f":"IF(IFERROR(SEARCH('[1]Критерии руб_рсч'!$C$28,J17),IFERROR(SEARCH('[1]Критерии руб_рсч'!$C$29,J17),IFERROR(SEARCH('[1]Критерии руб_рсч'!$C$30,J17),$AP$1)))=$AP$1,\"-\",\"OK\")","v":"-"},{"$f":"IF(IFERROR(SEARCH('[1]Критерии руб_рсч'!$C$32,J17),IFERROR(SEARCH('[1]Критерии руб_рсч'!$C$33,J17),IFERROR(SEARCH('[1]Критерии руб_рсч'!$C$34,J17),IFERROR(SEARCH('[1]Критерии руб_рсч'!$C$35,J17),IFERROR(SEARCH('[1]Критерии руб_рсч'!$C$36,J17),$AP$1)))))=$AP$1,\"-\",\"OK\")","v":"-"},{"$f":"IF(IFERROR(SEARCH('[1]Критерии руб_рсч'!$C$38,J17),IFERROR(SEARCH('[1]Критерии руб_рсч'!$C$39,J17),IFERROR(SEARCH('[1]Критерии руб_рсч'!$C$40,J17),IFERROR(SEARCH('[1]Критерии руб_рсч'!$C$41,J17),IFERROR(SEARCH('[1]Критерии руб_рсч'!$C$42,J17),IFERROR(SEARCH('[1]Критерии руб_рсч'!$C$43,J17),$AP$1))))))=$AP$1,\"-\",\"OK\")","v":"-"},{"$f":"IF(IFERROR(SEARCH('[1]Критерии руб_рсч'!$C$45,J17),IFERROR(SEARCH('[1]Критерии руб_рсч'!$C$46,J17),IFERROR(SEARCH('[1]Критерии руб_рсч'!$C$47,J17),IFERROR(SEARCH('[1]Критерии руб_рсч'!$C$48,J17),IFERROR(SEARCH('[1]Критерии руб_рсч'!$C$49,J17),IFERROR(SEARCH('[1]Критерии руб_рсч'!$C$50,J17),IFERROR(SEARCH('[1]Критерии руб_рсч'!$C$51,J17),$AP$1)))))))=$AP$1,\"-\",\"OK\")","v":"-"},{"$f":"IF(IFERROR(SEARCH('[1]Критерии руб_рсч'!$C$53,J17),$AP$1)=$AP$1,\"-\",\"OK\")","v":"-"},{"$f":"IF(IFERROR(SEARCH('[1]Критерии руб_рсч'!$C$55,J17),IFERROR(SEARCH('[1]Критерии руб_рсч'!$C$56,J17),IFERROR(SEARCH('[1]Критерии руб_рсч'!$C$57,J17),IFERROR(SEARCH('[1]Критерии руб_рсч'!$C$58,J17),IFERROR(SEARCH('[1]Критерии руб_рсч'!$C$59,J17),$AP$1)))))=$AP$1,\"-\",\"OK\")","v":"-"},{"$f":"IF(IFERROR(SEARCH('[1]Критерии руб_рсч'!$C$61,J17),IFERROR(SEARCH('[1]Критерии руб_рсч'!$C$62,J17),IFERROR(SEARCH('[1]Критерии руб_рсч'!$C$63,J17),IFERROR(SEARCH('[1]Критерии руб_рсч'!$C$64,J17),$AP$1))))=$AP$1,\"-\",\"OK\")","v":"-"},{"$f":"IF(IFERROR(SEARCH('[1]Критерии руб_рсч'!$C$66,J17),$AP$1)=$AP$1,\"-\",\"OK\")","v":"-"},{"$f":"IF(IFERROR(SEARCH('[1]Критерии руб_рсч'!$C$68,J17),IFERROR(SEARCH('[1]Критерии руб_рсч'!$C$69,J17),IFERROR(SEARCH('[1]Критерии руб_рсч'!$C$70,J17),IFERROR(SEARCH('[1]Критерии руб_рсч'!$C$71,J17),$AP$1))))=$AP$1,\"-\",\"OK\")","v":"-"},{"$f":"IF(IFERROR(SEARCH('[1]Критерии руб_рсч'!$C$73,J17),IFERROR(SEARCH('[1]Критерии руб_рсч'!$C$74,J17),IFERROR(SEARCH('[1]Критерии руб_рсч'!$C$75,J17),IFERROR(SEARCH('[1]Критерии руб_рсч'!$C$76,J17),$AP$1))))=$AP$1,\"-\",\"OK\")","v":"-"},{"$f":"IF(IFERROR(SEARCH('[1]Критерии руб_рсч'!$C$78,J17),IFERROR(SEARCH('[1]Критерии руб_рсч'!$C$79,J17),IFERROR(SEARCH('[1]Критерии руб_рсч'!$C$80,J17),IFERROR(SEARCH('[1]Критерии руб_рсч'!$C$81,J17),$AP$1))))=$AP$1,\"-\",\"OK\")","v":"-"},{"$f":"IF(IFERROR(SEARCH('[1]Критерии руб_рсч'!$C$83,J17),IFERROR(SEARCH('[1]Критерии руб_рсч'!$C$84,J17),$AP$1))=$AP$1,\"-\",\"OK\")","v":"-"},{"$f":"IF(IFERROR(SEARCH('[1]Критерии руб_рсч'!$C$86,J17),IFERROR(SEARCH('[1]Критерии руб_рсч'!$C$87,J17),IFERROR(SEARCH('[1]Критерии руб_рсч'!$C$88,J17),$AP$1)))=$AP$1,\"-\",\"OK\")","v":"-"},{"$f":"IF(IFERROR(SEARCH('[1]Критерии руб_рсч'!$C$90,J17),IFERROR(SEARCH('[1]Критерии руб_рсч'!$C$91,J17),IFERROR(SEARCH('[1]Критерии руб_рсч'!$C$92,J17),IFERROR(SEARCH('[1]Критерии руб_рсч'!$C$93,J17),$AP$1))))=$AP$1,\"-\",\"OK\")","v":"-"},{"$f":"IF(IFERROR(SEARCH('[1]Критерии руб_рсч'!$C$95,J17),IFERROR(SEARCH('[1]Критерии руб_рсч'!$C$96,J17),IFERROR(SEARCH('[1]Критерии руб_рсч'!$C$97,J17),IFERROR(SEARCH('[1]Критерии руб_рсч'!$C$98,J17),IFERROR(SEARCH('[1]Критерии руб_рсч'!$C$99,J17),IFERROR(SEARCH('[1]Критерии руб_рсч'!$C$100,J17),$AP$1))))))=$AP$1,\"-\",\"OK\")","v":"-"},{"$f":"IF(IFERROR(SEARCH('[1]Критерии руб_рсч'!$C$102,J17),IFERROR(SEARCH('[1]Критерии руб_рсч'!$C$103,J17),IFERROR(SEARCH('[1]Критерии руб_рсч'!$C$104,J17),IFERROR(SEARCH('[1]Критерии руб_рсч'!$C$105,J17),IFERROR(SEARCH('[1]Критерии руб_рсч'!$C$106,J17),IFERROR(SEARCH('[1]Критерии руб_рсч'!$C$107,J17),$AP$1))))))=$AP$1,\"-\",\"OK\")","v":"-"},{"$f":"IF(IFERROR(SEARCH('[1]Критерии руб_рсч'!$C$109,J17),IFERROR(SEARCH('[1]Критерии руб_рсч'!$C$109,J17),$AP$1))=$AP$1,\"-\",\"OK\")","v":"-"}]
["Солр4997","22.01.2015","Солид банк",0,2.7,null,null,null,"ЗАО \"СОЛИД БАНК\"","НДС-18%, удержанный сверх суммы комиссионного вознаграждения за исполнение функций валютного контроля согласно Тарифам Банка. Распоряжение  от 22.01.2015г.","o",{"$f":"VLOOKUP(O18,[1]Справочник!$A$2:$B$44,2,0)","v":"опер"},1,2015,{"$f":"IFERROR(IF(T18=\"Оплата от покупателя\",\"income\",INDEX('Критерии руб_рсч'!$D$2:$D$91,MATCH(TRUE,ISNUMBER(SEARCH('Критерии руб_рсч'!$C$2:$C$91,рсч_руб!J18)),0))),\"other\")","v":"bank"},"руб.",1,2015,"Правда","Прочее списание",{"$f":"IF(IFERROR(SEARCH('[1]Критерии руб_рсч'!$C$2,J18),IFERROR(SEARCH('[1]Критерии руб_рсч'!$C$3,J18),IFERROR(SEARCH('[1]Критерии руб_рсч'!$C$4,J18),IFERROR(SEARCH('[1]Критерии руб_рсч'!$C$5,J18),IFERROR(SEARCH('[1]Критерии руб_рсч'!$C$6,J18),IFERROR(SEARCH('[1]Критерии руб_рсч'!$C$7,J18),IFERROR(SEARCH('[1]Критерии руб_рсч'!$C$8,J18),IFERROR(SEARCH('[1]Критерии руб_рсч'!$C$8,J18),IFERROR(SEARCH('[1]Критерии руб_рсч'!$C$10,J18),IFERROR(SEARCH('[1]Критерии руб_рсч'!$C$11,J18),\"-\"))))))))))=$AP$1,\"-\",\"OK\")","v":"-"},{"$f":"IF(IFERROR(SEARCH('[1]Критерии руб_рсч'!$C$13,J18),IFERROR(SEARCH('[1]Критерии руб_рсч'!$C$14,J18),IFERROR(SEARCH('[1]Критерии руб_рсч'!$C$15,J18),IFERROR(SEARCH('[1]Критерии руб_рсч'!$C$16,J18),IFERROR(SEARCH('[1]Критерии руб_рсч'!$C$17,J18),IFERROR(SEARCH('[1]Критерии руб_рсч'!$C$18,J18),IFERROR(SEARCH('[1]Критерии руб_рсч'!$C$19,J18),IFERROR(SEARCH('[1]Критерии руб_рсч'!$C$20,J18),IFERROR(SEARCH('[1]Критерии руб_рсч'!$C$21,J18),IFERROR(SEARCH('[1]Критерии руб_рсч'!$C$22,J18),IFERROR(SEARCH('[1]Критерии руб_рсч'!$C$23,J18),IFERROR(SEARCH('[1]Критерии руб_рсч'!$C$24,J18),IFERROR(SEARCH('[1]Критерии руб_рсч'!$C$25,J18),IFERROR(SEARCH('[1]Критерии руб_рсч'!$C$26,J18),$AP$1))))))))))))))=$AP$1,\"-\",\"OK\")","v":"OK"},{"$f":"IF(IFERROR(SEARCH('[1]Критерии руб_рсч'!$C$28,J18),IFERROR(SEARCH('[1]Критерии руб_рсч'!$C$29,J18),IFERROR(SEARCH('[1]Критерии руб_рсч'!$C$30,J18),$AP$1)))=$AP$1,\"-\",\"OK\")","v":"-"},{"$f":"IF(IFERROR(SEARCH('[1]Критерии руб_рсч'!$C$32,J18),IFERROR(SEARCH('[1]Критерии руб_рсч'!$C$33,J18),IFERROR(SEARCH('[1]Критерии руб_рсч'!$C$34,J18),IFERROR(SEARCH('[1]Критерии руб_рсч'!$C$35,J18),IFERROR(SEARCH('[1]Критерии руб_рсч'!$C$36,J18),$AP$1)))))=$AP$1,\"-\",\"OK\")","v":"-"},{"$f":"IF(IFERROR(SEARCH('[1]Критерии руб_рсч'!$C$38,J18),IFERROR(SEARCH('[1]Критерии руб_рсч'!$C$39,J18),IFERROR(SEARCH('[1]Критерии руб_рсч'!$C$40,J18),IFERROR(SEARCH('[1]Критерии руб_рсч'!$C$41,J18),IFERROR(SEARCH('[1]Критерии руб_рсч'!$C$42,J18),IFERROR(SEARCH('[1]Критерии руб_рсч'!$C$43,J18),$AP$1))))))=$AP$1,\"-\",\"OK\")","v":"-"},{"$f":"IF(IFERROR(SEARCH('[1]Критерии руб_рсч'!$C$45,J18),IFERROR(SEARCH('[1]Критерии руб_рсч'!$C$46,J18),IFERROR(SEARCH('[1]Критерии руб_рсч'!$C$47,J18),IFERROR(SEARCH('[1]Критерии руб_рсч'!$C$48,J18),IFERROR(SEARCH('[1]Критерии руб_рсч'!$C$49,J18),IFERROR(SEARCH('[1]Критерии руб_рсч'!$C$50,J18),IFERROR(SEARCH('[1]Критерии руб_рсч'!$C$51,J18),$AP$1)))))))=$AP$1,\"-\",\"OK\")","v":"-"},{"$f":"IF(IFERROR(SEARCH('[1]Критерии руб_рсч'!$C$53,J18),$AP$1)=$AP$1,\"-\",\"OK\")","v":"-"},{"$f":"IF(IFERROR(SEARCH('[1]Критерии руб_рсч'!$C$55,J18),IFERROR(SEARCH('[1]Критерии руб_рсч'!$C$56,J18),IFERROR(SEARCH('[1]Критерии руб_рсч'!$C$57,J18),IFERROR(SEARCH('[1]Критерии руб_рсч'!$C$58,J18),IFERROR(SEARCH('[1]Критерии руб_рсч'!$C$59,J18),$AP$1)))))=$AP$1,\"-\",\"OK\")","v":"-"},{"$f":"IF(IFERROR(SEARCH('[1]Критерии руб_рсч'!$C$61,J18),IFERROR(SEARCH('[1]Критерии руб_рсч'!$C$62,J18),IFERROR(SEARCH('[1]Критерии руб_рсч'!$C$63,J18),IFERROR(SEARCH('[1]Критерии руб_рсч'!$C$64,J18),$AP$1))))=$AP$1,\"-\",\"OK\")","v":"-"},{"$f":"IF(IFERROR(SEARCH('[1]Критерии руб_рсч'!$C$66,J18),$AP$1)=$AP$1,\"-\",\"OK\")","v":"-"},{"$f":"IF(IFERROR(SEARCH('[1]Критерии руб_рсч'!$C$68,J18),IFERROR(SEARCH('[1]Критерии руб_рсч'!$C$69,J18),IFERROR(SEARCH('[1]Критерии руб_рсч'!$C$70,J18),IFERROR(SEARCH('[1]Критерии руб_рсч'!$C$71,J18),$AP$1))))=$AP$1,\"-\",\"OK\")","v":"-"},{"$f":"IF(IFERROR(SEARCH('[1]Критерии руб_рсч'!$C$73,J18),IFERROR(SEARCH('[1]Критерии руб_рсч'!$C$74,J18),IFERROR(SEARCH('[1]Критерии руб_рсч'!$C$75,J18),IFERROR(SEARCH('[1]Критерии руб_рсч'!$C$76,J18),$AP$1))))=$AP$1,\"-\",\"OK\")","v":"-"},{"$f":"IF(IFERROR(SEARCH('[1]Критерии руб_рсч'!$C$78,J18),IFERROR(SEARCH('[1]Критерии руб_рсч'!$C$79,J18),IFERROR(SEARCH('[1]Критерии руб_рсч'!$C$80,J18),IFERROR(SEARCH('[1]Критерии руб_рсч'!$C$81,J18),$AP$1))))=$AP$1,\"-\",\"OK\")","v":"-"},{"$f":"IF(IFERROR(SEARCH('[1]Критерии руб_рсч'!$C$83,J18),IFERROR(SEARCH('[1]Критерии руб_рсч'!$C$84,J18),$AP$1))=$AP$1,\"-\",\"OK\")","v":"-"},{"$f":"IF(IFERROR(SEARCH('[1]Критерии руб_рсч'!$C$86,J18),IFERROR(SEARCH('[1]Критерии руб_рсч'!$C$87,J18),IFERROR(SEARCH('[1]Критерии руб_рсч'!$C$88,J18),$AP$1)))=$AP$1,\"-\",\"OK\")","v":"-"},{"$f":"IF(IFERROR(SEARCH('[1]Критерии руб_рсч'!$C$90,J18),IFERROR(SEARCH('[1]Критерии руб_рсч'!$C$91,J18),IFERROR(SEARCH('[1]Критерии руб_рсч'!$C$92,J18),IFERROR(SEARCH('[1]Критерии руб_рсч'!$C$93,J18),$AP$1))))=$AP$1,\"-\",\"OK\")","v":"-"},{"$f":"IF(IFERROR(SEARCH('[1]Критерии руб_рсч'!$C$95,J18),IFERROR(SEARCH('[1]Критерии руб_рсч'!$C$96,J18),IFERROR(SEARCH('[1]Критерии руб_рсч'!$C$97,J18),IFERROR(SEARCH('[1]Критерии руб_рсч'!$C$98,J18),IFERROR(SEARCH('[1]Критерии руб_рсч'!$C$99,J18),IFERROR(SEARCH('[1]Критерии руб_рсч'!$C$100,J18),$AP$1))))))=$AP$1,\"-\",\"OK\")","v":"-"},{"$f":"IF(IFERROR(SEARCH('[1]Критерии руб_рсч'!$C$102,J18),IFERROR(SEARCH('[1]Критерии руб_рсч'!$C$103,J18),IFERROR(SEARCH('[1]Критерии руб_рсч'!$C$104,J18),IFERROR(SEARCH('[1]Критерии руб_рсч'!$C$105,J18),IFERROR(SEARCH('[1]Критерии руб_рсч'!$C$106,J18),IFERROR(SEARCH('[1]Критерии руб_рсч'!$C$107,J18),$AP$1))))))=$AP$1,\"-\",\"OK\")","v":"-"},{"$f":"IF(IFERROR(SEARCH('[1]Критерии руб_рсч'!$C$109,J18),IFERROR(SEARCH('[1]Критерии руб_рсч'!$C$109,J18),$AP$1))=$AP$1,\"-\",\"OK\")","v":"-"}]
["Солр4998","22.01.2015","Солид банк",0,9,null,null,null,"ЗАО \"СОЛИД БАНК\"","НДС за оказание услуги по Изготовлению и заверению копий документов в рамках оказания услуг клиенту, кроме накопительных счетов. Тариф 1.4.4","o",{"$f":"VLOOKUP(O19,[1]Справочник!$A$2:$B$44,2,0)","v":"опер"},1,2015,{"$f":"IFERROR(IF(T19=\"Оплата от покупателя\",\"income\",INDEX('Критерии руб_рсч'!$D$2:$D$91,MATCH(TRUE,ISNUMBER(SEARCH('Критерии руб_рсч'!$C$2:$C$91,рсч_руб!J19)),0))),\"other\")","v":"bank"},"руб.",1,2015,"Правда","Прочее списание",{"$f":"IF(IFERROR(SEARCH('[1]Критерии руб_рсч'!$C$2,J19),IFERROR(SEARCH('[1]Критерии руб_рсч'!$C$3,J19),IFERROR(SEARCH('[1]Критерии руб_рсч'!$C$4,J19),IFERROR(SEARCH('[1]Критерии руб_рсч'!$C$5,J19),IFERROR(SEARCH('[1]Критерии руб_рсч'!$C$6,J19),IFERROR(SEARCH('[1]Критерии руб_рсч'!$C$7,J19),IFERROR(SEARCH('[1]Критерии руб_рсч'!$C$8,J19),IFERROR(SEARCH('[1]Критерии руб_рсч'!$C$8,J19),IFERROR(SEARCH('[1]Критерии руб_рсч'!$C$10,J19),IFERROR(SEARCH('[1]Критерии руб_рсч'!$C$11,J19),\"-\"))))))))))=$AP$1,\"-\",\"OK\")","v":"-"},{"$f":"IF(IFERROR(SEARCH('[1]Критерии руб_рсч'!$C$13,J19),IFERROR(SEARCH('[1]Критерии руб_рсч'!$C$14,J19),IFERROR(SEARCH('[1]Критерии руб_рсч'!$C$15,J19),IFERROR(SEARCH('[1]Критерии руб_рсч'!$C$16,J19),IFERROR(SEARCH('[1]Критерии руб_рсч'!$C$17,J19),IFERROR(SEARCH('[1]Критерии руб_рсч'!$C$18,J19),IFERROR(SEARCH('[1]Критерии руб_рсч'!$C$19,J19),IFERROR(SEARCH('[1]Критерии руб_рсч'!$C$20,J19),IFERROR(SEARCH('[1]Критерии руб_рсч'!$C$21,J19),IFERROR(SEARCH('[1]Критерии руб_рсч'!$C$22,J19),IFERROR(SEARCH('[1]Критерии руб_рсч'!$C$23,J19),IFERROR(SEARCH('[1]Критерии руб_рсч'!$C$24,J19),IFERROR(SEARCH('[1]Критерии руб_рсч'!$C$25,J19),IFERROR(SEARCH('[1]Критерии руб_рсч'!$C$26,J19),$AP$1))))))))))))))=$AP$1,\"-\",\"OK\")","v":"OK"},{"$f":"IF(IFERROR(SEARCH('[1]Критерии руб_рсч'!$C$28,J19),IFERROR(SEARCH('[1]Критерии руб_рсч'!$C$29,J19),IFERROR(SEARCH('[1]Критерии руб_рсч'!$C$30,J19),$AP$1)))=$AP$1,\"-\",\"OK\")","v":"-"},{"$f":"IF(IFERROR(SEARCH('[1]Критерии руб_рсч'!$C$32,J19),IFERROR(SEARCH('[1]Критерии руб_рсч'!$C$33,J19),IFERROR(SEARCH('[1]Критерии руб_рсч'!$C$34,J19),IFERROR(SEARCH('[1]Критерии руб_рсч'!$C$35,J19),IFERROR(SEARCH('[1]Критерии руб_рсч'!$C$36,J19),$AP$1)))))=$AP$1,\"-\",\"OK\")","v":"-"},{"$f":"IF(IFERROR(SEARCH('[1]Критерии руб_рсч'!$C$38,J19),IFERROR(SEARCH('[1]Критерии руб_рсч'!$C$39,J19),IFERROR(SEARCH('[1]Критерии руб_рсч'!$C$40,J19),IFERROR(SEARCH('[1]Критерии руб_рсч'!$C$41,J19),IFERROR(SEARCH('[1]Критерии руб_рсч'!$C$42,J19),IFERROR(SEARCH('[1]Критерии руб_рсч'!$C$43,J19),$AP$1))))))=$AP$1,\"-\",\"OK\")","v":"-"},{"$f":"IF(IFERROR(SEARCH('[1]Критерии руб_рсч'!$C$45,J19),IFERROR(SEARCH('[1]Критерии руб_рсч'!$C$46,J19),IFERROR(SEARCH('[1]Критерии руб_рсч'!$C$47,J19),IFERROR(SEARCH('[1]Критерии руб_рсч'!$C$48,J19),IFERROR(SEARCH('[1]Критерии руб_рсч'!$C$49,J19),IFERROR(SEARCH('[1]Критерии руб_рсч'!$C$50,J19),IFERROR(SEARCH('[1]Критерии руб_рсч'!$C$51,J19),$AP$1)))))))=$AP$1,\"-\",\"OK\")","v":"-"},{"$f":"IF(IFERROR(SEARCH('[1]Критерии руб_рсч'!$C$53,J19),$AP$1)=$AP$1,\"-\",\"OK\")","v":"-"},{"$f":"IF(IFERROR(SEARCH('[1]Критерии руб_рсч'!$C$55,J19),IFERROR(SEARCH('[1]Критерии руб_рсч'!$C$56,J19),IFERROR(SEARCH('[1]Критерии руб_рсч'!$C$57,J19),IFERROR(SEARCH('[1]Критерии руб_рсч'!$C$58,J19),IFERROR(SEARCH('[1]Критерии руб_рсч'!$C$59,J19),$AP$1)))))=$AP$1,\"-\",\"OK\")","v":"-"},{"$f":"IF(IFERROR(SEARCH('[1]Критерии руб_рсч'!$C$61,J19),IFERROR(SEARCH('[1]Критерии руб_рсч'!$C$62,J19),IFERROR(SEARCH('[1]Критерии руб_рсч'!$C$63,J19),IFERROR(SEARCH('[1]Критерии руб_рсч'!$C$64,J19),$AP$1))))=$AP$1,\"-\",\"OK\")","v":"-"},{"$f":"IF(IFERROR(SEARCH('[1]Критерии руб_рсч'!$C$66,J19),$AP$1)=$AP$1,\"-\",\"OK\")","v":"-"},{"$f":"IF(IFERROR(SEARCH('[1]Критерии руб_рсч'!$C$68,J19),IFERROR(SEARCH('[1]Критерии руб_рсч'!$C$69,J19),IFERROR(SEARCH('[1]Критерии руб_рсч'!$C$70,J19),IFERROR(SEARCH('[1]Критерии руб_рсч'!$C$71,J19),$AP$1))))=$AP$1,\"-\",\"OK\")","v":"-"},{"$f":"IF(IFERROR(SEARCH('[1]Критерии руб_рсч'!$C$73,J19),IFERROR(SEARCH('[1]Критерии руб_рсч'!$C$74,J19),IFERROR(SEARCH('[1]Критерии руб_рсч'!$C$75,J19),IFERROR(SEARCH('[1]Критерии руб_рсч'!$C$76,J19),$AP$1))))=$AP$1,\"-\",\"OK\")","v":"-"},{"$f":"IF(IFERROR(SEARCH('[1]Критерии руб_рсч'!$C$78,J19),IFERROR(SEARCH('[1]Критерии руб_рсч'!$C$79,J19),IFERROR(SEARCH('[1]Критерии руб_рсч'!$C$80,J19),IFERROR(SEARCH('[1]Критерии руб_рсч'!$C$81,J19),$AP$1))))=$AP$1,\"-\",\"OK\")","v":"-"},{"$f":"IF(IFERROR(SEARCH('[1]Критерии руб_рсч'!$C$83,J19),IFERROR(SEARCH('[1]Критерии руб_рсч'!$C$84,J19),$AP$1))=$AP$1,\"-\",\"OK\")","v":"-"},{"$f":"IF(IFERROR(SEARCH('[1]Критерии руб_рсч'!$C$86,J19),IFERROR(SEARCH('[1]Критерии руб_рсч'!$C$87,J19),IFERROR(SEARCH('[1]Критерии руб_рсч'!$C$88,J19),$AP$1)))=$AP$1,\"-\",\"OK\")","v":"-"},{"$f":"IF(IFERROR(SEARCH('[1]Критерии руб_рсч'!$C$90,J19),IFERROR(SEARCH('[1]Критерии руб_рсч'!$C$91,J19),IFERROR(SEARCH('[1]Критерии руб_рсч'!$C$92,J19),IFERROR(SEARCH('[1]Критерии руб_рсч'!$C$93,J19),$AP$1))))=$AP$1,\"-\",\"OK\")","v":"-"},{"$f":"IF(IFERROR(SEARCH('[1]Критерии руб_рсч'!$C$95,J19),IFERROR(SEARCH('[1]Критерии руб_рсч'!$C$96,J19),IFERROR(SEARCH('[1]Критерии руб_рсч'!$C$97,J19),IFERROR(SEARCH('[1]Критерии руб_рсч'!$C$98,J19),IFERROR(SEARCH('[1]Критерии руб_рсч'!$C$99,J19),IFERROR(SEARCH('[1]Критерии руб_рсч'!$C$100,J19),$AP$1))))))=$AP$1,\"-\",\"OK\")","v":"-"},{"$f":"IF(IFERROR(SEARCH('[1]Критерии руб_рсч'!$C$102,J19),IFERROR(SEARCH('[1]Критерии руб_рсч'!$C$103,J19),IFERROR(SEARCH('[1]Критерии руб_рсч'!$C$104,J19),IFERROR(SEARCH('[1]Критерии руб_рсч'!$C$105,J19),IFERROR(SEARCH('[1]Критерии руб_рсч'!$C$106,J19),IFERROR(SEARCH('[1]Критерии руб_рсч'!$C$107,J19),$AP$1))))))=$AP$1,\"-\",\"OK\")","v":"-"},{"$f":"IF(IFERROR(SEARCH('[1]Критерии руб_рсч'!$C$109,J19),IFERROR(SEARCH('[1]Критерии руб_рсч'!$C$109,J19),$AP$1))=$AP$1,\"-\",\"OK\")","v":"-"}]
["Солр4999","22.01.2015","Солид банк",0,15,null,null,null,"ЗАО \"СОЛИД БАНК\"","Комиссионное вознаграждение Банка за исполн.функций валютного контроля, согласно Тарифам Банка. Распоряжение от 22.01.2015г","o",{"$f":"VLOOKUP(O20,[1]Справочник!$A$2:$B$44,2,0)","v":"опер"},1,2015,{"$f":"IFERROR(IF(T20=\"Оплата от покупателя\",\"income\",INDEX('Критерии руб_рсч'!$D$2:$D$91,MATCH(TRUE,ISNUMBER(SEARCH('Критерии руб_рсч'!$C$2:$C$91,рсч_руб!J20)),0))),\"other\")","v":"bank"},"руб.",1,2015,"Правда","Прочее списание",{"$f":"IF(IFERROR(SEARCH('[1]Критерии руб_рсч'!$C$2,J20),IFERROR(SEARCH('[1]Критерии руб_рсч'!$C$3,J20),IFERROR(SEARCH('[1]Критерии руб_рсч'!$C$4,J20),IFERROR(SEARCH('[1]Критерии руб_рсч'!$C$5,J20),IFERROR(SEARCH('[1]Критерии руб_рсч'!$C$6,J20),IFERROR(SEARCH('[1]Критерии руб_рсч'!$C$7,J20),IFERROR(SEARCH('[1]Критерии руб_рсч'!$C$8,J20),IFERROR(SEARCH('[1]Критерии руб_рсч'!$C$8,J20),IFERROR(SEARCH('[1]Критерии руб_рсч'!$C$10,J20),IFERROR(SEARCH('[1]Критерии руб_рсч'!$C$11,J20),\"-\"))))))))))=$AP$1,\"-\",\"OK\")","v":"-"},{"$f":"IF(IFERROR(SEARCH('[1]Критерии руб_рсч'!$C$13,J20),IFERROR(SEARCH('[1]Критерии руб_рсч'!$C$14,J20),IFERROR(SEARCH('[1]Критерии руб_рсч'!$C$15,J20),IFERROR(SEARCH('[1]Критерии руб_рсч'!$C$16,J20),IFERROR(SEARCH('[1]Критерии руб_рсч'!$C$17,J20),IFERROR(SEARCH('[1]Критерии руб_рсч'!$C$18,J20),IFERROR(SEARCH('[1]Критерии руб_рсч'!$C$19,J20),IFERROR(SEARCH('[1]Критерии руб_рсч'!$C$20,J20),IFERROR(SEARCH('[1]Критерии руб_рсч'!$C$21,J20),IFERROR(SEARCH('[1]Критерии руб_рсч'!$C$22,J20),IFERROR(SEARCH('[1]Критерии руб_рсч'!$C$23,J20),IFERROR(SEARCH('[1]Критерии руб_рсч'!$C$24,J20),IFERROR(SEARCH('[1]Критерии руб_рсч'!$C$25,J20),IFERROR(SEARCH('[1]Критерии руб_рсч'!$C$26,J20),$AP$1))))))))))))))=$AP$1,\"-\",\"OK\")","v":"OK"},{"$f":"IF(IFERROR(SEARCH('[1]Критерии руб_рсч'!$C$28,J20),IFERROR(SEARCH('[1]Критерии руб_рсч'!$C$29,J20),IFERROR(SEARCH('[1]Критерии руб_рсч'!$C$30,J20),$AP$1)))=$AP$1,\"-\",\"OK\")","v":"-"},{"$f":"IF(IFERROR(SEARCH('[1]Критерии руб_рсч'!$C$32,J20),IFERROR(SEARCH('[1]Критерии руб_рсч'!$C$33,J20),IFERROR(SEARCH('[1]Критерии руб_рсч'!$C$34,J20),IFERROR(SEARCH('[1]Критерии руб_рсч'!$C$35,J20),IFERROR(SEARCH('[1]Критерии руб_рсч'!$C$36,J20),$AP$1)))))=$AP$1,\"-\",\"OK\")","v":"-"},{"$f":"IF(IFERROR(SEARCH('[1]Критерии руб_рсч'!$C$38,J20),IFERROR(SEARCH('[1]Критерии руб_рсч'!$C$39,J20),IFERROR(SEARCH('[1]Критерии руб_рсч'!$C$40,J20),IFERROR(SEARCH('[1]Критерии руб_рсч'!$C$41,J20),IFERROR(SEARCH('[1]Критерии руб_рсч'!$C$42,J20),IFERROR(SEARCH('[1]Критерии руб_рсч'!$C$43,J20),$AP$1))))))=$AP$1,\"-\",\"OK\")","v":"-"},{"$f":"IF(IFERROR(SEARCH('[1]Критерии руб_рсч'!$C$45,J20),IFERROR(SEARCH('[1]Критерии руб_рсч'!$C$46,J20),IFERROR(SEARCH('[1]Критерии руб_рсч'!$C$47,J20),IFERROR(SEARCH('[1]Критерии руб_рсч'!$C$48,J20),IFERROR(SEARCH('[1]Критерии руб_рсч'!$C$49,J20),IFERROR(SEARCH('[1]Критерии руб_рсч'!$C$50,J20),IFERROR(SEARCH('[1]Критерии руб_рсч'!$C$51,J20),$AP$1)))))))=$AP$1,\"-\",\"OK\")","v":"-"},{"$f":"IF(IFERROR(SEARCH('[1]Критерии руб_рсч'!$C$53,J20),$AP$1)=$AP$1,\"-\",\"OK\")","v":"-"},{"$f":"IF(IFERROR(SEARCH('[1]Критерии руб_рсч'!$C$55,J20),IFERROR(SEARCH('[1]Критерии руб_рсч'!$C$56,J20),IFERROR(SEARCH('[1]Критерии руб_рсч'!$C$57,J20),IFERROR(SEARCH('[1]Критерии руб_рсч'!$C$58,J20),IFERROR(SEARCH('[1]Критерии руб_рсч'!$C$59,J20),$AP$1)))))=$AP$1,\"-\",\"OK\")","v":"-"},{"$f":"IF(IFERROR(SEARCH('[1]Критерии руб_рсч'!$C$61,J20),IFERROR(SEARCH('[1]Критерии руб_рсч'!$C$62,J20),IFERROR(SEARCH('[1]Критерии руб_рсч'!$C$63,J20),IFERROR(SEARCH('[1]Критерии руб_рсч'!$C$64,J20),$AP$1))))=$AP$1,\"-\",\"OK\")","v":"-"},{"$f":"IF(IFERROR(SEARCH('[1]Критерии руб_рсч'!$C$66,J20),$AP$1)=$AP$1,\"-\",\"OK\")","v":"-"},{"$f":"IF(IFERROR(SEARCH('[1]Критерии руб_рсч'!$C$68,J20),IFERROR(SEARCH('[1]Критерии руб_рсч'!$C$69,J20),IFERROR(SEARCH('[1]Критерии руб_рсч'!$C$70,J20),IFERROR(SEARCH('[1]Критерии руб_рсч'!$C$71,J20),$AP$1))))=$AP$1,\"-\",\"OK\")","v":"-"},{"$f":"IF(IFERROR(SEARCH('[1]Критерии руб_рсч'!$C$73,J20),IFERROR(SEARCH('[1]Критерии руб_рсч'!$C$74,J20),IFERROR(SEARCH('[1]Критерии руб_рсч'!$C$75,J20),IFERROR(SEARCH('[1]Критерии руб_рсч'!$C$76,J20),$AP$1))))=$AP$1,\"-\",\"OK\")","v":"-"},{"$f":"IF(IFERROR(SEARCH('[1]Критерии руб_рсч'!$C$78,J20),IFERROR(SEARCH('[1]Критерии руб_рсч'!$C$79,J20),IFERROR(SEARCH('[1]Критерии руб_рсч'!$C$80,J20),IFERROR(SEARCH('[1]Критерии руб_рсч'!$C$81,J20),$AP$1))))=$AP$1,\"-\",\"OK\")","v":"-"},{"$f":"IF(IFERROR(SEARCH('[1]Критерии руб_рсч'!$C$83,J20),IFERROR(SEARCH('[1]Критерии руб_рсч'!$C$84,J20),$AP$1))=$AP$1,\"-\",\"OK\")","v":"-"},{"$f":"IF(IFERROR(SEARCH('[1]Критерии руб_рсч'!$C$86,J20),IFERROR(SEARCH('[1]Критерии руб_рсч'!$C$87,J20),IFERROR(SEARCH('[1]Критерии руб_рсч'!$C$88,J20),$AP$1)))=$AP$1,\"-\",\"OK\")","v":"-"},{"$f":"IF(IFERROR(SEARCH('[1]Критерии руб_рсч'!$C$90,J20),IFERROR(SEARCH('[1]Критерии руб_рсч'!$C$91,J20),IFERROR(SEARCH('[1]Критерии руб_рсч'!$C$92,J20),IFERROR(SEARCH('[1]Критерии руб_рсч'!$C$93,J20),$AP$1))))=$AP$1,\"-\",\"OK\")","v":"-"},{"$f":"IF(IFERROR(SEARCH('[1]Критерии руб_рсч'!$C$95,J20),IFERROR(SEARCH('[1]Критерии руб_рсч'!$C$96,J20),IFERROR(SEARCH('[1]Критерии руб_рсч'!$C$97,J20),IFERROR(SEARCH('[1]Критерии руб_рсч'!$C$98,J20),IFERROR(SEARCH('[1]Критерии руб_рсч'!$C$99,J20),IFERROR(SEARCH('[1]Критерии руб_рсч'!$C$100,J20),$AP$1))))))=$AP$1,\"-\",\"OK\")","v":"-"},{"$f":"IF(IFERROR(SEARCH('[1]Критерии руб_рсч'!$C$102,J20),IFERROR(SEARCH('[1]Критерии руб_рсч'!$C$103,J20),IFERROR(SEARCH('[1]Критерии руб_рсч'!$C$104,J20),IFERROR(SEARCH('[1]Критерии руб_рсч'!$C$105,J20),IFERROR(SEARCH('[1]Критерии руб_рсч'!$C$106,J20),IFERROR(SEARCH('[1]Критерии руб_рсч'!$C$107,J20),$AP$1))))))=$AP$1,\"-\",\"OK\")","v":"-"},{"$f":"IF(IFERROR(SEARCH('[1]Критерии руб_рсч'!$C$109,J20),IFERROR(SEARCH('[1]Критерии руб_рсч'!$C$109,J20),$AP$1))=$AP$1,\"-\",\"OK\")","v":"-"}]
["Солр5000","22.01.2015","Солид банк",0,25,null,null,null,"ЗАО \"СОЛИД БАНК\"","Комиссия за Перечисление денежных средств со счета Клиента в другие кредитные организации по платежным поручениям,  полученным по Системе Ibank2. Тариф 1.2.3.2","o",{"$f":"VLOOKUP(O21,[1]Справочник!$A$2:$B$44,2,0)","v":"опер"},1,2015,{"$f":"IFERROR(IF(T21=\"Оплата от покупателя\",\"income\",INDEX('Критерии руб_рсч'!$D$2:$D$91,MATCH(TRUE,ISNUMBER(SEARCH('Критерии руб_рсч'!$C$2:$C$91,рсч_руб!J21)),0))),\"other\")","v":"bank"},"руб.",1,2015,"Правда","Прочее списание",{"$f":"IF(IFERROR(SEARCH('[1]Критерии руб_рсч'!$C$2,J21),IFERROR(SEARCH('[1]Критерии руб_рсч'!$C$3,J21),IFERROR(SEARCH('[1]Критерии руб_рсч'!$C$4,J21),IFERROR(SEARCH('[1]Критерии руб_рсч'!$C$5,J21),IFERROR(SEARCH('[1]Критерии руб_рсч'!$C$6,J21),IFERROR(SEARCH('[1]Критерии руб_рсч'!$C$7,J21),IFERROR(SEARCH('[1]Критерии руб_рсч'!$C$8,J21),IFERROR(SEARCH('[1]Критерии руб_рсч'!$C$8,J21),IFERROR(SEARCH('[1]Критерии руб_рсч'!$C$10,J21),IFERROR(SEARCH('[1]Критерии руб_рсч'!$C$11,J21),\"-\"))))))))))=$AP$1,\"-\",\"OK\")","v":"-"},{"$f":"IF(IFERROR(SEARCH('[1]Критерии руб_рсч'!$C$13,J21),IFERROR(SEARCH('[1]Критерии руб_рсч'!$C$14,J21),IFERROR(SEARCH('[1]Критерии руб_рсч'!$C$15,J21),IFERROR(SEARCH('[1]Критерии руб_рсч'!$C$16,J21),IFERROR(SEARCH('[1]Критерии руб_рсч'!$C$17,J21),IFERROR(SEARCH('[1]Критерии руб_рсч'!$C$18,J21),IFERROR(SEARCH('[1]Критерии руб_рсч'!$C$19,J21),IFERROR(SEARCH('[1]Критерии руб_рсч'!$C$20,J21),IFERROR(SEARCH('[1]Критерии руб_рсч'!$C$21,J21),IFERROR(SEARCH('[1]Критерии руб_рсч'!$C$22,J21),IFERROR(SEARCH('[1]Критерии руб_рсч'!$C$23,J21),IFERROR(SEARCH('[1]Критерии руб_рсч'!$C$24,J21),IFERROR(SEARCH('[1]Критерии руб_рсч'!$C$25,J21),IFERROR(SEARCH('[1]Критерии руб_рсч'!$C$26,J21),$AP$1))))))))))))))=$AP$1,\"-\",\"OK\")","v":"OK"},{"$f":"IF(IFERROR(SEARCH('[1]Критерии руб_рсч'!$C$28,J21),IFERROR(SEARCH('[1]Критерии руб_рсч'!$C$29,J21),IFERROR(SEARCH('[1]Критерии руб_рсч'!$C$30,J21),$AP$1)))=$AP$1,\"-\",\"OK\")","v":"-"},{"$f":"IF(IFERROR(SEARCH('[1]Критерии руб_рсч'!$C$32,J21),IFERROR(SEARCH('[1]Критерии руб_рсч'!$C$33,J21),IFERROR(SEARCH('[1]Критерии руб_рсч'!$C$34,J21),IFERROR(SEARCH('[1]Критерии руб_рсч'!$C$35,J21),IFERROR(SEARCH('[1]Критерии руб_рсч'!$C$36,J21),$AP$1)))))=$AP$1,\"-\",\"OK\")","v":"-"},{"$f":"IF(IFERROR(SEARCH('[1]Критерии руб_рсч'!$C$38,J21),IFERROR(SEARCH('[1]Критерии руб_рсч'!$C$39,J21),IFERROR(SEARCH('[1]Критерии руб_рсч'!$C$40,J21),IFERROR(SEARCH('[1]Критерии руб_рсч'!$C$41,J21),IFERROR(SEARCH('[1]Критерии руб_рсч'!$C$42,J21),IFERROR(SEARCH('[1]Критерии руб_рсч'!$C$43,J21),$AP$1))))))=$AP$1,\"-\",\"OK\")","v":"-"},{"$f":"IF(IFERROR(SEARCH('[1]Критерии руб_рсч'!$C$45,J21),IFERROR(SEARCH('[1]Критерии руб_рсч'!$C$46,J21),IFERROR(SEARCH('[1]Критерии руб_рсч'!$C$47,J21),IFERROR(SEARCH('[1]Критерии руб_рсч'!$C$48,J21),IFERROR(SEARCH('[1]Критерии руб_рсч'!$C$49,J21),IFERROR(SEARCH('[1]Критерии руб_рсч'!$C$50,J21),IFERROR(SEARCH('[1]Критерии руб_рсч'!$C$51,J21),$AP$1)))))))=$AP$1,\"-\",\"OK\")","v":"-"},{"$f":"IF(IFERROR(SEARCH('[1]Критерии руб_рсч'!$C$53,J21),$AP$1)=$AP$1,\"-\",\"OK\")","v":"-"},{"$f":"IF(IFERROR(SEARCH('[1]Критерии руб_рсч'!$C$55,J21),IFERROR(SEARCH('[1]Критерии руб_рсч'!$C$56,J21),IFERROR(SEARCH('[1]Критерии руб_рсч'!$C$57,J21),IFERROR(SEARCH('[1]Критерии руб_рсч'!$C$58,J21),IFERROR(SEARCH('[1]Критерии руб_рсч'!$C$59,J21),$AP$1)))))=$AP$1,\"-\",\"OK\")","v":"-"},{"$f":"IF(IFERROR(SEARCH('[1]Критерии руб_рсч'!$C$61,J21),IFERROR(SEARCH('[1]Критерии руб_рсч'!$C$62,J21),IFERROR(SEARCH('[1]Критерии руб_рсч'!$C$63,J21),IFERROR(SEARCH('[1]Критерии руб_рсч'!$C$64,J21),$AP$1))))=$AP$1,\"-\",\"OK\")","v":"-"},{"$f":"IF(IFERROR(SEARCH('[1]Критерии руб_рсч'!$C$66,J21),$AP$1)=$AP$1,\"-\",\"OK\")","v":"-"},{"$f":"IF(IFERROR(SEARCH('[1]Критерии руб_рсч'!$C$68,J21),IFERROR(SEARCH('[1]Критерии руб_рсч'!$C$69,J21),IFERROR(SEARCH('[1]Критерии руб_рсч'!$C$70,J21),IFERROR(SEARCH('[1]Критерии руб_рсч'!$C$71,J21),$AP$1))))=$AP$1,\"-\",\"OK\")","v":"-"},{"$f":"IF(IFERROR(SEARCH('[1]Критерии руб_рсч'!$C$73,J21),IFERROR(SEARCH('[1]Критерии руб_рсч'!$C$74,J21),IFERROR(SEARCH('[1]Критерии руб_рсч'!$C$75,J21),IFERROR(SEARCH('[1]Критерии руб_рсч'!$C$76,J21),$AP$1))))=$AP$1,\"-\",\"OK\")","v":"-"},{"$f":"IF(IFERROR(SEARCH('[1]Критерии руб_рсч'!$C$78,J21),IFERROR(SEARCH('[1]Критерии руб_рсч'!$C$79,J21),IFERROR(SEARCH('[1]Критерии руб_рсч'!$C$80,J21),IFERROR(SEARCH('[1]Критерии руб_рсч'!$C$81,J21),$AP$1))))=$AP$1,\"-\",\"OK\")","v":"-"},{"$f":"IF(IFERROR(SEARCH('[1]Критерии руб_рсч'!$C$83,J21),IFERROR(SEARCH('[1]Критерии руб_рсч'!$C$84,J21),$AP$1))=$AP$1,\"-\",\"OK\")","v":"-"},{"$f":"IF(IFERROR(SEARCH('[1]Критерии руб_рсч'!$C$86,J21),IFERROR(SEARCH('[1]Критерии руб_рсч'!$C$87,J21),IFERROR(SEARCH('[1]Критерии руб_рсч'!$C$88,J21),$AP$1)))=$AP$1,\"-\",\"OK\")","v":"-"},{"$f":"IF(IFERROR(SEARCH('[1]Критерии руб_рсч'!$C$90,J21),IFERROR(SEARCH('[1]Критерии руб_рсч'!$C$91,J21),IFERROR(SEARCH('[1]Критерии руб_рсч'!$C$92,J21),IFERROR(SEARCH('[1]Критерии руб_рсч'!$C$93,J21),$AP$1))))=$AP$1,\"-\",\"OK\")","v":"-"},{"$f":"IF(IFERROR(SEARCH('[1]Критерии руб_рсч'!$C$95,J21),IFERROR(SEARCH('[1]Критерии руб_рсч'!$C$96,J21),IFERROR(SEARCH('[1]Критерии руб_рсч'!$C$97,J21),IFERROR(SEARCH('[1]Критерии руб_рсч'!$C$98,J21),IFERROR(SEARCH('[1]Критерии руб_рсч'!$C$99,J21),IFERROR(SEARCH('[1]Критерии руб_рсч'!$C$100,J21),$AP$1))))))=$AP$1,\"-\",\"OK\")","v":"-"},{"$f":"IF(IFERROR(SEARCH('[1]Критерии руб_рсч'!$C$102,J21),IFERROR(SEARCH('[1]Критерии руб_рсч'!$C$103,J21),IFERROR(SEARCH('[1]Критерии руб_рсч'!$C$104,J21),IFERROR(SEARCH('[1]Критерии руб_рсч'!$C$105,J21),IFERROR(SEARCH('[1]Критерии руб_рсч'!$C$106,J21),IFERROR(SEARCH('[1]Критерии руб_рсч'!$C$107,J21),$AP$1))))))=$AP$1,\"-\",\"OK\")","v":"-"},{"$f":"IF(IFERROR(SEARCH('[1]Критерии руб_рсч'!$C$109,J21),IFERROR(SEARCH('[1]Критерии руб_рсч'!$C$109,J21),$AP$1))=$AP$1,\"-\",\"OK\")","v":"-"}]
["Солр5001","22.01.2015","Солид банк",0,50,null,null,null,"ЗАО \"СОЛИД БАНК\"","Комиссия за оказание услуги по Изготовлению и заверению копий документов в рамках оказания услуг клиенту, кроме накопительных счетов. Тариф 1.4.4","o",{"$f":"VLOOKUP(O22,[1]Справочник!$A$2:$B$44,2,0)","v":"опер"},1,2015,{"$f":"IFERROR(IF(T22=\"Оплата от покупателя\",\"income\",INDEX('Критерии руб_рсч'!$D$2:$D$91,MATCH(TRUE,ISNUMBER(SEARCH('Критерии руб_рсч'!$C$2:$C$91,рсч_руб!J22)),0))),\"other\")","v":"bank"},"руб.",1,2015,"Правда","Прочее списание",{"$f":"IF(IFERROR(SEARCH('[1]Критерии руб_рсч'!$C$2,J22),IFERROR(SEARCH('[1]Критерии руб_рсч'!$C$3,J22),IFERROR(SEARCH('[1]Критерии руб_рсч'!$C$4,J22),IFERROR(SEARCH('[1]Критерии руб_рсч'!$C$5,J22),IFERROR(SEARCH('[1]Критерии руб_рсч'!$C$6,J22),IFERROR(SEARCH('[1]Критерии руб_рсч'!$C$7,J22),IFERROR(SEARCH('[1]Критерии руб_рсч'!$C$8,J22),IFERROR(SEARCH('[1]Критерии руб_рсч'!$C$8,J22),IFERROR(SEARCH('[1]Критерии руб_рсч'!$C$10,J22),IFERROR(SEARCH('[1]Критерии руб_рсч'!$C$11,J22),\"-\"))))))))))=$AP$1,\"-\",\"OK\")","v":"-"},{"$f":"IF(IFERROR(SEARCH('[1]Критерии руб_рсч'!$C$13,J22),IFERROR(SEARCH('[1]Критерии руб_рсч'!$C$14,J22),IFERROR(SEARCH('[1]Критерии руб_рсч'!$C$15,J22),IFERROR(SEARCH('[1]Критерии руб_рсч'!$C$16,J22),IFERROR(SEARCH('[1]Критерии руб_рсч'!$C$17,J22),IFERROR(SEARCH('[1]Критерии руб_рсч'!$C$18,J22),IFERROR(SEARCH('[1]Критерии руб_рсч'!$C$19,J22),IFERROR(SEARCH('[1]Критерии руб_рсч'!$C$20,J22),IFERROR(SEARCH('[1]Критерии руб_рсч'!$C$21,J22),IFERROR(SEARCH('[1]Критерии руб_рсч'!$C$22,J22),IFERROR(SEARCH('[1]Критерии руб_рсч'!$C$23,J22),IFERROR(SEARCH('[1]Критерии руб_рсч'!$C$24,J22),IFERROR(SEARCH('[1]Критерии руб_рсч'!$C$25,J22),IFERROR(SEARCH('[1]Критерии руб_рсч'!$C$26,J22),$AP$1))))))))))))))=$AP$1,\"-\",\"OK\")","v":"OK"},{"$f":"IF(IFERROR(SEARCH('[1]Критерии руб_рсч'!$C$28,J22),IFERROR(SEARCH('[1]Критерии руб_рсч'!$C$29,J22),IFERROR(SEARCH('[1]Критерии руб_рсч'!$C$30,J22),$AP$1)))=$AP$1,\"-\",\"OK\")","v":"-"},{"$f":"IF(IFERROR(SEARCH('[1]Критерии руб_рсч'!$C$32,J22),IFERROR(SEARCH('[1]Критерии руб_рсч'!$C$33,J22),IFERROR(SEARCH('[1]Критерии руб_рсч'!$C$34,J22),IFERROR(SEARCH('[1]Критерии руб_рсч'!$C$35,J22),IFERROR(SEARCH('[1]Критерии руб_рсч'!$C$36,J22),$AP$1)))))=$AP$1,\"-\",\"OK\")","v":"-"},{"$f":"IF(IFERROR(SEARCH('[1]Критерии руб_рсч'!$C$38,J22),IFERROR(SEARCH('[1]Критерии руб_рсч'!$C$39,J22),IFERROR(SEARCH('[1]Критерии руб_рсч'!$C$40,J22),IFERROR(SEARCH('[1]Критерии руб_рсч'!$C$41,J22),IFERROR(SEARCH('[1]Критерии руб_рсч'!$C$42,J22),IFERROR(SEARCH('[1]Критерии руб_рсч'!$C$43,J22),$AP$1))))))=$AP$1,\"-\",\"OK\")","v":"-"},{"$f":"IF(IFERROR(SEARCH('[1]Критерии руб_рсч'!$C$45,J22),IFERROR(SEARCH('[1]Критерии руб_рсч'!$C$46,J22),IFERROR(SEARCH('[1]Критерии руб_рсч'!$C$47,J22),IFERROR(SEARCH('[1]Критерии руб_рсч'!$C$48,J22),IFERROR(SEARCH('[1]Критерии руб_рсч'!$C$49,J22),IFERROR(SEARCH('[1]Критерии руб_рсч'!$C$50,J22),IFERROR(SEARCH('[1]Критерии руб_рсч'!$C$51,J22),$AP$1)))))))=$AP$1,\"-\",\"OK\")","v":"-"},{"$f":"IF(IFERROR(SEARCH('[1]Критерии руб_рсч'!$C$53,J22),$AP$1)=$AP$1,\"-\",\"OK\")","v":"-"},{"$f":"IF(IFERROR(SEARCH('[1]Критерии руб_рсч'!$C$55,J22),IFERROR(SEARCH('[1]Критерии руб_рсч'!$C$56,J22),IFERROR(SEARCH('[1]Критерии руб_рсч'!$C$57,J22),IFERROR(SEARCH('[1]Критерии руб_рсч'!$C$58,J22),IFERROR(SEARCH('[1]Критерии руб_рсч'!$C$59,J22),$AP$1)))))=$AP$1,\"-\",\"OK\")","v":"-"},{"$f":"IF(IFERROR(SEARCH('[1]Критерии руб_рсч'!$C$61,J22),IFERROR(SEARCH('[1]Критерии руб_рсч'!$C$62,J22),IFERROR(SEARCH('[1]Критерии руб_рсч'!$C$63,J22),IFERROR(SEARCH('[1]Критерии руб_рсч'!$C$64,J22),$AP$1))))=$AP$1,\"-\",\"OK\")","v":"-"},{"$f":"IF(IFERROR(SEARCH('[1]Критерии руб_рсч'!$C$66,J22),$AP$1)=$AP$1,\"-\",\"OK\")","v":"-"},{"$f":"IF(IFERROR(SEARCH('[1]Критерии руб_рсч'!$C$68,J22),IFERROR(SEARCH('[1]Критерии руб_рсч'!$C$69,J22),IFERROR(SEARCH('[1]Критерии руб_рсч'!$C$70,J22),IFERROR(SEARCH('[1]Критерии руб_рсч'!$C$71,J22),$AP$1))))=$AP$1,\"-\",\"OK\")","v":"-"},{"$f":"IF(IFERROR(SEARCH('[1]Критерии руб_рсч'!$C$73,J22),IFERROR(SEARCH('[1]Критерии руб_рсч'!$C$74,J22),IFERROR(SEARCH('[1]Критерии руб_рсч'!$C$75,J22),IFERROR(SEARCH('[1]Критерии руб_рсч'!$C$76,J22),$AP$1))))=$AP$1,\"-\",\"OK\")","v":"-"},{"$f":"IF(IFERROR(SEARCH('[1]Критерии руб_рсч'!$C$78,J22),IFERROR(SEARCH('[1]Критерии руб_рсч'!$C$79,J22),IFERROR(SEARCH('[1]Критерии руб_рсч'!$C$80,J22),IFERROR(SEARCH('[1]Критерии руб_рсч'!$C$81,J22),$AP$1))))=$AP$1,\"-\",\"OK\")","v":"-"},{"$f":"IF(IFERROR(SEARCH('[1]Критерии руб_рсч'!$C$83,J22),IFERROR(SEARCH('[1]Критерии руб_рсч'!$C$84,J22),$AP$1))=$AP$1,\"-\",\"OK\")","v":"-"},{"$f":"IF(IFERROR(SEARCH('[1]Критерии руб_рсч'!$C$86,J22),IFERROR(SEARCH('[1]Критерии руб_рсч'!$C$87,J22),IFERROR(SEARCH('[1]Критерии руб_рсч'!$C$88,J22),$AP$1)))=$AP$1,\"-\",\"OK\")","v":"-"},{"$f":"IF(IFERROR(SEARCH('[1]Критерии руб_рсч'!$C$90,J22),IFERROR(SEARCH('[1]Критерии руб_рсч'!$C$91,J22),IFERROR(SEARCH('[1]Критерии руб_рсч'!$C$92,J22),IFERROR(SEARCH('[1]Критерии руб_рсч'!$C$93,J22),$AP$1))))=$AP$1,\"-\",\"OK\")","v":"-"},{"$f":"IF(IFERROR(SEARCH('[1]Критерии руб_рсч'!$C$95,J22),IFERROR(SEARCH('[1]Критерии руб_рсч'!$C$96,J22),IFERROR(SEARCH('[1]Критерии руб_рсч'!$C$97,J22),IFERROR(SEARCH('[1]Критерии руб_рсч'!$C$98,J22),IFERROR(SEARCH('[1]Критерии руб_рсч'!$C$99,J22),IFERROR(SEARCH('[1]Критерии руб_рсч'!$C$100,J22),$AP$1))))))=$AP$1,\"-\",\"OK\")","v":"-"},{"$f":"IF(IFERROR(SEARCH('[1]Критерии руб_рсч'!$C$102,J22),IFERROR(SEARCH('[1]Критерии руб_рсч'!$C$103,J22),IFERROR(SEARCH('[1]Критерии руб_рсч'!$C$104,J22),IFERROR(SEARCH('[1]Критерии руб_рсч'!$C$105,J22),IFERROR(SEARCH('[1]Критерии руб_рсч'!$C$106,J22),IFERROR(SEARCH('[1]Критерии руб_рсч'!$C$107,J22),$AP$1))))))=$AP$1,\"-\",\"OK\")","v":"-"},{"$f":"IF(IFERROR(SEARCH('[1]Критерии руб_рсч'!$C$109,J22),IFERROR(SEARCH('[1]Критерии руб_рсч'!$C$109,J22),$AP$1))=$AP$1,\"-\",\"OK\")","v":"-"}]
["Солр5002","22.01.2015","Солид банк",0,15000,null,null,null,"SH","{VO42015} Возврат займа по договору беспроцентного денежного займа №1 от 23.06.2011  Сумма 15000 Без налога (НДС) Сумма 15000","o",{"$f":"VLOOKUP(O23,[1]Справочник!$A$2:$B$44,2,0)","v":"фин"},1,2015,{"$f":"IFERROR(IF(T23=\"Оплата от покупателя\",\"income\",INDEX('Критерии руб_рсч'!$D$2:$D$91,MATCH(TRUE,ISNUMBER(SEARCH('Критерии руб_рсч'!$C$2:$C$91,рсч_руб!J23)),0))),\"other\")","v":"фин"},"руб.",1,2015,"Правда","Расчеты по кредитам и займам",{"$f":"IF(IFERROR(SEARCH('[1]Критерии руб_рсч'!$C$2,J23),IFERROR(SEARCH('[1]Критерии руб_рсч'!$C$3,J23),IFERROR(SEARCH('[1]Критерии руб_рсч'!$C$4,J23),IFERROR(SEARCH('[1]Критерии руб_рсч'!$C$5,J23),IFERROR(SEARCH('[1]Критерии руб_рсч'!$C$6,J23),IFERROR(SEARCH('[1]Критерии руб_рсч'!$C$7,J23),IFERROR(SEARCH('[1]Критерии руб_рсч'!$C$8,J23),IFERROR(SEARCH('[1]Критерии руб_рсч'!$C$8,J23),IFERROR(SEARCH('[1]Критерии руб_рсч'!$C$10,J23),IFERROR(SEARCH('[1]Критерии руб_рсч'!$C$11,J23),\"-\"))))))))))=$AP$1,\"-\",\"OK\")","v":"OK"},{"$f":"IF(IFERROR(SEARCH('[1]Критерии руб_рсч'!$C$13,J23),IFERROR(SEARCH('[1]Критерии руб_рсч'!$C$14,J23),IFERROR(SEARCH('[1]Критерии руб_рсч'!$C$15,J23),IFERROR(SEARCH('[1]Критерии руб_рсч'!$C$16,J23),IFERROR(SEARCH('[1]Критерии руб_рсч'!$C$17,J23),IFERROR(SEARCH('[1]Критерии руб_рсч'!$C$18,J23),IFERROR(SEARCH('[1]Критерии руб_рсч'!$C$19,J23),IFERROR(SEARCH('[1]Критерии руб_рсч'!$C$20,J23),IFERROR(SEARCH('[1]Критерии руб_рсч'!$C$21,J23),IFERROR(SEARCH('[1]Критерии руб_рсч'!$C$22,J23),IFERROR(SEARCH('[1]Критерии руб_рсч'!$C$23,J23),IFERROR(SEARCH('[1]Критерии руб_рсч'!$C$24,J23),IFERROR(SEARCH('[1]Критерии руб_рсч'!$C$25,J23),IFERROR(SEARCH('[1]Критерии руб_рсч'!$C$26,J23),$AP$1))))))))))))))=$AP$1,\"-\",\"OK\")","v":"-"},{"$f":"IF(IFERROR(SEARCH('[1]Критерии руб_рсч'!$C$28,J23),IFERROR(SEARCH('[1]Критерии руб_рсч'!$C$29,J23),IFERROR(SEARCH('[1]Критерии руб_рсч'!$C$30,J23),$AP$1)))=$AP$1,\"-\",\"OK\")","v":"-"},{"$f":"IF(IFERROR(SEARCH('[1]Критерии руб_рсч'!$C$32,J23),IFERROR(SEARCH('[1]Критерии руб_рсч'!$C$33,J23),IFERROR(SEARCH('[1]Критерии руб_рсч'!$C$34,J23),IFERROR(SEARCH('[1]Критерии руб_рсч'!$C$35,J23),IFERROR(SEARCH('[1]Критерии руб_рсч'!$C$36,J23),$AP$1)))))=$AP$1,\"-\",\"OK\")","v":"-"},{"$f":"IF(IFERROR(SEARCH('[1]Критерии руб_рсч'!$C$38,J23),IFERROR(SEARCH('[1]Критерии руб_рсч'!$C$39,J23),IFERROR(SEARCH('[1]Критерии руб_рсч'!$C$40,J23),IFERROR(SEARCH('[1]Критерии руб_рсч'!$C$41,J23),IFERROR(SEARCH('[1]Критерии руб_рсч'!$C$42,J23),IFERROR(SEARCH('[1]Критерии руб_рсч'!$C$43,J23),$AP$1))))))=$AP$1,\"-\",\"OK\")","v":"-"},{"$f":"IF(IFERROR(SEARCH('[1]Критерии руб_рсч'!$C$45,J23),IFERROR(SEARCH('[1]Критерии руб_рсч'!$C$46,J23),IFERROR(SEARCH('[1]Критерии руб_рсч'!$C$47,J23),IFERROR(SEARCH('[1]Критерии руб_рсч'!$C$48,J23),IFERROR(SEARCH('[1]Критерии руб_рсч'!$C$49,J23),IFERROR(SEARCH('[1]Критерии руб_рсч'!$C$50,J23),IFERROR(SEARCH('[1]Критерии руб_рсч'!$C$51,J23),$AP$1)))))))=$AP$1,\"-\",\"OK\")","v":"-"},{"$f":"IF(IFERROR(SEARCH('[1]Критерии руб_рсч'!$C$53,J23),$AP$1)=$AP$1,\"-\",\"OK\")","v":"-"},{"$f":"IF(IFERROR(SEARCH('[1]Критерии руб_рсч'!$C$55,J23),IFERROR(SEARCH('[1]Критерии руб_рсч'!$C$56,J23),IFERROR(SEARCH('[1]Критерии руб_рсч'!$C$57,J23),IFERROR(SEARCH('[1]Критерии руб_рсч'!$C$58,J23),IFERROR(SEARCH('[1]Критерии руб_рсч'!$C$59,J23),$AP$1)))))=$AP$1,\"-\",\"OK\")","v":"-"},{"$f":"IF(IFERROR(SEARCH('[1]Критерии руб_рсч'!$C$61,J23),IFERROR(SEARCH('[1]Критерии руб_рсч'!$C$62,J23),IFERROR(SEARCH('[1]Критерии руб_рсч'!$C$63,J23),IFERROR(SEARCH('[1]Критерии руб_рсч'!$C$64,J23),$AP$1))))=$AP$1,\"-\",\"OK\")","v":"-"},{"$f":"IF(IFERROR(SEARCH('[1]Критерии руб_рсч'!$C$66,J23),$AP$1)=$AP$1,\"-\",\"OK\")","v":"-"},{"$f":"IF(IFERROR(SEARCH('[1]Критерии руб_рсч'!$C$68,J23),IFERROR(SEARCH('[1]Критерии руб_рсч'!$C$69,J23),IFERROR(SEARCH('[1]Критерии руб_рсч'!$C$70,J23),IFERROR(SEARCH('[1]Критерии руб_рсч'!$C$71,J23),$AP$1))))=$AP$1,\"-\",\"OK\")","v":"-"},{"$f":"IF(IFERROR(SEARCH('[1]Критерии руб_рсч'!$C$73,J23),IFERROR(SEARCH('[1]Критерии руб_рсч'!$C$74,J23),IFERROR(SEARCH('[1]Критерии руб_рсч'!$C$75,J23),IFERROR(SEARCH('[1]Критерии руб_рсч'!$C$76,J23),$AP$1))))=$AP$1,\"-\",\"OK\")","v":"-"},{"$f":"IF(IFERROR(SEARCH('[1]Критерии руб_рсч'!$C$78,J23),IFERROR(SEARCH('[1]Критерии руб_рсч'!$C$79,J23),IFERROR(SEARCH('[1]Критерии руб_рсч'!$C$80,J23),IFERROR(SEARCH('[1]Критерии руб_рсч'!$C$81,J23),$AP$1))))=$AP$1,\"-\",\"OK\")","v":"-"},{"$f":"IF(IFERROR(SEARCH('[1]Критерии руб_рсч'!$C$83,J23),IFERROR(SEARCH('[1]Критерии руб_рсч'!$C$84,J23),$AP$1))=$AP$1,\"-\",\"OK\")","v":"-"},{"$f":"IF(IFERROR(SEARCH('[1]Критерии руб_рсч'!$C$86,J23),IFERROR(SEARCH('[1]Критерии руб_рсч'!$C$87,J23),IFERROR(SEARCH('[1]Критерии руб_рсч'!$C$88,J23),$AP$1)))=$AP$1,\"-\",\"OK\")","v":"-"},{"$f":"IF(IFERROR(SEARCH('[1]Критерии руб_рсч'!$C$90,J23),IFERROR(SEARCH('[1]Критерии руб_рсч'!$C$91,J23),IFERROR(SEARCH('[1]Критерии руб_рсч'!$C$92,J23),IFERROR(SEARCH('[1]Критерии руб_рсч'!$C$93,J23),$AP$1))))=$AP$1,\"-\",\"OK\")","v":"-"},{"$f":"IF(IFERROR(SEARCH('[1]Критерии руб_рсч'!$C$95,J23),IFERROR(SEARCH('[1]Критерии руб_рсч'!$C$96,J23),IFERROR(SEARCH('[1]Критерии руб_рсч'!$C$97,J23),IFERROR(SEARCH('[1]Критерии руб_рсч'!$C$98,J23),IFERROR(SEARCH('[1]Критерии руб_рсч'!$C$99,J23),IFERROR(SEARCH('[1]Критерии руб_рсч'!$C$100,J23),$AP$1))))))=$AP$1,\"-\",\"OK\")","v":"-"},{"$f":"IF(IFERROR(SEARCH('[1]Критерии руб_рсч'!$C$102,J23),IFERROR(SEARCH('[1]Критерии руб_рсч'!$C$103,J23),IFERROR(SEARCH('[1]Критерии руб_рсч'!$C$104,J23),IFERROR(SEARCH('[1]Критерии руб_рсч'!$C$105,J23),IFERROR(SEARCH('[1]Критерии руб_рсч'!$C$106,J23),IFERROR(SEARCH('[1]Критерии руб_рсч'!$C$107,J23),$AP$1))))))=$AP$1,\"-\",\"OK\")","v":"-"},{"$f":"IF(IFERROR(SEARCH('[1]Критерии руб_рсч'!$C$109,J23),IFERROR(SEARCH('[1]Критерии руб_рсч'!$C$109,J23),$AP$1))=$AP$1,\"-\",\"OK\")","v":"-"}]
["Солр5003","26.01.2015","Солид банк",5100,0,null,null,null,"ЧОП \"СБС\"","Оплата по счету 11875 от 13.01.2015., Сумма: 5100-00, НДС не облагается.","o",{"$f":"VLOOKUP(O24,[1]Справочник!$A$2:$B$44,2,0)","v":"опер"},1,2015,{"$f":"IFERROR(IF(T24=\"Оплата от покупателя\",\"income\",INDEX('Критерии руб_рсч'!$D$2:$D$91,MATCH(TRUE,ISNUMBER(SEARCH('Критерии руб_рсч'!$C$2:$C$91,рсч_руб!J24)),0))),\"other\")","v":"income"},"руб.",1,2015,"Правда","Оплата от покупателя",{"$f":"IF(IFERROR(SEARCH('[1]Критерии руб_рсч'!$C$2,J24),IFERROR(SEARCH('[1]Критерии руб_рсч'!$C$3,J24),IFERROR(SEARCH('[1]Критерии руб_рсч'!$C$4,J24),IFERROR(SEARCH('[1]Критерии руб_рсч'!$C$5,J24),IFERROR(SEARCH('[1]Критерии руб_рсч'!$C$6,J24),IFERROR(SEARCH('[1]Критерии руб_рсч'!$C$7,J24),IFERROR(SEARCH('[1]Критерии руб_рсч'!$C$8,J24),IFERROR(SEARCH('[1]Критерии руб_рсч'!$C$8,J24),IFERROR(SEARCH('[1]Критерии руб_рсч'!$C$10,J24),IFERROR(SEARCH('[1]Критерии руб_рсч'!$C$11,J24),\"-\"))))))))))=$AP$1,\"-\",\"OK\")","v":"-"},{"$f":"IF(IFERROR(SEARCH('[1]Критерии руб_рсч'!$C$13,J24),IFERROR(SEARCH('[1]Критерии руб_рсч'!$C$14,J24),IFERROR(SEARCH('[1]Критерии руб_рсч'!$C$15,J24),IFERROR(SEARCH('[1]Критерии руб_рсч'!$C$16,J24),IFERROR(SEARCH('[1]Критерии руб_рсч'!$C$17,J24),IFERROR(SEARCH('[1]Критерии руб_рсч'!$C$18,J24),IFERROR(SEARCH('[1]Критерии руб_рсч'!$C$19,J24),IFERROR(SEARCH('[1]Критерии руб_рсч'!$C$20,J24),IFERROR(SEARCH('[1]Критерии руб_рсч'!$C$21,J24),IFERROR(SEARCH('[1]Критерии руб_рсч'!$C$22,J24),IFERROR(SEARCH('[1]Критерии руб_рсч'!$C$23,J24),IFERROR(SEARCH('[1]Критерии руб_рсч'!$C$24,J24),IFERROR(SEARCH('[1]Критерии руб_рсч'!$C$25,J24),IFERROR(SEARCH('[1]Критерии руб_рсч'!$C$26,J24),$AP$1))))))))))))))=$AP$1,\"-\",\"OK\")","v":"-"},{"$f":"IF(IFERROR(SEARCH('[1]Критерии руб_рсч'!$C$28,J24),IFERROR(SEARCH('[1]Критерии руб_рсч'!$C$29,J24),IFERROR(SEARCH('[1]Критерии руб_рсч'!$C$30,J24),$AP$1)))=$AP$1,\"-\",\"OK\")","v":"-"},{"$f":"IF(IFERROR(SEARCH('[1]Критерии руб_рсч'!$C$32,J24),IFERROR(SEARCH('[1]Критерии руб_рсч'!$C$33,J24),IFERROR(SEARCH('[1]Критерии руб_рсч'!$C$34,J24),IFERROR(SEARCH('[1]Критерии руб_рсч'!$C$35,J24),IFERROR(SEARCH('[1]Критерии руб_рсч'!$C$36,J24),$AP$1)))))=$AP$1,\"-\",\"OK\")","v":"-"},{"$f":"IF(IFERROR(SEARCH('[1]Критерии руб_рсч'!$C$38,J24),IFERROR(SEARCH('[1]Критерии руб_рсч'!$C$39,J24),IFERROR(SEARCH('[1]Критерии руб_рсч'!$C$40,J24),IFERROR(SEARCH('[1]Критерии руб_рсч'!$C$41,J24),IFERROR(SEARCH('[1]Критерии руб_рсч'!$C$42,J24),IFERROR(SEARCH('[1]Критерии руб_рсч'!$C$43,J24),$AP$1))))))=$AP$1,\"-\",\"OK\")","v":"-"},{"$f":"IF(IFERROR(SEARCH('[1]Критерии руб_рсч'!$C$45,J24),IFERROR(SEARCH('[1]Критерии руб_рсч'!$C$46,J24),IFERROR(SEARCH('[1]Критерии руб_рсч'!$C$47,J24),IFERROR(SEARCH('[1]Критерии руб_рсч'!$C$48,J24),IFERROR(SEARCH('[1]Критерии руб_рсч'!$C$49,J24),IFERROR(SEARCH('[1]Критерии руб_рсч'!$C$50,J24),IFERROR(SEARCH('[1]Критерии руб_рсч'!$C$51,J24),$AP$1)))))))=$AP$1,\"-\",\"OK\")","v":"-"},{"$f":"IF(IFERROR(SEARCH('[1]Критерии руб_рсч'!$C$53,J24),$AP$1)=$AP$1,\"-\",\"OK\")","v":"-"},{"$f":"IF(IFERROR(SEARCH('[1]Критерии руб_рсч'!$C$55,J24),IFERROR(SEARCH('[1]Критерии руб_рсч'!$C$56,J24),IFERROR(SEARCH('[1]Критерии руб_рсч'!$C$57,J24),IFERROR(SEARCH('[1]Критерии руб_рсч'!$C$58,J24),IFERROR(SEARCH('[1]Критерии руб_рсч'!$C$59,J24),$AP$1)))))=$AP$1,\"-\",\"OK\")","v":"-"},{"$f":"IF(IFERROR(SEARCH('[1]Критерии руб_рсч'!$C$61,J24),IFERROR(SEARCH('[1]Критерии руб_рсч'!$C$62,J24),IFERROR(SEARCH('[1]Критерии руб_рсч'!$C$63,J24),IFERROR(SEARCH('[1]Критерии руб_рсч'!$C$64,J24),$AP$1))))=$AP$1,\"-\",\"OK\")","v":"-"},{"$f":"IF(IFERROR(SEARCH('[1]Критерии руб_рсч'!$C$66,J24),$AP$1)=$AP$1,\"-\",\"OK\")","v":"-"},{"$f":"IF(IFERROR(SEARCH('[1]Критерии руб_рсч'!$C$68,J24),IFERROR(SEARCH('[1]Критерии руб_рсч'!$C$69,J24),IFERROR(SEARCH('[1]Критерии руб_рсч'!$C$70,J24),IFERROR(SEARCH('[1]Критерии руб_рсч'!$C$71,J24),$AP$1))))=$AP$1,\"-\",\"OK\")","v":"-"},{"$f":"IF(IFERROR(SEARCH('[1]Критерии руб_рсч'!$C$73,J24),IFERROR(SEARCH('[1]Критерии руб_рсч'!$C$74,J24),IFERROR(SEARCH('[1]Критерии руб_рсч'!$C$75,J24),IFERROR(SEARCH('[1]Критерии руб_рсч'!$C$76,J24),$AP$1))))=$AP$1,\"-\",\"OK\")","v":"-"},{"$f":"IF(IFERROR(SEARCH('[1]Критерии руб_рсч'!$C$78,J24),IFERROR(SEARCH('[1]Критерии руб_рсч'!$C$79,J24),IFERROR(SEARCH('[1]Критерии руб_рсч'!$C$80,J24),IFERROR(SEARCH('[1]Критерии руб_рсч'!$C$81,J24),$AP$1))))=$AP$1,\"-\",\"OK\")","v":"-"},{"$f":"IF(IFERROR(SEARCH('[1]Критерии руб_рсч'!$C$83,J24),IFERROR(SEARCH('[1]Критерии руб_рсч'!$C$84,J24),$AP$1))=$AP$1,\"-\",\"OK\")","v":"-"},{"$f":"IF(IFERROR(SEARCH('[1]Критерии руб_рсч'!$C$86,J24),IFERROR(SEARCH('[1]Критерии руб_рсч'!$C$87,J24),IFERROR(SEARCH('[1]Критерии руб_рсч'!$C$88,J24),$AP$1)))=$AP$1,\"-\",\"OK\")","v":"-"},{"$f":"IF(IFERROR(SEARCH('[1]Критерии руб_рсч'!$C$90,J24),IFERROR(SEARCH('[1]Критерии руб_рсч'!$C$91,J24),IFERROR(SEARCH('[1]Критерии руб_рсч'!$C$92,J24),IFERROR(SEARCH('[1]Критерии руб_рсч'!$C$93,J24),$AP$1))))=$AP$1,\"-\",\"OK\")","v":"-"},{"$f":"IF(IFERROR(SEARCH('[1]Критерии руб_рсч'!$C$95,J24),IFERROR(SEARCH('[1]Критерии руб_рсч'!$C$96,J24),IFERROR(SEARCH('[1]Критерии руб_рсч'!$C$97,J24),IFERROR(SEARCH('[1]Критерии руб_рсч'!$C$98,J24),IFERROR(SEARCH('[1]Критерии руб_рсч'!$C$99,J24),IFERROR(SEARCH('[1]Критерии руб_рсч'!$C$100,J24),$AP$1))))))=$AP$1,\"-\",\"OK\")","v":"-"},{"$f":"IF(IFERROR(SEARCH('[1]Критерии руб_рсч'!$C$102,J24),IFERROR(SEARCH('[1]Критерии руб_рсч'!$C$103,J24),IFERROR(SEARCH('[1]Критерии руб_рсч'!$C$104,J24),IFERROR(SEARCH('[1]Критерии руб_рсч'!$C$105,J24),IFERROR(SEARCH('[1]Критерии руб_рсч'!$C$106,J24),IFERROR(SEARCH('[1]Критерии руб_рсч'!$C$107,J24),$AP$1))))))=$AP$1,\"-\",\"OK\")","v":"-"},{"$f":"IF(IFERROR(SEARCH('[1]Критерии руб_рсч'!$C$109,J24),IFERROR(SEARCH('[1]Критерии руб_рсч'!$C$109,J24),$AP$1))=$AP$1,\"-\",\"OK\")","v":"-"}]
["Солр5004","26.01.2015","Солид банк",52200,0,null,null,null,"РОССКОР ХОЛДИНГ Б.В","{VO20100} Оплата по счету №11951 от 16.01.2015г. за складские услуги В101 с 01.02. по 31.07.15. НДС не облагается.","o",{"$f":"VLOOKUP(O25,[1]Справочник!$A$2:$B$44,2,0)","v":"опер"},1,2015,{"$f":"IFERROR(IF(T25=\"Оплата от покупателя\",\"income\",INDEX('Критерии руб_рсч'!$D$2:$D$91,MATCH(TRUE,ISNUMBER(SEARCH('Критерии руб_рсч'!$C$2:$C$91,рсч_руб!J25)),0))),\"other\")","v":"income"},"руб.",1,2015,"Правда","Оплата от покупателя",{"$f":"IF(IFERROR(SEARCH('[1]Критерии руб_рсч'!$C$2,J25),IFERROR(SEARCH('[1]Критерии руб_рсч'!$C$3,J25),IFERROR(SEARCH('[1]Критерии руб_рсч'!$C$4,J25),IFERROR(SEARCH('[1]Критерии руб_рсч'!$C$5,J25),IFERROR(SEARCH('[1]Критерии руб_рсч'!$C$6,J25),IFERROR(SEARCH('[1]Критерии руб_рсч'!$C$7,J25),IFERROR(SEARCH('[1]Критерии руб_рсч'!$C$8,J25),IFERROR(SEARCH('[1]Критерии руб_рсч'!$C$8,J25),IFERROR(SEARCH('[1]Критерии руб_рсч'!$C$10,J25),IFERROR(SEARCH('[1]Критерии руб_рсч'!$C$11,J25),\"-\"))))))))))=$AP$1,\"-\",\"OK\")","v":"-"},{"$f":"IF(IFERROR(SEARCH('[1]Критерии руб_рсч'!$C$13,J25),IFERROR(SEARCH('[1]Критерии руб_рсч'!$C$14,J25),IFERROR(SEARCH('[1]Критерии руб_рсч'!$C$15,J25),IFERROR(SEARCH('[1]Критерии руб_рсч'!$C$16,J25),IFERROR(SEARCH('[1]Критерии руб_рсч'!$C$17,J25),IFERROR(SEARCH('[1]Критерии руб_рсч'!$C$18,J25),IFERROR(SEARCH('[1]Критерии руб_рсч'!$C$19,J25),IFERROR(SEARCH('[1]Критерии руб_рсч'!$C$20,J25),IFERROR(SEARCH('[1]Критерии руб_рсч'!$C$21,J25),IFERROR(SEARCH('[1]Критерии руб_рсч'!$C$22,J25),IFERROR(SEARCH('[1]Критерии руб_рсч'!$C$23,J25),IFERROR(SEARCH('[1]Критерии руб_рсч'!$C$24,J25),IFERROR(SEARCH('[1]Критерии руб_рсч'!$C$25,J25),IFERROR(SEARCH('[1]Критерии руб_рсч'!$C$26,J25),$AP$1))))))))))))))=$AP$1,\"-\",\"OK\")","v":"-"},{"$f":"IF(IFERROR(SEARCH('[1]Критерии руб_рсч'!$C$28,J25),IFERROR(SEARCH('[1]Критерии руб_рсч'!$C$29,J25),IFERROR(SEARCH('[1]Критерии руб_рсч'!$C$30,J25),$AP$1)))=$AP$1,\"-\",\"OK\")","v":"-"},{"$f":"IF(IFERROR(SEARCH('[1]Критерии руб_рсч'!$C$32,J25),IFERROR(SEARCH('[1]Критерии руб_рсч'!$C$33,J25),IFERROR(SEARCH('[1]Критерии руб_рсч'!$C$34,J25),IFERROR(SEARCH('[1]Критерии руб_рсч'!$C$35,J25),IFERROR(SEARCH('[1]Критерии руб_рсч'!$C$36,J25),$AP$1)))))=$AP$1,\"-\",\"OK\")","v":"-"},{"$f":"IF(IFERROR(SEARCH('[1]Критерии руб_рсч'!$C$38,J25),IFERROR(SEARCH('[1]Критерии руб_рсч'!$C$39,J25),IFERROR(SEARCH('[1]Критерии руб_рсч'!$C$40,J25),IFERROR(SEARCH('[1]Критерии руб_рсч'!$C$41,J25),IFERROR(SEARCH('[1]Критерии руб_рсч'!$C$42,J25),IFERROR(SEARCH('[1]Критерии руб_рсч'!$C$43,J25),$AP$1))))))=$AP$1,\"-\",\"OK\")","v":"-"},{"$f":"IF(IFERROR(SEARCH('[1]Критерии руб_рсч'!$C$45,J25),IFERROR(SEARCH('[1]Критерии руб_рсч'!$C$46,J25),IFERROR(SEARCH('[1]Критерии руб_рсч'!$C$47,J25),IFERROR(SEARCH('[1]Критерии руб_рсч'!$C$48,J25),IFERROR(SEARCH('[1]Критерии руб_рсч'!$C$49,J25),IFERROR(SEARCH('[1]Критерии руб_рсч'!$C$50,J25),IFERROR(SEARCH('[1]Критерии руб_рсч'!$C$51,J25),$AP$1)))))))=$AP$1,\"-\",\"OK\")","v":"-"},{"$f":"IF(IFERROR(SEARCH('[1]Критерии руб_рсч'!$C$53,J25),$AP$1)=$AP$1,\"-\",\"OK\")","v":"-"},{"$f":"IF(IFERROR(SEARCH('[1]Критерии руб_рсч'!$C$55,J25),IFERROR(SEARCH('[1]Критерии руб_рсч'!$C$56,J25),IFERROR(SEARCH('[1]Критерии руб_рсч'!$C$57,J25),IFERROR(SEARCH('[1]Критерии руб_рсч'!$C$58,J25),IFERROR(SEARCH('[1]Критерии руб_рсч'!$C$59,J25),$AP$1)))))=$AP$1,\"-\",\"OK\")","v":"-"},{"$f":"IF(IFERROR(SEARCH('[1]Критерии руб_рсч'!$C$61,J25),IFERROR(SEARCH('[1]Критерии руб_рсч'!$C$62,J25),IFERROR(SEARCH('[1]Критерии руб_рсч'!$C$63,J25),IFERROR(SEARCH('[1]Критерии руб_рсч'!$C$64,J25),$AP$1))))=$AP$1,\"-\",\"OK\")","v":"-"},{"$f":"IF(IFERROR(SEARCH('[1]Критерии руб_рсч'!$C$66,J25),$AP$1)=$AP$1,\"-\",\"OK\")","v":"-"},{"$f":"IF(IFERROR(SEARCH('[1]Критерии руб_рсч'!$C$68,J25),IFERROR(SEARCH('[1]Критерии руб_рсч'!$C$69,J25),IFERROR(SEARCH('[1]Критерии руб_рсч'!$C$70,J25),IFERROR(SEARCH('[1]Критерии руб_рсч'!$C$71,J25),$AP$1))))=$AP$1,\"-\",\"OK\")","v":"-"},{"$f":"IF(IFERROR(SEARCH('[1]Критерии руб_рсч'!$C$73,J25),IFERROR(SEARCH('[1]Критерии руб_рсч'!$C$74,J25),IFERROR(SEARCH('[1]Критерии руб_рсч'!$C$75,J25),IFERROR(SEARCH('[1]Критерии руб_рсч'!$C$76,J25),$AP$1))))=$AP$1,\"-\",\"OK\")","v":"-"},{"$f":"IF(IFERROR(SEARCH('[1]Критерии руб_рсч'!$C$78,J25),IFERROR(SEARCH('[1]Критерии руб_рсч'!$C$79,J25),IFERROR(SEARCH('[1]Критерии руб_рсч'!$C$80,J25),IFERROR(SEARCH('[1]Критерии руб_рсч'!$C$81,J25),$AP$1))))=$AP$1,\"-\",\"OK\")","v":"-"},{"$f":"IF(IFERROR(SEARCH('[1]Критерии руб_рсч'!$C$83,J25),IFERROR(SEARCH('[1]Критерии руб_рсч'!$C$84,J25),$AP$1))=$AP$1,\"-\",\"OK\")","v":"-"},{"$f":"IF(IFERROR(SEARCH('[1]Критерии руб_рсч'!$C$86,J25),IFERROR(SEARCH('[1]Критерии руб_рсч'!$C$87,J25),IFERROR(SEARCH('[1]Критерии руб_рсч'!$C$88,J25),$AP$1)))=$AP$1,\"-\",\"OK\")","v":"-"},{"$f":"IF(IFERROR(SEARCH('[1]Критерии руб_рсч'!$C$90,J25),IFERROR(SEARCH('[1]Критерии руб_рсч'!$C$91,J25),IFERROR(SEARCH('[1]Критерии руб_рсч'!$C$92,J25),IFERROR(SEARCH('[1]Критерии руб_рсч'!$C$93,J25),$AP$1))))=$AP$1,\"-\",\"OK\")","v":"-"},{"$f":"IF(IFERROR(SEARCH('[1]Критерии руб_рсч'!$C$95,J25),IFERROR(SEARCH('[1]Критерии руб_рсч'!$C$96,J25),IFERROR(SEARCH('[1]Критерии руб_рсч'!$C$97,J25),IFERROR(SEARCH('[1]Критерии руб_рсч'!$C$98,J25),IFERROR(SEARCH('[1]Критерии руб_рсч'!$C$99,J25),IFERROR(SEARCH('[1]Критерии руб_рсч'!$C$100,J25),$AP$1))))))=$AP$1,\"-\",\"OK\")","v":"-"},{"$f":"IF(IFERROR(SEARCH('[1]Критерии руб_рсч'!$C$102,J25),IFERROR(SEARCH('[1]Критерии руб_рсч'!$C$103,J25),IFERROR(SEARCH('[1]Критерии руб_рсч'!$C$104,J25),IFERROR(SEARCH('[1]Критерии руб_рсч'!$C$105,J25),IFERROR(SEARCH('[1]Критерии руб_рсч'!$C$106,J25),IFERROR(SEARCH('[1]Критерии руб_рсч'!$C$107,J25),$AP$1))))))=$AP$1,\"-\",\"OK\")","v":"-"},{"$f":"IF(IFERROR(SEARCH('[1]Критерии руб_рсч'!$C$109,J25),IFERROR(SEARCH('[1]Критерии руб_рсч'!$C$109,J25),$AP$1))=$AP$1,\"-\",\"OK\")","v":"-"}]
["Солр5005","27.01.2015","Солид банк",9500,0,null,null,null,"АбсолютЭкспо","Оплата по счету № 11668 от 11/12/2014 за складские услуги с 1/010 по 31/01 2015 г.  НДС не облагается","o",{"$f":"VLOOKUP(O26,[1]Справочник!$A$2:$B$44,2,0)","v":"опер"},1,2015,{"$f":"IFERROR(IF(T26=\"Оплата от покупателя\",\"income\",INDEX('Критерии руб_рсч'!$D$2:$D$91,MATCH(TRUE,ISNUMBER(SEARCH('Критерии руб_рсч'!$C$2:$C$91,рсч_руб!J26)),0))),\"other\")","v":"income"},"руб.",1,2015,"Правда","Оплата от покупателя",{"$f":"IF(IFERROR(SEARCH('[1]Критерии руб_рсч'!$C$2,J26),IFERROR(SEARCH('[1]Критерии руб_рсч'!$C$3,J26),IFERROR(SEARCH('[1]Критерии руб_рсч'!$C$4,J26),IFERROR(SEARCH('[1]Критерии руб_рсч'!$C$5,J26),IFERROR(SEARCH('[1]Критерии руб_рсч'!$C$6,J26),IFERROR(SEARCH('[1]Критерии руб_рсч'!$C$7,J26),IFERROR(SEARCH('[1]Критерии руб_рсч'!$C$8,J26),IFERROR(SEARCH('[1]Критерии руб_рсч'!$C$8,J26),IFERROR(SEARCH('[1]Критерии руб_рсч'!$C$10,J26),IFERROR(SEARCH('[1]Критерии руб_рсч'!$C$11,J26),\"-\"))))))))))=$AP$1,\"-\",\"OK\")","v":"-"},{"$f":"IF(IFERROR(SEARCH('[1]Критерии руб_рсч'!$C$13,J26),IFERROR(SEARCH('[1]Критерии руб_рсч'!$C$14,J26),IFERROR(SEARCH('[1]Критерии руб_рсч'!$C$15,J26),IFERROR(SEARCH('[1]Критерии руб_рсч'!$C$16,J26),IFERROR(SEARCH('[1]Критерии руб_рсч'!$C$17,J26),IFERROR(SEARCH('[1]Критерии руб_рсч'!$C$18,J26),IFERROR(SEARCH('[1]Критерии руб_рсч'!$C$19,J26),IFERROR(SEARCH('[1]Критерии руб_рсч'!$C$20,J26),IFERROR(SEARCH('[1]Критерии руб_рсч'!$C$21,J26),IFERROR(SEARCH('[1]Критерии руб_рсч'!$C$22,J26),IFERROR(SEARCH('[1]Критерии руб_рсч'!$C$23,J26),IFERROR(SEARCH('[1]Критерии руб_рсч'!$C$24,J26),IFERROR(SEARCH('[1]Критерии руб_рсч'!$C$25,J26),IFERROR(SEARCH('[1]Критерии руб_рсч'!$C$26,J26),$AP$1))))))))))))))=$AP$1,\"-\",\"OK\")","v":"-"},{"$f":"IF(IFERROR(SEARCH('[1]Критерии руб_рсч'!$C$28,J26),IFERROR(SEARCH('[1]Критерии руб_рсч'!$C$29,J26),IFERROR(SEARCH('[1]Критерии руб_рсч'!$C$30,J26),$AP$1)))=$AP$1,\"-\",\"OK\")","v":"-"},{"$f":"IF(IFERROR(SEARCH('[1]Критерии руб_рсч'!$C$32,J26),IFERROR(SEARCH('[1]Критерии руб_рсч'!$C$33,J26),IFERROR(SEARCH('[1]Критерии руб_рсч'!$C$34,J26),IFERROR(SEARCH('[1]Критерии руб_рсч'!$C$35,J26),IFERROR(SEARCH('[1]Критерии руб_рсч'!$C$36,J26),$AP$1)))))=$AP$1,\"-\",\"OK\")","v":"-"},{"$f":"IF(IFERROR(SEARCH('[1]Критерии руб_рсч'!$C$38,J26),IFERROR(SEARCH('[1]Критерии руб_рсч'!$C$39,J26),IFERROR(SEARCH('[1]Критерии руб_рсч'!$C$40,J26),IFERROR(SEARCH('[1]Критерии руб_рсч'!$C$41,J26),IFERROR(SEARCH('[1]Критерии руб_рсч'!$C$42,J26),IFERROR(SEARCH('[1]Критерии руб_рсч'!$C$43,J26),$AP$1))))))=$AP$1,\"-\",\"OK\")","v":"-"},{"$f":"IF(IFERROR(SEARCH('[1]Критерии руб_рсч'!$C$45,J26),IFERROR(SEARCH('[1]Критерии руб_рсч'!$C$46,J26),IFERROR(SEARCH('[1]Критерии руб_рсч'!$C$47,J26),IFERROR(SEARCH('[1]Критерии руб_рсч'!$C$48,J26),IFERROR(SEARCH('[1]Критерии руб_рсч'!$C$49,J26),IFERROR(SEARCH('[1]Критерии руб_рсч'!$C$50,J26),IFERROR(SEARCH('[1]Критерии руб_рсч'!$C$51,J26),$AP$1)))))))=$AP$1,\"-\",\"OK\")","v":"-"},{"$f":"IF(IFERROR(SEARCH('[1]Критерии руб_рсч'!$C$53,J26),$AP$1)=$AP$1,\"-\",\"OK\")","v":"-"},{"$f":"IF(IFERROR(SEARCH('[1]Критерии руб_рсч'!$C$55,J26),IFERROR(SEARCH('[1]Критерии руб_рсч'!$C$56,J26),IFERROR(SEARCH('[1]Критерии руб_рсч'!$C$57,J26),IFERROR(SEARCH('[1]Критерии руб_рсч'!$C$58,J26),IFERROR(SEARCH('[1]Критерии руб_рсч'!$C$59,J26),$AP$1)))))=$AP$1,\"-\",\"OK\")","v":"-"},{"$f":"IF(IFERROR(SEARCH('[1]Критерии руб_рсч'!$C$61,J26),IFERROR(SEARCH('[1]Критерии руб_рсч'!$C$62,J26),IFERROR(SEARCH('[1]Критерии руб_рсч'!$C$63,J26),IFERROR(SEARCH('[1]Критерии руб_рсч'!$C$64,J26),$AP$1))))=$AP$1,\"-\",\"OK\")","v":"-"},{"$f":"IF(IFERROR(SEARCH('[1]Критерии руб_рсч'!$C$66,J26),$AP$1)=$AP$1,\"-\",\"OK\")","v":"-"},{"$f":"IF(IFERROR(SEARCH('[1]Критерии руб_рсч'!$C$68,J26),IFERROR(SEARCH('[1]Критерии руб_рсч'!$C$69,J26),IFERROR(SEARCH('[1]Критерии руб_рсч'!$C$70,J26),IFERROR(SEARCH('[1]Критерии руб_рсч'!$C$71,J26),$AP$1))))=$AP$1,\"-\",\"OK\")","v":"-"},{"$f":"IF(IFERROR(SEARCH('[1]Критерии руб_рсч'!$C$73,J26),IFERROR(SEARCH('[1]Критерии руб_рсч'!$C$74,J26),IFERROR(SEARCH('[1]Критерии руб_рсч'!$C$75,J26),IFERROR(SEARCH('[1]Критерии руб_рсч'!$C$76,J26),$AP$1))))=$AP$1,\"-\",\"OK\")","v":"-"},{"$f":"IF(IFERROR(SEARCH('[1]Критерии руб_рсч'!$C$78,J26),IFERROR(SEARCH('[1]Критерии руб_рсч'!$C$79,J26),IFERROR(SEARCH('[1]Критерии руб_рсч'!$C$80,J26),IFERROR(SEARCH('[1]Критерии руб_рсч'!$C$81,J26),$AP$1))))=$AP$1,\"-\",\"OK\")","v":"-"},{"$f":"IF(IFERROR(SEARCH('[1]Критерии руб_рсч'!$C$83,J26),IFERROR(SEARCH('[1]Критерии руб_рсч'!$C$84,J26),$AP$1))=$AP$1,\"-\",\"OK\")","v":"-"},{"$f":"IF(IFERROR(SEARCH('[1]Критерии руб_рсч'!$C$86,J26),IFERROR(SEARCH('[1]Критерии руб_рсч'!$C$87,J26),IFERROR(SEARCH('[1]Критерии руб_рсч'!$C$88,J26),$AP$1)))=$AP$1,\"-\",\"OK\")","v":"-"},{"$f":"IF(IFERROR(SEARCH('[1]Критерии руб_рсч'!$C$90,J26),IFERROR(SEARCH('[1]Критерии руб_рсч'!$C$91,J26),IFERROR(SEARCH('[1]Критерии руб_рсч'!$C$92,J26),IFERROR(SEARCH('[1]Критерии руб_рсч'!$C$93,J26),$AP$1))))=$AP$1,\"-\",\"OK\")","v":"-"},{"$f":"IF(IFERROR(SEARCH('[1]Критерии руб_рсч'!$C$95,J26),IFERROR(SEARCH('[1]Критерии руб_рсч'!$C$96,J26),IFERROR(SEARCH('[1]Критерии руб_рсч'!$C$97,J26),IFERROR(SEARCH('[1]Критерии руб_рсч'!$C$98,J26),IFERROR(SEARCH('[1]Критерии руб_рсч'!$C$99,J26),IFERROR(SEARCH('[1]Критерии руб_рсч'!$C$100,J26),$AP$1))))))=$AP$1,\"-\",\"OK\")","v":"-"},{"$f":"IF(IFERROR(SEARCH('[1]Критерии руб_рсч'!$C$102,J26),IFERROR(SEARCH('[1]Критерии руб_рсч'!$C$103,J26),IFERROR(SEARCH('[1]Критерии руб_рсч'!$C$104,J26),IFERROR(SEARCH('[1]Критерии руб_рсч'!$C$105,J26),IFERROR(SEARCH('[1]Критерии руб_рсч'!$C$106,J26),IFERROR(SEARCH('[1]Критерии руб_рсч'!$C$107,J26),$AP$1))))))=$AP$1,\"-\",\"OK\")","v":"-"},{"$f":"IF(IFERROR(SEARCH('[1]Критерии руб_рсч'!$C$109,J26),IFERROR(SEARCH('[1]Критерии руб_рсч'!$C$109,J26),$AP$1))=$AP$1,\"-\",\"OK\")","v":"-"}]
["Солр5006","27.01.2015","Солид банк",260000,0,null,null,null,"ЗАО \"СОЛИД БАНК\"","Торговая выручка","o",{"$f":"VLOOKUP(O27,[1]Справочник!$A$2:$B$44,2,0)","v":"CF"},1,2015,{"$f":"IFERROR(IF(T27=\"Оплата от покупателя\",\"income\",INDEX('Критерии руб_рсч'!$D$2:$D$91,MATCH(TRUE,ISNUMBER(SEARCH('Критерии руб_рсч'!$C$2:$C$91,рсч_руб!J27)),0))),\"other\")","v":"ДДС"},"руб.",null,null,"Правда","Инкассация",{"$f":"IF(IFERROR(SEARCH('[1]Критерии руб_рсч'!$C$2,J27),IFERROR(SEARCH('[1]Критерии руб_рсч'!$C$3,J27),IFERROR(SEARCH('[1]Критерии руб_рсч'!$C$4,J27),IFERROR(SEARCH('[1]Критерии руб_рсч'!$C$5,J27),IFERROR(SEARCH('[1]Критерии руб_рсч'!$C$6,J27),IFERROR(SEARCH('[1]Критерии руб_рсч'!$C$7,J27),IFERROR(SEARCH('[1]Критерии руб_рсч'!$C$8,J27),IFERROR(SEARCH('[1]Критерии руб_рсч'!$C$8,J27),IFERROR(SEARCH('[1]Критерии руб_рсч'!$C$10,J27),IFERROR(SEARCH('[1]Критерии руб_рсч'!$C$11,J27),\"-\"))))))))))=$AP$1,\"-\",\"OK\")","v":"-"},{"$f":"IF(IFERROR(SEARCH('[1]Критерии руб_рсч'!$C$13,J27),IFERROR(SEARCH('[1]Критерии руб_рсч'!$C$14,J27),IFERROR(SEARCH('[1]Критерии руб_рсч'!$C$15,J27),IFERROR(SEARCH('[1]Критерии руб_рсч'!$C$16,J27),IFERROR(SEARCH('[1]Критерии руб_рсч'!$C$17,J27),IFERROR(SEARCH('[1]Критерии руб_рсч'!$C$18,J27),IFERROR(SEARCH('[1]Критерии руб_рсч'!$C$19,J27),IFERROR(SEARCH('[1]Критерии руб_рсч'!$C$20,J27),IFERROR(SEARCH('[1]Критерии руб_рсч'!$C$21,J27),IFERROR(SEARCH('[1]Критерии руб_рсч'!$C$22,J27),IFERROR(SEARCH('[1]Критерии руб_рсч'!$C$23,J27),IFERROR(SEARCH('[1]Критерии руб_рсч'!$C$24,J27),IFERROR(SEARCH('[1]Критерии руб_рсч'!$C$25,J27),IFERROR(SEARCH('[1]Критерии руб_рсч'!$C$26,J27),$AP$1))))))))))))))=$AP$1,\"-\",\"OK\")","v":"-"},{"$f":"IF(IFERROR(SEARCH('[1]Критерии руб_рсч'!$C$28,J27),IFERROR(SEARCH('[1]Критерии руб_рсч'!$C$29,J27),IFERROR(SEARCH('[1]Критерии руб_рсч'!$C$30,J27),$AP$1)))=$AP$1,\"-\",\"OK\")","v":"-"},{"$f":"IF(IFERROR(SEARCH('[1]Критерии руб_рсч'!$C$32,J27),IFERROR(SEARCH('[1]Критерии руб_рсч'!$C$33,J27),IFERROR(SEARCH('[1]Критерии руб_рсч'!$C$34,J27),IFERROR(SEARCH('[1]Критерии руб_рсч'!$C$35,J27),IFERROR(SEARCH('[1]Критерии руб_рсч'!$C$36,J27),$AP$1)))))=$AP$1,\"-\",\"OK\")","v":"-"},{"$f":"IF(IFERROR(SEARCH('[1]Критерии руб_рсч'!$C$38,J27),IFERROR(SEARCH('[1]Критерии руб_рсч'!$C$39,J27),IFERROR(SEARCH('[1]Критерии руб_рсч'!$C$40,J27),IFERROR(SEARCH('[1]Критерии руб_рсч'!$C$41,J27),IFERROR(SEARCH('[1]Критерии руб_рсч'!$C$42,J27),IFERROR(SEARCH('[1]Критерии руб_рсч'!$C$43,J27),$AP$1))))))=$AP$1,\"-\",\"OK\")","v":"OK"},{"$f":"IF(IFERROR(SEARCH('[1]Критерии руб_рсч'!$C$45,J27),IFERROR(SEARCH('[1]Критерии руб_рсч'!$C$46,J27),IFERROR(SEARCH('[1]Критерии руб_рсч'!$C$47,J27),IFERROR(SEARCH('[1]Критерии руб_рсч'!$C$48,J27),IFERROR(SEARCH('[1]Критерии руб_рсч'!$C$49,J27),IFERROR(SEARCH('[1]Критерии руб_рсч'!$C$50,J27),IFERROR(SEARCH('[1]Критерии руб_рсч'!$C$51,J27),$AP$1)))))))=$AP$1,\"-\",\"OK\")","v":"-"},{"$f":"IF(IFERROR(SEARCH('[1]Критерии руб_рсч'!$C$53,J27),$AP$1)=$AP$1,\"-\",\"OK\")","v":"-"},{"$f":"IF(IFERROR(SEARCH('[1]Критерии руб_рсч'!$C$55,J27),IFERROR(SEARCH('[1]Критерии руб_рсч'!$C$56,J27),IFERROR(SEARCH('[1]Критерии руб_рсч'!$C$57,J27),IFERROR(SEARCH('[1]Критерии руб_рсч'!$C$58,J27),IFERROR(SEARCH('[1]Критерии руб_рсч'!$C$59,J27),$AP$1)))))=$AP$1,\"-\",\"OK\")","v":"-"},{"$f":"IF(IFERROR(SEARCH('[1]Критерии руб_рсч'!$C$61,J27),IFERROR(SEARCH('[1]Критерии руб_рсч'!$C$62,J27),IFERROR(SEARCH('[1]Критерии руб_рсч'!$C$63,J27),IFERROR(SEARCH('[1]Критерии руб_рсч'!$C$64,J27),$AP$1))))=$AP$1,\"-\",\"OK\")","v":"-"},{"$f":"IF(IFERROR(SEARCH('[1]Критерии руб_рсч'!$C$66,J27),$AP$1)=$AP$1,\"-\",\"OK\")","v":"-"},{"$f":"IF(IFERROR(SEARCH('[1]Критерии руб_рсч'!$C$68,J27),IFERROR(SEARCH('[1]Критерии руб_рсч'!$C$69,J27),IFERROR(SEARCH('[1]Критерии руб_рсч'!$C$70,J27),IFERROR(SEARCH('[1]Критерии руб_рсч'!$C$71,J27),$AP$1))))=$AP$1,\"-\",\"OK\")","v":"-"},{"$f":"IF(IFERROR(SEARCH('[1]Критерии руб_рсч'!$C$73,J27),IFERROR(SEARCH('[1]Критерии руб_рсч'!$C$74,J27),IFERROR(SEARCH('[1]Критерии руб_рсч'!$C$75,J27),IFERROR(SEARCH('[1]Критерии руб_рсч'!$C$76,J27),$AP$1))))=$AP$1,\"-\",\"OK\")","v":"-"},{"$f":"IF(IFERROR(SEARCH('[1]Критерии руб_рсч'!$C$78,J27),IFERROR(SEARCH('[1]Критерии руб_рсч'!$C$79,J27),IFERROR(SEARCH('[1]Критерии руб_рсч'!$C$80,J27),IFERROR(SEARCH('[1]Критерии руб_рсч'!$C$81,J27),$AP$1))))=$AP$1,\"-\",\"OK\")","v":"-"},{"$f":"IF(IFERROR(SEARCH('[1]Критерии руб_рсч'!$C$83,J27),IFERROR(SEARCH('[1]Критерии руб_рсч'!$C$84,J27),$AP$1))=$AP$1,\"-\",\"OK\")","v":"-"},{"$f":"IF(IFERROR(SEARCH('[1]Критерии руб_рсч'!$C$86,J27),IFERROR(SEARCH('[1]Критерии руб_рсч'!$C$87,J27),IFERROR(SEARCH('[1]Критерии руб_рсч'!$C$88,J27),$AP$1)))=$AP$1,\"-\",\"OK\")","v":"-"},{"$f":"IF(IFERROR(SEARCH('[1]Критерии руб_рсч'!$C$90,J27),IFERROR(SEARCH('[1]Критерии руб_рсч'!$C$91,J27),IFERROR(SEARCH('[1]Критерии руб_рсч'!$C$92,J27),IFERROR(SEARCH('[1]Критерии руб_рсч'!$C$93,J27),$AP$1))))=$AP$1,\"-\",\"OK\")","v":"-"},{"$f":"IF(IFERROR(SEARCH('[1]Критерии руб_рсч'!$C$95,J27),IFERROR(SEARCH('[1]Критерии руб_рсч'!$C$96,J27),IFERROR(SEARCH('[1]Критерии руб_рсч'!$C$97,J27),IFERROR(SEARCH('[1]Критерии руб_рсч'!$C$98,J27),IFERROR(SEARCH('[1]Критерии руб_рсч'!$C$99,J27),IFERROR(SEARCH('[1]Критерии руб_рсч'!$C$100,J27),$AP$1))))))=$AP$1,\"-\",\"OK\")","v":"-"},{"$f":"IF(IFERROR(SEARCH('[1]Критерии руб_рсч'!$C$102,J27),IFERROR(SEARCH('[1]Критерии руб_рсч'!$C$103,J27),IFERROR(SEARCH('[1]Критерии руб_рсч'!$C$104,J27),IFERROR(SEARCH('[1]Критерии руб_рсч'!$C$105,J27),IFERROR(SEARCH('[1]Критерии руб_рсч'!$C$106,J27),IFERROR(SEARCH('[1]Критерии руб_рсч'!$C$107,J27),$AP$1))))))=$AP$1,\"-\",\"OK\")","v":"-"},{"$f":"IF(IFERROR(SEARCH('[1]Критерии руб_рсч'!$C$109,J27),IFERROR(SEARCH('[1]Критерии руб_рсч'!$C$109,J27),$AP$1))=$AP$1,\"-\",\"OK\")","v":"-"}]
["Солр5007","27.01.2015","Солид банк",0,25,null,null,null,"ЗАО \"СОЛИД БАНК\"","Комиссия за Перечисление денежных средств со счета Клиента в другие кредитные организации по платежным поручениям,  полученным по Системе Ibank2. Тариф 1.2.3.2","o",{"$f":"VLOOKUP(O28,[1]Справочник!$A$2:$B$44,2,0)","v":"опер"},1,2015,{"$f":"IFERROR(IF(T28=\"Оплата от покупателя\",\"income\",INDEX('Критерии руб_рсч'!$D$2:$D$91,MATCH(TRUE,ISNUMBER(SEARCH('Критерии руб_рсч'!$C$2:$C$91,рсч_руб!J28)),0))),\"other\")","v":"bank"},"руб.",1,2015,"Правда","Прочее списание",{"$f":"IF(IFERROR(SEARCH('[1]Критерии руб_рсч'!$C$2,J28),IFERROR(SEARCH('[1]Критерии руб_рсч'!$C$3,J28),IFERROR(SEARCH('[1]Критерии руб_рсч'!$C$4,J28),IFERROR(SEARCH('[1]Критерии руб_рсч'!$C$5,J28),IFERROR(SEARCH('[1]Критерии руб_рсч'!$C$6,J28),IFERROR(SEARCH('[1]Критерии руб_рсч'!$C$7,J28),IFERROR(SEARCH('[1]Критерии руб_рсч'!$C$8,J28),IFERROR(SEARCH('[1]Критерии руб_рсч'!$C$8,J28),IFERROR(SEARCH('[1]Критерии руб_рсч'!$C$10,J28),IFERROR(SEARCH('[1]Критерии руб_рсч'!$C$11,J28),\"-\"))))))))))=$AP$1,\"-\",\"OK\")","v":"-"},{"$f":"IF(IFERROR(SEARCH('[1]Критерии руб_рсч'!$C$13,J28),IFERROR(SEARCH('[1]Критерии руб_рсч'!$C$14,J28),IFERROR(SEARCH('[1]Критерии руб_рсч'!$C$15,J28),IFERROR(SEARCH('[1]Критерии руб_рсч'!$C$16,J28),IFERROR(SEARCH('[1]Критерии руб_рсч'!$C$17,J28),IFERROR(SEARCH('[1]Критерии руб_рсч'!$C$18,J28),IFERROR(SEARCH('[1]Критерии руб_рсч'!$C$19,J28),IFERROR(SEARCH('[1]Критерии руб_рсч'!$C$20,J28),IFERROR(SEARCH('[1]Критерии руб_рсч'!$C$21,J28),IFERROR(SEARCH('[1]Критерии руб_рсч'!$C$22,J28),IFERROR(SEARCH('[1]Критерии руб_рсч'!$C$23,J28),IFERROR(SEARCH('[1]Критерии руб_рсч'!$C$24,J28),IFERROR(SEARCH('[1]Критерии руб_рсч'!$C$25,J28),IFERROR(SEARCH('[1]Критерии руб_рсч'!$C$26,J28),$AP$1))))))))))))))=$AP$1,\"-\",\"OK\")","v":"OK"},{"$f":"IF(IFERROR(SEARCH('[1]Критерии руб_рсч'!$C$28,J28),IFERROR(SEARCH('[1]Критерии руб_рсч'!$C$29,J28),IFERROR(SEARCH('[1]Критерии руб_рсч'!$C$30,J28),$AP$1)))=$AP$1,\"-\",\"OK\")","v":"-"},{"$f":"IF(IFERROR(SEARCH('[1]Критерии руб_рсч'!$C$32,J28),IFERROR(SEARCH('[1]Критерии руб_рсч'!$C$33,J28),IFERROR(SEARCH('[1]Критерии руб_рсч'!$C$34,J28),IFERROR(SEARCH('[1]Критерии руб_рсч'!$C$35,J28),IFERROR(SEARCH('[1]Критерии руб_рсч'!$C$36,J28),$AP$1)))))=$AP$1,\"-\",\"OK\")","v":"-"},{"$f":"IF(IFERROR(SEARCH('[1]Критерии руб_рсч'!$C$38,J28),IFERROR(SEARCH('[1]Критерии руб_рсч'!$C$39,J28),IFERROR(SEARCH('[1]Критерии руб_рсч'!$C$40,J28),IFERROR(SEARCH('[1]Критерии руб_рсч'!$C$41,J28),IFERROR(SEARCH('[1]Критерии руб_рсч'!$C$42,J28),IFERROR(SEARCH('[1]Критерии руб_рсч'!$C$43,J28),$AP$1))))))=$AP$1,\"-\",\"OK\")","v":"-"},{"$f":"IF(IFERROR(SEARCH('[1]Критерии руб_рсч'!$C$45,J28),IFERROR(SEARCH('[1]Критерии руб_рсч'!$C$46,J28),IFERROR(SEARCH('[1]Критерии руб_рсч'!$C$47,J28),IFERROR(SEARCH('[1]Критерии руб_рсч'!$C$48,J28),IFERROR(SEARCH('[1]Критерии руб_рсч'!$C$49,J28),IFERROR(SEARCH('[1]Критерии руб_рсч'!$C$50,J28),IFERROR(SEARCH('[1]Критерии руб_рсч'!$C$51,J28),$AP$1)))))))=$AP$1,\"-\",\"OK\")","v":"-"},{"$f":"IF(IFERROR(SEARCH('[1]Критерии руб_рсч'!$C$53,J28),$AP$1)=$AP$1,\"-\",\"OK\")","v":"-"},{"$f":"IF(IFERROR(SEARCH('[1]Критерии руб_рсч'!$C$55,J28),IFERROR(SEARCH('[1]Критерии руб_рсч'!$C$56,J28),IFERROR(SEARCH('[1]Критерии руб_рсч'!$C$57,J28),IFERROR(SEARCH('[1]Критерии руб_рсч'!$C$58,J28),IFERROR(SEARCH('[1]Критерии руб_рсч'!$C$59,J28),$AP$1)))))=$AP$1,\"-\",\"OK\")","v":"-"},{"$f":"IF(IFERROR(SEARCH('[1]Критерии руб_рсч'!$C$61,J28),IFERROR(SEARCH('[1]Критерии руб_рсч'!$C$62,J28),IFERROR(SEARCH('[1]Критерии руб_рсч'!$C$63,J28),IFERROR(SEARCH('[1]Критерии руб_рсч'!$C$64,J28),$AP$1))))=$AP$1,\"-\",\"OK\")","v":"-"},{"$f":"IF(IFERROR(SEARCH('[1]Критерии руб_рсч'!$C$66,J28),$AP$1)=$AP$1,\"-\",\"OK\")","v":"-"},{"$f":"IF(IFERROR(SEARCH('[1]Критерии руб_рсч'!$C$68,J28),IFERROR(SEARCH('[1]Критерии руб_рсч'!$C$69,J28),IFERROR(SEARCH('[1]Критерии руб_рсч'!$C$70,J28),IFERROR(SEARCH('[1]Критерии руб_рсч'!$C$71,J28),$AP$1))))=$AP$1,\"-\",\"OK\")","v":"-"},{"$f":"IF(IFERROR(SEARCH('[1]Критерии руб_рсч'!$C$73,J28),IFERROR(SEARCH('[1]Критерии руб_рсч'!$C$74,J28),IFERROR(SEARCH('[1]Критерии руб_рсч'!$C$75,J28),IFERROR(SEARCH('[1]Критерии руб_рсч'!$C$76,J28),$AP$1))))=$AP$1,\"-\",\"OK\")","v":"-"},{"$f":"IF(IFERROR(SEARCH('[1]Критерии руб_рсч'!$C$78,J28),IFERROR(SEARCH('[1]Критерии руб_рсч'!$C$79,J28),IFERROR(SEARCH('[1]Критерии руб_рсч'!$C$80,J28),IFERROR(SEARCH('[1]Критерии руб_рсч'!$C$81,J28),$AP$1))))=$AP$1,\"-\",\"OK\")","v":"-"},{"$f":"IF(IFERROR(SEARCH('[1]Критерии руб_рсч'!$C$83,J28),IFERROR(SEARCH('[1]Критерии руб_рсч'!$C$84,J28),$AP$1))=$AP$1,\"-\",\"OK\")","v":"-"},{"$f":"IF(IFERROR(SEARCH('[1]Критерии руб_рсч'!$C$86,J28),IFERROR(SEARCH('[1]Критерии руб_рсч'!$C$87,J28),IFERROR(SEARCH('[1]Критерии руб_рсч'!$C$88,J28),$AP$1)))=$AP$1,\"-\",\"OK\")","v":"-"},{"$f":"IF(IFERROR(SEARCH('[1]Критерии руб_рсч'!$C$90,J28),IFERROR(SEARCH('[1]Критерии руб_рсч'!$C$91,J28),IFERROR(SEARCH('[1]Критерии руб_рсч'!$C$92,J28),IFERROR(SEARCH('[1]Критерии руб_рсч'!$C$93,J28),$AP$1))))=$AP$1,\"-\",\"OK\")","v":"-"},{"$f":"IF(IFERROR(SEARCH('[1]Критерии руб_рсч'!$C$95,J28),IFERROR(SEARCH('[1]Критерии руб_рсч'!$C$96,J28),IFERROR(SEARCH('[1]Критерии руб_рсч'!$C$97,J28),IFERROR(SEARCH('[1]Критерии руб_рсч'!$C$98,J28),IFERROR(SEARCH('[1]Критерии руб_рсч'!$C$99,J28),IFERROR(SEARCH('[1]Критерии руб_рсч'!$C$100,J28),$AP$1))))))=$AP$1,\"-\",\"OK\")","v":"-"},{"$f":"IF(IFERROR(SEARCH('[1]Критерии руб_рсч'!$C$102,J28),IFERROR(SEARCH('[1]Критерии руб_рсч'!$C$103,J28),IFERROR(SEARCH('[1]Критерии руб_рсч'!$C$104,J28),IFERROR(SEARCH('[1]Критерии руб_рсч'!$C$105,J28),IFERROR(SEARCH('[1]Критерии руб_рсч'!$C$106,J28),IFERROR(SEARCH('[1]Критерии руб_рсч'!$C$107,J28),$AP$1))))))=$AP$1,\"-\",\"OK\")","v":"-"},{"$f":"IF(IFERROR(SEARCH('[1]Критерии руб_рсч'!$C$109,J28),IFERROR(SEARCH('[1]Критерии руб_рсч'!$C$109,J28),$AP$1))=$AP$1,\"-\",\"OK\")","v":"-"}]
["Солр5008","27.01.2015","Солид банк",0,59.03,null,null,null,"ЗАО \"СОЛИД БАНК\"","НДС-18%, удержанный сверх суммы комиссионного вознаграждения за исполнение функций валютного контроля согласно Тарифам Банка. Распоряжение  от  27.01.2015г.","o",{"$f":"VLOOKUP(O29,[1]Справочник!$A$2:$B$44,2,0)","v":"опер"},1,2015,{"$f":"IFERROR(IF(T29=\"Оплата от покупателя\",\"income\",INDEX('Критерии руб_рсч'!$D$2:$D$91,MATCH(TRUE,ISNUMBER(SEARCH('Критерии руб_рсч'!$C$2:$C$91,рсч_руб!J29)),0))),\"other\")","v":"bank"},"руб.",1,2015,"Правда","Прочее списание",{"$f":"IF(IFERROR(SEARCH('[1]Критерии руб_рсч'!$C$2,J29),IFERROR(SEARCH('[1]Критерии руб_рсч'!$C$3,J29),IFERROR(SEARCH('[1]Критерии руб_рсч'!$C$4,J29),IFERROR(SEARCH('[1]Критерии руб_рсч'!$C$5,J29),IFERROR(SEARCH('[1]Критерии руб_рсч'!$C$6,J29),IFERROR(SEARCH('[1]Критерии руб_рсч'!$C$7,J29),IFERROR(SEARCH('[1]Критерии руб_рсч'!$C$8,J29),IFERROR(SEARCH('[1]Критерии руб_рсч'!$C$8,J29),IFERROR(SEARCH('[1]Критерии руб_рсч'!$C$10,J29),IFERROR(SEARCH('[1]Критерии руб_рсч'!$C$11,J29),\"-\"))))))))))=$AP$1,\"-\",\"OK\")","v":"-"},{"$f":"IF(IFERROR(SEARCH('[1]Критерии руб_рсч'!$C$13,J29),IFERROR(SEARCH('[1]Критерии руб_рсч'!$C$14,J29),IFERROR(SEARCH('[1]Критерии руб_рсч'!$C$15,J29),IFERROR(SEARCH('[1]Критерии руб_рсч'!$C$16,J29),IFERROR(SEARCH('[1]Критерии руб_рсч'!$C$17,J29),IFERROR(SEARCH('[1]Критерии руб_рсч'!$C$18,J29),IFERROR(SEARCH('[1]Критерии руб_рсч'!$C$19,J29),IFERROR(SEARCH('[1]Критерии руб_рсч'!$C$20,J29),IFERROR(SEARCH('[1]Критерии руб_рсч'!$C$21,J29),IFERROR(SEARCH('[1]Критерии руб_рсч'!$C$22,J29),IFERROR(SEARCH('[1]Критерии руб_рсч'!$C$23,J29),IFERROR(SEARCH('[1]Критерии руб_рсч'!$C$24,J29),IFERROR(SEARCH('[1]Критерии руб_рсч'!$C$25,J29),IFERROR(SEARCH('[1]Критерии руб_рсч'!$C$26,J29),$AP$1))))))))))))))=$AP$1,\"-\",\"OK\")","v":"OK"},{"$f":"IF(IFERROR(SEARCH('[1]Критерии руб_рсч'!$C$28,J29),IFERROR(SEARCH('[1]Критерии руб_рсч'!$C$29,J29),IFERROR(SEARCH('[1]Критерии руб_рсч'!$C$30,J29),$AP$1)))=$AP$1,\"-\",\"OK\")","v":"-"},{"$f":"IF(IFERROR(SEARCH('[1]Критерии руб_рсч'!$C$32,J29),IFERROR(SEARCH('[1]Критерии руб_рсч'!$C$33,J29),IFERROR(SEARCH('[1]Критерии руб_рсч'!$C$34,J29),IFERROR(SEARCH('[1]Критерии руб_рсч'!$C$35,J29),IFERROR(SEARCH('[1]Критерии руб_рсч'!$C$36,J29),$AP$1)))))=$AP$1,\"-\",\"OK\")","v":"-"},{"$f":"IF(IFERROR(SEARCH('[1]Критерии руб_рсч'!$C$38,J29),IFERROR(SEARCH('[1]Критерии руб_рсч'!$C$39,J29),IFERROR(SEARCH('[1]Критерии руб_рсч'!$C$40,J29),IFERROR(SEARCH('[1]Критерии руб_рсч'!$C$41,J29),IFERROR(SEARCH('[1]Критерии руб_рсч'!$C$42,J29),IFERROR(SEARCH('[1]Критерии руб_рсч'!$C$43,J29),$AP$1))))))=$AP$1,\"-\",\"OK\")","v":"-"},{"$f":"IF(IFERROR(SEARCH('[1]Критерии руб_рсч'!$C$45,J29),IFERROR(SEARCH('[1]Критерии руб_рсч'!$C$46,J29),IFERROR(SEARCH('[1]Критерии руб_рсч'!$C$47,J29),IFERROR(SEARCH('[1]Критерии руб_рсч'!$C$48,J29),IFERROR(SEARCH('[1]Критерии руб_рсч'!$C$49,J29),IFERROR(SEARCH('[1]Критерии руб_рсч'!$C$50,J29),IFERROR(SEARCH('[1]Критерии руб_рсч'!$C$51,J29),$AP$1)))))))=$AP$1,\"-\",\"OK\")","v":"-"},{"$f":"IF(IFERROR(SEARCH('[1]Критерии руб_рсч'!$C$53,J29),$AP$1)=$AP$1,\"-\",\"OK\")","v":"-"},{"$f":"IF(IFERROR(SEARCH('[1]Критерии руб_рсч'!$C$55,J29),IFERROR(SEARCH('[1]Критерии руб_рсч'!$C$56,J29),IFERROR(SEARCH('[1]Критерии руб_рсч'!$C$57,J29),IFERROR(SEARCH('[1]Критерии руб_рсч'!$C$58,J29),IFERROR(SEARCH('[1]Критерии руб_рсч'!$C$59,J29),$AP$1)))))=$AP$1,\"-\",\"OK\")","v":"-"},{"$f":"IF(IFERROR(SEARCH('[1]Критерии руб_рсч'!$C$61,J29),IFERROR(SEARCH('[1]Критерии руб_рсч'!$C$62,J29),IFERROR(SEARCH('[1]Критерии руб_рсч'!$C$63,J29),IFERROR(SEARCH('[1]Критерии руб_рсч'!$C$64,J29),$AP$1))))=$AP$1,\"-\",\"OK\")","v":"-"},{"$f":"IF(IFERROR(SEARCH('[1]Критерии руб_рсч'!$C$66,J29),$AP$1)=$AP$1,\"-\",\"OK\")","v":"-"},{"$f":"IF(IFERROR(SEARCH('[1]Критерии руб_рсч'!$C$68,J29),IFERROR(SEARCH('[1]Критерии руб_рсч'!$C$69,J29),IFERROR(SEARCH('[1]Критерии руб_рсч'!$C$70,J29),IFERROR(SEARCH('[1]Критерии руб_рсч'!$C$71,J29),$AP$1))))=$AP$1,\"-\",\"OK\")","v":"-"},{"$f":"IF(IFERROR(SEARCH('[1]Критерии руб_рсч'!$C$73,J29),IFERROR(SEARCH('[1]Критерии руб_рсч'!$C$74,J29),IFERROR(SEARCH('[1]Критерии руб_рсч'!$C$75,J29),IFERROR(SEARCH('[1]Критерии руб_рсч'!$C$76,J29),$AP$1))))=$AP$1,\"-\",\"OK\")","v":"-"},{"$f":"IF(IFERROR(SEARCH('[1]Критерии руб_рсч'!$C$78,J29),IFERROR(SEARCH('[1]Критерии руб_рсч'!$C$79,J29),IFERROR(SEARCH('[1]Критерии руб_рсч'!$C$80,J29),IFERROR(SEARCH('[1]Критерии руб_рсч'!$C$81,J29),$AP$1))))=$AP$1,\"-\",\"OK\")","v":"-"},{"$f":"IF(IFERROR(SEARCH('[1]Критерии руб_рсч'!$C$83,J29),IFERROR(SEARCH('[1]Критерии руб_рсч'!$C$84,J29),$AP$1))=$AP$1,\"-\",\"OK\")","v":"-"},{"$f":"IF(IFERROR(SEARCH('[1]Критерии руб_рсч'!$C$86,J29),IFERROR(SEARCH('[1]Критерии руб_рсч'!$C$87,J29),IFERROR(SEARCH('[1]Критерии руб_рсч'!$C$88,J29),$AP$1)))=$AP$1,\"-\",\"OK\")","v":"-"},{"$f":"IF(IFERROR(SEARCH('[1]Критерии руб_рсч'!$C$90,J29),IFERROR(SEARCH('[1]Критерии руб_рсч'!$C$91,J29),IFERROR(SEARCH('[1]Критерии руб_рсч'!$C$92,J29),IFERROR(SEARCH('[1]Критерии руб_рсч'!$C$93,J29),$AP$1))))=$AP$1,\"-\",\"OK\")","v":"-"},{"$f":"IF(IFERROR(SEARCH('[1]Критерии руб_рсч'!$C$95,J29),IFERROR(SEARCH('[1]Критерии руб_рсч'!$C$96,J29),IFERROR(SEARCH('[1]Критерии руб_рсч'!$C$97,J29),IFERROR(SEARCH('[1]Критерии руб_рсч'!$C$98,J29),IFERROR(SEARCH('[1]Критерии руб_рсч'!$C$99,J29),IFERROR(SEARCH('[1]Критерии руб_рсч'!$C$100,J29),$AP$1))))))=$AP$1,\"-\",\"OK\")","v":"-"},{"$f":"IF(IFERROR(SEARCH('[1]Критерии руб_рсч'!$C$102,J29),IFERROR(SEARCH('[1]Критерии руб_рсч'!$C$103,J29),IFERROR(SEARCH('[1]Критерии руб_рсч'!$C$104,J29),IFERROR(SEARCH('[1]Критерии руб_рсч'!$C$105,J29),IFERROR(SEARCH('[1]Критерии руб_рсч'!$C$106,J29),IFERROR(SEARCH('[1]Критерии руб_рсч'!$C$107,J29),$AP$1))))))=$AP$1,\"-\",\"OK\")","v":"-"},{"$f":"IF(IFERROR(SEARCH('[1]Критерии руб_рсч'!$C$109,J29),IFERROR(SEARCH('[1]Критерии руб_рсч'!$C$109,J29),$AP$1))=$AP$1,\"-\",\"OK\")","v":"-"}]
["Солр5009","27.01.2015","Солид банк",0,327.96,null,null,null,"ЗАО \"СОЛИД БАНК\"","Комиссионное вознаграждение Банка за исполн.функций валютного контроля, согласно Тарифам Банка. Распоряжение от 27.01.2015г","o",{"$f":"VLOOKUP(O30,[1]Справочник!$A$2:$B$44,2,0)","v":"опер"},1,2015,{"$f":"IFERROR(IF(T30=\"Оплата от покупателя\",\"income\",INDEX('Критерии руб_рсч'!$D$2:$D$91,MATCH(TRUE,ISNUMBER(SEARCH('Критерии руб_рсч'!$C$2:$C$91,рсч_руб!J30)),0))),\"other\")","v":"bank"},"руб.",1,2015,"Правда","Прочее списание",{"$f":"IF(IFERROR(SEARCH('[1]Критерии руб_рсч'!$C$2,J30),IFERROR(SEARCH('[1]Критерии руб_рсч'!$C$3,J30),IFERROR(SEARCH('[1]Критерии руб_рсч'!$C$4,J30),IFERROR(SEARCH('[1]Критерии руб_рсч'!$C$5,J30),IFERROR(SEARCH('[1]Критерии руб_рсч'!$C$6,J30),IFERROR(SEARCH('[1]Критерии руб_рсч'!$C$7,J30),IFERROR(SEARCH('[1]Критерии руб_рсч'!$C$8,J30),IFERROR(SEARCH('[1]Критерии руб_рсч'!$C$8,J30),IFERROR(SEARCH('[1]Критерии руб_рсч'!$C$10,J30),IFERROR(SEARCH('[1]Критерии руб_рсч'!$C$11,J30),\"-\"))))))))))=$AP$1,\"-\",\"OK\")","v":"-"},{"$f":"IF(IFERROR(SEARCH('[1]Критерии руб_рсч'!$C$13,J30),IFERROR(SEARCH('[1]Критерии руб_рсч'!$C$14,J30),IFERROR(SEARCH('[1]Критерии руб_рсч'!$C$15,J30),IFERROR(SEARCH('[1]Критерии руб_рсч'!$C$16,J30),IFERROR(SEARCH('[1]Критерии руб_рсч'!$C$17,J30),IFERROR(SEARCH('[1]Критерии руб_рсч'!$C$18,J30),IFERROR(SEARCH('[1]Критерии руб_рсч'!$C$19,J30),IFERROR(SEARCH('[1]Критерии руб_рсч'!$C$20,J30),IFERROR(SEARCH('[1]Критерии руб_рсч'!$C$21,J30),IFERROR(SEARCH('[1]Критерии руб_рсч'!$C$22,J30),IFERROR(SEARCH('[1]Критерии руб_рсч'!$C$23,J30),IFERROR(SEARCH('[1]Критерии руб_рсч'!$C$24,J30),IFERROR(SEARCH('[1]Критерии руб_рсч'!$C$25,J30),IFERROR(SEARCH('[1]Критерии руб_рсч'!$C$26,J30),$AP$1))))))))))))))=$AP$1,\"-\",\"OK\")","v":"OK"},{"$f":"IF(IFERROR(SEARCH('[1]Критерии руб_рсч'!$C$28,J30),IFERROR(SEARCH('[1]Критерии руб_рсч'!$C$29,J30),IFERROR(SEARCH('[1]Критерии руб_рсч'!$C$30,J30),$AP$1)))=$AP$1,\"-\",\"OK\")","v":"-"},{"$f":"IF(IFERROR(SEARCH('[1]Критерии руб_рсч'!$C$32,J30),IFERROR(SEARCH('[1]Критерии руб_рсч'!$C$33,J30),IFERROR(SEARCH('[1]Критерии руб_рсч'!$C$34,J30),IFERROR(SEARCH('[1]Критерии руб_рсч'!$C$35,J30),IFERROR(SEARCH('[1]Критерии руб_рсч'!$C$36,J30),$AP$1)))))=$AP$1,\"-\",\"OK\")","v":"-"},{"$f":"IF(IFERROR(SEARCH('[1]Критерии руб_рсч'!$C$38,J30),IFERROR(SEARCH('[1]Критерии руб_рсч'!$C$39,J30),IFERROR(SEARCH('[1]Критерии руб_рсч'!$C$40,J30),IFERROR(SEARCH('[1]Критерии руб_рсч'!$C$41,J30),IFERROR(SEARCH('[1]Критерии руб_рсч'!$C$42,J30),IFERROR(SEARCH('[1]Критерии руб_рсч'!$C$43,J30),$AP$1))))))=$AP$1,\"-\",\"OK\")","v":"-"},{"$f":"IF(IFERROR(SEARCH('[1]Критерии руб_рсч'!$C$45,J30),IFERROR(SEARCH('[1]Критерии руб_рсч'!$C$46,J30),IFERROR(SEARCH('[1]Критерии руб_рсч'!$C$47,J30),IFERROR(SEARCH('[1]Критерии руб_рсч'!$C$48,J30),IFERROR(SEARCH('[1]Критерии руб_рсч'!$C$49,J30),IFERROR(SEARCH('[1]Критерии руб_рсч'!$C$50,J30),IFERROR(SEARCH('[1]Критерии руб_рсч'!$C$51,J30),$AP$1)))))))=$AP$1,\"-\",\"OK\")","v":"-"},{"$f":"IF(IFERROR(SEARCH('[1]Критерии руб_рсч'!$C$53,J30),$AP$1)=$AP$1,\"-\",\"OK\")","v":"-"},{"$f":"IF(IFERROR(SEARCH('[1]Критерии руб_рсч'!$C$55,J30),IFERROR(SEARCH('[1]Критерии руб_рсч'!$C$56,J30),IFERROR(SEARCH('[1]Критерии руб_рсч'!$C$57,J30),IFERROR(SEARCH('[1]Критерии руб_рсч'!$C$58,J30),IFERROR(SEARCH('[1]Критерии руб_рсч'!$C$59,J30),$AP$1)))))=$AP$1,\"-\",\"OK\")","v":"-"},{"$f":"IF(IFERROR(SEARCH('[1]Критерии руб_рсч'!$C$61,J30),IFERROR(SEARCH('[1]Критерии руб_рсч'!$C$62,J30),IFERROR(SEARCH('[1]Критерии руб_рсч'!$C$63,J30),IFERROR(SEARCH('[1]Критерии руб_рсч'!$C$64,J30),$AP$1))))=$AP$1,\"-\",\"OK\")","v":"-"},{"$f":"IF(IFERROR(SEARCH('[1]Критерии руб_рсч'!$C$66,J30),$AP$1)=$AP$1,\"-\",\"OK\")","v":"-"},{"$f":"IF(IFERROR(SEARCH('[1]Критерии руб_рсч'!$C$68,J30),IFERROR(SEARCH('[1]Критерии руб_рсч'!$C$69,J30),IFERROR(SEARCH('[1]Критерии руб_рсч'!$C$70,J30),IFERROR(SEARCH('[1]Критерии руб_рсч'!$C$71,J30),$AP$1))))=$AP$1,\"-\",\"OK\")","v":"-"},{"$f":"IF(IFERROR(SEARCH('[1]Критерии руб_рсч'!$C$73,J30),IFERROR(SEARCH('[1]Критерии руб_рсч'!$C$74,J30),IFERROR(SEARCH('[1]Критерии руб_рсч'!$C$75,J30),IFERROR(SEARCH('[1]Критерии руб_рсч'!$C$76,J30),$AP$1))))=$AP$1,\"-\",\"OK\")","v":"-"},{"$f":"IF(IFERROR(SEARCH('[1]Критерии руб_рсч'!$C$78,J30),IFERROR(SEARCH('[1]Критерии руб_рсч'!$C$79,J30),IFERROR(SEARCH('[1]Критерии руб_рсч'!$C$80,J30),IFERROR(SEARCH('[1]Критерии руб_рсч'!$C$81,J30),$AP$1))))=$AP$1,\"-\",\"OK\")","v":"-"},{"$f":"IF(IFERROR(SEARCH('[1]Критерии руб_рсч'!$C$83,J30),IFERROR(SEARCH('[1]Критерии руб_рсч'!$C$84,J30),$AP$1))=$AP$1,\"-\",\"OK\")","v":"-"},{"$f":"IF(IFERROR(SEARCH('[1]Критерии руб_рсч'!$C$86,J30),IFERROR(SEARCH('[1]Критерии руб_рсч'!$C$87,J30),IFERROR(SEARCH('[1]Критерии руб_рсч'!$C$88,J30),$AP$1)))=$AP$1,\"-\",\"OK\")","v":"-"},{"$f":"IF(IFERROR(SEARCH('[1]Критерии руб_рсч'!$C$90,J30),IFERROR(SEARCH('[1]Критерии руб_рсч'!$C$91,J30),IFERROR(SEARCH('[1]Критерии руб_рсч'!$C$92,J30),IFERROR(SEARCH('[1]Критерии руб_рсч'!$C$93,J30),$AP$1))))=$AP$1,\"-\",\"OK\")","v":"-"},{"$f":"IF(IFERROR(SEARCH('[1]Критерии руб_рсч'!$C$95,J30),IFERROR(SEARCH('[1]Критерии руб_рсч'!$C$96,J30),IFERROR(SEARCH('[1]Критерии руб_рсч'!$C$97,J30),IFERROR(SEARCH('[1]Критерии руб_рсч'!$C$98,J30),IFERROR(SEARCH('[1]Критерии руб_рсч'!$C$99,J30),IFERROR(SEARCH('[1]Критерии руб_рсч'!$C$100,J30),$AP$1))))))=$AP$1,\"-\",\"OK\")","v":"-"},{"$f":"IF(IFERROR(SEARCH('[1]Критерии руб_рсч'!$C$102,J30),IFERROR(SEARCH('[1]Критерии руб_рсч'!$C$103,J30),IFERROR(SEARCH('[1]Критерии руб_рсч'!$C$104,J30),IFERROR(SEARCH('[1]Критерии руб_рсч'!$C$105,J30),IFERROR(SEARCH('[1]Критерии руб_рсч'!$C$106,J30),IFERROR(SEARCH('[1]Критерии руб_рсч'!$C$107,J30),$AP$1))))))=$AP$1,\"-\",\"OK\")","v":"-"},{"$f":"IF(IFERROR(SEARCH('[1]Критерии руб_рсч'!$C$109,J30),IFERROR(SEARCH('[1]Критерии руб_рсч'!$C$109,J30),$AP$1))=$AP$1,\"-\",\"OK\")","v":"-"}]
["Солр5010","27.01.2015","Солид банк",0,520,null,null,null,"ЗАО \"СОЛИД БАНК\"","Комиссия за Прием наличных денежных средств на счет: купюры. Тариф 1.3.1.2","o",{"$f":"VLOOKUP(O31,[1]Справочник!$A$2:$B$44,2,0)","v":"опер"},1,2015,{"$f":"IFERROR(IF(T31=\"Оплата от покупателя\",\"income\",INDEX('Критерии руб_рсч'!$D$2:$D$91,MATCH(TRUE,ISNUMBER(SEARCH('Критерии руб_рсч'!$C$2:$C$91,рсч_руб!J31)),0))),\"other\")","v":"bank"},"руб.",1,2015,"Правда","Прочее списание",{"$f":"IF(IFERROR(SEARCH('[1]Критерии руб_рсч'!$C$2,J31),IFERROR(SEARCH('[1]Критерии руб_рсч'!$C$3,J31),IFERROR(SEARCH('[1]Критерии руб_рсч'!$C$4,J31),IFERROR(SEARCH('[1]Критерии руб_рсч'!$C$5,J31),IFERROR(SEARCH('[1]Критерии руб_рсч'!$C$6,J31),IFERROR(SEARCH('[1]Критерии руб_рсч'!$C$7,J31),IFERROR(SEARCH('[1]Критерии руб_рсч'!$C$8,J31),IFERROR(SEARCH('[1]Критерии руб_рсч'!$C$8,J31),IFERROR(SEARCH('[1]Критерии руб_рсч'!$C$10,J31),IFERROR(SEARCH('[1]Критерии руб_рсч'!$C$11,J31),\"-\"))))))))))=$AP$1,\"-\",\"OK\")","v":"-"},{"$f":"IF(IFERROR(SEARCH('[1]Критерии руб_рсч'!$C$13,J31),IFERROR(SEARCH('[1]Критерии руб_рсч'!$C$14,J31),IFERROR(SEARCH('[1]Критерии руб_рсч'!$C$15,J31),IFERROR(SEARCH('[1]Критерии руб_рсч'!$C$16,J31),IFERROR(SEARCH('[1]Критерии руб_рсч'!$C$17,J31),IFERROR(SEARCH('[1]Критерии руб_рсч'!$C$18,J31),IFERROR(SEARCH('[1]Критерии руб_рсч'!$C$19,J31),IFERROR(SEARCH('[1]Критерии руб_рсч'!$C$20,J31),IFERROR(SEARCH('[1]Критерии руб_рсч'!$C$21,J31),IFERROR(SEARCH('[1]Критерии руб_рсч'!$C$22,J31),IFERROR(SEARCH('[1]Критерии руб_рсч'!$C$23,J31),IFERROR(SEARCH('[1]Критерии руб_рсч'!$C$24,J31),IFERROR(SEARCH('[1]Критерии руб_рсч'!$C$25,J31),IFERROR(SEARCH('[1]Критерии руб_рсч'!$C$26,J31),$AP$1))))))))))))))=$AP$1,\"-\",\"OK\")","v":"OK"},{"$f":"IF(IFERROR(SEARCH('[1]Критерии руб_рсч'!$C$28,J31),IFERROR(SEARCH('[1]Критерии руб_рсч'!$C$29,J31),IFERROR(SEARCH('[1]Критерии руб_рсч'!$C$30,J31),$AP$1)))=$AP$1,\"-\",\"OK\")","v":"-"},{"$f":"IF(IFERROR(SEARCH('[1]Критерии руб_рсч'!$C$32,J31),IFERROR(SEARCH('[1]Критерии руб_рсч'!$C$33,J31),IFERROR(SEARCH('[1]Критерии руб_рсч'!$C$34,J31),IFERROR(SEARCH('[1]Критерии руб_рсч'!$C$35,J31),IFERROR(SEARCH('[1]Критерии руб_рсч'!$C$36,J31),$AP$1)))))=$AP$1,\"-\",\"OK\")","v":"-"},{"$f":"IF(IFERROR(SEARCH('[1]Критерии руб_рсч'!$C$38,J31),IFERROR(SEARCH('[1]Критерии руб_рсч'!$C$39,J31),IFERROR(SEARCH('[1]Критерии руб_рсч'!$C$40,J31),IFERROR(SEARCH('[1]Критерии руб_рсч'!$C$41,J31),IFERROR(SEARCH('[1]Критерии руб_рсч'!$C$42,J31),IFERROR(SEARCH('[1]Критерии руб_рсч'!$C$43,J31),$AP$1))))))=$AP$1,\"-\",\"OK\")","v":"-"},{"$f":"IF(IFERROR(SEARCH('[1]Критерии руб_рсч'!$C$45,J31),IFERROR(SEARCH('[1]Критерии руб_рсч'!$C$46,J31),IFERROR(SEARCH('[1]Критерии руб_рсч'!$C$47,J31),IFERROR(SEARCH('[1]Критерии руб_рсч'!$C$48,J31),IFERROR(SEARCH('[1]Критерии руб_рсч'!$C$49,J31),IFERROR(SEARCH('[1]Критерии руб_рсч'!$C$50,J31),IFERROR(SEARCH('[1]Критерии руб_рсч'!$C$51,J31),$AP$1)))))))=$AP$1,\"-\",\"OK\")","v":"-"},{"$f":"IF(IFERROR(SEARCH('[1]Критерии руб_рсч'!$C$53,J31),$AP$1)=$AP$1,\"-\",\"OK\")","v":"-"},{"$f":"IF(IFERROR(SEARCH('[1]Критерии руб_рсч'!$C$55,J31),IFERROR(SEARCH('[1]Критерии руб_рсч'!$C$56,J31),IFERROR(SEARCH('[1]Критерии руб_рсч'!$C$57,J31),IFERROR(SEARCH('[1]Критерии руб_рсч'!$C$58,J31),IFERROR(SEARCH('[1]Критерии руб_рсч'!$C$59,J31),$AP$1)))))=$AP$1,\"-\",\"OK\")","v":"-"},{"$f":"IF(IFERROR(SEARCH('[1]Критерии руб_рсч'!$C$61,J31),IFERROR(SEARCH('[1]Критерии руб_рсч'!$C$62,J31),IFERROR(SEARCH('[1]Критерии руб_рсч'!$C$63,J31),IFERROR(SEARCH('[1]Критерии руб_рсч'!$C$64,J31),$AP$1))))=$AP$1,\"-\",\"OK\")","v":"-"},{"$f":"IF(IFERROR(SEARCH('[1]Критерии руб_рсч'!$C$66,J31),$AP$1)=$AP$1,\"-\",\"OK\")","v":"-"},{"$f":"IF(IFERROR(SEARCH('[1]Критерии руб_рсч'!$C$68,J31),IFERROR(SEARCH('[1]Критерии руб_рсч'!$C$69,J31),IFERROR(SEARCH('[1]Критерии руб_рсч'!$C$70,J31),IFERROR(SEARCH('[1]Критерии руб_рсч'!$C$71,J31),$AP$1))))=$AP$1,\"-\",\"OK\")","v":"-"},{"$f":"IF(IFERROR(SEARCH('[1]Критерии руб_рсч'!$C$73,J31),IFERROR(SEARCH('[1]Критерии руб_рсч'!$C$74,J31),IFERROR(SEARCH('[1]Критерии руб_рсч'!$C$75,J31),IFERROR(SEARCH('[1]Критерии руб_рсч'!$C$76,J31),$AP$1))))=$AP$1,\"-\",\"OK\")","v":"-"},{"$f":"IF(IFERROR(SEARCH('[1]Критерии руб_рсч'!$C$78,J31),IFERROR(SEARCH('[1]Критерии руб_рсч'!$C$79,J31),IFERROR(SEARCH('[1]Критерии руб_рсч'!$C$80,J31),IFERROR(SEARCH('[1]Критерии руб_рсч'!$C$81,J31),$AP$1))))=$AP$1,\"-\",\"OK\")","v":"-"},{"$f":"IF(IFERROR(SEARCH('[1]Критерии руб_рсч'!$C$83,J31),IFERROR(SEARCH('[1]Критерии руб_рсч'!$C$84,J31),$AP$1))=$AP$1,\"-\",\"OK\")","v":"-"},{"$f":"IF(IFERROR(SEARCH('[1]Критерии руб_рсч'!$C$86,J31),IFERROR(SEARCH('[1]Критерии руб_рсч'!$C$87,J31),IFERROR(SEARCH('[1]Критерии руб_рсч'!$C$88,J31),$AP$1)))=$AP$1,\"-\",\"OK\")","v":"-"},{"$f":"IF(IFERROR(SEARCH('[1]Критерии руб_рсч'!$C$90,J31),IFERROR(SEARCH('[1]Критерии руб_рсч'!$C$91,J31),IFERROR(SEARCH('[1]Критерии руб_рсч'!$C$92,J31),IFERROR(SEARCH('[1]Критерии руб_рсч'!$C$93,J31),$AP$1))))=$AP$1,\"-\",\"OK\")","v":"-"},{"$f":"IF(IFERROR(SEARCH('[1]Критерии руб_рсч'!$C$95,J31),IFERROR(SEARCH('[1]Критерии руб_рсч'!$C$96,J31),IFERROR(SEARCH('[1]Критерии руб_рсч'!$C$97,J31),IFERROR(SEARCH('[1]Критерии руб_рсч'!$C$98,J31),IFERROR(SEARCH('[1]Критерии руб_рсч'!$C$99,J31),IFERROR(SEARCH('[1]Критерии руб_рсч'!$C$100,J31),$AP$1))))))=$AP$1,\"-\",\"OK\")","v":"-"},{"$f":"IF(IFERROR(SEARCH('[1]Критерии руб_рсч'!$C$102,J31),IFERROR(SEARCH('[1]Критерии руб_рсч'!$C$103,J31),IFERROR(SEARCH('[1]Критерии руб_рсч'!$C$104,J31),IFERROR(SEARCH('[1]Критерии руб_рсч'!$C$105,J31),IFERROR(SEARCH('[1]Критерии руб_рсч'!$C$106,J31),IFERROR(SEARCH('[1]Критерии руб_рсч'!$C$107,J31),$AP$1))))))=$AP$1,\"-\",\"OK\")","v":"-"},{"$f":"IF(IFERROR(SEARCH('[1]Критерии руб_рсч'!$C$109,J31),IFERROR(SEARCH('[1]Критерии руб_рсч'!$C$109,J31),$AP$1))=$AP$1,\"-\",\"OK\")","v":"-"}]
["Солр5011","27.01.2015","Солид банк",0,300000,null,null,null,"SH","{VO42015} Возврат займа по договору беспроцентного денежного займа №1 от 23.06.2011  Сумма 300000 Без налога (НДС) Сумма 300000","o",{"$f":"VLOOKUP(O32,[1]Справочник!$A$2:$B$44,2,0)","v":"фин"},1,2015,{"$f":"IFERROR(IF(T32=\"Оплата от покупателя\",\"income\",INDEX('Критерии руб_рсч'!$D$2:$D$91,MATCH(TRUE,ISNUMBER(SEARCH('Критерии руб_рсч'!$C$2:$C$91,рсч_руб!J32)),0))),\"other\")","v":"фин"},"руб.",1,2015,"Правда","Расчеты по кредитам и займам",{"$f":"IF(IFERROR(SEARCH('[1]Критерии руб_рсч'!$C$2,J32),IFERROR(SEARCH('[1]Критерии руб_рсч'!$C$3,J32),IFERROR(SEARCH('[1]Критерии руб_рсч'!$C$4,J32),IFERROR(SEARCH('[1]Критерии руб_рсч'!$C$5,J32),IFERROR(SEARCH('[1]Критерии руб_рсч'!$C$6,J32),IFERROR(SEARCH('[1]Критерии руб_рсч'!$C$7,J32),IFERROR(SEARCH('[1]Критерии руб_рсч'!$C$8,J32),IFERROR(SEARCH('[1]Критерии руб_рсч'!$C$8,J32),IFERROR(SEARCH('[1]Критерии руб_рсч'!$C$10,J32),IFERROR(SEARCH('[1]Критерии руб_рсч'!$C$11,J32),\"-\"))))))))))=$AP$1,\"-\",\"OK\")","v":"OK"},{"$f":"IF(IFERROR(SEARCH('[1]Критерии руб_рсч'!$C$13,J32),IFERROR(SEARCH('[1]Критерии руб_рсч'!$C$14,J32),IFERROR(SEARCH('[1]Критерии руб_рсч'!$C$15,J32),IFERROR(SEARCH('[1]Критерии руб_рсч'!$C$16,J32),IFERROR(SEARCH('[1]Критерии руб_рсч'!$C$17,J32),IFERROR(SEARCH('[1]Критерии руб_рсч'!$C$18,J32),IFERROR(SEARCH('[1]Критерии руб_рсч'!$C$19,J32),IFERROR(SEARCH('[1]Критерии руб_рсч'!$C$20,J32),IFERROR(SEARCH('[1]Критерии руб_рсч'!$C$21,J32),IFERROR(SEARCH('[1]Критерии руб_рсч'!$C$22,J32),IFERROR(SEARCH('[1]Критерии руб_рсч'!$C$23,J32),IFERROR(SEARCH('[1]Критерии руб_рсч'!$C$24,J32),IFERROR(SEARCH('[1]Критерии руб_рсч'!$C$25,J32),IFERROR(SEARCH('[1]Критерии руб_рсч'!$C$26,J32),$AP$1))))))))))))))=$AP$1,\"-\",\"OK\")","v":"-"},{"$f":"IF(IFERROR(SEARCH('[1]Критерии руб_рсч'!$C$28,J32),IFERROR(SEARCH('[1]Критерии руб_рсч'!$C$29,J32),IFERROR(SEARCH('[1]Критерии руб_рсч'!$C$30,J32),$AP$1)))=$AP$1,\"-\",\"OK\")","v":"-"},{"$f":"IF(IFERROR(SEARCH('[1]Критерии руб_рсч'!$C$32,J32),IFERROR(SEARCH('[1]Критерии руб_рсч'!$C$33,J32),IFERROR(SEARCH('[1]Критерии руб_рсч'!$C$34,J32),IFERROR(SEARCH('[1]Критерии руб_рсч'!$C$35,J32),IFERROR(SEARCH('[1]Критерии руб_рсч'!$C$36,J32),$AP$1)))))=$AP$1,\"-\",\"OK\")","v":"-"},{"$f":"IF(IFERROR(SEARCH('[1]Критерии руб_рсч'!$C$38,J32),IFERROR(SEARCH('[1]Критерии руб_рсч'!$C$39,J32),IFERROR(SEARCH('[1]Критерии руб_рсч'!$C$40,J32),IFERROR(SEARCH('[1]Критерии руб_рсч'!$C$41,J32),IFERROR(SEARCH('[1]Критерии руб_рсч'!$C$42,J32),IFERROR(SEARCH('[1]Критерии руб_рсч'!$C$43,J32),$AP$1))))))=$AP$1,\"-\",\"OK\")","v":"-"},{"$f":"IF(IFERROR(SEARCH('[1]Критерии руб_рсч'!$C$45,J32),IFERROR(SEARCH('[1]Критерии руб_рсч'!$C$46,J32),IFERROR(SEARCH('[1]Критерии руб_рсч'!$C$47,J32),IFERROR(SEARCH('[1]Критерии руб_рсч'!$C$48,J32),IFERROR(SEARCH('[1]Критерии руб_рсч'!$C$49,J32),IFERROR(SEARCH('[1]Критерии руб_рсч'!$C$50,J32),IFERROR(SEARCH('[1]Критерии руб_рсч'!$C$51,J32),$AP$1)))))))=$AP$1,\"-\",\"OK\")","v":"-"},{"$f":"IF(IFERROR(SEARCH('[1]Критерии руб_рсч'!$C$53,J32),$AP$1)=$AP$1,\"-\",\"OK\")","v":"-"},{"$f":"IF(IFERROR(SEARCH('[1]Критерии руб_рсч'!$C$55,J32),IFERROR(SEARCH('[1]Критерии руб_рсч'!$C$56,J32),IFERROR(SEARCH('[1]Критерии руб_рсч'!$C$57,J32),IFERROR(SEARCH('[1]Критерии руб_рсч'!$C$58,J32),IFERROR(SEARCH('[1]Критерии руб_рсч'!$C$59,J32),$AP$1)))))=$AP$1,\"-\",\"OK\")","v":"-"},{"$f":"IF(IFERROR(SEARCH('[1]Критерии руб_рсч'!$C$61,J32),IFERROR(SEARCH('[1]Критерии руб_рсч'!$C$62,J32),IFERROR(SEARCH('[1]Критерии руб_рсч'!$C$63,J32),IFERROR(SEARCH('[1]Критерии руб_рсч'!$C$64,J32),$AP$1))))=$AP$1,\"-\",\"OK\")","v":"-"},{"$f":"IF(IFERROR(SEARCH('[1]Критерии руб_рсч'!$C$66,J32),$AP$1)=$AP$1,\"-\",\"OK\")","v":"-"},{"$f":"IF(IFERROR(SEARCH('[1]Критерии руб_рсч'!$C$68,J32),IFERROR(SEARCH('[1]Критерии руб_рсч'!$C$69,J32),IFERROR(SEARCH('[1]Критерии руб_рсч'!$C$70,J32),IFERROR(SEARCH('[1]Критерии руб_рсч'!$C$71,J32),$AP$1))))=$AP$1,\"-\",\"OK\")","v":"-"},{"$f":"IF(IFERROR(SEARCH('[1]Критерии руб_рсч'!$C$73,J32),IFERROR(SEARCH('[1]Критерии руб_рсч'!$C$74,J32),IFERROR(SEARCH('[1]Критерии руб_рсч'!$C$75,J32),IFERROR(SEARCH('[1]Критерии руб_рсч'!$C$76,J32),$AP$1))))=$AP$1,\"-\",\"OK\")","v":"-"},{"$f":"IF(IFERROR(SEARCH('[1]Критерии руб_рсч'!$C$78,J32),IFERROR(SEARCH('[1]Критерии руб_рсч'!$C$79,J32),IFERROR(SEARCH('[1]Критерии руб_рсч'!$C$80,J32),IFERROR(SEARCH('[1]Критерии руб_рсч'!$C$81,J32),$AP$1))))=$AP$1,\"-\",\"OK\")","v":"-"},{"$f":"IF(IFERROR(SEARCH('[1]Критерии руб_рсч'!$C$83,J32),IFERROR(SEARCH('[1]Критерии руб_рсч'!$C$84,J32),$AP$1))=$AP$1,\"-\",\"OK\")","v":"-"},{"$f":"IF(IFERROR(SEARCH('[1]Критерии руб_рсч'!$C$86,J32),IFERROR(SEARCH('[1]Критерии руб_рсч'!$C$87,J32),IFERROR(SEARCH('[1]Критерии руб_рсч'!$C$88,J32),$AP$1)))=$AP$1,\"-\",\"OK\")","v":"-"},{"$f":"IF(IFERROR(SEARCH('[1]Критерии руб_рсч'!$C$90,J32),IFERROR(SEARCH('[1]Критерии руб_рсч'!$C$91,J32),IFERROR(SEARCH('[1]Критерии руб_рсч'!$C$92,J32),IFERROR(SEARCH('[1]Критерии руб_рсч'!$C$93,J32),$AP$1))))=$AP$1,\"-\",\"OK\")","v":"-"},{"$f":"IF(IFERROR(SEARCH('[1]Критерии руб_рсч'!$C$95,J32),IFERROR(SEARCH('[1]Критерии руб_рсч'!$C$96,J32),IFERROR(SEARCH('[1]Критерии руб_рсч'!$C$97,J32),IFERROR(SEARCH('[1]Критерии руб_рсч'!$C$98,J32),IFERROR(SEARCH('[1]Критерии руб_рсч'!$C$99,J32),IFERROR(SEARCH('[1]Критерии руб_рсч'!$C$100,J32),$AP$1))))))=$AP$1,\"-\",\"OK\")","v":"-"},{"$f":"IF(IFERROR(SEARCH('[1]Критерии руб_рсч'!$C$102,J32),IFERROR(SEARCH('[1]Критерии руб_рсч'!$C$103,J32),IFERROR(SEARCH('[1]Критерии руб_рсч'!$C$104,J32),IFERROR(SEARCH('[1]Критерии руб_рсч'!$C$105,J32),IFERROR(SEARCH('[1]Критерии руб_рсч'!$C$106,J32),IFERROR(SEARCH('[1]Критерии руб_рсч'!$C$107,J32),$AP$1))))))=$AP$1,\"-\",\"OK\")","v":"-"},{"$f":"IF(IFERROR(SEARCH('[1]Критерии руб_рсч'!$C$109,J32),IFERROR(SEARCH('[1]Критерии руб_рсч'!$C$109,J32),$AP$1))=$AP$1,\"-\",\"OK\")","v":"-"}]
["Солр5012","28.01.2015","Солид банк",300000,0,null,null,null,"ЗАО \"СОЛИД БАНК\"","Торговая выручка","o",{"$f":"VLOOKUP(O33,[1]Справочник!$A$2:$B$44,2,0)","v":"CF"},1,2015,{"$f":"IFERROR(IF(T33=\"Оплата от покупателя\",\"income\",INDEX('Критерии руб_рсч'!$D$2:$D$91,MATCH(TRUE,ISNUMBER(SEARCH('Критерии руб_рсч'!$C$2:$C$91,рсч_руб!J33)),0))),\"other\")","v":"ДДС"},"руб.",null,null,"Правда","Инкассация",{"$f":"IF(IFERROR(SEARCH('[1]Критерии руб_рсч'!$C$2,J33),IFERROR(SEARCH('[1]Критерии руб_рсч'!$C$3,J33),IFERROR(SEARCH('[1]Критерии руб_рсч'!$C$4,J33),IFERROR(SEARCH('[1]Критерии руб_рсч'!$C$5,J33),IFERROR(SEARCH('[1]Критерии руб_рсч'!$C$6,J33),IFERROR(SEARCH('[1]Критерии руб_рсч'!$C$7,J33),IFERROR(SEARCH('[1]Критерии руб_рсч'!$C$8,J33),IFERROR(SEARCH('[1]Критерии руб_рсч'!$C$8,J33),IFERROR(SEARCH('[1]Критерии руб_рсч'!$C$10,J33),IFERROR(SEARCH('[1]Критерии руб_рсч'!$C$11,J33),\"-\"))))))))))=$AP$1,\"-\",\"OK\")","v":"-"},{"$f":"IF(IFERROR(SEARCH('[1]Критерии руб_рсч'!$C$13,J33),IFERROR(SEARCH('[1]Критерии руб_рсч'!$C$14,J33),IFERROR(SEARCH('[1]Критерии руб_рсч'!$C$15,J33),IFERROR(SEARCH('[1]Критерии руб_рсч'!$C$16,J33),IFERROR(SEARCH('[1]Критерии руб_рсч'!$C$17,J33),IFERROR(SEARCH('[1]Критерии руб_рсч'!$C$18,J33),IFERROR(SEARCH('[1]Критерии руб_рсч'!$C$19,J33),IFERROR(SEARCH('[1]Критерии руб_рсч'!$C$20,J33),IFERROR(SEARCH('[1]Критерии руб_рсч'!$C$21,J33),IFERROR(SEARCH('[1]Критерии руб_рсч'!$C$22,J33),IFERROR(SEARCH('[1]Критерии руб_рсч'!$C$23,J33),IFERROR(SEARCH('[1]Критерии руб_рсч'!$C$24,J33),IFERROR(SEARCH('[1]Критерии руб_рсч'!$C$25,J33),IFERROR(SEARCH('[1]Критерии руб_рсч'!$C$26,J33),$AP$1))))))))))))))=$AP$1,\"-\",\"OK\")","v":"-"},{"$f":"IF(IFERROR(SEARCH('[1]Критерии руб_рсч'!$C$28,J33),IFERROR(SEARCH('[1]Критерии руб_рсч'!$C$29,J33),IFERROR(SEARCH('[1]Критерии руб_рсч'!$C$30,J33),$AP$1)))=$AP$1,\"-\",\"OK\")","v":"-"},{"$f":"IF(IFERROR(SEARCH('[1]Критерии руб_рсч'!$C$32,J33),IFERROR(SEARCH('[1]Критерии руб_рсч'!$C$33,J33),IFERROR(SEARCH('[1]Критерии руб_рсч'!$C$34,J33),IFERROR(SEARCH('[1]Критерии руб_рсч'!$C$35,J33),IFERROR(SEARCH('[1]Критерии руб_рсч'!$C$36,J33),$AP$1)))))=$AP$1,\"-\",\"OK\")","v":"-"},{"$f":"IF(IFERROR(SEARCH('[1]Критерии руб_рсч'!$C$38,J33),IFERROR(SEARCH('[1]Критерии руб_рсч'!$C$39,J33),IFERROR(SEARCH('[1]Критерии руб_рсч'!$C$40,J33),IFERROR(SEARCH('[1]Критерии руб_рсч'!$C$41,J33),IFERROR(SEARCH('[1]Критерии руб_рсч'!$C$42,J33),IFERROR(SEARCH('[1]Критерии руб_рсч'!$C$43,J33),$AP$1))))))=$AP$1,\"-\",\"OK\")","v":"OK"},{"$f":"IF(IFERROR(SEARCH('[1]Критерии руб_рсч'!$C$45,J33),IFERROR(SEARCH('[1]Критерии руб_рсч'!$C$46,J33),IFERROR(SEARCH('[1]Критерии руб_рсч'!$C$47,J33),IFERROR(SEARCH('[1]Критерии руб_рсч'!$C$48,J33),IFERROR(SEARCH('[1]Критерии руб_рсч'!$C$49,J33),IFERROR(SEARCH('[1]Критерии руб_рсч'!$C$50,J33),IFERROR(SEARCH('[1]Критерии руб_рсч'!$C$51,J33),$AP$1)))))))=$AP$1,\"-\",\"OK\")","v":"-"},{"$f":"IF(IFERROR(SEARCH('[1]Критерии руб_рсч'!$C$53,J33),$AP$1)=$AP$1,\"-\",\"OK\")","v":"-"},{"$f":"IF(IFERROR(SEARCH('[1]Критерии руб_рсч'!$C$55,J33),IFERROR(SEARCH('[1]Критерии руб_рсч'!$C$56,J33),IFERROR(SEARCH('[1]Критерии руб_рсч'!$C$57,J33),IFERROR(SEARCH('[1]Критерии руб_рсч'!$C$58,J33),IFERROR(SEARCH('[1]Критерии руб_рсч'!$C$59,J33),$AP$1)))))=$AP$1,\"-\",\"OK\")","v":"-"},{"$f":"IF(IFERROR(SEARCH('[1]Критерии руб_рсч'!$C$61,J33),IFERROR(SEARCH('[1]Критерии руб_рсч'!$C$62,J33),IFERROR(SEARCH('[1]Критерии руб_рсч'!$C$63,J33),IFERROR(SEARCH('[1]Критерии руб_рсч'!$C$64,J33),$AP$1))))=$AP$1,\"-\",\"OK\")","v":"-"},{"$f":"IF(IFERROR(SEARCH('[1]Критерии руб_рсч'!$C$66,J33),$AP$1)=$AP$1,\"-\",\"OK\")","v":"-"},{"$f":"IF(IFERROR(SEARCH('[1]Критерии руб_рсч'!$C$68,J33),IFERROR(SEARCH('[1]Критерии руб_рсч'!$C$69,J33),IFERROR(SEARCH('[1]Критерии руб_рсч'!$C$70,J33),IFERROR(SEARCH('[1]Критерии руб_рсч'!$C$71,J33),$AP$1))))=$AP$1,\"-\",\"OK\")","v":"-"},{"$f":"IF(IFERROR(SEARCH('[1]Критерии руб_рсч'!$C$73,J33),IFERROR(SEARCH('[1]Критерии руб_рсч'!$C$74,J33),IFERROR(SEARCH('[1]Критерии руб_рсч'!$C$75,J33),IFERROR(SEARCH('[1]Критерии руб_рсч'!$C$76,J33),$AP$1))))=$AP$1,\"-\",\"OK\")","v":"-"},{"$f":"IF(IFERROR(SEARCH('[1]Критерии руб_рсч'!$C$78,J33),IFERROR(SEARCH('[1]Критерии руб_рсч'!$C$79,J33),IFERROR(SEARCH('[1]Критерии руб_рсч'!$C$80,J33),IFERROR(SEARCH('[1]Критерии руб_рсч'!$C$81,J33),$AP$1))))=$AP$1,\"-\",\"OK\")","v":"-"},{"$f":"IF(IFERROR(SEARCH('[1]Критерии руб_рсч'!$C$83,J33),IFERROR(SEARCH('[1]Критерии руб_рсч'!$C$84,J33),$AP$1))=$AP$1,\"-\",\"OK\")","v":"-"},{"$f":"IF(IFERROR(SEARCH('[1]Критерии руб_рсч'!$C$86,J33),IFERROR(SEARCH('[1]Критерии руб_рсч'!$C$87,J33),IFERROR(SEARCH('[1]Критерии руб_рсч'!$C$88,J33),$AP$1)))=$AP$1,\"-\",\"OK\")","v":"-"},{"$f":"IF(IFERROR(SEARCH('[1]Критерии руб_рсч'!$C$90,J33),IFERROR(SEARCH('[1]Критерии руб_рсч'!$C$91,J33),IFERROR(SEARCH('[1]Критерии руб_рсч'!$C$92,J33),IFERROR(SEARCH('[1]Критерии руб_рсч'!$C$93,J33),$AP$1))))=$AP$1,\"-\",\"OK\")","v":"-"},{"$f":"IF(IFERROR(SEARCH('[1]Критерии руб_рсч'!$C$95,J33),IFERROR(SEARCH('[1]Критерии руб_рсч'!$C$96,J33),IFERROR(SEARCH('[1]Критерии руб_рсч'!$C$97,J33),IFERROR(SEARCH('[1]Критерии руб_рсч'!$C$98,J33),IFERROR(SEARCH('[1]Критерии руб_рсч'!$C$99,J33),IFERROR(SEARCH('[1]Критерии руб_рсч'!$C$100,J33),$AP$1))))))=$AP$1,\"-\",\"OK\")","v":"-"},{"$f":"IF(IFERROR(SEARCH('[1]Критерии руб_рсч'!$C$102,J33),IFERROR(SEARCH('[1]Критерии руб_рсч'!$C$103,J33),IFERROR(SEARCH('[1]Критерии руб_рсч'!$C$104,J33),IFERROR(SEARCH('[1]Критерии руб_рсч'!$C$105,J33),IFERROR(SEARCH('[1]Критерии руб_рсч'!$C$106,J33),IFERROR(SEARCH('[1]Критерии руб_рсч'!$C$107,J33),$AP$1))))))=$AP$1,\"-\",\"OK\")","v":"-"},{"$f":"IF(IFERROR(SEARCH('[1]Критерии руб_рсч'!$C$109,J33),IFERROR(SEARCH('[1]Критерии руб_рсч'!$C$109,J33),$AP$1))=$AP$1,\"-\",\"OK\")","v":"-"}]
["Солр5013","28.01.2015","Солид банк",0,25,null,null,null,"ЗАО \"СОЛИД БАНК\"","Комиссия за Перечисление денежных средств со счета Клиента в другие кредитные организации по платежным поручениям,  полученным по Системе Ibank2. Тариф 1.2.3.2","o",{"$f":"VLOOKUP(O34,[1]Справочник!$A$2:$B$44,2,0)","v":"опер"},1,2015,{"$f":"IFERROR(IF(T34=\"Оплата от покупателя\",\"income\",INDEX('Критерии руб_рсч'!$D$2:$D$91,MATCH(TRUE,ISNUMBER(SEARCH('Критерии руб_рсч'!$C$2:$C$91,рсч_руб!J34)),0))),\"other\")","v":"bank"},"руб.",1,2015,"Правда","Прочее списание",{"$f":"IF(IFERROR(SEARCH('[1]Критерии руб_рсч'!$C$2,J34),IFERROR(SEARCH('[1]Критерии руб_рсч'!$C$3,J34),IFERROR(SEARCH('[1]Критерии руб_рсч'!$C$4,J34),IFERROR(SEARCH('[1]Критерии руб_рсч'!$C$5,J34),IFERROR(SEARCH('[1]Критерии руб_рсч'!$C$6,J34),IFERROR(SEARCH('[1]Критерии руб_рсч'!$C$7,J34),IFERROR(SEARCH('[1]Критерии руб_рсч'!$C$8,J34),IFERROR(SEARCH('[1]Критерии руб_рсч'!$C$8,J34),IFERROR(SEARCH('[1]Критерии руб_рсч'!$C$10,J34),IFERROR(SEARCH('[1]Критерии руб_рсч'!$C$11,J34),\"-\"))))))))))=$AP$1,\"-\",\"OK\")","v":"-"},{"$f":"IF(IFERROR(SEARCH('[1]Критерии руб_рсч'!$C$13,J34),IFERROR(SEARCH('[1]Критерии руб_рсч'!$C$14,J34),IFERROR(SEARCH('[1]Критерии руб_рсч'!$C$15,J34),IFERROR(SEARCH('[1]Критерии руб_рсч'!$C$16,J34),IFERROR(SEARCH('[1]Критерии руб_рсч'!$C$17,J34),IFERROR(SEARCH('[1]Критерии руб_рсч'!$C$18,J34),IFERROR(SEARCH('[1]Критерии руб_рсч'!$C$19,J34),IFERROR(SEARCH('[1]Критерии руб_рсч'!$C$20,J34),IFERROR(SEARCH('[1]Критерии руб_рсч'!$C$21,J34),IFERROR(SEARCH('[1]Критерии руб_рсч'!$C$22,J34),IFERROR(SEARCH('[1]Критерии руб_рсч'!$C$23,J34),IFERROR(SEARCH('[1]Критерии руб_рсч'!$C$24,J34),IFERROR(SEARCH('[1]Критерии руб_рсч'!$C$25,J34),IFERROR(SEARCH('[1]Критерии руб_рсч'!$C$26,J34),$AP$1))))))))))))))=$AP$1,\"-\",\"OK\")","v":"OK"},{"$f":"IF(IFERROR(SEARCH('[1]Критерии руб_рсч'!$C$28,J34),IFERROR(SEARCH('[1]Критерии руб_рсч'!$C$29,J34),IFERROR(SEARCH('[1]Критерии руб_рсч'!$C$30,J34),$AP$1)))=$AP$1,\"-\",\"OK\")","v":"-"},{"$f":"IF(IFERROR(SEARCH('[1]Критерии руб_рсч'!$C$32,J34),IFERROR(SEARCH('[1]Критерии руб_рсч'!$C$33,J34),IFERROR(SEARCH('[1]Критерии руб_рсч'!$C$34,J34),IFERROR(SEARCH('[1]Критерии руб_рсч'!$C$35,J34),IFERROR(SEARCH('[1]Критерии руб_рсч'!$C$36,J34),$AP$1)))))=$AP$1,\"-\",\"OK\")","v":"-"},{"$f":"IF(IFERROR(SEARCH('[1]Критерии руб_рсч'!$C$38,J34),IFERROR(SEARCH('[1]Критерии руб_рсч'!$C$39,J34),IFERROR(SEARCH('[1]Критерии руб_рсч'!$C$40,J34),IFERROR(SEARCH('[1]Критерии руб_рсч'!$C$41,J34),IFERROR(SEARCH('[1]Критерии руб_рсч'!$C$42,J34),IFERROR(SEARCH('[1]Критерии руб_рсч'!$C$43,J34),$AP$1))))))=$AP$1,\"-\",\"OK\")","v":"-"},{"$f":"IF(IFERROR(SEARCH('[1]Критерии руб_рсч'!$C$45,J34),IFERROR(SEARCH('[1]Критерии руб_рсч'!$C$46,J34),IFERROR(SEARCH('[1]Критерии руб_рсч'!$C$47,J34),IFERROR(SEARCH('[1]Критерии руб_рсч'!$C$48,J34),IFERROR(SEARCH('[1]Критерии руб_рсч'!$C$49,J34),IFERROR(SEARCH('[1]Критерии руб_рсч'!$C$50,J34),IFERROR(SEARCH('[1]Критерии руб_рсч'!$C$51,J34),$AP$1)))))))=$AP$1,\"-\",\"OK\")","v":"-"},{"$f":"IF(IFERROR(SEARCH('[1]Критерии руб_рсч'!$C$53,J34),$AP$1)=$AP$1,\"-\",\"OK\")","v":"-"},{"$f":"IF(IFERROR(SEARCH('[1]Критерии руб_рсч'!$C$55,J34),IFERROR(SEARCH('[1]Критерии руб_рсч'!$C$56,J34),IFERROR(SEARCH('[1]Критерии руб_рсч'!$C$57,J34),IFERROR(SEARCH('[1]Критерии руб_рсч'!$C$58,J34),IFERROR(SEARCH('[1]Критерии руб_рсч'!$C$59,J34),$AP$1)))))=$AP$1,\"-\",\"OK\")","v":"-"},{"$f":"IF(IFERROR(SEARCH('[1]Критерии руб_рсч'!$C$61,J34),IFERROR(SEARCH('[1]Критерии руб_рсч'!$C$62,J34),IFERROR(SEARCH('[1]Критерии руб_рсч'!$C$63,J34),IFERROR(SEARCH('[1]Критерии руб_рсч'!$C$64,J34),$AP$1))))=$AP$1,\"-\",\"OK\")","v":"-"},{"$f":"IF(IFERROR(SEARCH('[1]Критерии руб_рсч'!$C$66,J34),$AP$1)=$AP$1,\"-\",\"OK\")","v":"-"},{"$f":"IF(IFERROR(SEARCH('[1]Критерии руб_рсч'!$C$68,J34),IFERROR(SEARCH('[1]Критерии руб_рсч'!$C$69,J34),IFERROR(SEARCH('[1]Критерии руб_рсч'!$C$70,J34),IFERROR(SEARCH('[1]Критерии руб_рсч'!$C$71,J34),$AP$1))))=$AP$1,\"-\",\"OK\")","v":"-"},{"$f":"IF(IFERROR(SEARCH('[1]Критерии руб_рсч'!$C$73,J34),IFERROR(SEARCH('[1]Критерии руб_рсч'!$C$74,J34),IFERROR(SEARCH('[1]Критерии руб_рсч'!$C$75,J34),IFERROR(SEARCH('[1]Критерии руб_рсч'!$C$76,J34),$AP$1))))=$AP$1,\"-\",\"OK\")","v":"-"},{"$f":"IF(IFERROR(SEARCH('[1]Критерии руб_рсч'!$C$78,J34),IFERROR(SEARCH('[1]Критерии руб_рсч'!$C$79,J34),IFERROR(SEARCH('[1]Критерии руб_рсч'!$C$80,J34),IFERROR(SEARCH('[1]Критерии руб_рсч'!$C$81,J34),$AP$1))))=$AP$1,\"-\",\"OK\")","v":"-"},{"$f":"IF(IFERROR(SEARCH('[1]Критерии руб_рсч'!$C$83,J34),IFERROR(SEARCH('[1]Критерии руб_рсч'!$C$84,J34),$AP$1))=$AP$1,\"-\",\"OK\")","v":"-"},{"$f":"IF(IFERROR(SEARCH('[1]Критерии руб_рсч'!$C$86,J34),IFERROR(SEARCH('[1]Критерии руб_рсч'!$C$87,J34),IFERROR(SEARCH('[1]Критерии руб_рсч'!$C$88,J34),$AP$1)))=$AP$1,\"-\",\"OK\")","v":"-"},{"$f":"IF(IFERROR(SEARCH('[1]Критерии руб_рсч'!$C$90,J34),IFERROR(SEARCH('[1]Критерии руб_рсч'!$C$91,J34),IFERROR(SEARCH('[1]Критерии руб_рсч'!$C$92,J34),IFERROR(SEARCH('[1]Критерии руб_рсч'!$C$93,J34),$AP$1))))=$AP$1,\"-\",\"OK\")","v":"-"},{"$f":"IF(IFERROR(SEARCH('[1]Критерии руб_рсч'!$C$95,J34),IFERROR(SEARCH('[1]Критерии руб_рсч'!$C$96,J34),IFERROR(SEARCH('[1]Критерии руб_рсч'!$C$97,J34),IFERROR(SEARCH('[1]Критерии руб_рсч'!$C$98,J34),IFERROR(SEARCH('[1]Критерии руб_рсч'!$C$99,J34),IFERROR(SEARCH('[1]Критерии руб_рсч'!$C$100,J34),$AP$1))))))=$AP$1,\"-\",\"OK\")","v":"-"},{"$f":"IF(IFERROR(SEARCH('[1]Критерии руб_рсч'!$C$102,J34),IFERROR(SEARCH('[1]Критерии руб_рсч'!$C$103,J34),IFERROR(SEARCH('[1]Критерии руб_рсч'!$C$104,J34),IFERROR(SEARCH('[1]Критерии руб_рсч'!$C$105,J34),IFERROR(SEARCH('[1]Критерии руб_рсч'!$C$106,J34),IFERROR(SEARCH('[1]Критерии руб_рсч'!$C$107,J34),$AP$1))))))=$AP$1,\"-\",\"OK\")","v":"-"},{"$f":"IF(IFERROR(SEARCH('[1]Критерии руб_рсч'!$C$109,J34),IFERROR(SEARCH('[1]Критерии руб_рсч'!$C$109,J34),$AP$1))=$AP$1,\"-\",\"OK\")","v":"-"}]
["Солр5014","28.01.2015","Солид банк",0,61.03,null,null,null,"ЗАО \"СОЛИД БАНК\"","НДС-18%, удержанный сверх суммы комиссионного вознаграждения за исполнение функций валютного контроля согласно Тарифам Банка. Распоряжение  от 28.01.2015г.","o",{"$f":"VLOOKUP(O35,[1]Справочник!$A$2:$B$44,2,0)","v":"опер"},1,2015,{"$f":"IFERROR(IF(T35=\"Оплата от покупателя\",\"income\",INDEX('Критерии руб_рсч'!$D$2:$D$91,MATCH(TRUE,ISNUMBER(SEARCH('Критерии руб_рсч'!$C$2:$C$91,рсч_руб!J35)),0))),\"other\")","v":"bank"},"руб.",1,2015,"Правда","Прочее списание",{"$f":"IF(IFERROR(SEARCH('[1]Критерии руб_рсч'!$C$2,J35),IFERROR(SEARCH('[1]Критерии руб_рсч'!$C$3,J35),IFERROR(SEARCH('[1]Критерии руб_рсч'!$C$4,J35),IFERROR(SEARCH('[1]Критерии руб_рсч'!$C$5,J35),IFERROR(SEARCH('[1]Критерии руб_рсч'!$C$6,J35),IFERROR(SEARCH('[1]Критерии руб_рсч'!$C$7,J35),IFERROR(SEARCH('[1]Критерии руб_рсч'!$C$8,J35),IFERROR(SEARCH('[1]Критерии руб_рсч'!$C$8,J35),IFERROR(SEARCH('[1]Критерии руб_рсч'!$C$10,J35),IFERROR(SEARCH('[1]Критерии руб_рсч'!$C$11,J35),\"-\"))))))))))=$AP$1,\"-\",\"OK\")","v":"-"},{"$f":"IF(IFERROR(SEARCH('[1]Критерии руб_рсч'!$C$13,J35),IFERROR(SEARCH('[1]Критерии руб_рсч'!$C$14,J35),IFERROR(SEARCH('[1]Критерии руб_рсч'!$C$15,J35),IFERROR(SEARCH('[1]Критерии руб_рсч'!$C$16,J35),IFERROR(SEARCH('[1]Критерии руб_рсч'!$C$17,J35),IFERROR(SEARCH('[1]Критерии руб_рсч'!$C$18,J35),IFERROR(SEARCH('[1]Критерии руб_рсч'!$C$19,J35),IFERROR(SEARCH('[1]Критерии руб_рсч'!$C$20,J35),IFERROR(SEARCH('[1]Критерии руб_рсч'!$C$21,J35),IFERROR(SEARCH('[1]Критерии руб_рсч'!$C$22,J35),IFERROR(SEARCH('[1]Критерии руб_рсч'!$C$23,J35),IFERROR(SEARCH('[1]Критерии руб_рсч'!$C$24,J35),IFERROR(SEARCH('[1]Критерии руб_рсч'!$C$25,J35),IFERROR(SEARCH('[1]Критерии руб_рсч'!$C$26,J35),$AP$1))))))))))))))=$AP$1,\"-\",\"OK\")","v":"OK"},{"$f":"IF(IFERROR(SEARCH('[1]Критерии руб_рсч'!$C$28,J35),IFERROR(SEARCH('[1]Критерии руб_рсч'!$C$29,J35),IFERROR(SEARCH('[1]Критерии руб_рсч'!$C$30,J35),$AP$1)))=$AP$1,\"-\",\"OK\")","v":"-"},{"$f":"IF(IFERROR(SEARCH('[1]Критерии руб_рсч'!$C$32,J35),IFERROR(SEARCH('[1]Критерии руб_рсч'!$C$33,J35),IFERROR(SEARCH('[1]Критерии руб_рсч'!$C$34,J35),IFERROR(SEARCH('[1]Критерии руб_рсч'!$C$35,J35),IFERROR(SEARCH('[1]Критерии руб_рсч'!$C$36,J35),$AP$1)))))=$AP$1,\"-\",\"OK\")","v":"-"},{"$f":"IF(IFERROR(SEARCH('[1]Критерии руб_рсч'!$C$38,J35),IFERROR(SEARCH('[1]Критерии руб_рсч'!$C$39,J35),IFERROR(SEARCH('[1]Критерии руб_рсч'!$C$40,J35),IFERROR(SEARCH('[1]Критерии руб_рсч'!$C$41,J35),IFERROR(SEARCH('[1]Критерии руб_рсч'!$C$42,J35),IFERROR(SEARCH('[1]Критерии руб_рсч'!$C$43,J35),$AP$1))))))=$AP$1,\"-\",\"OK\")","v":"-"},{"$f":"IF(IFERROR(SEARCH('[1]Критерии руб_рсч'!$C$45,J35),IFERROR(SEARCH('[1]Критерии руб_рсч'!$C$46,J35),IFERROR(SEARCH('[1]Критерии руб_рсч'!$C$47,J35),IFERROR(SEARCH('[1]Критерии руб_рсч'!$C$48,J35),IFERROR(SEARCH('[1]Критерии руб_рсч'!$C$49,J35),IFERROR(SEARCH('[1]Критерии руб_рсч'!$C$50,J35),IFERROR(SEARCH('[1]Критерии руб_рсч'!$C$51,J35),$AP$1)))))))=$AP$1,\"-\",\"OK\")","v":"-"},{"$f":"IF(IFERROR(SEARCH('[1]Критерии руб_рсч'!$C$53,J35),$AP$1)=$AP$1,\"-\",\"OK\")","v":"-"},{"$f":"IF(IFERROR(SEARCH('[1]Критерии руб_рсч'!$C$55,J35),IFERROR(SEARCH('[1]Критерии руб_рсч'!$C$56,J35),IFERROR(SEARCH('[1]Критерии руб_рсч'!$C$57,J35),IFERROR(SEARCH('[1]Критерии руб_рсч'!$C$58,J35),IFERROR(SEARCH('[1]Критерии руб_рсч'!$C$59,J35),$AP$1)))))=$AP$1,\"-\",\"OK\")","v":"-"},{"$f":"IF(IFERROR(SEARCH('[1]Критерии руб_рсч'!$C$61,J35),IFERROR(SEARCH('[1]Критерии руб_рсч'!$C$62,J35),IFERROR(SEARCH('[1]Критерии руб_рсч'!$C$63,J35),IFERROR(SEARCH('[1]Критерии руб_рсч'!$C$64,J35),$AP$1))))=$AP$1,\"-\",\"OK\")","v":"-"},{"$f":"IF(IFERROR(SEARCH('[1]Критерии руб_рсч'!$C$66,J35),$AP$1)=$AP$1,\"-\",\"OK\")","v":"-"},{"$f":"IF(IFERROR(SEARCH('[1]Критерии руб_рсч'!$C$68,J35),IFERROR(SEARCH('[1]Критерии руб_рсч'!$C$69,J35),IFERROR(SEARCH('[1]Критерии руб_рсч'!$C$70,J35),IFERROR(SEARCH('[1]Критерии руб_рсч'!$C$71,J35),$AP$1))))=$AP$1,\"-\",\"OK\")","v":"-"},{"$f":"IF(IFERROR(SEARCH('[1]Критерии руб_рсч'!$C$73,J35),IFERROR(SEARCH('[1]Критерии руб_рсч'!$C$74,J35),IFERROR(SEARCH('[1]Критерии руб_рсч'!$C$75,J35),IFERROR(SEARCH('[1]Критерии руб_рсч'!$C$76,J35),$AP$1))))=$AP$1,\"-\",\"OK\")","v":"-"},{"$f":"IF(IFERROR(SEARCH('[1]Критерии руб_рсч'!$C$78,J35),IFERROR(SEARCH('[1]Критерии руб_рсч'!$C$79,J35),IFERROR(SEARCH('[1]Критерии руб_рсч'!$C$80,J35),IFERROR(SEARCH('[1]Критерии руб_рсч'!$C$81,J35),$AP$1))))=$AP$1,\"-\",\"OK\")","v":"-"},{"$f":"IF(IFERROR(SEARCH('[1]Критерии руб_рсч'!$C$83,J35),IFERROR(SEARCH('[1]Критерии руб_рсч'!$C$84,J35),$AP$1))=$AP$1,\"-\",\"OK\")","v":"-"},{"$f":"IF(IFERROR(SEARCH('[1]Критерии руб_рсч'!$C$86,J35),IFERROR(SEARCH('[1]Критерии руб_рсч'!$C$87,J35),IFERROR(SEARCH('[1]Критерии руб_рсч'!$C$88,J35),$AP$1)))=$AP$1,\"-\",\"OK\")","v":"-"},{"$f":"IF(IFERROR(SEARCH('[1]Критерии руб_рсч'!$C$90,J35),IFERROR(SEARCH('[1]Критерии руб_рсч'!$C$91,J35),IFERROR(SEARCH('[1]Критерии руб_рсч'!$C$92,J35),IFERROR(SEARCH('[1]Критерии руб_рсч'!$C$93,J35),$AP$1))))=$AP$1,\"-\",\"OK\")","v":"-"},{"$f":"IF(IFERROR(SEARCH('[1]Критерии руб_рсч'!$C$95,J35),IFERROR(SEARCH('[1]Критерии руб_рсч'!$C$96,J35),IFERROR(SEARCH('[1]Критерии руб_рсч'!$C$97,J35),IFERROR(SEARCH('[1]Критерии руб_рсч'!$C$98,J35),IFERROR(SEARCH('[1]Критерии руб_рсч'!$C$99,J35),IFERROR(SEARCH('[1]Критерии руб_рсч'!$C$100,J35),$AP$1))))))=$AP$1,\"-\",\"OK\")","v":"-"},{"$f":"IF(IFERROR(SEARCH('[1]Критерии руб_рсч'!$C$102,J35),IFERROR(SEARCH('[1]Критерии руб_рсч'!$C$103,J35),IFERROR(SEARCH('[1]Критерии руб_рсч'!$C$104,J35),IFERROR(SEARCH('[1]Критерии руб_рсч'!$C$105,J35),IFERROR(SEARCH('[1]Критерии руб_рсч'!$C$106,J35),IFERROR(SEARCH('[1]Критерии руб_рсч'!$C$107,J35),$AP$1))))))=$AP$1,\"-\",\"OK\")","v":"-"},{"$f":"IF(IFERROR(SEARCH('[1]Критерии руб_рсч'!$C$109,J35),IFERROR(SEARCH('[1]Критерии руб_рсч'!$C$109,J35),$AP$1))=$AP$1,\"-\",\"OK\")","v":"-"}]
["Солр5015","28.01.2015","Солид банк",0,339.07,null,null,null,"ЗАО \"СОЛИД БАНК\"","Комиссионное вознаграждение Банка за исполн.функций валютного контроля, согласно Тарифам Банка. Распоряжение от 28.01.2015г","o",{"$f":"VLOOKUP(O36,[1]Справочник!$A$2:$B$44,2,0)","v":"опер"},1,2015,{"$f":"IFERROR(IF(T36=\"Оплата от покупателя\",\"income\",INDEX('Критерии руб_рсч'!$D$2:$D$91,MATCH(TRUE,ISNUMBER(SEARCH('Критерии руб_рсч'!$C$2:$C$91,рсч_руб!J36)),0))),\"other\")","v":"bank"},"руб.",1,2015,"Правда","Прочее списание",{"$f":"IF(IFERROR(SEARCH('[1]Критерии руб_рсч'!$C$2,J36),IFERROR(SEARCH('[1]Критерии руб_рсч'!$C$3,J36),IFERROR(SEARCH('[1]Критерии руб_рсч'!$C$4,J36),IFERROR(SEARCH('[1]Критерии руб_рсч'!$C$5,J36),IFERROR(SEARCH('[1]Критерии руб_рсч'!$C$6,J36),IFERROR(SEARCH('[1]Критерии руб_рсч'!$C$7,J36),IFERROR(SEARCH('[1]Критерии руб_рсч'!$C$8,J36),IFERROR(SEARCH('[1]Критерии руб_рсч'!$C$8,J36),IFERROR(SEARCH('[1]Критерии руб_рсч'!$C$10,J36),IFERROR(SEARCH('[1]Критерии руб_рсч'!$C$11,J36),\"-\"))))))))))=$AP$1,\"-\",\"OK\")","v":"-"},{"$f":"IF(IFERROR(SEARCH('[1]Критерии руб_рсч'!$C$13,J36),IFERROR(SEARCH('[1]Критерии руб_рсч'!$C$14,J36),IFERROR(SEARCH('[1]Критерии руб_рсч'!$C$15,J36),IFERROR(SEARCH('[1]Критерии руб_рсч'!$C$16,J36),IFERROR(SEARCH('[1]Критерии руб_рсч'!$C$17,J36),IFERROR(SEARCH('[1]Критерии руб_рсч'!$C$18,J36),IFERROR(SEARCH('[1]Критерии руб_рсч'!$C$19,J36),IFERROR(SEARCH('[1]Критерии руб_рсч'!$C$20,J36),IFERROR(SEARCH('[1]Критерии руб_рсч'!$C$21,J36),IFERROR(SEARCH('[1]Критерии руб_рсч'!$C$22,J36),IFERROR(SEARCH('[1]Критерии руб_рсч'!$C$23,J36),IFERROR(SEARCH('[1]Критерии руб_рсч'!$C$24,J36),IFERROR(SEARCH('[1]Критерии руб_рсч'!$C$25,J36),IFERROR(SEARCH('[1]Критерии руб_рсч'!$C$26,J36),$AP$1))))))))))))))=$AP$1,\"-\",\"OK\")","v":"OK"},{"$f":"IF(IFERROR(SEARCH('[1]Критерии руб_рсч'!$C$28,J36),IFERROR(SEARCH('[1]Критерии руб_рсч'!$C$29,J36),IFERROR(SEARCH('[1]Критерии руб_рсч'!$C$30,J36),$AP$1)))=$AP$1,\"-\",\"OK\")","v":"-"},{"$f":"IF(IFERROR(SEARCH('[1]Критерии руб_рсч'!$C$32,J36),IFERROR(SEARCH('[1]Критерии руб_рсч'!$C$33,J36),IFERROR(SEARCH('[1]Критерии руб_рсч'!$C$34,J36),IFERROR(SEARCH('[1]Критерии руб_рсч'!$C$35,J36),IFERROR(SEARCH('[1]Критерии руб_рсч'!$C$36,J36),$AP$1)))))=$AP$1,\"-\",\"OK\")","v":"-"},{"$f":"IF(IFERROR(SEARCH('[1]Критерии руб_рсч'!$C$38,J36),IFERROR(SEARCH('[1]Критерии руб_рсч'!$C$39,J36),IFERROR(SEARCH('[1]Критерии руб_рсч'!$C$40,J36),IFERROR(SEARCH('[1]Критерии руб_рсч'!$C$41,J36),IFERROR(SEARCH('[1]Критерии руб_рсч'!$C$42,J36),IFERROR(SEARCH('[1]Критерии руб_рсч'!$C$43,J36),$AP$1))))))=$AP$1,\"-\",\"OK\")","v":"-"},{"$f":"IF(IFERROR(SEARCH('[1]Критерии руб_рсч'!$C$45,J36),IFERROR(SEARCH('[1]Критерии руб_рсч'!$C$46,J36),IFERROR(SEARCH('[1]Критерии руб_рсч'!$C$47,J36),IFERROR(SEARCH('[1]Критерии руб_рсч'!$C$48,J36),IFERROR(SEARCH('[1]Критерии руб_рсч'!$C$49,J36),IFERROR(SEARCH('[1]Критерии руб_рсч'!$C$50,J36),IFERROR(SEARCH('[1]Критерии руб_рсч'!$C$51,J36),$AP$1)))))))=$AP$1,\"-\",\"OK\")","v":"-"},{"$f":"IF(IFERROR(SEARCH('[1]Критерии руб_рсч'!$C$53,J36),$AP$1)=$AP$1,\"-\",\"OK\")","v":"-"},{"$f":"IF(IFERROR(SEARCH('[1]Критерии руб_рсч'!$C$55,J36),IFERROR(SEARCH('[1]Критерии руб_рсч'!$C$56,J36),IFERROR(SEARCH('[1]Критерии руб_рсч'!$C$57,J36),IFERROR(SEARCH('[1]Критерии руб_рсч'!$C$58,J36),IFERROR(SEARCH('[1]Критерии руб_рсч'!$C$59,J36),$AP$1)))))=$AP$1,\"-\",\"OK\")","v":"-"},{"$f":"IF(IFERROR(SEARCH('[1]Критерии руб_рсч'!$C$61,J36),IFERROR(SEARCH('[1]Критерии руб_рсч'!$C$62,J36),IFERROR(SEARCH('[1]Критерии руб_рсч'!$C$63,J36),IFERROR(SEARCH('[1]Критерии руб_рсч'!$C$64,J36),$AP$1))))=$AP$1,\"-\",\"OK\")","v":"-"},{"$f":"IF(IFERROR(SEARCH('[1]Критерии руб_рсч'!$C$66,J36),$AP$1)=$AP$1,\"-\",\"OK\")","v":"-"},{"$f":"IF(IFERROR(SEARCH('[1]Критерии руб_рсч'!$C$68,J36),IFERROR(SEARCH('[1]Критерии руб_рсч'!$C$69,J36),IFERROR(SEARCH('[1]Критерии руб_рсч'!$C$70,J36),IFERROR(SEARCH('[1]Критерии руб_рсч'!$C$71,J36),$AP$1))))=$AP$1,\"-\",\"OK\")","v":"-"},{"$f":"IF(IFERROR(SEARCH('[1]Критерии руб_рсч'!$C$73,J36),IFERROR(SEARCH('[1]Критерии руб_рсч'!$C$74,J36),IFERROR(SEARCH('[1]Критерии руб_рсч'!$C$75,J36),IFERROR(SEARCH('[1]Критерии руб_рсч'!$C$76,J36),$AP$1))))=$AP$1,\"-\",\"OK\")","v":"-"},{"$f":"IF(IFERROR(SEARCH('[1]Критерии руб_рсч'!$C$78,J36),IFERROR(SEARCH('[1]Критерии руб_рсч'!$C$79,J36),IFERROR(SEARCH('[1]Критерии руб_рсч'!$C$80,J36),IFERROR(SEARCH('[1]Критерии руб_рсч'!$C$81,J36),$AP$1))))=$AP$1,\"-\",\"OK\")","v":"-"},{"$f":"IF(IFERROR(SEARCH('[1]Критерии руб_рсч'!$C$83,J36),IFERROR(SEARCH('[1]Критерии руб_рсч'!$C$84,J36),$AP$1))=$AP$1,\"-\",\"OK\")","v":"-"},{"$f":"IF(IFERROR(SEARCH('[1]Критерии руб_рсч'!$C$86,J36),IFERROR(SEARCH('[1]Критерии руб_рсч'!$C$87,J36),IFERROR(SEARCH('[1]Критерии руб_рсч'!$C$88,J36),$AP$1)))=$AP$1,\"-\",\"OK\")","v":"-"},{"$f":"IF(IFERROR(SEARCH('[1]Критерии руб_рсч'!$C$90,J36),IFERROR(SEARCH('[1]Критерии руб_рсч'!$C$91,J36),IFERROR(SEARCH('[1]Критерии руб_рсч'!$C$92,J36),IFERROR(SEARCH('[1]Критерии руб_рсч'!$C$93,J36),$AP$1))))=$AP$1,\"-\",\"OK\")","v":"-"},{"$f":"IF(IFERROR(SEARCH('[1]Критерии руб_рсч'!$C$95,J36),IFERROR(SEARCH('[1]Критерии руб_рсч'!$C$96,J36),IFERROR(SEARCH('[1]Критерии руб_рсч'!$C$97,J36),IFERROR(SEARCH('[1]Критерии руб_рсч'!$C$98,J36),IFERROR(SEARCH('[1]Критерии руб_рсч'!$C$99,J36),IFERROR(SEARCH('[1]Критерии руб_рсч'!$C$100,J36),$AP$1))))))=$AP$1,\"-\",\"OK\")","v":"-"},{"$f":"IF(IFERROR(SEARCH('[1]Критерии руб_рсч'!$C$102,J36),IFERROR(SEARCH('[1]Критерии руб_рсч'!$C$103,J36),IFERROR(SEARCH('[1]Критерии руб_рсч'!$C$104,J36),IFERROR(SEARCH('[1]Критерии руб_рсч'!$C$105,J36),IFERROR(SEARCH('[1]Критерии руб_рсч'!$C$106,J36),IFERROR(SEARCH('[1]Критерии руб_рсч'!$C$107,J36),$AP$1))))))=$AP$1,\"-\",\"OK\")","v":"-"},{"$f":"IF(IFERROR(SEARCH('[1]Критерии руб_рсч'!$C$109,J36),IFERROR(SEARCH('[1]Критерии руб_рсч'!$C$109,J36),$AP$1))=$AP$1,\"-\",\"OK\")","v":"-"}]
["Солр5016","28.01.2015","Солид банк",0,600,null,null,null,"ЗАО \"СОЛИД БАНК\"","Комиссия за Прием наличных денежных средств на счет: купюры. Тариф 1.3.1.2","o",{"$f":"VLOOKUP(O37,[1]Справочник!$A$2:$B$44,2,0)","v":"опер"},1,2015,{"$f":"IFERROR(IF(T37=\"Оплата от покупателя\",\"income\",INDEX('Критерии руб_рсч'!$D$2:$D$91,MATCH(TRUE,ISNUMBER(SEARCH('Критерии руб_рсч'!$C$2:$C$91,рсч_руб!J37)),0))),\"other\")","v":"bank"},"руб.",1,2015,"Правда","Прочее списание",{"$f":"IF(IFERROR(SEARCH('[1]Критерии руб_рсч'!$C$2,J37),IFERROR(SEARCH('[1]Критерии руб_рсч'!$C$3,J37),IFERROR(SEARCH('[1]Критерии руб_рсч'!$C$4,J37),IFERROR(SEARCH('[1]Критерии руб_рсч'!$C$5,J37),IFERROR(SEARCH('[1]Критерии руб_рсч'!$C$6,J37),IFERROR(SEARCH('[1]Критерии руб_рсч'!$C$7,J37),IFERROR(SEARCH('[1]Критерии руб_рсч'!$C$8,J37),IFERROR(SEARCH('[1]Критерии руб_рсч'!$C$8,J37),IFERROR(SEARCH('[1]Критерии руб_рсч'!$C$10,J37),IFERROR(SEARCH('[1]Критерии руб_рсч'!$C$11,J37),\"-\"))))))))))=$AP$1,\"-\",\"OK\")","v":"-"},{"$f":"IF(IFERROR(SEARCH('[1]Критерии руб_рсч'!$C$13,J37),IFERROR(SEARCH('[1]Критерии руб_рсч'!$C$14,J37),IFERROR(SEARCH('[1]Критерии руб_рсч'!$C$15,J37),IFERROR(SEARCH('[1]Критерии руб_рсч'!$C$16,J37),IFERROR(SEARCH('[1]Критерии руб_рсч'!$C$17,J37),IFERROR(SEARCH('[1]Критерии руб_рсч'!$C$18,J37),IFERROR(SEARCH('[1]Критерии руб_рсч'!$C$19,J37),IFERROR(SEARCH('[1]Критерии руб_рсч'!$C$20,J37),IFERROR(SEARCH('[1]Критерии руб_рсч'!$C$21,J37),IFERROR(SEARCH('[1]Критерии руб_рсч'!$C$22,J37),IFERROR(SEARCH('[1]Критерии руб_рсч'!$C$23,J37),IFERROR(SEARCH('[1]Критерии руб_рсч'!$C$24,J37),IFERROR(SEARCH('[1]Критерии руб_рсч'!$C$25,J37),IFERROR(SEARCH('[1]Критерии руб_рсч'!$C$26,J37),$AP$1))))))))))))))=$AP$1,\"-\",\"OK\")","v":"OK"},{"$f":"IF(IFERROR(SEARCH('[1]Критерии руб_рсч'!$C$28,J37),IFERROR(SEARCH('[1]Критерии руб_рсч'!$C$29,J37),IFERROR(SEARCH('[1]Критерии руб_рсч'!$C$30,J37),$AP$1)))=$AP$1,\"-\",\"OK\")","v":"-"},{"$f":"IF(IFERROR(SEARCH('[1]Критерии руб_рсч'!$C$32,J37),IFERROR(SEARCH('[1]Критерии руб_рсч'!$C$33,J37),IFERROR(SEARCH('[1]Критерии руб_рсч'!$C$34,J37),IFERROR(SEARCH('[1]Критерии руб_рсч'!$C$35,J37),IFERROR(SEARCH('[1]Критерии руб_рсч'!$C$36,J37),$AP$1)))))=$AP$1,\"-\",\"OK\")","v":"-"},{"$f":"IF(IFERROR(SEARCH('[1]Критерии руб_рсч'!$C$38,J37),IFERROR(SEARCH('[1]Критерии руб_рсч'!$C$39,J37),IFERROR(SEARCH('[1]Критерии руб_рсч'!$C$40,J37),IFERROR(SEARCH('[1]Критерии руб_рсч'!$C$41,J37),IFERROR(SEARCH('[1]Критерии руб_рсч'!$C$42,J37),IFERROR(SEARCH('[1]Критерии руб_рсч'!$C$43,J37),$AP$1))))))=$AP$1,\"-\",\"OK\")","v":"-"},{"$f":"IF(IFERROR(SEARCH('[1]Критерии руб_рсч'!$C$45,J37),IFERROR(SEARCH('[1]Критерии руб_рсч'!$C$46,J37),IFERROR(SEARCH('[1]Критерии руб_рсч'!$C$47,J37),IFERROR(SEARCH('[1]Критерии руб_рсч'!$C$48,J37),IFERROR(SEARCH('[1]Критерии руб_рсч'!$C$49,J37),IFERROR(SEARCH('[1]Критерии руб_рсч'!$C$50,J37),IFERROR(SEARCH('[1]Критерии руб_рсч'!$C$51,J37),$AP$1)))))))=$AP$1,\"-\",\"OK\")","v":"-"},{"$f":"IF(IFERROR(SEARCH('[1]Критерии руб_рсч'!$C$53,J37),$AP$1)=$AP$1,\"-\",\"OK\")","v":"-"},{"$f":"IF(IFERROR(SEARCH('[1]Критерии руб_рсч'!$C$55,J37),IFERROR(SEARCH('[1]Критерии руб_рсч'!$C$56,J37),IFERROR(SEARCH('[1]Критерии руб_рсч'!$C$57,J37),IFERROR(SEARCH('[1]Критерии руб_рсч'!$C$58,J37),IFERROR(SEARCH('[1]Критерии руб_рсч'!$C$59,J37),$AP$1)))))=$AP$1,\"-\",\"OK\")","v":"-"},{"$f":"IF(IFERROR(SEARCH('[1]Критерии руб_рсч'!$C$61,J37),IFERROR(SEARCH('[1]Критерии руб_рсч'!$C$62,J37),IFERROR(SEARCH('[1]Критерии руб_рсч'!$C$63,J37),IFERROR(SEARCH('[1]Критерии руб_рсч'!$C$64,J37),$AP$1))))=$AP$1,\"-\",\"OK\")","v":"-"},{"$f":"IF(IFERROR(SEARCH('[1]Критерии руб_рсч'!$C$66,J37),$AP$1)=$AP$1,\"-\",\"OK\")","v":"-"},{"$f":"IF(IFERROR(SEARCH('[1]Критерии руб_рсч'!$C$68,J37),IFERROR(SEARCH('[1]Критерии руб_рсч'!$C$69,J37),IFERROR(SEARCH('[1]Критерии руб_рсч'!$C$70,J37),IFERROR(SEARCH('[1]Критерии руб_рсч'!$C$71,J37),$AP$1))))=$AP$1,\"-\",\"OK\")","v":"-"},{"$f":"IF(IFERROR(SEARCH('[1]Критерии руб_рсч'!$C$73,J37),IFERROR(SEARCH('[1]Критерии руб_рсч'!$C$74,J37),IFERROR(SEARCH('[1]Критерии руб_рсч'!$C$75,J37),IFERROR(SEARCH('[1]Критерии руб_рсч'!$C$76,J37),$AP$1))))=$AP$1,\"-\",\"OK\")","v":"-"},{"$f":"IF(IFERROR(SEARCH('[1]Критерии руб_рсч'!$C$78,J37),IFERROR(SEARCH('[1]Критерии руб_рсч'!$C$79,J37),IFERROR(SEARCH('[1]Критерии руб_рсч'!$C$80,J37),IFERROR(SEARCH('[1]Критерии руб_рсч'!$C$81,J37),$AP$1))))=$AP$1,\"-\",\"OK\")","v":"-"},{"$f":"IF(IFERROR(SEARCH('[1]Критерии руб_рсч'!$C$83,J37),IFERROR(SEARCH('[1]Критерии руб_рсч'!$C$84,J37),$AP$1))=$AP$1,\"-\",\"OK\")","v":"-"},{"$f":"IF(IFERROR(SEARCH('[1]Критерии руб_рсч'!$C$86,J37),IFERROR(SEARCH('[1]Критерии руб_рсч'!$C$87,J37),IFERROR(SEARCH('[1]Критерии руб_рсч'!$C$88,J37),$AP$1)))=$AP$1,\"-\",\"OK\")","v":"-"},{"$f":"IF(IFERROR(SEARCH('[1]Критерии руб_рсч'!$C$90,J37),IFERROR(SEARCH('[1]Критерии руб_рсч'!$C$91,J37),IFERROR(SEARCH('[1]Критерии руб_рсч'!$C$92,J37),IFERROR(SEARCH('[1]Критерии руб_рсч'!$C$93,J37),$AP$1))))=$AP$1,\"-\",\"OK\")","v":"-"},{"$f":"IF(IFERROR(SEARCH('[1]Критерии руб_рсч'!$C$95,J37),IFERROR(SEARCH('[1]Критерии руб_рсч'!$C$96,J37),IFERROR(SEARCH('[1]Критерии руб_рсч'!$C$97,J37),IFERROR(SEARCH('[1]Критерии руб_рсч'!$C$98,J37),IFERROR(SEARCH('[1]Критерии руб_рсч'!$C$99,J37),IFERROR(SEARCH('[1]Критерии руб_рсч'!$C$100,J37),$AP$1))))))=$AP$1,\"-\",\"OK\")","v":"-"},{"$f":"IF(IFERROR(SEARCH('[1]Критерии руб_рсч'!$C$102,J37),IFERROR(SEARCH('[1]Критерии руб_рсч'!$C$103,J37),IFERROR(SEARCH('[1]Критерии руб_рсч'!$C$104,J37),IFERROR(SEARCH('[1]Критерии руб_рсч'!$C$105,J37),IFERROR(SEARCH('[1]Критерии руб_рсч'!$C$106,J37),IFERROR(SEARCH('[1]Критерии руб_рсч'!$C$107,J37),$AP$1))))))=$AP$1,\"-\",\"OK\")","v":"-"},{"$f":"IF(IFERROR(SEARCH('[1]Критерии руб_рсч'!$C$109,J37),IFERROR(SEARCH('[1]Критерии руб_рсч'!$C$109,J37),$AP$1))=$AP$1,\"-\",\"OK\")","v":"-"}]
["Солр5017","28.01.2015","Солид банк",0,300000,null,null,null,"SH","{VO42015} Возврат займа по договору беспроцентного денежного займа №1 от 23.06.2011  Сумма 300000 Без налога (НДС) Сумма 300000","o",{"$f":"VLOOKUP(O38,[1]Справочник!$A$2:$B$44,2,0)","v":"фин"},1,2015,{"$f":"IFERROR(IF(T38=\"Оплата от покупателя\",\"income\",INDEX('Критерии руб_рсч'!$D$2:$D$91,MATCH(TRUE,ISNUMBER(SEARCH('Критерии руб_рсч'!$C$2:$C$91,рсч_руб!J38)),0))),\"other\")","v":"фин"},"руб.",1,2015,"Правда","Расчеты по кредитам и займам",{"$f":"IF(IFERROR(SEARCH('[1]Критерии руб_рсч'!$C$2,J38),IFERROR(SEARCH('[1]Критерии руб_рсч'!$C$3,J38),IFERROR(SEARCH('[1]Критерии руб_рсч'!$C$4,J38),IFERROR(SEARCH('[1]Критерии руб_рсч'!$C$5,J38),IFERROR(SEARCH('[1]Критерии руб_рсч'!$C$6,J38),IFERROR(SEARCH('[1]Критерии руб_рсч'!$C$7,J38),IFERROR(SEARCH('[1]Критерии руб_рсч'!$C$8,J38),IFERROR(SEARCH('[1]Критерии руб_рсч'!$C$8,J38),IFERROR(SEARCH('[1]Критерии руб_рсч'!$C$10,J38),IFERROR(SEARCH('[1]Критерии руб_рсч'!$C$11,J38),\"-\"))))))))))=$AP$1,\"-\",\"OK\")","v":"OK"},{"$f":"IF(IFERROR(SEARCH('[1]Критерии руб_рсч'!$C$13,J38),IFERROR(SEARCH('[1]Критерии руб_рсч'!$C$14,J38),IFERROR(SEARCH('[1]Критерии руб_рсч'!$C$15,J38),IFERROR(SEARCH('[1]Критерии руб_рсч'!$C$16,J38),IFERROR(SEARCH('[1]Критерии руб_рсч'!$C$17,J38),IFERROR(SEARCH('[1]Критерии руб_рсч'!$C$18,J38),IFERROR(SEARCH('[1]Критерии руб_рсч'!$C$19,J38),IFERROR(SEARCH('[1]Критерии руб_рсч'!$C$20,J38),IFERROR(SEARCH('[1]Критерии руб_рсч'!$C$21,J38),IFERROR(SEARCH('[1]Критерии руб_рсч'!$C$22,J38),IFERROR(SEARCH('[1]Критерии руб_рсч'!$C$23,J38),IFERROR(SEARCH('[1]Критерии руб_рсч'!$C$24,J38),IFERROR(SEARCH('[1]Критерии руб_рсч'!$C$25,J38),IFERROR(SEARCH('[1]Критерии руб_рсч'!$C$26,J38),$AP$1))))))))))))))=$AP$1,\"-\",\"OK\")","v":"-"},{"$f":"IF(IFERROR(SEARCH('[1]Критерии руб_рсч'!$C$28,J38),IFERROR(SEARCH('[1]Критерии руб_рсч'!$C$29,J38),IFERROR(SEARCH('[1]Критерии руб_рсч'!$C$30,J38),$AP$1)))=$AP$1,\"-\",\"OK\")","v":"-"},{"$f":"IF(IFERROR(SEARCH('[1]Критерии руб_рсч'!$C$32,J38),IFERROR(SEARCH('[1]Критерии руб_рсч'!$C$33,J38),IFERROR(SEARCH('[1]Критерии руб_рсч'!$C$34,J38),IFERROR(SEARCH('[1]Критерии руб_рсч'!$C$35,J38),IFERROR(SEARCH('[1]Критерии руб_рсч'!$C$36,J38),$AP$1)))))=$AP$1,\"-\",\"OK\")","v":"-"},{"$f":"IF(IFERROR(SEARCH('[1]Критерии руб_рсч'!$C$38,J38),IFERROR(SEARCH('[1]Критерии руб_рсч'!$C$39,J38),IFERROR(SEARCH('[1]Критерии руб_рсч'!$C$40,J38),IFERROR(SEARCH('[1]Критерии руб_рсч'!$C$41,J38),IFERROR(SEARCH('[1]Критерии руб_рсч'!$C$42,J38),IFERROR(SEARCH('[1]Критерии руб_рсч'!$C$43,J38),$AP$1))))))=$AP$1,\"-\",\"OK\")","v":"-"},{"$f":"IF(IFERROR(SEARCH('[1]Критерии руб_рсч'!$C$45,J38),IFERROR(SEARCH('[1]Критерии руб_рсч'!$C$46,J38),IFERROR(SEARCH('[1]Критерии руб_рсч'!$C$47,J38),IFERROR(SEARCH('[1]Критерии руб_рсч'!$C$48,J38),IFERROR(SEARCH('[1]Критерии руб_рсч'!$C$49,J38),IFERROR(SEARCH('[1]Критерии руб_рсч'!$C$50,J38),IFERROR(SEARCH('[1]Критерии руб_рсч'!$C$51,J38),$AP$1)))))))=$AP$1,\"-\",\"OK\")","v":"-"},{"$f":"IF(IFERROR(SEARCH('[1]Критерии руб_рсч'!$C$53,J38),$AP$1)=$AP$1,\"-\",\"OK\")","v":"-"},{"$f":"IF(IFERROR(SEARCH('[1]Критерии руб_рсч'!$C$55,J38),IFERROR(SEARCH('[1]Критерии руб_рсч'!$C$56,J38),IFERROR(SEARCH('[1]Критерии руб_рсч'!$C$57,J38),IFERROR(SEARCH('[1]Критерии руб_рсч'!$C$58,J38),IFERROR(SEARCH('[1]Критерии руб_рсч'!$C$59,J38),$AP$1)))))=$AP$1,\"-\",\"OK\")","v":"-"},{"$f":"IF(IFERROR(SEARCH('[1]Критерии руб_рсч'!$C$61,J38),IFERROR(SEARCH('[1]Критерии руб_рсч'!$C$62,J38),IFERROR(SEARCH('[1]Критерии руб_рсч'!$C$63,J38),IFERROR(SEARCH('[1]Критерии руб_рсч'!$C$64,J38),$AP$1))))=$AP$1,\"-\",\"OK\")","v":"-"},{"$f":"IF(IFERROR(SEARCH('[1]Критерии руб_рсч'!$C$66,J38),$AP$1)=$AP$1,\"-\",\"OK\")","v":"-"},{"$f":"IF(IFERROR(SEARCH('[1]Критерии руб_рсч'!$C$68,J38),IFERROR(SEARCH('[1]Критерии руб_рсч'!$C$69,J38),IFERROR(SEARCH('[1]Критерии руб_рсч'!$C$70,J38),IFERROR(SEARCH('[1]Критерии руб_рсч'!$C$71,J38),$AP$1))))=$AP$1,\"-\",\"OK\")","v":"-"},{"$f":"IF(IFERROR(SEARCH('[1]Критерии руб_рсч'!$C$73,J38),IFERROR(SEARCH('[1]Критерии руб_рсч'!$C$74,J38),IFERROR(SEARCH('[1]Критерии руб_рсч'!$C$75,J38),IFERROR(SEARCH('[1]Критерии руб_рсч'!$C$76,J38),$AP$1))))=$AP$1,\"-\",\"OK\")","v":"-"},{"$f":"IF(IFERROR(SEARCH('[1]Критерии руб_рсч'!$C$78,J38),IFERROR(SEARCH('[1]Критерии руб_рсч'!$C$79,J38),IFERROR(SEARCH('[1]Критерии руб_рсч'!$C$80,J38),IFERROR(SEARCH('[1]Критерии руб_рсч'!$C$81,J38),$AP$1))))=$AP$1,\"-\",\"OK\")","v":"-"},{"$f":"IF(IFERROR(SEARCH('[1]Критерии руб_рсч'!$C$83,J38),IFERROR(SEARCH('[1]Критерии руб_рсч'!$C$84,J38),$AP$1))=$AP$1,\"-\",\"OK\")","v":"-"},{"$f":"IF(IFERROR(SEARCH('[1]Критерии руб_рсч'!$C$86,J38),IFERROR(SEARCH('[1]Критерии руб_рсч'!$C$87,J38),IFERROR(SEARCH('[1]Критерии руб_рсч'!$C$88,J38),$AP$1)))=$AP$1,\"-\",\"OK\")","v":"-"},{"$f":"IF(IFERROR(SEARCH('[1]Критерии руб_рсч'!$C$90,J38),IFERROR(SEARCH('[1]Критерии руб_рсч'!$C$91,J38),IFERROR(SEARCH('[1]Критерии руб_рсч'!$C$92,J38),IFERROR(SEARCH('[1]Критерии руб_рсч'!$C$93,J38),$AP$1))))=$AP$1,\"-\",\"OK\")","v":"-"},{"$f":"IF(IFERROR(SEARCH('[1]Критерии руб_рсч'!$C$95,J38),IFERROR(SEARCH('[1]Критерии руб_рсч'!$C$96,J38),IFERROR(SEARCH('[1]Критерии руб_рсч'!$C$97,J38),IFERROR(SEARCH('[1]Критерии руб_рсч'!$C$98,J38),IFERROR(SEARCH('[1]Критерии руб_рсч'!$C$99,J38),IFERROR(SEARCH('[1]Критерии руб_рсч'!$C$100,J38),$AP$1))))))=$AP$1,\"-\",\"OK\")","v":"-"},{"$f":"IF(IFERROR(SEARCH('[1]Критерии руб_рсч'!$C$102,J38),IFERROR(SEARCH('[1]Критерии руб_рсч'!$C$103,J38),IFERROR(SEARCH('[1]Критерии руб_рсч'!$C$104,J38),IFERROR(SEARCH('[1]Критерии руб_рсч'!$C$105,J38),IFERROR(SEARCH('[1]Критерии руб_рсч'!$C$106,J38),IFERROR(SEARCH('[1]Критерии руб_рсч'!$C$107,J38),$AP$1))))))=$AP$1,\"-\",\"OK\")","v":"-"},{"$f":"IF(IFERROR(SEARCH('[1]Критерии руб_рсч'!$C$109,J38),IFERROR(SEARCH('[1]Критерии руб_рсч'!$C$109,J38),$AP$1))=$AP$1,\"-\",\"OK\")","v":"-"}]
["Солр5018","30.01.2015","Солид банк",0,500,null,null,null,"ЗАО \"СОЛИД БАНК\"","Комиссия за ведение счета, согласно договора банковского счета за январь 2015 г..","o",{"$f":"VLOOKUP(O39,[1]Справочник!$A$2:$B$44,2,0)","v":"опер"},1,2015,{"$f":"IFERROR(IF(T39=\"Оплата от покупателя\",\"income\",INDEX('Критерии руб_рсч'!$D$2:$D$91,MATCH(TRUE,ISNUMBER(SEARCH('Критерии руб_рсч'!$C$2:$C$91,рсч_руб!J39)),0))),\"other\")","v":"bank"},"руб.",1,2015,"Правда","Прочее списание",{"$f":"IF(IFERROR(SEARCH('[1]Критерии руб_рсч'!$C$2,J39),IFERROR(SEARCH('[1]Критерии руб_рсч'!$C$3,J39),IFERROR(SEARCH('[1]Критерии руб_рсч'!$C$4,J39),IFERROR(SEARCH('[1]Критерии руб_рсч'!$C$5,J39),IFERROR(SEARCH('[1]Критерии руб_рсч'!$C$6,J39),IFERROR(SEARCH('[1]Критерии руб_рсч'!$C$7,J39),IFERROR(SEARCH('[1]Критерии руб_рсч'!$C$8,J39),IFERROR(SEARCH('[1]Критерии руб_рсч'!$C$8,J39),IFERROR(SEARCH('[1]Критерии руб_рсч'!$C$10,J39),IFERROR(SEARCH('[1]Критерии руб_рсч'!$C$11,J39),\"-\"))))))))))=$AP$1,\"-\",\"OK\")","v":"-"},{"$f":"IF(IFERROR(SEARCH('[1]Критерии руб_рсч'!$C$13,J39),IFERROR(SEARCH('[1]Критерии руб_рсч'!$C$14,J39),IFERROR(SEARCH('[1]Критерии руб_рсч'!$C$15,J39),IFERROR(SEARCH('[1]Критерии руб_рсч'!$C$16,J39),IFERROR(SEARCH('[1]Критерии руб_рсч'!$C$17,J39),IFERROR(SEARCH('[1]Критерии руб_рсч'!$C$18,J39),IFERROR(SEARCH('[1]Критерии руб_рсч'!$C$19,J39),IFERROR(SEARCH('[1]Критерии руб_рсч'!$C$20,J39),IFERROR(SEARCH('[1]Критерии руб_рсч'!$C$21,J39),IFERROR(SEARCH('[1]Критерии руб_рсч'!$C$22,J39),IFERROR(SEARCH('[1]Критерии руб_рсч'!$C$23,J39),IFERROR(SEARCH('[1]Критерии руб_рсч'!$C$24,J39),IFERROR(SEARCH('[1]Критерии руб_рсч'!$C$25,J39),IFERROR(SEARCH('[1]Критерии руб_рсч'!$C$26,J39),$AP$1))))))))))))))=$AP$1,\"-\",\"OK\")","v":"OK"},{"$f":"IF(IFERROR(SEARCH('[1]Критерии руб_рсч'!$C$28,J39),IFERROR(SEARCH('[1]Критерии руб_рсч'!$C$29,J39),IFERROR(SEARCH('[1]Критерии руб_рсч'!$C$30,J39),$AP$1)))=$AP$1,\"-\",\"OK\")","v":"-"},{"$f":"IF(IFERROR(SEARCH('[1]Критерии руб_рсч'!$C$32,J39),IFERROR(SEARCH('[1]Критерии руб_рсч'!$C$33,J39),IFERROR(SEARCH('[1]Критерии руб_рсч'!$C$34,J39),IFERROR(SEARCH('[1]Критерии руб_рсч'!$C$35,J39),IFERROR(SEARCH('[1]Критерии руб_рсч'!$C$36,J39),$AP$1)))))=$AP$1,\"-\",\"OK\")","v":"-"},{"$f":"IF(IFERROR(SEARCH('[1]Критерии руб_рсч'!$C$38,J39),IFERROR(SEARCH('[1]Критерии руб_рсч'!$C$39,J39),IFERROR(SEARCH('[1]Критерии руб_рсч'!$C$40,J39),IFERROR(SEARCH('[1]Критерии руб_рсч'!$C$41,J39),IFERROR(SEARCH('[1]Критерии руб_рсч'!$C$42,J39),IFERROR(SEARCH('[1]Критерии руб_рсч'!$C$43,J39),$AP$1))))))=$AP$1,\"-\",\"OK\")","v":"-"},{"$f":"IF(IFERROR(SEARCH('[1]Критерии руб_рсч'!$C$45,J39),IFERROR(SEARCH('[1]Критерии руб_рсч'!$C$46,J39),IFERROR(SEARCH('[1]Критерии руб_рсч'!$C$47,J39),IFERROR(SEARCH('[1]Критерии руб_рсч'!$C$48,J39),IFERROR(SEARCH('[1]Критерии руб_рсч'!$C$49,J39),IFERROR(SEARCH('[1]Критерии руб_рсч'!$C$50,J39),IFERROR(SEARCH('[1]Критерии руб_рсч'!$C$51,J39),$AP$1)))))))=$AP$1,\"-\",\"OK\")","v":"-"},{"$f":"IF(IFERROR(SEARCH('[1]Критерии руб_рсч'!$C$53,J39),$AP$1)=$AP$1,\"-\",\"OK\")","v":"-"},{"$f":"IF(IFERROR(SEARCH('[1]Критерии руб_рсч'!$C$55,J39),IFERROR(SEARCH('[1]Критерии руб_рсч'!$C$56,J39),IFERROR(SEARCH('[1]Критерии руб_рсч'!$C$57,J39),IFERROR(SEARCH('[1]Критерии руб_рсч'!$C$58,J39),IFERROR(SEARCH('[1]Критерии руб_рсч'!$C$59,J39),$AP$1)))))=$AP$1,\"-\",\"OK\")","v":"-"},{"$f":"IF(IFERROR(SEARCH('[1]Критерии руб_рсч'!$C$61,J39),IFERROR(SEARCH('[1]Критерии руб_рсч'!$C$62,J39),IFERROR(SEARCH('[1]Критерии руб_рсч'!$C$63,J39),IFERROR(SEARCH('[1]Критерии руб_рсч'!$C$64,J39),$AP$1))))=$AP$1,\"-\",\"OK\")","v":"-"},{"$f":"IF(IFERROR(SEARCH('[1]Критерии руб_рсч'!$C$66,J39),$AP$1)=$AP$1,\"-\",\"OK\")","v":"-"},{"$f":"IF(IFERROR(SEARCH('[1]Критерии руб_рсч'!$C$68,J39),IFERROR(SEARCH('[1]Критерии руб_рсч'!$C$69,J39),IFERROR(SEARCH('[1]Критерии руб_рсч'!$C$70,J39),IFERROR(SEARCH('[1]Критерии руб_рсч'!$C$71,J39),$AP$1))))=$AP$1,\"-\",\"OK\")","v":"-"},{"$f":"IF(IFERROR(SEARCH('[1]Критерии руб_рсч'!$C$73,J39),IFERROR(SEARCH('[1]Критерии руб_рсч'!$C$74,J39),IFERROR(SEARCH('[1]Критерии руб_рсч'!$C$75,J39),IFERROR(SEARCH('[1]Критерии руб_рсч'!$C$76,J39),$AP$1))))=$AP$1,\"-\",\"OK\")","v":"-"},{"$f":"IF(IFERROR(SEARCH('[1]Критерии руб_рсч'!$C$78,J39),IFERROR(SEARCH('[1]Критерии руб_рсч'!$C$79,J39),IFERROR(SEARCH('[1]Критерии руб_рсч'!$C$80,J39),IFERROR(SEARCH('[1]Критерии руб_рсч'!$C$81,J39),$AP$1))))=$AP$1,\"-\",\"OK\")","v":"-"},{"$f":"IF(IFERROR(SEARCH('[1]Критерии руб_рсч'!$C$83,J39),IFERROR(SEARCH('[1]Критерии руб_рсч'!$C$84,J39),$AP$1))=$AP$1,\"-\",\"OK\")","v":"-"},{"$f":"IF(IFERROR(SEARCH('[1]Критерии руб_рсч'!$C$86,J39),IFERROR(SEARCH('[1]Критерии руб_рсч'!$C$87,J39),IFERROR(SEARCH('[1]Критерии руб_рсч'!$C$88,J39),$AP$1)))=$AP$1,\"-\",\"OK\")","v":"-"},{"$f":"IF(IFERROR(SEARCH('[1]Критерии руб_рсч'!$C$90,J39),IFERROR(SEARCH('[1]Критерии руб_рсч'!$C$91,J39),IFERROR(SEARCH('[1]Критерии руб_рсч'!$C$92,J39),IFERROR(SEARCH('[1]Критерии руб_рсч'!$C$93,J39),$AP$1))))=$AP$1,\"-\",\"OK\")","v":"-"},{"$f":"IF(IFERROR(SEARCH('[1]Критерии руб_рсч'!$C$95,J39),IFERROR(SEARCH('[1]Критерии руб_рсч'!$C$96,J39),IFERROR(SEARCH('[1]Критерии руб_рсч'!$C$97,J39),IFERROR(SEARCH('[1]Критерии руб_рсч'!$C$98,J39),IFERROR(SEARCH('[1]Критерии руб_рсч'!$C$99,J39),IFERROR(SEARCH('[1]Критерии руб_рсч'!$C$100,J39),$AP$1))))))=$AP$1,\"-\",\"OK\")","v":"-"},{"$f":"IF(IFERROR(SEARCH('[1]Критерии руб_рсч'!$C$102,J39),IFERROR(SEARCH('[1]Критерии руб_рсч'!$C$103,J39),IFERROR(SEARCH('[1]Критерии руб_рсч'!$C$104,J39),IFERROR(SEARCH('[1]Критерии руб_рсч'!$C$105,J39),IFERROR(SEARCH('[1]Критерии руб_рсч'!$C$106,J39),IFERROR(SEARCH('[1]Критерии руб_рсч'!$C$107,J39),$AP$1))))))=$AP$1,\"-\",\"OK\")","v":"-"},{"$f":"IF(IFERROR(SEARCH('[1]Критерии руб_рсч'!$C$109,J39),IFERROR(SEARCH('[1]Критерии руб_рсч'!$C$109,J39),$AP$1))=$AP$1,\"-\",\"OK\")","v":"-"}]
["Солр5019","02.02.2015","Солид банк",10200,0,null,null,null,"Панюкова Елена Александровна","СЧЕТ N 11933 АРЕНДА БОКСА В34 С 01/02/15ПО 30/04/15","o",{"$f":"VLOOKUP(O40,[1]Справочник!$A$2:$B$44,2,0)","v":"опер"},2,2015,{"$f":"IFERROR(IF(T40=\"Оплата от покупателя\",\"income\",INDEX('Критерии руб_рсч'!$D$2:$D$91,MATCH(TRUE,ISNUMBER(SEARCH('Критерии руб_рсч'!$C$2:$C$91,рсч_руб!J40)),0))),\"other\")","v":"income"},"руб.",2,2015,"Правда","Оплата от покупателя",{"$f":"IF(IFERROR(SEARCH('[1]Критерии руб_рсч'!$C$2,J40),IFERROR(SEARCH('[1]Критерии руб_рсч'!$C$3,J40),IFERROR(SEARCH('[1]Критерии руб_рсч'!$C$4,J40),IFERROR(SEARCH('[1]Критерии руб_рсч'!$C$5,J40),IFERROR(SEARCH('[1]Критерии руб_рсч'!$C$6,J40),IFERROR(SEARCH('[1]Критерии руб_рсч'!$C$7,J40),IFERROR(SEARCH('[1]Критерии руб_рсч'!$C$8,J40),IFERROR(SEARCH('[1]Критерии руб_рсч'!$C$8,J40),IFERROR(SEARCH('[1]Критерии руб_рсч'!$C$10,J40),IFERROR(SEARCH('[1]Критерии руб_рсч'!$C$11,J40),\"-\"))))))))))=$AP$1,\"-\",\"OK\")","v":"-"},{"$f":"IF(IFERROR(SEARCH('[1]Критерии руб_рсч'!$C$13,J40),IFERROR(SEARCH('[1]Критерии руб_рсч'!$C$14,J40),IFERROR(SEARCH('[1]Критерии руб_рсч'!$C$15,J40),IFERROR(SEARCH('[1]Критерии руб_рсч'!$C$16,J40),IFERROR(SEARCH('[1]Критерии руб_рсч'!$C$17,J40),IFERROR(SEARCH('[1]Критерии руб_рсч'!$C$18,J40),IFERROR(SEARCH('[1]Критерии руб_рсч'!$C$19,J40),IFERROR(SEARCH('[1]Критерии руб_рсч'!$C$20,J40),IFERROR(SEARCH('[1]Критерии руб_рсч'!$C$21,J40),IFERROR(SEARCH('[1]Критерии руб_рсч'!$C$22,J40),IFERROR(SEARCH('[1]Критерии руб_рсч'!$C$23,J40),IFERROR(SEARCH('[1]Критерии руб_рсч'!$C$24,J40),IFERROR(SEARCH('[1]Критерии руб_рсч'!$C$25,J40),IFERROR(SEARCH('[1]Критерии руб_рсч'!$C$26,J40),$AP$1))))))))))))))=$AP$1,\"-\",\"OK\")","v":"-"},{"$f":"IF(IFERROR(SEARCH('[1]Критерии руб_рсч'!$C$28,J40),IFERROR(SEARCH('[1]Критерии руб_рсч'!$C$29,J40),IFERROR(SEARCH('[1]Критерии руб_рсч'!$C$30,J40),$AP$1)))=$AP$1,\"-\",\"OK\")","v":"-"},{"$f":"IF(IFERROR(SEARCH('[1]Критерии руб_рсч'!$C$32,J40),IFERROR(SEARCH('[1]Критерии руб_рсч'!$C$33,J40),IFERROR(SEARCH('[1]Критерии руб_рсч'!$C$34,J40),IFERROR(SEARCH('[1]Критерии руб_рсч'!$C$35,J40),IFERROR(SEARCH('[1]Критерии руб_рсч'!$C$36,J40),$AP$1)))))=$AP$1,\"-\",\"OK\")","v":"-"},{"$f":"IF(IFERROR(SEARCH('[1]Критерии руб_рсч'!$C$38,J40),IFERROR(SEARCH('[1]Критерии руб_рсч'!$C$39,J40),IFERROR(SEARCH('[1]Критерии руб_рсч'!$C$40,J40),IFERROR(SEARCH('[1]Критерии руб_рсч'!$C$41,J40),IFERROR(SEARCH('[1]Критерии руб_рсч'!$C$42,J40),IFERROR(SEARCH('[1]Критерии руб_рсч'!$C$43,J40),$AP$1))))))=$AP$1,\"-\",\"OK\")","v":"-"},{"$f":"IF(IFERROR(SEARCH('[1]Критерии руб_рсч'!$C$45,J40),IFERROR(SEARCH('[1]Критерии руб_рсч'!$C$46,J40),IFERROR(SEARCH('[1]Критерии руб_рсч'!$C$47,J40),IFERROR(SEARCH('[1]Критерии руб_рсч'!$C$48,J40),IFERROR(SEARCH('[1]Критерии руб_рсч'!$C$49,J40),IFERROR(SEARCH('[1]Критерии руб_рсч'!$C$50,J40),IFERROR(SEARCH('[1]Критерии руб_рсч'!$C$51,J40),$AP$1)))))))=$AP$1,\"-\",\"OK\")","v":"-"},{"$f":"IF(IFERROR(SEARCH('[1]Критерии руб_рсч'!$C$53,J40),$AP$1)=$AP$1,\"-\",\"OK\")","v":"-"},{"$f":"IF(IFERROR(SEARCH('[1]Критерии руб_рсч'!$C$55,J40),IFERROR(SEARCH('[1]Критерии руб_рсч'!$C$56,J40),IFERROR(SEARCH('[1]Критерии руб_рсч'!$C$57,J40),IFERROR(SEARCH('[1]Критерии руб_рсч'!$C$58,J40),IFERROR(SEARCH('[1]Критерии руб_рсч'!$C$59,J40),$AP$1)))))=$AP$1,\"-\",\"OK\")","v":"-"},{"$f":"IF(IFERROR(SEARCH('[1]Критерии руб_рсч'!$C$61,J40),IFERROR(SEARCH('[1]Критерии руб_рсч'!$C$62,J40),IFERROR(SEARCH('[1]Критерии руб_рсч'!$C$63,J40),IFERROR(SEARCH('[1]Критерии руб_рсч'!$C$64,J40),$AP$1))))=$AP$1,\"-\",\"OK\")","v":"-"},{"$f":"IF(IFERROR(SEARCH('[1]Критерии руб_рсч'!$C$66,J40),$AP$1)=$AP$1,\"-\",\"OK\")","v":"-"},{"$f":"IF(IFERROR(SEARCH('[1]Критерии руб_рсч'!$C$68,J40),IFERROR(SEARCH('[1]Критерии руб_рсч'!$C$69,J40),IFERROR(SEARCH('[1]Критерии руб_рсч'!$C$70,J40),IFERROR(SEARCH('[1]Критерии руб_рсч'!$C$71,J40),$AP$1))))=$AP$1,\"-\",\"OK\")","v":"-"},{"$f":"IF(IFERROR(SEARCH('[1]Критерии руб_рсч'!$C$73,J40),IFERROR(SEARCH('[1]Критерии руб_рсч'!$C$74,J40),IFERROR(SEARCH('[1]Критерии руб_рсч'!$C$75,J40),IFERROR(SEARCH('[1]Критерии руб_рсч'!$C$76,J40),$AP$1))))=$AP$1,\"-\",\"OK\")","v":"-"},{"$f":"IF(IFERROR(SEARCH('[1]Критерии руб_рсч'!$C$78,J40),IFERROR(SEARCH('[1]Критерии руб_рсч'!$C$79,J40),IFERROR(SEARCH('[1]Критерии руб_рсч'!$C$80,J40),IFERROR(SEARCH('[1]Критерии руб_рсч'!$C$81,J40),$AP$1))))=$AP$1,\"-\",\"OK\")","v":"-"},{"$f":"IF(IFERROR(SEARCH('[1]Критерии руб_рсч'!$C$83,J40),IFERROR(SEARCH('[1]Критерии руб_рсч'!$C$84,J40),$AP$1))=$AP$1,\"-\",\"OK\")","v":"-"},{"$f":"IF(IFERROR(SEARCH('[1]Критерии руб_рсч'!$C$86,J40),IFERROR(SEARCH('[1]Критерии руб_рсч'!$C$87,J40),IFERROR(SEARCH('[1]Критерии руб_рсч'!$C$88,J40),$AP$1)))=$AP$1,\"-\",\"OK\")","v":"-"},{"$f":"IF(IFERROR(SEARCH('[1]Критерии руб_рсч'!$C$90,J40),IFERROR(SEARCH('[1]Критерии руб_рсч'!$C$91,J40),IFERROR(SEARCH('[1]Критерии руб_рсч'!$C$92,J40),IFERROR(SEARCH('[1]Критерии руб_рсч'!$C$93,J40),$AP$1))))=$AP$1,\"-\",\"OK\")","v":"-"},{"$f":"IF(IFERROR(SEARCH('[1]Критерии руб_рсч'!$C$95,J40),IFERROR(SEARCH('[1]Критерии руб_рсч'!$C$96,J40),IFERROR(SEARCH('[1]Критерии руб_рсч'!$C$97,J40),IFERROR(SEARCH('[1]Критерии руб_рсч'!$C$98,J40),IFERROR(SEARCH('[1]Критерии руб_рсч'!$C$99,J40),IFERROR(SEARCH('[1]Критерии руб_рсч'!$C$100,J40),$AP$1))))))=$AP$1,\"-\",\"OK\")","v":"-"},{"$f":"IF(IFERROR(SEARCH('[1]Критерии руб_рсч'!$C$102,J40),IFERROR(SEARCH('[1]Критерии руб_рсч'!$C$103,J40),IFERROR(SEARCH('[1]Критерии руб_рсч'!$C$104,J40),IFERROR(SEARCH('[1]Критерии руб_рсч'!$C$105,J40),IFERROR(SEARCH('[1]Критерии руб_рсч'!$C$106,J40),IFERROR(SEARCH('[1]Критерии руб_рсч'!$C$107,J40),$AP$1))))))=$AP$1,\"-\",\"OK\")","v":"-"},{"$f":"IF(IFERROR(SEARCH('[1]Критерии руб_рсч'!$C$109,J40),IFERROR(SEARCH('[1]Критерии руб_рсч'!$C$109,J40),$AP$1))=$AP$1,\"-\",\"OK\")","v":"-"}]
["Солр5020","05.02.2015","Солид банк",0,6000,null,null,null,"УФК по г. Москве (ИФНС России №26 по г. Москве)","исковое заявление об обязании заключить дополнительное соглашение к договору аренды № 26-10Пр6/114А","o","опер",2,2015,{"$f":"IFERROR(IF(T41=\"Оплата от покупателя\",\"income\",INDEX('Критерии руб_рсч'!$D$2:$D$91,MATCH(TRUE,ISNUMBER(SEARCH('Критерии руб_рсч'!$C$2:$C$91,рсч_руб!J41)),0))),\"other\")","v":"other"},"руб.",2,2015,"Правда","Перечисление налога",{"$f":"IF(IFERROR(SEARCH('[1]Критерии руб_рсч'!$C$2,J41),IFERROR(SEARCH('[1]Критерии руб_рсч'!$C$3,J41),IFERROR(SEARCH('[1]Критерии руб_рсч'!$C$4,J41),IFERROR(SEARCH('[1]Критерии руб_рсч'!$C$5,J41),IFERROR(SEARCH('[1]Критерии руб_рсч'!$C$6,J41),IFERROR(SEARCH('[1]Критерии руб_рсч'!$C$7,J41),IFERROR(SEARCH('[1]Критерии руб_рсч'!$C$8,J41),IFERROR(SEARCH('[1]Критерии руб_рсч'!$C$8,J41),IFERROR(SEARCH('[1]Критерии руб_рсч'!$C$10,J41),IFERROR(SEARCH('[1]Критерии руб_рсч'!$C$11,J41),\"-\"))))))))))=$AP$1,\"-\",\"OK\")","v":"-"},{"$f":"IF(IFERROR(SEARCH('[1]Критерии руб_рсч'!$C$13,J41),IFERROR(SEARCH('[1]Критерии руб_рсч'!$C$14,J41),IFERROR(SEARCH('[1]Критерии руб_рсч'!$C$15,J41),IFERROR(SEARCH('[1]Критерии руб_рсч'!$C$16,J41),IFERROR(SEARCH('[1]Критерии руб_рсч'!$C$17,J41),IFERROR(SEARCH('[1]Критерии руб_рсч'!$C$18,J41),IFERROR(SEARCH('[1]Критерии руб_рсч'!$C$19,J41),IFERROR(SEARCH('[1]Критерии руб_рсч'!$C$20,J41),IFERROR(SEARCH('[1]Критерии руб_рсч'!$C$21,J41),IFERROR(SEARCH('[1]Критерии руб_рсч'!$C$22,J41),IFERROR(SEARCH('[1]Критерии руб_рсч'!$C$23,J41),IFERROR(SEARCH('[1]Критерии руб_рсч'!$C$24,J41),IFERROR(SEARCH('[1]Критерии руб_рсч'!$C$25,J41),IFERROR(SEARCH('[1]Критерии руб_рсч'!$C$26,J41),$AP$1))))))))))))))=$AP$1,\"-\",\"OK\")","v":"-"},{"$f":"IF(IFERROR(SEARCH('[1]Критерии руб_рсч'!$C$28,J41),IFERROR(SEARCH('[1]Критерии руб_рсч'!$C$29,J41),IFERROR(SEARCH('[1]Критерии руб_рсч'!$C$30,J41),$AP$1)))=$AP$1,\"-\",\"OK\")","v":"-"},{"$f":"IF(IFERROR(SEARCH('[1]Критерии руб_рсч'!$C$32,J41),IFERROR(SEARCH('[1]Критерии руб_рсч'!$C$33,J41),IFERROR(SEARCH('[1]Критерии руб_рсч'!$C$34,J41),IFERROR(SEARCH('[1]Критерии руб_рсч'!$C$35,J41),IFERROR(SEARCH('[1]Критерии руб_рсч'!$C$36,J41),$AP$1)))))=$AP$1,\"-\",\"OK\")","v":"-"},{"$f":"IF(IFERROR(SEARCH('[1]Критерии руб_рсч'!$C$38,J41),IFERROR(SEARCH('[1]Критерии руб_рсч'!$C$39,J41),IFERROR(SEARCH('[1]Критерии руб_рсч'!$C$40,J41),IFERROR(SEARCH('[1]Критерии руб_рсч'!$C$41,J41),IFERROR(SEARCH('[1]Критерии руб_рсч'!$C$42,J41),IFERROR(SEARCH('[1]Критерии руб_рсч'!$C$43,J41),$AP$1))))))=$AP$1,\"-\",\"OK\")","v":"-"},{"$f":"IF(IFERROR(SEARCH('[1]Критерии руб_рсч'!$C$45,J41),IFERROR(SEARCH('[1]Критерии руб_рсч'!$C$46,J41),IFERROR(SEARCH('[1]Критерии руб_рсч'!$C$47,J41),IFERROR(SEARCH('[1]Критерии руб_рсч'!$C$48,J41),IFERROR(SEARCH('[1]Критерии руб_рсч'!$C$49,J41),IFERROR(SEARCH('[1]Критерии руб_рсч'!$C$50,J41),IFERROR(SEARCH('[1]Критерии руб_рсч'!$C$51,J41),$AP$1)))))))=$AP$1,\"-\",\"OK\")","v":"-"},{"$f":"IF(IFERROR(SEARCH('[1]Критерии руб_рсч'!$C$53,J41),$AP$1)=$AP$1,\"-\",\"OK\")","v":"-"},{"$f":"IF(IFERROR(SEARCH('[1]Критерии руб_рсч'!$C$55,J41),IFERROR(SEARCH('[1]Критерии руб_рсч'!$C$56,J41),IFERROR(SEARCH('[1]Критерии руб_рсч'!$C$57,J41),IFERROR(SEARCH('[1]Критерии руб_рсч'!$C$58,J41),IFERROR(SEARCH('[1]Критерии руб_рсч'!$C$59,J41),$AP$1)))))=$AP$1,\"-\",\"OK\")","v":"-"},{"$f":"IF(IFERROR(SEARCH('[1]Критерии руб_рсч'!$C$61,J41),IFERROR(SEARCH('[1]Критерии руб_рсч'!$C$62,J41),IFERROR(SEARCH('[1]Критерии руб_рсч'!$C$63,J41),IFERROR(SEARCH('[1]Критерии руб_рсч'!$C$64,J41),$AP$1))))=$AP$1,\"-\",\"OK\")","v":"-"},{"$f":"IF(IFERROR(SEARCH('[1]Критерии руб_рсч'!$C$66,J41),$AP$1)=$AP$1,\"-\",\"OK\")","v":"-"},{"$f":"IF(IFERROR(SEARCH('[1]Критерии руб_рсч'!$C$68,J41),IFERROR(SEARCH('[1]Критерии руб_рсч'!$C$69,J41),IFERROR(SEARCH('[1]Критерии руб_рсч'!$C$70,J41),IFERROR(SEARCH('[1]Критерии руб_рсч'!$C$71,J41),$AP$1))))=$AP$1,\"-\",\"OK\")","v":"-"},{"$f":"IF(IFERROR(SEARCH('[1]Критерии руб_рсч'!$C$73,J41),IFERROR(SEARCH('[1]Критерии руб_рсч'!$C$74,J41),IFERROR(SEARCH('[1]Критерии руб_рсч'!$C$75,J41),IFERROR(SEARCH('[1]Критерии руб_рсч'!$C$76,J41),$AP$1))))=$AP$1,\"-\",\"OK\")","v":"-"},{"$f":"IF(IFERROR(SEARCH('[1]Критерии руб_рсч'!$C$78,J41),IFERROR(SEARCH('[1]Критерии руб_рсч'!$C$79,J41),IFERROR(SEARCH('[1]Критерии руб_рсч'!$C$80,J41),IFERROR(SEARCH('[1]Критерии руб_рсч'!$C$81,J41),$AP$1))))=$AP$1,\"-\",\"OK\")","v":"-"},{"$f":"IF(IFERROR(SEARCH('[1]Критерии руб_рсч'!$C$83,J41),IFERROR(SEARCH('[1]Критерии руб_рсч'!$C$84,J41),$AP$1))=$AP$1,\"-\",\"OK\")","v":"-"},{"$f":"IF(IFERROR(SEARCH('[1]Критерии руб_рсч'!$C$86,J41),IFERROR(SEARCH('[1]Критерии руб_рсч'!$C$87,J41),IFERROR(SEARCH('[1]Критерии руб_рсч'!$C$88,J41),$AP$1)))=$AP$1,\"-\",\"OK\")","v":"-"},{"$f":"IF(IFERROR(SEARCH('[1]Критерии руб_рсч'!$C$90,J41),IFERROR(SEARCH('[1]Критерии руб_рсч'!$C$91,J41),IFERROR(SEARCH('[1]Критерии руб_рсч'!$C$92,J41),IFERROR(SEARCH('[1]Критерии руб_рсч'!$C$93,J41),$AP$1))))=$AP$1,\"-\",\"OK\")","v":"-"},{"$f":"IF(IFERROR(SEARCH('[1]Критерии руб_рсч'!$C$95,J41),IFERROR(SEARCH('[1]Критерии руб_рсч'!$C$96,J41),IFERROR(SEARCH('[1]Критерии руб_рсч'!$C$97,J41),IFERROR(SEARCH('[1]Критерии руб_рсч'!$C$98,J41),IFERROR(SEARCH('[1]Критерии руб_рсч'!$C$99,J41),IFERROR(SEARCH('[1]Критерии руб_рсч'!$C$100,J41),$AP$1))))))=$AP$1,\"-\",\"OK\")","v":"-"},{"$f":"IF(IFERROR(SEARCH('[1]Критерии руб_рсч'!$C$102,J41),IFERROR(SEARCH('[1]Критерии руб_рсч'!$C$103,J41),IFERROR(SEARCH('[1]Критерии руб_рсч'!$C$104,J41),IFERROR(SEARCH('[1]Критерии руб_рсч'!$C$105,J41),IFERROR(SEARCH('[1]Критерии руб_рсч'!$C$106,J41),IFERROR(SEARCH('[1]Критерии руб_рсч'!$C$107,J41),$AP$1))))))=$AP$1,\"-\",\"OK\")","v":"-"},{"$f":"IF(IFERROR(SEARCH('[1]Критерии руб_рсч'!$C$109,J41),IFERROR(SEARCH('[1]Критерии руб_рсч'!$C$109,J41),$AP$1))=$AP$1,\"-\",\"OK\")","v":"-"}]
["Солр5021","09.02.2015","Солид банк",0,9,null,null,null,"ЗАО \"СОЛИД БАНК\"","НДС за оказание услуги по Изготовлению и заверению копий документов в рамках оказания услуг клиенту, кроме накопительных счетов. Тариф 1.4.4","o",{"$f":"VLOOKUP(O42,[1]Справочник!$A$2:$B$44,2,0)","v":"опер"},2,2015,{"$f":"IFERROR(IF(T42=\"Оплата от покупателя\",\"income\",INDEX('Критерии руб_рсч'!$D$2:$D$91,MATCH(TRUE,ISNUMBER(SEARCH('Критерии руб_рсч'!$C$2:$C$91,рсч_руб!J42)),0))),\"other\")","v":"bank"},"руб.",2,2015,"Правда","Прочее списание",{"$f":"IF(IFERROR(SEARCH('[1]Критерии руб_рсч'!$C$2,J42),IFERROR(SEARCH('[1]Критерии руб_рсч'!$C$3,J42),IFERROR(SEARCH('[1]Критерии руб_рсч'!$C$4,J42),IFERROR(SEARCH('[1]Критерии руб_рсч'!$C$5,J42),IFERROR(SEARCH('[1]Критерии руб_рсч'!$C$6,J42),IFERROR(SEARCH('[1]Критерии руб_рсч'!$C$7,J42),IFERROR(SEARCH('[1]Критерии руб_рсч'!$C$8,J42),IFERROR(SEARCH('[1]Критерии руб_рсч'!$C$8,J42),IFERROR(SEARCH('[1]Критерии руб_рсч'!$C$10,J42),IFERROR(SEARCH('[1]Критерии руб_рсч'!$C$11,J42),\"-\"))))))))))=$AP$1,\"-\",\"OK\")","v":"-"},{"$f":"IF(IFERROR(SEARCH('[1]Критерии руб_рсч'!$C$13,J42),IFERROR(SEARCH('[1]Критерии руб_рсч'!$C$14,J42),IFERROR(SEARCH('[1]Критерии руб_рсч'!$C$15,J42),IFERROR(SEARCH('[1]Критерии руб_рсч'!$C$16,J42),IFERROR(SEARCH('[1]Критерии руб_рсч'!$C$17,J42),IFERROR(SEARCH('[1]Критерии руб_рсч'!$C$18,J42),IFERROR(SEARCH('[1]Критерии руб_рсч'!$C$19,J42),IFERROR(SEARCH('[1]Критерии руб_рсч'!$C$20,J42),IFERROR(SEARCH('[1]Критерии руб_рсч'!$C$21,J42),IFERROR(SEARCH('[1]Критерии руб_рсч'!$C$22,J42),IFERROR(SEARCH('[1]Критерии руб_рсч'!$C$23,J42),IFERROR(SEARCH('[1]Критерии руб_рсч'!$C$24,J42),IFERROR(SEARCH('[1]Критерии руб_рсч'!$C$25,J42),IFERROR(SEARCH('[1]Критерии руб_рсч'!$C$26,J42),$AP$1))))))))))))))=$AP$1,\"-\",\"OK\")","v":"OK"},{"$f":"IF(IFERROR(SEARCH('[1]Критерии руб_рсч'!$C$28,J42),IFERROR(SEARCH('[1]Критерии руб_рсч'!$C$29,J42),IFERROR(SEARCH('[1]Критерии руб_рсч'!$C$30,J42),$AP$1)))=$AP$1,\"-\",\"OK\")","v":"-"},{"$f":"IF(IFERROR(SEARCH('[1]Критерии руб_рсч'!$C$32,J42),IFERROR(SEARCH('[1]Критерии руб_рсч'!$C$33,J42),IFERROR(SEARCH('[1]Критерии руб_рсч'!$C$34,J42),IFERROR(SEARCH('[1]Критерии руб_рсч'!$C$35,J42),IFERROR(SEARCH('[1]Критерии руб_рсч'!$C$36,J42),$AP$1)))))=$AP$1,\"-\",\"OK\")","v":"-"},{"$f":"IF(IFERROR(SEARCH('[1]Критерии руб_рсч'!$C$38,J42),IFERROR(SEARCH('[1]Критерии руб_рсч'!$C$39,J42),IFERROR(SEARCH('[1]Критерии руб_рсч'!$C$40,J42),IFERROR(SEARCH('[1]Критерии руб_рсч'!$C$41,J42),IFERROR(SEARCH('[1]Критерии руб_рсч'!$C$42,J42),IFERROR(SEARCH('[1]Критерии руб_рсч'!$C$43,J42),$AP$1))))))=$AP$1,\"-\",\"OK\")","v":"-"},{"$f":"IF(IFERROR(SEARCH('[1]Критерии руб_рсч'!$C$45,J42),IFERROR(SEARCH('[1]Критерии руб_рсч'!$C$46,J42),IFERROR(SEARCH('[1]Критерии руб_рсч'!$C$47,J42),IFERROR(SEARCH('[1]Критерии руб_рсч'!$C$48,J42),IFERROR(SEARCH('[1]Критерии руб_рсч'!$C$49,J42),IFERROR(SEARCH('[1]Критерии руб_рсч'!$C$50,J42),IFERROR(SEARCH('[1]Критерии руб_рсч'!$C$51,J42),$AP$1)))))))=$AP$1,\"-\",\"OK\")","v":"-"},{"$f":"IF(IFERROR(SEARCH('[1]Критерии руб_рсч'!$C$53,J42),$AP$1)=$AP$1,\"-\",\"OK\")","v":"-"},{"$f":"IF(IFERROR(SEARCH('[1]Критерии руб_рсч'!$C$55,J42),IFERROR(SEARCH('[1]Критерии руб_рсч'!$C$56,J42),IFERROR(SEARCH('[1]Критерии руб_рсч'!$C$57,J42),IFERROR(SEARCH('[1]Критерии руб_рсч'!$C$58,J42),IFERROR(SEARCH('[1]Критерии руб_рсч'!$C$59,J42),$AP$1)))))=$AP$1,\"-\",\"OK\")","v":"-"},{"$f":"IF(IFERROR(SEARCH('[1]Критерии руб_рсч'!$C$61,J42),IFERROR(SEARCH('[1]Критерии руб_рсч'!$C$62,J42),IFERROR(SEARCH('[1]Критерии руб_рсч'!$C$63,J42),IFERROR(SEARCH('[1]Критерии руб_рсч'!$C$64,J42),$AP$1))))=$AP$1,\"-\",\"OK\")","v":"-"},{"$f":"IF(IFERROR(SEARCH('[1]Критерии руб_рсч'!$C$66,J42),$AP$1)=$AP$1,\"-\",\"OK\")","v":"-"},{"$f":"IF(IFERROR(SEARCH('[1]Критерии руб_рсч'!$C$68,J42),IFERROR(SEARCH('[1]Критерии руб_рсч'!$C$69,J42),IFERROR(SEARCH('[1]Критерии руб_рсч'!$C$70,J42),IFERROR(SEARCH('[1]Критерии руб_рсч'!$C$71,J42),$AP$1))))=$AP$1,\"-\",\"OK\")","v":"-"},{"$f":"IF(IFERROR(SEARCH('[1]Критерии руб_рсч'!$C$73,J42),IFERROR(SEARCH('[1]Критерии руб_рсч'!$C$74,J42),IFERROR(SEARCH('[1]Критерии руб_рсч'!$C$75,J42),IFERROR(SEARCH('[1]Критерии руб_рсч'!$C$76,J42),$AP$1))))=$AP$1,\"-\",\"OK\")","v":"-"},{"$f":"IF(IFERROR(SEARCH('[1]Критерии руб_рсч'!$C$78,J42),IFERROR(SEARCH('[1]Критерии руб_рсч'!$C$79,J42),IFERROR(SEARCH('[1]Критерии руб_рсч'!$C$80,J42),IFERROR(SEARCH('[1]Критерии руб_рсч'!$C$81,J42),$AP$1))))=$AP$1,\"-\",\"OK\")","v":"-"},{"$f":"IF(IFERROR(SEARCH('[1]Критерии руб_рсч'!$C$83,J42),IFERROR(SEARCH('[1]Критерии руб_рсч'!$C$84,J42),$AP$1))=$AP$1,\"-\",\"OK\")","v":"-"},{"$f":"IF(IFERROR(SEARCH('[1]Критерии руб_рсч'!$C$86,J42),IFERROR(SEARCH('[1]Критерии руб_рсч'!$C$87,J42),IFERROR(SEARCH('[1]Критерии руб_рсч'!$C$88,J42),$AP$1)))=$AP$1,\"-\",\"OK\")","v":"-"},{"$f":"IF(IFERROR(SEARCH('[1]Критерии руб_рсч'!$C$90,J42),IFERROR(SEARCH('[1]Критерии руб_рсч'!$C$91,J42),IFERROR(SEARCH('[1]Критерии руб_рсч'!$C$92,J42),IFERROR(SEARCH('[1]Критерии руб_рсч'!$C$93,J42),$AP$1))))=$AP$1,\"-\",\"OK\")","v":"-"},{"$f":"IF(IFERROR(SEARCH('[1]Критерии руб_рсч'!$C$95,J42),IFERROR(SEARCH('[1]Критерии руб_рсч'!$C$96,J42),IFERROR(SEARCH('[1]Критерии руб_рсч'!$C$97,J42),IFERROR(SEARCH('[1]Критерии руб_рсч'!$C$98,J42),IFERROR(SEARCH('[1]Критерии руб_рсч'!$C$99,J42),IFERROR(SEARCH('[1]Критерии руб_рсч'!$C$100,J42),$AP$1))))))=$AP$1,\"-\",\"OK\")","v":"-"},{"$f":"IF(IFERROR(SEARCH('[1]Критерии руб_рсч'!$C$102,J42),IFERROR(SEARCH('[1]Критерии руб_рсч'!$C$103,J42),IFERROR(SEARCH('[1]Критерии руб_рсч'!$C$104,J42),IFERROR(SEARCH('[1]Критерии руб_рсч'!$C$105,J42),IFERROR(SEARCH('[1]Критерии руб_рсч'!$C$106,J42),IFERROR(SEARCH('[1]Критерии руб_рсч'!$C$107,J42),$AP$1))))))=$AP$1,\"-\",\"OK\")","v":"-"},{"$f":"IF(IFERROR(SEARCH('[1]Критерии руб_рсч'!$C$109,J42),IFERROR(SEARCH('[1]Критерии руб_рсч'!$C$109,J42),$AP$1))=$AP$1,\"-\",\"OK\")","v":"-"}]
["Солр5022","09.02.2015","Солид банк",0,50,null,null,null,"ЗАО \"СОЛИД БАНК\"","Комиссия за оказание услуги по Изготовлению и заверению копий документов в рамках оказания услуг клиенту, кроме накопительных счетов. Тариф 1.4.4","o",{"$f":"VLOOKUP(O43,[1]Справочник!$A$2:$B$44,2,0)","v":"опер"},2,2015,{"$f":"IFERROR(IF(T43=\"Оплата от покупателя\",\"income\",INDEX('Критерии руб_рсч'!$D$2:$D$91,MATCH(TRUE,ISNUMBER(SEARCH('Критерии руб_рсч'!$C$2:$C$91,рсч_руб!J43)),0))),\"other\")","v":"bank"},"руб.",2,2015,"Правда","Прочее списание",{"$f":"IF(IFERROR(SEARCH('[1]Критерии руб_рсч'!$C$2,J43),IFERROR(SEARCH('[1]Критерии руб_рсч'!$C$3,J43),IFERROR(SEARCH('[1]Критерии руб_рсч'!$C$4,J43),IFERROR(SEARCH('[1]Критерии руб_рсч'!$C$5,J43),IFERROR(SEARCH('[1]Критерии руб_рсч'!$C$6,J43),IFERROR(SEARCH('[1]Критерии руб_рсч'!$C$7,J43),IFERROR(SEARCH('[1]Критерии руб_рсч'!$C$8,J43),IFERROR(SEARCH('[1]Критерии руб_рсч'!$C$8,J43),IFERROR(SEARCH('[1]Критерии руб_рсч'!$C$10,J43),IFERROR(SEARCH('[1]Критерии руб_рсч'!$C$11,J43),\"-\"))))))))))=$AP$1,\"-\",\"OK\")","v":"-"},{"$f":"IF(IFERROR(SEARCH('[1]Критерии руб_рсч'!$C$13,J43),IFERROR(SEARCH('[1]Критерии руб_рсч'!$C$14,J43),IFERROR(SEARCH('[1]Критерии руб_рсч'!$C$15,J43),IFERROR(SEARCH('[1]Критерии руб_рсч'!$C$16,J43),IFERROR(SEARCH('[1]Критерии руб_рсч'!$C$17,J43),IFERROR(SEARCH('[1]Критерии руб_рсч'!$C$18,J43),IFERROR(SEARCH('[1]Критерии руб_рсч'!$C$19,J43),IFERROR(SEARCH('[1]Критерии руб_рсч'!$C$20,J43),IFERROR(SEARCH('[1]Критерии руб_рсч'!$C$21,J43),IFERROR(SEARCH('[1]Критерии руб_рсч'!$C$22,J43),IFERROR(SEARCH('[1]Критерии руб_рсч'!$C$23,J43),IFERROR(SEARCH('[1]Критерии руб_рсч'!$C$24,J43),IFERROR(SEARCH('[1]Критерии руб_рсч'!$C$25,J43),IFERROR(SEARCH('[1]Критерии руб_рсч'!$C$26,J43),$AP$1))))))))))))))=$AP$1,\"-\",\"OK\")","v":"OK"},{"$f":"IF(IFERROR(SEARCH('[1]Критерии руб_рсч'!$C$28,J43),IFERROR(SEARCH('[1]Критерии руб_рсч'!$C$29,J43),IFERROR(SEARCH('[1]Критерии руб_рсч'!$C$30,J43),$AP$1)))=$AP$1,\"-\",\"OK\")","v":"-"},{"$f":"IF(IFERROR(SEARCH('[1]Критерии руб_рсч'!$C$32,J43),IFERROR(SEARCH('[1]Критерии руб_рсч'!$C$33,J43),IFERROR(SEARCH('[1]Критерии руб_рсч'!$C$34,J43),IFERROR(SEARCH('[1]Критерии руб_рсч'!$C$35,J43),IFERROR(SEARCH('[1]Критерии руб_рсч'!$C$36,J43),$AP$1)))))=$AP$1,\"-\",\"OK\")","v":"-"},{"$f":"IF(IFERROR(SEARCH('[1]Критерии руб_рсч'!$C$38,J43),IFERROR(SEARCH('[1]Критерии руб_рсч'!$C$39,J43),IFERROR(SEARCH('[1]Критерии руб_рсч'!$C$40,J43),IFERROR(SEARCH('[1]Критерии руб_рсч'!$C$41,J43),IFERROR(SEARCH('[1]Критерии руб_рсч'!$C$42,J43),IFERROR(SEARCH('[1]Критерии руб_рсч'!$C$43,J43),$AP$1))))))=$AP$1,\"-\",\"OK\")","v":"-"},{"$f":"IF(IFERROR(SEARCH('[1]Критерии руб_рсч'!$C$45,J43),IFERROR(SEARCH('[1]Критерии руб_рсч'!$C$46,J43),IFERROR(SEARCH('[1]Критерии руб_рсч'!$C$47,J43),IFERROR(SEARCH('[1]Критерии руб_рсч'!$C$48,J43),IFERROR(SEARCH('[1]Критерии руб_рсч'!$C$49,J43),IFERROR(SEARCH('[1]Критерии руб_рсч'!$C$50,J43),IFERROR(SEARCH('[1]Критерии руб_рсч'!$C$51,J43),$AP$1)))))))=$AP$1,\"-\",\"OK\")","v":"-"},{"$f":"IF(IFERROR(SEARCH('[1]Критерии руб_рсч'!$C$53,J43),$AP$1)=$AP$1,\"-\",\"OK\")","v":"-"},{"$f":"IF(IFERROR(SEARCH('[1]Критерии руб_рсч'!$C$55,J43),IFERROR(SEARCH('[1]Критерии руб_рсч'!$C$56,J43),IFERROR(SEARCH('[1]Критерии руб_рсч'!$C$57,J43),IFERROR(SEARCH('[1]Критерии руб_рсч'!$C$58,J43),IFERROR(SEARCH('[1]Критерии руб_рсч'!$C$59,J43),$AP$1)))))=$AP$1,\"-\",\"OK\")","v":"-"},{"$f":"IF(IFERROR(SEARCH('[1]Критерии руб_рсч'!$C$61,J43),IFERROR(SEARCH('[1]Критерии руб_рсч'!$C$62,J43),IFERROR(SEARCH('[1]Критерии руб_рсч'!$C$63,J43),IFERROR(SEARCH('[1]Критерии руб_рсч'!$C$64,J43),$AP$1))))=$AP$1,\"-\",\"OK\")","v":"-"},{"$f":"IF(IFERROR(SEARCH('[1]Критерии руб_рсч'!$C$66,J43),$AP$1)=$AP$1,\"-\",\"OK\")","v":"-"},{"$f":"IF(IFERROR(SEARCH('[1]Критерии руб_рсч'!$C$68,J43),IFERROR(SEARCH('[1]Критерии руб_рсч'!$C$69,J43),IFERROR(SEARCH('[1]Критерии руб_рсч'!$C$70,J43),IFERROR(SEARCH('[1]Критерии руб_рсч'!$C$71,J43),$AP$1))))=$AP$1,\"-\",\"OK\")","v":"-"},{"$f":"IF(IFERROR(SEARCH('[1]Критерии руб_рсч'!$C$73,J43),IFERROR(SEARCH('[1]Критерии руб_рсч'!$C$74,J43),IFERROR(SEARCH('[1]Критерии руб_рсч'!$C$75,J43),IFERROR(SEARCH('[1]Критерии руб_рсч'!$C$76,J43),$AP$1))))=$AP$1,\"-\",\"OK\")","v":"-"},{"$f":"IF(IFERROR(SEARCH('[1]Критерии руб_рсч'!$C$78,J43),IFERROR(SEARCH('[1]Критерии руб_рсч'!$C$79,J43),IFERROR(SEARCH('[1]Критерии руб_рсч'!$C$80,J43),IFERROR(SEARCH('[1]Критерии руб_рсч'!$C$81,J43),$AP$1))))=$AP$1,\"-\",\"OK\")","v":"-"},{"$f":"IF(IFERROR(SEARCH('[1]Критерии руб_рсч'!$C$83,J43),IFERROR(SEARCH('[1]Критерии руб_рсч'!$C$84,J43),$AP$1))=$AP$1,\"-\",\"OK\")","v":"-"},{"$f":"IF(IFERROR(SEARCH('[1]Критерии руб_рсч'!$C$86,J43),IFERROR(SEARCH('[1]Критерии руб_рсч'!$C$87,J43),IFERROR(SEARCH('[1]Критерии руб_рсч'!$C$88,J43),$AP$1)))=$AP$1,\"-\",\"OK\")","v":"-"},{"$f":"IF(IFERROR(SEARCH('[1]Критерии руб_рсч'!$C$90,J43),IFERROR(SEARCH('[1]Критерии руб_рсч'!$C$91,J43),IFERROR(SEARCH('[1]Критерии руб_рсч'!$C$92,J43),IFERROR(SEARCH('[1]Критерии руб_рсч'!$C$93,J43),$AP$1))))=$AP$1,\"-\",\"OK\")","v":"-"},{"$f":"IF(IFERROR(SEARCH('[1]Критерии руб_рсч'!$C$95,J43),IFERROR(SEARCH('[1]Критерии руб_рсч'!$C$96,J43),IFERROR(SEARCH('[1]Критерии руб_рсч'!$C$97,J43),IFERROR(SEARCH('[1]Критерии руб_рсч'!$C$98,J43),IFERROR(SEARCH('[1]Критерии руб_рсч'!$C$99,J43),IFERROR(SEARCH('[1]Критерии руб_рсч'!$C$100,J43),$AP$1))))))=$AP$1,\"-\",\"OK\")","v":"-"},{"$f":"IF(IFERROR(SEARCH('[1]Критерии руб_рсч'!$C$102,J43),IFERROR(SEARCH('[1]Критерии руб_рсч'!$C$103,J43),IFERROR(SEARCH('[1]Критерии руб_рсч'!$C$104,J43),IFERROR(SEARCH('[1]Критерии руб_рсч'!$C$105,J43),IFERROR(SEARCH('[1]Критерии руб_рсч'!$C$106,J43),IFERROR(SEARCH('[1]Критерии руб_рсч'!$C$107,J43),$AP$1))))))=$AP$1,\"-\",\"OK\")","v":"-"},{"$f":"IF(IFERROR(SEARCH('[1]Критерии руб_рсч'!$C$109,J43),IFERROR(SEARCH('[1]Критерии руб_рсч'!$C$109,J43),$AP$1))=$AP$1,\"-\",\"OK\")","v":"-"}]
["Солр5023","09.02.2015","Солид банк",0,600,null,null,null,"ЗАО \"СОЛИД БАНК\"","Абонентская плата за обслуживание с использованием Системы Ibank 2 за февраль 2015 г.","o",{"$f":"VLOOKUP(O44,[1]Справочник!$A$2:$B$44,2,0)","v":"опер"},2,2015,{"$f":"IFERROR(IF(T44=\"Оплата от покупателя\",\"income\",INDEX('Критерии руб_рсч'!$D$2:$D$91,MATCH(TRUE,ISNUMBER(SEARCH('Критерии руб_рсч'!$C$2:$C$91,рсч_руб!J44)),0))),\"other\")","v":"bank"},"руб.",2,2015,"Правда","Прочее списание",{"$f":"IF(IFERROR(SEARCH('[1]Критерии руб_рсч'!$C$2,J44),IFERROR(SEARCH('[1]Критерии руб_рсч'!$C$3,J44),IFERROR(SEARCH('[1]Критерии руб_рсч'!$C$4,J44),IFERROR(SEARCH('[1]Критерии руб_рсч'!$C$5,J44),IFERROR(SEARCH('[1]Критерии руб_рсч'!$C$6,J44),IFERROR(SEARCH('[1]Критерии руб_рсч'!$C$7,J44),IFERROR(SEARCH('[1]Критерии руб_рсч'!$C$8,J44),IFERROR(SEARCH('[1]Критерии руб_рсч'!$C$8,J44),IFERROR(SEARCH('[1]Критерии руб_рсч'!$C$10,J44),IFERROR(SEARCH('[1]Критерии руб_рсч'!$C$11,J44),\"-\"))))))))))=$AP$1,\"-\",\"OK\")","v":"-"},{"$f":"IF(IFERROR(SEARCH('[1]Критерии руб_рсч'!$C$13,J44),IFERROR(SEARCH('[1]Критерии руб_рсч'!$C$14,J44),IFERROR(SEARCH('[1]Критерии руб_рсч'!$C$15,J44),IFERROR(SEARCH('[1]Критерии руб_рсч'!$C$16,J44),IFERROR(SEARCH('[1]Критерии руб_рсч'!$C$17,J44),IFERROR(SEARCH('[1]Критерии руб_рсч'!$C$18,J44),IFERROR(SEARCH('[1]Критерии руб_рсч'!$C$19,J44),IFERROR(SEARCH('[1]Критерии руб_рсч'!$C$20,J44),IFERROR(SEARCH('[1]Критерии руб_рсч'!$C$21,J44),IFERROR(SEARCH('[1]Критерии руб_рсч'!$C$22,J44),IFERROR(SEARCH('[1]Критерии руб_рсч'!$C$23,J44),IFERROR(SEARCH('[1]Критерии руб_рсч'!$C$24,J44),IFERROR(SEARCH('[1]Критерии руб_рсч'!$C$25,J44),IFERROR(SEARCH('[1]Критерии руб_рсч'!$C$26,J44),$AP$1))))))))))))))=$AP$1,\"-\",\"OK\")","v":"OK"},{"$f":"IF(IFERROR(SEARCH('[1]Критерии руб_рсч'!$C$28,J44),IFERROR(SEARCH('[1]Критерии руб_рсч'!$C$29,J44),IFERROR(SEARCH('[1]Критерии руб_рсч'!$C$30,J44),$AP$1)))=$AP$1,\"-\",\"OK\")","v":"-"},{"$f":"IF(IFERROR(SEARCH('[1]Критерии руб_рсч'!$C$32,J44),IFERROR(SEARCH('[1]Критерии руб_рсч'!$C$33,J44),IFERROR(SEARCH('[1]Критерии руб_рсч'!$C$34,J44),IFERROR(SEARCH('[1]Критерии руб_рсч'!$C$35,J44),IFERROR(SEARCH('[1]Критерии руб_рсч'!$C$36,J44),$AP$1)))))=$AP$1,\"-\",\"OK\")","v":"-"},{"$f":"IF(IFERROR(SEARCH('[1]Критерии руб_рсч'!$C$38,J44),IFERROR(SEARCH('[1]Критерии руб_рсч'!$C$39,J44),IFERROR(SEARCH('[1]Критерии руб_рсч'!$C$40,J44),IFERROR(SEARCH('[1]Критерии руб_рсч'!$C$41,J44),IFERROR(SEARCH('[1]Критерии руб_рсч'!$C$42,J44),IFERROR(SEARCH('[1]Критерии руб_рсч'!$C$43,J44),$AP$1))))))=$AP$1,\"-\",\"OK\")","v":"-"},{"$f":"IF(IFERROR(SEARCH('[1]Критерии руб_рсч'!$C$45,J44),IFERROR(SEARCH('[1]Критерии руб_рсч'!$C$46,J44),IFERROR(SEARCH('[1]Критерии руб_рсч'!$C$47,J44),IFERROR(SEARCH('[1]Критерии руб_рсч'!$C$48,J44),IFERROR(SEARCH('[1]Критерии руб_рсч'!$C$49,J44),IFERROR(SEARCH('[1]Критерии руб_рсч'!$C$50,J44),IFERROR(SEARCH('[1]Критерии руб_рсч'!$C$51,J44),$AP$1)))))))=$AP$1,\"-\",\"OK\")","v":"-"},{"$f":"IF(IFERROR(SEARCH('[1]Критерии руб_рсч'!$C$53,J44),$AP$1)=$AP$1,\"-\",\"OK\")","v":"-"},{"$f":"IF(IFERROR(SEARCH('[1]Критерии руб_рсч'!$C$55,J44),IFERROR(SEARCH('[1]Критерии руб_рсч'!$C$56,J44),IFERROR(SEARCH('[1]Критерии руб_рсч'!$C$57,J44),IFERROR(SEARCH('[1]Критерии руб_рсч'!$C$58,J44),IFERROR(SEARCH('[1]Критерии руб_рсч'!$C$59,J44),$AP$1)))))=$AP$1,\"-\",\"OK\")","v":"-"},{"$f":"IF(IFERROR(SEARCH('[1]Критерии руб_рсч'!$C$61,J44),IFERROR(SEARCH('[1]Критерии руб_рсч'!$C$62,J44),IFERROR(SEARCH('[1]Критерии руб_рсч'!$C$63,J44),IFERROR(SEARCH('[1]Критерии руб_рсч'!$C$64,J44),$AP$1))))=$AP$1,\"-\",\"OK\")","v":"-"},{"$f":"IF(IFERROR(SEARCH('[1]Критерии руб_рсч'!$C$66,J44),$AP$1)=$AP$1,\"-\",\"OK\")","v":"-"},{"$f":"IF(IFERROR(SEARCH('[1]Критерии руб_рсч'!$C$68,J44),IFERROR(SEARCH('[1]Критерии руб_рсч'!$C$69,J44),IFERROR(SEARCH('[1]Критерии руб_рсч'!$C$70,J44),IFERROR(SEARCH('[1]Критерии руб_рсч'!$C$71,J44),$AP$1))))=$AP$1,\"-\",\"OK\")","v":"-"},{"$f":"IF(IFERROR(SEARCH('[1]Критерии руб_рсч'!$C$73,J44),IFERROR(SEARCH('[1]Критерии руб_рсч'!$C$74,J44),IFERROR(SEARCH('[1]Критерии руб_рсч'!$C$75,J44),IFERROR(SEARCH('[1]Критерии руб_рсч'!$C$76,J44),$AP$1))))=$AP$1,\"-\",\"OK\")","v":"-"},{"$f":"IF(IFERROR(SEARCH('[1]Критерии руб_рсч'!$C$78,J44),IFERROR(SEARCH('[1]Критерии руб_рсч'!$C$79,J44),IFERROR(SEARCH('[1]Критерии руб_рсч'!$C$80,J44),IFERROR(SEARCH('[1]Критерии руб_рсч'!$C$81,J44),$AP$1))))=$AP$1,\"-\",\"OK\")","v":"-"},{"$f":"IF(IFERROR(SEARCH('[1]Критерии руб_рсч'!$C$83,J44),IFERROR(SEARCH('[1]Критерии руб_рсч'!$C$84,J44),$AP$1))=$AP$1,\"-\",\"OK\")","v":"-"},{"$f":"IF(IFERROR(SEARCH('[1]Критерии руб_рсч'!$C$86,J44),IFERROR(SEARCH('[1]Критерии руб_рсч'!$C$87,J44),IFERROR(SEARCH('[1]Критерии руб_рсч'!$C$88,J44),$AP$1)))=$AP$1,\"-\",\"OK\")","v":"-"},{"$f":"IF(IFERROR(SEARCH('[1]Критерии руб_рсч'!$C$90,J44),IFERROR(SEARCH('[1]Критерии руб_рсч'!$C$91,J44),IFERROR(SEARCH('[1]Критерии руб_рсч'!$C$92,J44),IFERROR(SEARCH('[1]Критерии руб_рсч'!$C$93,J44),$AP$1))))=$AP$1,\"-\",\"OK\")","v":"-"},{"$f":"IF(IFERROR(SEARCH('[1]Критерии руб_рсч'!$C$95,J44),IFERROR(SEARCH('[1]Критерии руб_рсч'!$C$96,J44),IFERROR(SEARCH('[1]Критерии руб_рсч'!$C$97,J44),IFERROR(SEARCH('[1]Критерии руб_рсч'!$C$98,J44),IFERROR(SEARCH('[1]Критерии руб_рсч'!$C$99,J44),IFERROR(SEARCH('[1]Критерии руб_рсч'!$C$100,J44),$AP$1))))))=$AP$1,\"-\",\"OK\")","v":"-"},{"$f":"IF(IFERROR(SEARCH('[1]Критерии руб_рсч'!$C$102,J44),IFERROR(SEARCH('[1]Критерии руб_рсч'!$C$103,J44),IFERROR(SEARCH('[1]Критерии руб_рсч'!$C$104,J44),IFERROR(SEARCH('[1]Критерии руб_рсч'!$C$105,J44),IFERROR(SEARCH('[1]Критерии руб_рсч'!$C$106,J44),IFERROR(SEARCH('[1]Критерии руб_рсч'!$C$107,J44),$AP$1))))))=$AP$1,\"-\",\"OK\")","v":"-"},{"$f":"IF(IFERROR(SEARCH('[1]Критерии руб_рсч'!$C$109,J44),IFERROR(SEARCH('[1]Критерии руб_рсч'!$C$109,J44),$AP$1))=$AP$1,\"-\",\"OK\")","v":"-"}]
["Солр5024","10.02.2015","Солид банк",200000,0,null,null,null,"ЗАО \"СОЛИД БАНК\"","Торговая выручка","o",{"$f":"VLOOKUP(O45,[1]Справочник!$A$2:$B$44,2,0)","v":"CF"},2,2015,{"$f":"IFERROR(IF(T45=\"Оплата от покупателя\",\"income\",INDEX('Критерии руб_рсч'!$D$2:$D$91,MATCH(TRUE,ISNUMBER(SEARCH('Критерии руб_рсч'!$C$2:$C$91,рсч_руб!J45)),0))),\"other\")","v":"ДДС"},"руб.",2,2015,"Правда","Инкассация",{"$f":"IF(IFERROR(SEARCH('[1]Критерии руб_рсч'!$C$2,J45),IFERROR(SEARCH('[1]Критерии руб_рсч'!$C$3,J45),IFERROR(SEARCH('[1]Критерии руб_рсч'!$C$4,J45),IFERROR(SEARCH('[1]Критерии руб_рсч'!$C$5,J45),IFERROR(SEARCH('[1]Критерии руб_рсч'!$C$6,J45),IFERROR(SEARCH('[1]Критерии руб_рсч'!$C$7,J45),IFERROR(SEARCH('[1]Критерии руб_рсч'!$C$8,J45),IFERROR(SEARCH('[1]Критерии руб_рсч'!$C$8,J45),IFERROR(SEARCH('[1]Критерии руб_рсч'!$C$10,J45),IFERROR(SEARCH('[1]Критерии руб_рсч'!$C$11,J45),\"-\"))))))))))=$AP$1,\"-\",\"OK\")","v":"-"},{"$f":"IF(IFERROR(SEARCH('[1]Критерии руб_рсч'!$C$13,J45),IFERROR(SEARCH('[1]Критерии руб_рсч'!$C$14,J45),IFERROR(SEARCH('[1]Критерии руб_рсч'!$C$15,J45),IFERROR(SEARCH('[1]Критерии руб_рсч'!$C$16,J45),IFERROR(SEARCH('[1]Критерии руб_рсч'!$C$17,J45),IFERROR(SEARCH('[1]Критерии руб_рсч'!$C$18,J45),IFERROR(SEARCH('[1]Критерии руб_рсч'!$C$19,J45),IFERROR(SEARCH('[1]Критерии руб_рсч'!$C$20,J45),IFERROR(SEARCH('[1]Критерии руб_рсч'!$C$21,J45),IFERROR(SEARCH('[1]Критерии руб_рсч'!$C$22,J45),IFERROR(SEARCH('[1]Критерии руб_рсч'!$C$23,J45),IFERROR(SEARCH('[1]Критерии руб_рсч'!$C$24,J45),IFERROR(SEARCH('[1]Критерии руб_рсч'!$C$25,J45),IFERROR(SEARCH('[1]Критерии руб_рсч'!$C$26,J45),$AP$1))))))))))))))=$AP$1,\"-\",\"OK\")","v":"-"},{"$f":"IF(IFERROR(SEARCH('[1]Критерии руб_рсч'!$C$28,J45),IFERROR(SEARCH('[1]Критерии руб_рсч'!$C$29,J45),IFERROR(SEARCH('[1]Критерии руб_рсч'!$C$30,J45),$AP$1)))=$AP$1,\"-\",\"OK\")","v":"-"},{"$f":"IF(IFERROR(SEARCH('[1]Критерии руб_рсч'!$C$32,J45),IFERROR(SEARCH('[1]Критерии руб_рсч'!$C$33,J45),IFERROR(SEARCH('[1]Критерии руб_рсч'!$C$34,J45),IFERROR(SEARCH('[1]Критерии руб_рсч'!$C$35,J45),IFERROR(SEARCH('[1]Критерии руб_рсч'!$C$36,J45),$AP$1)))))=$AP$1,\"-\",\"OK\")","v":"-"},{"$f":"IF(IFERROR(SEARCH('[1]Критерии руб_рсч'!$C$38,J45),IFERROR(SEARCH('[1]Критерии руб_рсч'!$C$39,J45),IFERROR(SEARCH('[1]Критерии руб_рсч'!$C$40,J45),IFERROR(SEARCH('[1]Критерии руб_рсч'!$C$41,J45),IFERROR(SEARCH('[1]Критерии руб_рсч'!$C$42,J45),IFERROR(SEARCH('[1]Критерии руб_рсч'!$C$43,J45),$AP$1))))))=$AP$1,\"-\",\"OK\")","v":"OK"},{"$f":"IF(IFERROR(SEARCH('[1]Критерии руб_рсч'!$C$45,J45),IFERROR(SEARCH('[1]Критерии руб_рсч'!$C$46,J45),IFERROR(SEARCH('[1]Критерии руб_рсч'!$C$47,J45),IFERROR(SEARCH('[1]Критерии руб_рсч'!$C$48,J45),IFERROR(SEARCH('[1]Критерии руб_рсч'!$C$49,J45),IFERROR(SEARCH('[1]Критерии руб_рсч'!$C$50,J45),IFERROR(SEARCH('[1]Критерии руб_рсч'!$C$51,J45),$AP$1)))))))=$AP$1,\"-\",\"OK\")","v":"-"},{"$f":"IF(IFERROR(SEARCH('[1]Критерии руб_рсч'!$C$53,J45),$AP$1)=$AP$1,\"-\",\"OK\")","v":"-"},{"$f":"IF(IFERROR(SEARCH('[1]Критерии руб_рсч'!$C$55,J45),IFERROR(SEARCH('[1]Критерии руб_рсч'!$C$56,J45),IFERROR(SEARCH('[1]Критерии руб_рсч'!$C$57,J45),IFERROR(SEARCH('[1]Критерии руб_рсч'!$C$58,J45),IFERROR(SEARCH('[1]Критерии руб_рсч'!$C$59,J45),$AP$1)))))=$AP$1,\"-\",\"OK\")","v":"-"},{"$f":"IF(IFERROR(SEARCH('[1]Критерии руб_рсч'!$C$61,J45),IFERROR(SEARCH('[1]Критерии руб_рсч'!$C$62,J45),IFERROR(SEARCH('[1]Критерии руб_рсч'!$C$63,J45),IFERROR(SEARCH('[1]Критерии руб_рсч'!$C$64,J45),$AP$1))))=$AP$1,\"-\",\"OK\")","v":"-"},{"$f":"IF(IFERROR(SEARCH('[1]Критерии руб_рсч'!$C$66,J45),$AP$1)=$AP$1,\"-\",\"OK\")","v":"-"},{"$f":"IF(IFERROR(SEARCH('[1]Критерии руб_рсч'!$C$68,J45),IFERROR(SEARCH('[1]Критерии руб_рсч'!$C$69,J45),IFERROR(SEARCH('[1]Критерии руб_рсч'!$C$70,J45),IFERROR(SEARCH('[1]Критерии руб_рсч'!$C$71,J45),$AP$1))))=$AP$1,\"-\",\"OK\")","v":"-"},{"$f":"IF(IFERROR(SEARCH('[1]Критерии руб_рсч'!$C$73,J45),IFERROR(SEARCH('[1]Критерии руб_рсч'!$C$74,J45),IFERROR(SEARCH('[1]Критерии руб_рсч'!$C$75,J45),IFERROR(SEARCH('[1]Критерии руб_рсч'!$C$76,J45),$AP$1))))=$AP$1,\"-\",\"OK\")","v":"-"},{"$f":"IF(IFERROR(SEARCH('[1]Критерии руб_рсч'!$C$78,J45),IFERROR(SEARCH('[1]Критерии руб_рсч'!$C$79,J45),IFERROR(SEARCH('[1]Критерии руб_рсч'!$C$80,J45),IFERROR(SEARCH('[1]Критерии руб_рсч'!$C$81,J45),$AP$1))))=$AP$1,\"-\",\"OK\")","v":"-"},{"$f":"IF(IFERROR(SEARCH('[1]Критерии руб_рсч'!$C$83,J45),IFERROR(SEARCH('[1]Критерии руб_рсч'!$C$84,J45),$AP$1))=$AP$1,\"-\",\"OK\")","v":"-"},{"$f":"IF(IFERROR(SEARCH('[1]Критерии руб_рсч'!$C$86,J45),IFERROR(SEARCH('[1]Критерии руб_рсч'!$C$87,J45),IFERROR(SEARCH('[1]Критерии руб_рсч'!$C$88,J45),$AP$1)))=$AP$1,\"-\",\"OK\")","v":"-"},{"$f":"IF(IFERROR(SEARCH('[1]Критерии руб_рсч'!$C$90,J45),IFERROR(SEARCH('[1]Критерии руб_рсч'!$C$91,J45),IFERROR(SEARCH('[1]Критерии руб_рсч'!$C$92,J45),IFERROR(SEARCH('[1]Критерии руб_рсч'!$C$93,J45),$AP$1))))=$AP$1,\"-\",\"OK\")","v":"-"},{"$f":"IF(IFERROR(SEARCH('[1]Критерии руб_рсч'!$C$95,J45),IFERROR(SEARCH('[1]Критерии руб_рсч'!$C$96,J45),IFERROR(SEARCH('[1]Критерии руб_рсч'!$C$97,J45),IFERROR(SEARCH('[1]Критерии руб_рсч'!$C$98,J45),IFERROR(SEARCH('[1]Критерии руб_рсч'!$C$99,J45),IFERROR(SEARCH('[1]Критерии руб_рсч'!$C$100,J45),$AP$1))))))=$AP$1,\"-\",\"OK\")","v":"-"},{"$f":"IF(IFERROR(SEARCH('[1]Критерии руб_рсч'!$C$102,J45),IFERROR(SEARCH('[1]Критерии руб_рсч'!$C$103,J45),IFERROR(SEARCH('[1]Критерии руб_рсч'!$C$104,J45),IFERROR(SEARCH('[1]Критерии руб_рсч'!$C$105,J45),IFERROR(SEARCH('[1]Критерии руб_рсч'!$C$106,J45),IFERROR(SEARCH('[1]Критерии руб_рсч'!$C$107,J45),$AP$1))))))=$AP$1,\"-\",\"OK\")","v":"-"},{"$f":"IF(IFERROR(SEARCH('[1]Критерии руб_рсч'!$C$109,J45),IFERROR(SEARCH('[1]Критерии руб_рсч'!$C$109,J45),$AP$1))=$AP$1,\"-\",\"OK\")","v":"-"}]
["Солр5025","10.02.2015","Солид банк",0,400,null,null,null,"ЗАО \"СОЛИД БАНК\"","Комиссия за Прием наличных денежных средств на счет: купюры. Тариф 1.3.1.2","o",{"$f":"VLOOKUP(O46,[1]Справочник!$A$2:$B$44,2,0)","v":"опер"},2,2015,{"$f":"IFERROR(IF(T46=\"Оплата от покупателя\",\"income\",INDEX('Критерии руб_рсч'!$D$2:$D$91,MATCH(TRUE,ISNUMBER(SEARCH('Критерии руб_рсч'!$C$2:$C$91,рсч_руб!J46)),0))),\"other\")","v":"bank"},"руб.",2,2015,"Правда","Прочее списание",{"$f":"IF(IFERROR(SEARCH('[1]Критерии руб_рсч'!$C$2,J46),IFERROR(SEARCH('[1]Критерии руб_рсч'!$C$3,J46),IFERROR(SEARCH('[1]Критерии руб_рсч'!$C$4,J46),IFERROR(SEARCH('[1]Критерии руб_рсч'!$C$5,J46),IFERROR(SEARCH('[1]Критерии руб_рсч'!$C$6,J46),IFERROR(SEARCH('[1]Критерии руб_рсч'!$C$7,J46),IFERROR(SEARCH('[1]Критерии руб_рсч'!$C$8,J46),IFERROR(SEARCH('[1]Критерии руб_рсч'!$C$8,J46),IFERROR(SEARCH('[1]Критерии руб_рсч'!$C$10,J46),IFERROR(SEARCH('[1]Критерии руб_рсч'!$C$11,J46),\"-\"))))))))))=$AP$1,\"-\",\"OK\")","v":"-"},{"$f":"IF(IFERROR(SEARCH('[1]Критерии руб_рсч'!$C$13,J46),IFERROR(SEARCH('[1]Критерии руб_рсч'!$C$14,J46),IFERROR(SEARCH('[1]Критерии руб_рсч'!$C$15,J46),IFERROR(SEARCH('[1]Критерии руб_рсч'!$C$16,J46),IFERROR(SEARCH('[1]Критерии руб_рсч'!$C$17,J46),IFERROR(SEARCH('[1]Критерии руб_рсч'!$C$18,J46),IFERROR(SEARCH('[1]Критерии руб_рсч'!$C$19,J46),IFERROR(SEARCH('[1]Критерии руб_рсч'!$C$20,J46),IFERROR(SEARCH('[1]Критерии руб_рсч'!$C$21,J46),IFERROR(SEARCH('[1]Критерии руб_рсч'!$C$22,J46),IFERROR(SEARCH('[1]Критерии руб_рсч'!$C$23,J46),IFERROR(SEARCH('[1]Критерии руб_рсч'!$C$24,J46),IFERROR(SEARCH('[1]Критерии руб_рсч'!$C$25,J46),IFERROR(SEARCH('[1]Критерии руб_рсч'!$C$26,J46),$AP$1))))))))))))))=$AP$1,\"-\",\"OK\")","v":"OK"},{"$f":"IF(IFERROR(SEARCH('[1]Критерии руб_рсч'!$C$28,J46),IFERROR(SEARCH('[1]Критерии руб_рсч'!$C$29,J46),IFERROR(SEARCH('[1]Критерии руб_рсч'!$C$30,J46),$AP$1)))=$AP$1,\"-\",\"OK\")","v":"-"},{"$f":"IF(IFERROR(SEARCH('[1]Критерии руб_рсч'!$C$32,J46),IFERROR(SEARCH('[1]Критерии руб_рсч'!$C$33,J46),IFERROR(SEARCH('[1]Критерии руб_рсч'!$C$34,J46),IFERROR(SEARCH('[1]Критерии руб_рсч'!$C$35,J46),IFERROR(SEARCH('[1]Критерии руб_рсч'!$C$36,J46),$AP$1)))))=$AP$1,\"-\",\"OK\")","v":"-"},{"$f":"IF(IFERROR(SEARCH('[1]Критерии руб_рсч'!$C$38,J46),IFERROR(SEARCH('[1]Критерии руб_рсч'!$C$39,J46),IFERROR(SEARCH('[1]Критерии руб_рсч'!$C$40,J46),IFERROR(SEARCH('[1]Критерии руб_рсч'!$C$41,J46),IFERROR(SEARCH('[1]Критерии руб_рсч'!$C$42,J46),IFERROR(SEARCH('[1]Критерии руб_рсч'!$C$43,J46),$AP$1))))))=$AP$1,\"-\",\"OK\")","v":"-"},{"$f":"IF(IFERROR(SEARCH('[1]Критерии руб_рсч'!$C$45,J46),IFERROR(SEARCH('[1]Критерии руб_рсч'!$C$46,J46),IFERROR(SEARCH('[1]Критерии руб_рсч'!$C$47,J46),IFERROR(SEARCH('[1]Критерии руб_рсч'!$C$48,J46),IFERROR(SEARCH('[1]Критерии руб_рсч'!$C$49,J46),IFERROR(SEARCH('[1]Критерии руб_рсч'!$C$50,J46),IFERROR(SEARCH('[1]Критерии руб_рсч'!$C$51,J46),$AP$1)))))))=$AP$1,\"-\",\"OK\")","v":"-"},{"$f":"IF(IFERROR(SEARCH('[1]Критерии руб_рсч'!$C$53,J46),$AP$1)=$AP$1,\"-\",\"OK\")","v":"-"},{"$f":"IF(IFERROR(SEARCH('[1]Критерии руб_рсч'!$C$55,J46),IFERROR(SEARCH('[1]Критерии руб_рсч'!$C$56,J46),IFERROR(SEARCH('[1]Критерии руб_рсч'!$C$57,J46),IFERROR(SEARCH('[1]Критерии руб_рсч'!$C$58,J46),IFERROR(SEARCH('[1]Критерии руб_рсч'!$C$59,J46),$AP$1)))))=$AP$1,\"-\",\"OK\")","v":"-"},{"$f":"IF(IFERROR(SEARCH('[1]Критерии руб_рсч'!$C$61,J46),IFERROR(SEARCH('[1]Критерии руб_рсч'!$C$62,J46),IFERROR(SEARCH('[1]Критерии руб_рсч'!$C$63,J46),IFERROR(SEARCH('[1]Критерии руб_рсч'!$C$64,J46),$AP$1))))=$AP$1,\"-\",\"OK\")","v":"-"},{"$f":"IF(IFERROR(SEARCH('[1]Критерии руб_рсч'!$C$66,J46),$AP$1)=$AP$1,\"-\",\"OK\")","v":"-"},{"$f":"IF(IFERROR(SEARCH('[1]Критерии руб_рсч'!$C$68,J46),IFERROR(SEARCH('[1]Критерии руб_рсч'!$C$69,J46),IFERROR(SEARCH('[1]Критерии руб_рсч'!$C$70,J46),IFERROR(SEARCH('[1]Критерии руб_рсч'!$C$71,J46),$AP$1))))=$AP$1,\"-\",\"OK\")","v":"-"},{"$f":"IF(IFERROR(SEARCH('[1]Критерии руб_рсч'!$C$73,J46),IFERROR(SEARCH('[1]Критерии руб_рсч'!$C$74,J46),IFERROR(SEARCH('[1]Критерии руб_рсч'!$C$75,J46),IFERROR(SEARCH('[1]Критерии руб_рсч'!$C$76,J46),$AP$1))))=$AP$1,\"-\",\"OK\")","v":"-"},{"$f":"IF(IFERROR(SEARCH('[1]Критерии руб_рсч'!$C$78,J46),IFERROR(SEARCH('[1]Критерии руб_рсч'!$C$79,J46),IFERROR(SEARCH('[1]Критерии руб_рсч'!$C$80,J46),IFERROR(SEARCH('[1]Критерии руб_рсч'!$C$81,J46),$AP$1))))=$AP$1,\"-\",\"OK\")","v":"-"},{"$f":"IF(IFERROR(SEARCH('[1]Критерии руб_рсч'!$C$83,J46),IFERROR(SEARCH('[1]Критерии руб_рсч'!$C$84,J46),$AP$1))=$AP$1,\"-\",\"OK\")","v":"-"},{"$f":"IF(IFERROR(SEARCH('[1]Критерии руб_рсч'!$C$86,J46),IFERROR(SEARCH('[1]Критерии руб_рсч'!$C$87,J46),IFERROR(SEARCH('[1]Критерии руб_рсч'!$C$88,J46),$AP$1)))=$AP$1,\"-\",\"OK\")","v":"-"},{"$f":"IF(IFERROR(SEARCH('[1]Критерии руб_рсч'!$C$90,J46),IFERROR(SEARCH('[1]Критерии руб_рсч'!$C$91,J46),IFERROR(SEARCH('[1]Критерии руб_рсч'!$C$92,J46),IFERROR(SEARCH('[1]Критерии руб_рсч'!$C$93,J46),$AP$1))))=$AP$1,\"-\",\"OK\")","v":"-"},{"$f":"IF(IFERROR(SEARCH('[1]Критерии руб_рсч'!$C$95,J46),IFERROR(SEARCH('[1]Критерии руб_рсч'!$C$96,J46),IFERROR(SEARCH('[1]Критерии руб_рсч'!$C$97,J46),IFERROR(SEARCH('[1]Критерии руб_рсч'!$C$98,J46),IFERROR(SEARCH('[1]Критерии руб_рсч'!$C$99,J46),IFERROR(SEARCH('[1]Критерии руб_рсч'!$C$100,J46),$AP$1))))))=$AP$1,\"-\",\"OK\")","v":"-"},{"$f":"IF(IFERROR(SEARCH('[1]Критерии руб_рсч'!$C$102,J46),IFERROR(SEARCH('[1]Критерии руб_рсч'!$C$103,J46),IFERROR(SEARCH('[1]Критерии руб_рсч'!$C$104,J46),IFERROR(SEARCH('[1]Критерии руб_рсч'!$C$105,J46),IFERROR(SEARCH('[1]Критерии руб_рсч'!$C$106,J46),IFERROR(SEARCH('[1]Критерии руб_рсч'!$C$107,J46),$AP$1))))))=$AP$1,\"-\",\"OK\")","v":"-"},{"$f":"IF(IFERROR(SEARCH('[1]Критерии руб_рсч'!$C$109,J46),IFERROR(SEARCH('[1]Критерии руб_рсч'!$C$109,J46),$AP$1))=$AP$1,\"-\",\"OK\")","v":"-"}]
["Солр5026","24.02.2015","Солид банк",0,25,null,null,null,"ЗАО \"СОЛИД БАНК\"","Комиссия за Перечисление денежных средств со счета Клиента в другие кредитные организации по платежным поручениям,  полученным по Системе Ibank2. Тариф 1.2.3.2","o",{"$f":"VLOOKUP(O47,[1]Справочник!$A$2:$B$44,2,0)","v":"опер"},2,2015,{"$f":"IFERROR(IF(T47=\"Оплата от покупателя\",\"income\",INDEX('Критерии руб_рсч'!$D$2:$D$91,MATCH(TRUE,ISNUMBER(SEARCH('Критерии руб_рсч'!$C$2:$C$91,рсч_руб!J47)),0))),\"other\")","v":"bank"},"руб.",2,2015,"Правда","Прочее списание",{"$f":"IF(IFERROR(SEARCH('[1]Критерии руб_рсч'!$C$2,J47),IFERROR(SEARCH('[1]Критерии руб_рсч'!$C$3,J47),IFERROR(SEARCH('[1]Критерии руб_рсч'!$C$4,J47),IFERROR(SEARCH('[1]Критерии руб_рсч'!$C$5,J47),IFERROR(SEARCH('[1]Критерии руб_рсч'!$C$6,J47),IFERROR(SEARCH('[1]Критерии руб_рсч'!$C$7,J47),IFERROR(SEARCH('[1]Критерии руб_рсч'!$C$8,J47),IFERROR(SEARCH('[1]Критерии руб_рсч'!$C$8,J47),IFERROR(SEARCH('[1]Критерии руб_рсч'!$C$10,J47),IFERROR(SEARCH('[1]Критерии руб_рсч'!$C$11,J47),\"-\"))))))))))=$AP$1,\"-\",\"OK\")","v":"-"},{"$f":"IF(IFERROR(SEARCH('[1]Критерии руб_рсч'!$C$13,J47),IFERROR(SEARCH('[1]Критерии руб_рсч'!$C$14,J47),IFERROR(SEARCH('[1]Критерии руб_рсч'!$C$15,J47),IFERROR(SEARCH('[1]Критерии руб_рсч'!$C$16,J47),IFERROR(SEARCH('[1]Критерии руб_рсч'!$C$17,J47),IFERROR(SEARCH('[1]Критерии руб_рсч'!$C$18,J47),IFERROR(SEARCH('[1]Критерии руб_рсч'!$C$19,J47),IFERROR(SEARCH('[1]Критерии руб_рсч'!$C$20,J47),IFERROR(SEARCH('[1]Критерии руб_рсч'!$C$21,J47),IFERROR(SEARCH('[1]Критерии руб_рсч'!$C$22,J47),IFERROR(SEARCH('[1]Критерии руб_рсч'!$C$23,J47),IFERROR(SEARCH('[1]Критерии руб_рсч'!$C$24,J47),IFERROR(SEARCH('[1]Критерии руб_рсч'!$C$25,J47),IFERROR(SEARCH('[1]Критерии руб_рсч'!$C$26,J47),$AP$1))))))))))))))=$AP$1,\"-\",\"OK\")","v":"OK"},{"$f":"IF(IFERROR(SEARCH('[1]Критерии руб_рсч'!$C$28,J47),IFERROR(SEARCH('[1]Критерии руб_рсч'!$C$29,J47),IFERROR(SEARCH('[1]Критерии руб_рсч'!$C$30,J47),$AP$1)))=$AP$1,\"-\",\"OK\")","v":"-"},{"$f":"IF(IFERROR(SEARCH('[1]Критерии руб_рсч'!$C$32,J47),IFERROR(SEARCH('[1]Критерии руб_рсч'!$C$33,J47),IFERROR(SEARCH('[1]Критерии руб_рсч'!$C$34,J47),IFERROR(SEARCH('[1]Критерии руб_рсч'!$C$35,J47),IFERROR(SEARCH('[1]Критерии руб_рсч'!$C$36,J47),$AP$1)))))=$AP$1,\"-\",\"OK\")","v":"-"},{"$f":"IF(IFERROR(SEARCH('[1]Критерии руб_рсч'!$C$38,J47),IFERROR(SEARCH('[1]Критерии руб_рсч'!$C$39,J47),IFERROR(SEARCH('[1]Критерии руб_рсч'!$C$40,J47),IFERROR(SEARCH('[1]Критерии руб_рсч'!$C$41,J47),IFERROR(SEARCH('[1]Критерии руб_рсч'!$C$42,J47),IFERROR(SEARCH('[1]Критерии руб_рсч'!$C$43,J47),$AP$1))))))=$AP$1,\"-\",\"OK\")","v":"-"},{"$f":"IF(IFERROR(SEARCH('[1]Критерии руб_рсч'!$C$45,J47),IFERROR(SEARCH('[1]Критерии руб_рсч'!$C$46,J47),IFERROR(SEARCH('[1]Критерии руб_рсч'!$C$47,J47),IFERROR(SEARCH('[1]Критерии руб_рсч'!$C$48,J47),IFERROR(SEARCH('[1]Критерии руб_рсч'!$C$49,J47),IFERROR(SEARCH('[1]Критерии руб_рсч'!$C$50,J47),IFERROR(SEARCH('[1]Критерии руб_рсч'!$C$51,J47),$AP$1)))))))=$AP$1,\"-\",\"OK\")","v":"-"},{"$f":"IF(IFERROR(SEARCH('[1]Критерии руб_рсч'!$C$53,J47),$AP$1)=$AP$1,\"-\",\"OK\")","v":"-"},{"$f":"IF(IFERROR(SEARCH('[1]Критерии руб_рсч'!$C$55,J47),IFERROR(SEARCH('[1]Критерии руб_рсч'!$C$56,J47),IFERROR(SEARCH('[1]Критерии руб_рсч'!$C$57,J47),IFERROR(SEARCH('[1]Критерии руб_рсч'!$C$58,J47),IFERROR(SEARCH('[1]Критерии руб_рсч'!$C$59,J47),$AP$1)))))=$AP$1,\"-\",\"OK\")","v":"-"},{"$f":"IF(IFERROR(SEARCH('[1]Критерии руб_рсч'!$C$61,J47),IFERROR(SEARCH('[1]Критерии руб_рсч'!$C$62,J47),IFERROR(SEARCH('[1]Критерии руб_рсч'!$C$63,J47),IFERROR(SEARCH('[1]Критерии руб_рсч'!$C$64,J47),$AP$1))))=$AP$1,\"-\",\"OK\")","v":"-"},{"$f":"IF(IFERROR(SEARCH('[1]Критерии руб_рсч'!$C$66,J47),$AP$1)=$AP$1,\"-\",\"OK\")","v":"-"},{"$f":"IF(IFERROR(SEARCH('[1]Критерии руб_рсч'!$C$68,J47),IFERROR(SEARCH('[1]Критерии руб_рсч'!$C$69,J47),IFERROR(SEARCH('[1]Критерии руб_рсч'!$C$70,J47),IFERROR(SEARCH('[1]Критерии руб_рсч'!$C$71,J47),$AP$1))))=$AP$1,\"-\",\"OK\")","v":"-"},{"$f":"IF(IFERROR(SEARCH('[1]Критерии руб_рсч'!$C$73,J47),IFERROR(SEARCH('[1]Критерии руб_рсч'!$C$74,J47),IFERROR(SEARCH('[1]Критерии руб_рсч'!$C$75,J47),IFERROR(SEARCH('[1]Критерии руб_рсч'!$C$76,J47),$AP$1))))=$AP$1,\"-\",\"OK\")","v":"-"},{"$f":"IF(IFERROR(SEARCH('[1]Критерии руб_рсч'!$C$78,J47),IFERROR(SEARCH('[1]Критерии руб_рсч'!$C$79,J47),IFERROR(SEARCH('[1]Критерии руб_рсч'!$C$80,J47),IFERROR(SEARCH('[1]Критерии руб_рсч'!$C$81,J47),$AP$1))))=$AP$1,\"-\",\"OK\")","v":"-"},{"$f":"IF(IFERROR(SEARCH('[1]Критерии руб_рсч'!$C$83,J47),IFERROR(SEARCH('[1]Критерии руб_рсч'!$C$84,J47),$AP$1))=$AP$1,\"-\",\"OK\")","v":"-"},{"$f":"IF(IFERROR(SEARCH('[1]Критерии руб_рсч'!$C$86,J47),IFERROR(SEARCH('[1]Критерии руб_рсч'!$C$87,J47),IFERROR(SEARCH('[1]Критерии руб_рсч'!$C$88,J47),$AP$1)))=$AP$1,\"-\",\"OK\")","v":"-"},{"$f":"IF(IFERROR(SEARCH('[1]Критерии руб_рсч'!$C$90,J47),IFERROR(SEARCH('[1]Критерии руб_рсч'!$C$91,J47),IFERROR(SEARCH('[1]Критерии руб_рсч'!$C$92,J47),IFERROR(SEARCH('[1]Критерии руб_рсч'!$C$93,J47),$AP$1))))=$AP$1,\"-\",\"OK\")","v":"-"},{"$f":"IF(IFERROR(SEARCH('[1]Критерии руб_рсч'!$C$95,J47),IFERROR(SEARCH('[1]Критерии руб_рсч'!$C$96,J47),IFERROR(SEARCH('[1]Критерии руб_рсч'!$C$97,J47),IFERROR(SEARCH('[1]Критерии руб_рсч'!$C$98,J47),IFERROR(SEARCH('[1]Критерии руб_рсч'!$C$99,J47),IFERROR(SEARCH('[1]Критерии руб_рсч'!$C$100,J47),$AP$1))))))=$AP$1,\"-\",\"OK\")","v":"-"},{"$f":"IF(IFERROR(SEARCH('[1]Критерии руб_рсч'!$C$102,J47),IFERROR(SEARCH('[1]Критерии руб_рсч'!$C$103,J47),IFERROR(SEARCH('[1]Критерии руб_рсч'!$C$104,J47),IFERROR(SEARCH('[1]Критерии руб_рсч'!$C$105,J47),IFERROR(SEARCH('[1]Критерии руб_рсч'!$C$106,J47),IFERROR(SEARCH('[1]Критерии руб_рсч'!$C$107,J47),$AP$1))))))=$AP$1,\"-\",\"OK\")","v":"-"},{"$f":"IF(IFERROR(SEARCH('[1]Критерии руб_рсч'!$C$109,J47),IFERROR(SEARCH('[1]Критерии руб_рсч'!$C$109,J47),$AP$1))=$AP$1,\"-\",\"OK\")","v":"-"}]
["Солр5027","24.02.2015","Солид банк",0,55.55,null,null,null,"ЗАО \"СОЛИД БАНК\"","НДС-18%, удержанный сверх суммы комиссионного вознаграждения за исполнение функций валютного контроля согласно Тарифам Банка. Распоряжение  от 24.02.2015г.","o",{"$f":"VLOOKUP(O48,[1]Справочник!$A$2:$B$44,2,0)","v":"опер"},2,2015,{"$f":"IFERROR(IF(T48=\"Оплата от покупателя\",\"income\",INDEX('Критерии руб_рсч'!$D$2:$D$91,MATCH(TRUE,ISNUMBER(SEARCH('Критерии руб_рсч'!$C$2:$C$91,рсч_руб!J48)),0))),\"other\")","v":"bank"},"руб.",2,2015,"Правда","Прочее списание",{"$f":"IF(IFERROR(SEARCH('[1]Критерии руб_рсч'!$C$2,J48),IFERROR(SEARCH('[1]Критерии руб_рсч'!$C$3,J48),IFERROR(SEARCH('[1]Критерии руб_рсч'!$C$4,J48),IFERROR(SEARCH('[1]Критерии руб_рсч'!$C$5,J48),IFERROR(SEARCH('[1]Критерии руб_рсч'!$C$6,J48),IFERROR(SEARCH('[1]Критерии руб_рсч'!$C$7,J48),IFERROR(SEARCH('[1]Критерии руб_рсч'!$C$8,J48),IFERROR(SEARCH('[1]Критерии руб_рсч'!$C$8,J48),IFERROR(SEARCH('[1]Критерии руб_рсч'!$C$10,J48),IFERROR(SEARCH('[1]Критерии руб_рсч'!$C$11,J48),\"-\"))))))))))=$AP$1,\"-\",\"OK\")","v":"-"},{"$f":"IF(IFERROR(SEARCH('[1]Критерии руб_рсч'!$C$13,J48),IFERROR(SEARCH('[1]Критерии руб_рсч'!$C$14,J48),IFERROR(SEARCH('[1]Критерии руб_рсч'!$C$15,J48),IFERROR(SEARCH('[1]Критерии руб_рсч'!$C$16,J48),IFERROR(SEARCH('[1]Критерии руб_рсч'!$C$17,J48),IFERROR(SEARCH('[1]Критерии руб_рсч'!$C$18,J48),IFERROR(SEARCH('[1]Критерии руб_рсч'!$C$19,J48),IFERROR(SEARCH('[1]Критерии руб_рсч'!$C$20,J48),IFERROR(SEARCH('[1]Критерии руб_рсч'!$C$21,J48),IFERROR(SEARCH('[1]Критерии руб_рсч'!$C$22,J48),IFERROR(SEARCH('[1]Критерии руб_рсч'!$C$23,J48),IFERROR(SEARCH('[1]Критерии руб_рсч'!$C$24,J48),IFERROR(SEARCH('[1]Критерии руб_рсч'!$C$25,J48),IFERROR(SEARCH('[1]Критерии руб_рсч'!$C$26,J48),$AP$1))))))))))))))=$AP$1,\"-\",\"OK\")","v":"OK"},{"$f":"IF(IFERROR(SEARCH('[1]Критерии руб_рсч'!$C$28,J48),IFERROR(SEARCH('[1]Критерии руб_рсч'!$C$29,J48),IFERROR(SEARCH('[1]Критерии руб_рсч'!$C$30,J48),$AP$1)))=$AP$1,\"-\",\"OK\")","v":"-"},{"$f":"IF(IFERROR(SEARCH('[1]Критерии руб_рсч'!$C$32,J48),IFERROR(SEARCH('[1]Критерии руб_рсч'!$C$33,J48),IFERROR(SEARCH('[1]Критерии руб_рсч'!$C$34,J48),IFERROR(SEARCH('[1]Критерии руб_рсч'!$C$35,J48),IFERROR(SEARCH('[1]Критерии руб_рсч'!$C$36,J48),$AP$1)))))=$AP$1,\"-\",\"OK\")","v":"-"},{"$f":"IF(IFERROR(SEARCH('[1]Критерии руб_рсч'!$C$38,J48),IFERROR(SEARCH('[1]Критерии руб_рсч'!$C$39,J48),IFERROR(SEARCH('[1]Критерии руб_рсч'!$C$40,J48),IFERROR(SEARCH('[1]Критерии руб_рсч'!$C$41,J48),IFERROR(SEARCH('[1]Критерии руб_рсч'!$C$42,J48),IFERROR(SEARCH('[1]Критерии руб_рсч'!$C$43,J48),$AP$1))))))=$AP$1,\"-\",\"OK\")","v":"-"},{"$f":"IF(IFERROR(SEARCH('[1]Критерии руб_рсч'!$C$45,J48),IFERROR(SEARCH('[1]Критерии руб_рсч'!$C$46,J48),IFERROR(SEARCH('[1]Критерии руб_рсч'!$C$47,J48),IFERROR(SEARCH('[1]Критерии руб_рсч'!$C$48,J48),IFERROR(SEARCH('[1]Критерии руб_рсч'!$C$49,J48),IFERROR(SEARCH('[1]Критерии руб_рсч'!$C$50,J48),IFERROR(SEARCH('[1]Критерии руб_рсч'!$C$51,J48),$AP$1)))))))=$AP$1,\"-\",\"OK\")","v":"-"},{"$f":"IF(IFERROR(SEARCH('[1]Критерии руб_рсч'!$C$53,J48),$AP$1)=$AP$1,\"-\",\"OK\")","v":"-"},{"$f":"IF(IFERROR(SEARCH('[1]Критерии руб_рсч'!$C$55,J48),IFERROR(SEARCH('[1]Критерии руб_рсч'!$C$56,J48),IFERROR(SEARCH('[1]Критерии руб_рсч'!$C$57,J48),IFERROR(SEARCH('[1]Критерии руб_рсч'!$C$58,J48),IFERROR(SEARCH('[1]Критерии руб_рсч'!$C$59,J48),$AP$1)))))=$AP$1,\"-\",\"OK\")","v":"-"},{"$f":"IF(IFERROR(SEARCH('[1]Критерии руб_рсч'!$C$61,J48),IFERROR(SEARCH('[1]Критерии руб_рсч'!$C$62,J48),IFERROR(SEARCH('[1]Критерии руб_рсч'!$C$63,J48),IFERROR(SEARCH('[1]Критерии руб_рсч'!$C$64,J48),$AP$1))))=$AP$1,\"-\",\"OK\")","v":"-"},{"$f":"IF(IFERROR(SEARCH('[1]Критерии руб_рсч'!$C$66,J48),$AP$1)=$AP$1,\"-\",\"OK\")","v":"-"},{"$f":"IF(IFERROR(SEARCH('[1]Критерии руб_рсч'!$C$68,J48),IFERROR(SEARCH('[1]Критерии руб_рсч'!$C$69,J48),IFERROR(SEARCH('[1]Критерии руб_рсч'!$C$70,J48),IFERROR(SEARCH('[1]Критерии руб_рсч'!$C$71,J48),$AP$1))))=$AP$1,\"-\",\"OK\")","v":"-"},{"$f":"IF(IFERROR(SEARCH('[1]Критерии руб_рсч'!$C$73,J48),IFERROR(SEARCH('[1]Критерии руб_рсч'!$C$74,J48),IFERROR(SEARCH('[1]Критерии руб_рсч'!$C$75,J48),IFERROR(SEARCH('[1]Критерии руб_рсч'!$C$76,J48),$AP$1))))=$AP$1,\"-\",\"OK\")","v":"-"},{"$f":"IF(IFERROR(SEARCH('[1]Критерии руб_рсч'!$C$78,J48),IFERROR(SEARCH('[1]Критерии руб_рсч'!$C$79,J48),IFERROR(SEARCH('[1]Критерии руб_рсч'!$C$80,J48),IFERROR(SEARCH('[1]Критерии руб_рсч'!$C$81,J48),$AP$1))))=$AP$1,\"-\",\"OK\")","v":"-"},{"$f":"IF(IFERROR(SEARCH('[1]Критерии руб_рсч'!$C$83,J48),IFERROR(SEARCH('[1]Критерии руб_рсч'!$C$84,J48),$AP$1))=$AP$1,\"-\",\"OK\")","v":"-"},{"$f":"IF(IFERROR(SEARCH('[1]Критерии руб_рсч'!$C$86,J48),IFERROR(SEARCH('[1]Критерии руб_рсч'!$C$87,J48),IFERROR(SEARCH('[1]Критерии руб_рсч'!$C$88,J48),$AP$1)))=$AP$1,\"-\",\"OK\")","v":"-"},{"$f":"IF(IFERROR(SEARCH('[1]Критерии руб_рсч'!$C$90,J48),IFERROR(SEARCH('[1]Критерии руб_рсч'!$C$91,J48),IFERROR(SEARCH('[1]Критерии руб_рсч'!$C$92,J48),IFERROR(SEARCH('[1]Критерии руб_рсч'!$C$93,J48),$AP$1))))=$AP$1,\"-\",\"OK\")","v":"-"},{"$f":"IF(IFERROR(SEARCH('[1]Критерии руб_рсч'!$C$95,J48),IFERROR(SEARCH('[1]Критерии руб_рсч'!$C$96,J48),IFERROR(SEARCH('[1]Критерии руб_рсч'!$C$97,J48),IFERROR(SEARCH('[1]Критерии руб_рсч'!$C$98,J48),IFERROR(SEARCH('[1]Критерии руб_рсч'!$C$99,J48),IFERROR(SEARCH('[1]Критерии руб_рсч'!$C$100,J48),$AP$1))))))=$AP$1,\"-\",\"OK\")","v":"-"},{"$f":"IF(IFERROR(SEARCH('[1]Критерии руб_рсч'!$C$102,J48),IFERROR(SEARCH('[1]Критерии руб_рсч'!$C$103,J48),IFERROR(SEARCH('[1]Критерии руб_рсч'!$C$104,J48),IFERROR(SEARCH('[1]Критерии руб_рсч'!$C$105,J48),IFERROR(SEARCH('[1]Критерии руб_рсч'!$C$106,J48),IFERROR(SEARCH('[1]Критерии руб_рсч'!$C$107,J48),$AP$1))))))=$AP$1,\"-\",\"OK\")","v":"-"},{"$f":"IF(IFERROR(SEARCH('[1]Критерии руб_рсч'!$C$109,J48),IFERROR(SEARCH('[1]Критерии руб_рсч'!$C$109,J48),$AP$1))=$AP$1,\"-\",\"OK\")","v":"-"}]
["Солр5028","24.02.2015","Солид банк",0,308.61,null,null,null,"ЗАО \"СОЛИД БАНК\"","Комиссионное вознаграждение Банка за исполн.функций валютного контроля, согласно Тарифам Банка. Распоряжение от  24.02.2015г","o",{"$f":"VLOOKUP(O49,[1]Справочник!$A$2:$B$44,2,0)","v":"опер"},2,2015,{"$f":"IFERROR(IF(T49=\"Оплата от покупателя\",\"income\",INDEX('Критерии руб_рсч'!$D$2:$D$91,MATCH(TRUE,ISNUMBER(SEARCH('Критерии руб_рсч'!$C$2:$C$91,рсч_руб!J49)),0))),\"other\")","v":"bank"},"руб.",2,2015,"Правда","Прочее списание",{"$f":"IF(IFERROR(SEARCH('[1]Критерии руб_рсч'!$C$2,J49),IFERROR(SEARCH('[1]Критерии руб_рсч'!$C$3,J49),IFERROR(SEARCH('[1]Критерии руб_рсч'!$C$4,J49),IFERROR(SEARCH('[1]Критерии руб_рсч'!$C$5,J49),IFERROR(SEARCH('[1]Критерии руб_рсч'!$C$6,J49),IFERROR(SEARCH('[1]Критерии руб_рсч'!$C$7,J49),IFERROR(SEARCH('[1]Критерии руб_рсч'!$C$8,J49),IFERROR(SEARCH('[1]Критерии руб_рсч'!$C$8,J49),IFERROR(SEARCH('[1]Критерии руб_рсч'!$C$10,J49),IFERROR(SEARCH('[1]Критерии руб_рсч'!$C$11,J49),\"-\"))))))))))=$AP$1,\"-\",\"OK\")","v":"-"},{"$f":"IF(IFERROR(SEARCH('[1]Критерии руб_рсч'!$C$13,J49),IFERROR(SEARCH('[1]Критерии руб_рсч'!$C$14,J49),IFERROR(SEARCH('[1]Критерии руб_рсч'!$C$15,J49),IFERROR(SEARCH('[1]Критерии руб_рсч'!$C$16,J49),IFERROR(SEARCH('[1]Критерии руб_рсч'!$C$17,J49),IFERROR(SEARCH('[1]Критерии руб_рсч'!$C$18,J49),IFERROR(SEARCH('[1]Критерии руб_рсч'!$C$19,J49),IFERROR(SEARCH('[1]Критерии руб_рсч'!$C$20,J49),IFERROR(SEARCH('[1]Критерии руб_рсч'!$C$21,J49),IFERROR(SEARCH('[1]Критерии руб_рсч'!$C$22,J49),IFERROR(SEARCH('[1]Критерии руб_рсч'!$C$23,J49),IFERROR(SEARCH('[1]Критерии руб_рсч'!$C$24,J49),IFERROR(SEARCH('[1]Критерии руб_рсч'!$C$25,J49),IFERROR(SEARCH('[1]Критерии руб_рсч'!$C$26,J49),$AP$1))))))))))))))=$AP$1,\"-\",\"OK\")","v":"OK"},{"$f":"IF(IFERROR(SEARCH('[1]Критерии руб_рсч'!$C$28,J49),IFERROR(SEARCH('[1]Критерии руб_рсч'!$C$29,J49),IFERROR(SEARCH('[1]Критерии руб_рсч'!$C$30,J49),$AP$1)))=$AP$1,\"-\",\"OK\")","v":"-"},{"$f":"IF(IFERROR(SEARCH('[1]Критерии руб_рсч'!$C$32,J49),IFERROR(SEARCH('[1]Критерии руб_рсч'!$C$33,J49),IFERROR(SEARCH('[1]Критерии руб_рсч'!$C$34,J49),IFERROR(SEARCH('[1]Критерии руб_рсч'!$C$35,J49),IFERROR(SEARCH('[1]Критерии руб_рсч'!$C$36,J49),$AP$1)))))=$AP$1,\"-\",\"OK\")","v":"-"},{"$f":"IF(IFERROR(SEARCH('[1]Критерии руб_рсч'!$C$38,J49),IFERROR(SEARCH('[1]Критерии руб_рсч'!$C$39,J49),IFERROR(SEARCH('[1]Критерии руб_рсч'!$C$40,J49),IFERROR(SEARCH('[1]Критерии руб_рсч'!$C$41,J49),IFERROR(SEARCH('[1]Критерии руб_рсч'!$C$42,J49),IFERROR(SEARCH('[1]Критерии руб_рсч'!$C$43,J49),$AP$1))))))=$AP$1,\"-\",\"OK\")","v":"-"},{"$f":"IF(IFERROR(SEARCH('[1]Критерии руб_рсч'!$C$45,J49),IFERROR(SEARCH('[1]Критерии руб_рсч'!$C$46,J49),IFERROR(SEARCH('[1]Критерии руб_рсч'!$C$47,J49),IFERROR(SEARCH('[1]Критерии руб_рсч'!$C$48,J49),IFERROR(SEARCH('[1]Критерии руб_рсч'!$C$49,J49),IFERROR(SEARCH('[1]Критерии руб_рсч'!$C$50,J49),IFERROR(SEARCH('[1]Критерии руб_рсч'!$C$51,J49),$AP$1)))))))=$AP$1,\"-\",\"OK\")","v":"-"},{"$f":"IF(IFERROR(SEARCH('[1]Критерии руб_рсч'!$C$53,J49),$AP$1)=$AP$1,\"-\",\"OK\")","v":"-"},{"$f":"IF(IFERROR(SEARCH('[1]Критерии руб_рсч'!$C$55,J49),IFERROR(SEARCH('[1]Критерии руб_рсч'!$C$56,J49),IFERROR(SEARCH('[1]Критерии руб_рсч'!$C$57,J49),IFERROR(SEARCH('[1]Критерии руб_рсч'!$C$58,J49),IFERROR(SEARCH('[1]Критерии руб_рсч'!$C$59,J49),$AP$1)))))=$AP$1,\"-\",\"OK\")","v":"-"},{"$f":"IF(IFERROR(SEARCH('[1]Критерии руб_рсч'!$C$61,J49),IFERROR(SEARCH('[1]Критерии руб_рсч'!$C$62,J49),IFERROR(SEARCH('[1]Критерии руб_рсч'!$C$63,J49),IFERROR(SEARCH('[1]Критерии руб_рсч'!$C$64,J49),$AP$1))))=$AP$1,\"-\",\"OK\")","v":"-"},{"$f":"IF(IFERROR(SEARCH('[1]Критерии руб_рсч'!$C$66,J49),$AP$1)=$AP$1,\"-\",\"OK\")","v":"-"},{"$f":"IF(IFERROR(SEARCH('[1]Критерии руб_рсч'!$C$68,J49),IFERROR(SEARCH('[1]Критерии руб_рсч'!$C$69,J49),IFERROR(SEARCH('[1]Критерии руб_рсч'!$C$70,J49),IFERROR(SEARCH('[1]Критерии руб_рсч'!$C$71,J49),$AP$1))))=$AP$1,\"-\",\"OK\")","v":"-"},{"$f":"IF(IFERROR(SEARCH('[1]Критерии руб_рсч'!$C$73,J49),IFERROR(SEARCH('[1]Критерии руб_рсч'!$C$74,J49),IFERROR(SEARCH('[1]Критерии руб_рсч'!$C$75,J49),IFERROR(SEARCH('[1]Критерии руб_рсч'!$C$76,J49),$AP$1))))=$AP$1,\"-\",\"OK\")","v":"-"},{"$f":"IF(IFERROR(SEARCH('[1]Критерии руб_рсч'!$C$78,J49),IFERROR(SEARCH('[1]Критерии руб_рсч'!$C$79,J49),IFERROR(SEARCH('[1]Критерии руб_рсч'!$C$80,J49),IFERROR(SEARCH('[1]Критерии руб_рсч'!$C$81,J49),$AP$1))))=$AP$1,\"-\",\"OK\")","v":"-"},{"$f":"IF(IFERROR(SEARCH('[1]Критерии руб_рсч'!$C$83,J49),IFERROR(SEARCH('[1]Критерии руб_рсч'!$C$84,J49),$AP$1))=$AP$1,\"-\",\"OK\")","v":"-"},{"$f":"IF(IFERROR(SEARCH('[1]Критерии руб_рсч'!$C$86,J49),IFERROR(SEARCH('[1]Критерии руб_рсч'!$C$87,J49),IFERROR(SEARCH('[1]Критерии руб_рсч'!$C$88,J49),$AP$1)))=$AP$1,\"-\",\"OK\")","v":"-"},{"$f":"IF(IFERROR(SEARCH('[1]Критерии руб_рсч'!$C$90,J49),IFERROR(SEARCH('[1]Критерии руб_рсч'!$C$91,J49),IFERROR(SEARCH('[1]Критерии руб_рсч'!$C$92,J49),IFERROR(SEARCH('[1]Критерии руб_рсч'!$C$93,J49),$AP$1))))=$AP$1,\"-\",\"OK\")","v":"-"},{"$f":"IF(IFERROR(SEARCH('[1]Критерии руб_рсч'!$C$95,J49),IFERROR(SEARCH('[1]Критерии руб_рсч'!$C$96,J49),IFERROR(SEARCH('[1]Критерии руб_рсч'!$C$97,J49),IFERROR(SEARCH('[1]Критерии руб_рсч'!$C$98,J49),IFERROR(SEARCH('[1]Критерии руб_рсч'!$C$99,J49),IFERROR(SEARCH('[1]Критерии руб_рсч'!$C$100,J49),$AP$1))))))=$AP$1,\"-\",\"OK\")","v":"-"},{"$f":"IF(IFERROR(SEARCH('[1]Критерии руб_рсч'!$C$102,J49),IFERROR(SEARCH('[1]Критерии руб_рсч'!$C$103,J49),IFERROR(SEARCH('[1]Критерии руб_рсч'!$C$104,J49),IFERROR(SEARCH('[1]Критерии руб_рсч'!$C$105,J49),IFERROR(SEARCH('[1]Критерии руб_рсч'!$C$106,J49),IFERROR(SEARCH('[1]Критерии руб_рсч'!$C$107,J49),$AP$1))))))=$AP$1,\"-\",\"OK\")","v":"-"},{"$f":"IF(IFERROR(SEARCH('[1]Критерии руб_рсч'!$C$109,J49),IFERROR(SEARCH('[1]Критерии руб_рсч'!$C$109,J49),$AP$1))=$AP$1,\"-\",\"OK\")","v":"-"}]
["Солр5029","24.02.2015","Солид банк",0,200000,null,null,null,"SH","{VO42015} Возврат займа по договору беспроцентного денежного займа №1 от 23.06.2011  Сумма 200000 Без налога (НДС) Сумма 200000","o",{"$f":"VLOOKUP(O50,[1]Справочник!$A$2:$B$44,2,0)","v":"фин"},2,2015,{"$f":"IFERROR(IF(T50=\"Оплата от покупателя\",\"income\",INDEX('Критерии руб_рсч'!$D$2:$D$91,MATCH(TRUE,ISNUMBER(SEARCH('Критерии руб_рсч'!$C$2:$C$91,рсч_руб!J50)),0))),\"other\")","v":"фин"},"руб.",2,2015,"Правда","Расчеты по кредитам и займам",{"$f":"IF(IFERROR(SEARCH('[1]Критерии руб_рсч'!$C$2,J50),IFERROR(SEARCH('[1]Критерии руб_рсч'!$C$3,J50),IFERROR(SEARCH('[1]Критерии руб_рсч'!$C$4,J50),IFERROR(SEARCH('[1]Критерии руб_рсч'!$C$5,J50),IFERROR(SEARCH('[1]Критерии руб_рсч'!$C$6,J50),IFERROR(SEARCH('[1]Критерии руб_рсч'!$C$7,J50),IFERROR(SEARCH('[1]Критерии руб_рсч'!$C$8,J50),IFERROR(SEARCH('[1]Критерии руб_рсч'!$C$8,J50),IFERROR(SEARCH('[1]Критерии руб_рсч'!$C$10,J50),IFERROR(SEARCH('[1]Критерии руб_рсч'!$C$11,J50),\"-\"))))))))))=$AP$1,\"-\",\"OK\")","v":"OK"},{"$f":"IF(IFERROR(SEARCH('[1]Критерии руб_рсч'!$C$13,J50),IFERROR(SEARCH('[1]Критерии руб_рсч'!$C$14,J50),IFERROR(SEARCH('[1]Критерии руб_рсч'!$C$15,J50),IFERROR(SEARCH('[1]Критерии руб_рсч'!$C$16,J50),IFERROR(SEARCH('[1]Критерии руб_рсч'!$C$17,J50),IFERROR(SEARCH('[1]Критерии руб_рсч'!$C$18,J50),IFERROR(SEARCH('[1]Критерии руб_рсч'!$C$19,J50),IFERROR(SEARCH('[1]Критерии руб_рсч'!$C$20,J50),IFERROR(SEARCH('[1]Критерии руб_рсч'!$C$21,J50),IFERROR(SEARCH('[1]Критерии руб_рсч'!$C$22,J50),IFERROR(SEARCH('[1]Критерии руб_рсч'!$C$23,J50),IFERROR(SEARCH('[1]Критерии руб_рсч'!$C$24,J50),IFERROR(SEARCH('[1]Критерии руб_рсч'!$C$25,J50),IFERROR(SEARCH('[1]Критерии руб_рсч'!$C$26,J50),$AP$1))))))))))))))=$AP$1,\"-\",\"OK\")","v":"-"},{"$f":"IF(IFERROR(SEARCH('[1]Критерии руб_рсч'!$C$28,J50),IFERROR(SEARCH('[1]Критерии руб_рсч'!$C$29,J50),IFERROR(SEARCH('[1]Критерии руб_рсч'!$C$30,J50),$AP$1)))=$AP$1,\"-\",\"OK\")","v":"-"},{"$f":"IF(IFERROR(SEARCH('[1]Критерии руб_рсч'!$C$32,J50),IFERROR(SEARCH('[1]Критерии руб_рсч'!$C$33,J50),IFERROR(SEARCH('[1]Критерии руб_рсч'!$C$34,J50),IFERROR(SEARCH('[1]Критерии руб_рсч'!$C$35,J50),IFERROR(SEARCH('[1]Критерии руб_рсч'!$C$36,J50),$AP$1)))))=$AP$1,\"-\",\"OK\")","v":"-"},{"$f":"IF(IFERROR(SEARCH('[1]Критерии руб_рсч'!$C$38,J50),IFERROR(SEARCH('[1]Критерии руб_рсч'!$C$39,J50),IFERROR(SEARCH('[1]Критерии руб_рсч'!$C$40,J50),IFERROR(SEARCH('[1]Критерии руб_рсч'!$C$41,J50),IFERROR(SEARCH('[1]Критерии руб_рсч'!$C$42,J50),IFERROR(SEARCH('[1]Критерии руб_рсч'!$C$43,J50),$AP$1))))))=$AP$1,\"-\",\"OK\")","v":"-"},{"$f":"IF(IFERROR(SEARCH('[1]Критерии руб_рсч'!$C$45,J50),IFERROR(SEARCH('[1]Критерии руб_рсч'!$C$46,J50),IFERROR(SEARCH('[1]Критерии руб_рсч'!$C$47,J50),IFERROR(SEARCH('[1]Критерии руб_рсч'!$C$48,J50),IFERROR(SEARCH('[1]Критерии руб_рсч'!$C$49,J50),IFERROR(SEARCH('[1]Критерии руб_рсч'!$C$50,J50),IFERROR(SEARCH('[1]Критерии руб_рсч'!$C$51,J50),$AP$1)))))))=$AP$1,\"-\",\"OK\")","v":"-"},{"$f":"IF(IFERROR(SEARCH('[1]Критерии руб_рсч'!$C$53,J50),$AP$1)=$AP$1,\"-\",\"OK\")","v":"-"},{"$f":"IF(IFERROR(SEARCH('[1]Критерии руб_рсч'!$C$55,J50),IFERROR(SEARCH('[1]Критерии руб_рсч'!$C$56,J50),IFERROR(SEARCH('[1]Критерии руб_рсч'!$C$57,J50),IFERROR(SEARCH('[1]Критерии руб_рсч'!$C$58,J50),IFERROR(SEARCH('[1]Критерии руб_рсч'!$C$59,J50),$AP$1)))))=$AP$1,\"-\",\"OK\")","v":"-"},{"$f":"IF(IFERROR(SEARCH('[1]Критерии руб_рсч'!$C$61,J50),IFERROR(SEARCH('[1]Критерии руб_рсч'!$C$62,J50),IFERROR(SEARCH('[1]Критерии руб_рсч'!$C$63,J50),IFERROR(SEARCH('[1]Критерии руб_рсч'!$C$64,J50),$AP$1))))=$AP$1,\"-\",\"OK\")","v":"-"},{"$f":"IF(IFERROR(SEARCH('[1]Критерии руб_рсч'!$C$66,J50),$AP$1)=$AP$1,\"-\",\"OK\")","v":"-"},{"$f":"IF(IFERROR(SEARCH('[1]Критерии руб_рсч'!$C$68,J50),IFERROR(SEARCH('[1]Критерии руб_рсч'!$C$69,J50),IFERROR(SEARCH('[1]Критерии руб_рсч'!$C$70,J50),IFERROR(SEARCH('[1]Критерии руб_рсч'!$C$71,J50),$AP$1))))=$AP$1,\"-\",\"OK\")","v":"-"},{"$f":"IF(IFERROR(SEARCH('[1]Критерии руб_рсч'!$C$73,J50),IFERROR(SEARCH('[1]Критерии руб_рсч'!$C$74,J50),IFERROR(SEARCH('[1]Критерии руб_рсч'!$C$75,J50),IFERROR(SEARCH('[1]Критерии руб_рсч'!$C$76,J50),$AP$1))))=$AP$1,\"-\",\"OK\")","v":"-"},{"$f":"IF(IFERROR(SEARCH('[1]Критерии руб_рсч'!$C$78,J50),IFERROR(SEARCH('[1]Критерии руб_рсч'!$C$79,J50),IFERROR(SEARCH('[1]Критерии руб_рсч'!$C$80,J50),IFERROR(SEARCH('[1]Критерии руб_рсч'!$C$81,J50),$AP$1))))=$AP$1,\"-\",\"OK\")","v":"-"},{"$f":"IF(IFERROR(SEARCH('[1]Критерии руб_рсч'!$C$83,J50),IFERROR(SEARCH('[1]Критерии руб_рсч'!$C$84,J50),$AP$1))=$AP$1,\"-\",\"OK\")","v":"-"},{"$f":"IF(IFERROR(SEARCH('[1]Критерии руб_рсч'!$C$86,J50),IFERROR(SEARCH('[1]Критерии руб_рсч'!$C$87,J50),IFERROR(SEARCH('[1]Критерии руб_рсч'!$C$88,J50),$AP$1)))=$AP$1,\"-\",\"OK\")","v":"-"},{"$f":"IF(IFERROR(SEARCH('[1]Критерии руб_рсч'!$C$90,J50),IFERROR(SEARCH('[1]Критерии руб_рсч'!$C$91,J50),IFERROR(SEARCH('[1]Критерии руб_рсч'!$C$92,J50),IFERROR(SEARCH('[1]Критерии руб_рсч'!$C$93,J50),$AP$1))))=$AP$1,\"-\",\"OK\")","v":"-"},{"$f":"IF(IFERROR(SEARCH('[1]Критерии руб_рсч'!$C$95,J50),IFERROR(SEARCH('[1]Критерии руб_рсч'!$C$96,J50),IFERROR(SEARCH('[1]Критерии руб_рсч'!$C$97,J50),IFERROR(SEARCH('[1]Критерии руб_рсч'!$C$98,J50),IFERROR(SEARCH('[1]Критерии руб_рсч'!$C$99,J50),IFERROR(SEARCH('[1]Критерии руб_рсч'!$C$100,J50),$AP$1))))))=$AP$1,\"-\",\"OK\")","v":"-"},{"$f":"IF(IFERROR(SEARCH('[1]Критерии руб_рсч'!$C$102,J50),IFERROR(SEARCH('[1]Критерии руб_рсч'!$C$103,J50),IFERROR(SEARCH('[1]Критерии руб_рсч'!$C$104,J50),IFERROR(SEARCH('[1]Критерии руб_рсч'!$C$105,J50),IFERROR(SEARCH('[1]Критерии руб_рсч'!$C$106,J50),IFERROR(SEARCH('[1]Критерии руб_рсч'!$C$107,J50),$AP$1))))))=$AP$1,\"-\",\"OK\")","v":"-"},{"$f":"IF(IFERROR(SEARCH('[1]Критерии руб_рсч'!$C$109,J50),IFERROR(SEARCH('[1]Критерии руб_рсч'!$C$109,J50),$AP$1))=$AP$1,\"-\",\"OK\")","v":"-"}]
["Солр5030","25.02.2015","Солид банк",9500,0,null,null,null,"АбсолютЭкспо","Оплата по счету № 11968 от 11/12/2014 за складские услуги с 01/02/2015 по 28/02/2015г.  НДС не облагается","o",{"$f":"VLOOKUP(O51,[1]Справочник!$A$2:$B$44,2,0)","v":"опер"},2,2015,{"$f":"IFERROR(IF(T51=\"Оплата от покупателя\",\"income\",INDEX('Критерии руб_рсч'!$D$2:$D$91,MATCH(TRUE,ISNUMBER(SEARCH('Критерии руб_рсч'!$C$2:$C$91,рсч_руб!J51)),0))),\"other\")","v":"income"},"руб.",2,2015,"Правда","Оплата от покупателя",{"$f":"IF(IFERROR(SEARCH('[1]Критерии руб_рсч'!$C$2,J51),IFERROR(SEARCH('[1]Критерии руб_рсч'!$C$3,J51),IFERROR(SEARCH('[1]Критерии руб_рсч'!$C$4,J51),IFERROR(SEARCH('[1]Критерии руб_рсч'!$C$5,J51),IFERROR(SEARCH('[1]Критерии руб_рсч'!$C$6,J51),IFERROR(SEARCH('[1]Критерии руб_рсч'!$C$7,J51),IFERROR(SEARCH('[1]Критерии руб_рсч'!$C$8,J51),IFERROR(SEARCH('[1]Критерии руб_рсч'!$C$8,J51),IFERROR(SEARCH('[1]Критерии руб_рсч'!$C$10,J51),IFERROR(SEARCH('[1]Критерии руб_рсч'!$C$11,J51),\"-\"))))))))))=$AP$1,\"-\",\"OK\")","v":"-"},{"$f":"IF(IFERROR(SEARCH('[1]Критерии руб_рсч'!$C$13,J51),IFERROR(SEARCH('[1]Критерии руб_рсч'!$C$14,J51),IFERROR(SEARCH('[1]Критерии руб_рсч'!$C$15,J51),IFERROR(SEARCH('[1]Критерии руб_рсч'!$C$16,J51),IFERROR(SEARCH('[1]Критерии руб_рсч'!$C$17,J51),IFERROR(SEARCH('[1]Критерии руб_рсч'!$C$18,J51),IFERROR(SEARCH('[1]Критерии руб_рсч'!$C$19,J51),IFERROR(SEARCH('[1]Критерии руб_рсч'!$C$20,J51),IFERROR(SEARCH('[1]Критерии руб_рсч'!$C$21,J51),IFERROR(SEARCH('[1]Критерии руб_рсч'!$C$22,J51),IFERROR(SEARCH('[1]Критерии руб_рсч'!$C$23,J51),IFERROR(SEARCH('[1]Критерии руб_рсч'!$C$24,J51),IFERROR(SEARCH('[1]Критерии руб_рсч'!$C$25,J51),IFERROR(SEARCH('[1]Критерии руб_рсч'!$C$26,J51),$AP$1))))))))))))))=$AP$1,\"-\",\"OK\")","v":"-"},{"$f":"IF(IFERROR(SEARCH('[1]Критерии руб_рсч'!$C$28,J51),IFERROR(SEARCH('[1]Критерии руб_рсч'!$C$29,J51),IFERROR(SEARCH('[1]Критерии руб_рсч'!$C$30,J51),$AP$1)))=$AP$1,\"-\",\"OK\")","v":"-"},{"$f":"IF(IFERROR(SEARCH('[1]Критерии руб_рсч'!$C$32,J51),IFERROR(SEARCH('[1]Критерии руб_рсч'!$C$33,J51),IFERROR(SEARCH('[1]Критерии руб_рсч'!$C$34,J51),IFERROR(SEARCH('[1]Критерии руб_рсч'!$C$35,J51),IFERROR(SEARCH('[1]Критерии руб_рсч'!$C$36,J51),$AP$1)))))=$AP$1,\"-\",\"OK\")","v":"-"},{"$f":"IF(IFERROR(SEARCH('[1]Критерии руб_рсч'!$C$38,J51),IFERROR(SEARCH('[1]Критерии руб_рсч'!$C$39,J51),IFERROR(SEARCH('[1]Критерии руб_рсч'!$C$40,J51),IFERROR(SEARCH('[1]Критерии руб_рсч'!$C$41,J51),IFERROR(SEARCH('[1]Критерии руб_рсч'!$C$42,J51),IFERROR(SEARCH('[1]Критерии руб_рсч'!$C$43,J51),$AP$1))))))=$AP$1,\"-\",\"OK\")","v":"-"},{"$f":"IF(IFERROR(SEARCH('[1]Критерии руб_рсч'!$C$45,J51),IFERROR(SEARCH('[1]Критерии руб_рсч'!$C$46,J51),IFERROR(SEARCH('[1]Критерии руб_рсч'!$C$47,J51),IFERROR(SEARCH('[1]Критерии руб_рсч'!$C$48,J51),IFERROR(SEARCH('[1]Критерии руб_рсч'!$C$49,J51),IFERROR(SEARCH('[1]Критерии руб_рсч'!$C$50,J51),IFERROR(SEARCH('[1]Критерии руб_рсч'!$C$51,J51),$AP$1)))))))=$AP$1,\"-\",\"OK\")","v":"-"},{"$f":"IF(IFERROR(SEARCH('[1]Критерии руб_рсч'!$C$53,J51),$AP$1)=$AP$1,\"-\",\"OK\")","v":"-"},{"$f":"IF(IFERROR(SEARCH('[1]Критерии руб_рсч'!$C$55,J51),IFERROR(SEARCH('[1]Критерии руб_рсч'!$C$56,J51),IFERROR(SEARCH('[1]Критерии руб_рсч'!$C$57,J51),IFERROR(SEARCH('[1]Критерии руб_рсч'!$C$58,J51),IFERROR(SEARCH('[1]Критерии руб_рсч'!$C$59,J51),$AP$1)))))=$AP$1,\"-\",\"OK\")","v":"-"},{"$f":"IF(IFERROR(SEARCH('[1]Критерии руб_рсч'!$C$61,J51),IFERROR(SEARCH('[1]Критерии руб_рсч'!$C$62,J51),IFERROR(SEARCH('[1]Критерии руб_рсч'!$C$63,J51),IFERROR(SEARCH('[1]Критерии руб_рсч'!$C$64,J51),$AP$1))))=$AP$1,\"-\",\"OK\")","v":"-"},{"$f":"IF(IFERROR(SEARCH('[1]Критерии руб_рсч'!$C$66,J51),$AP$1)=$AP$1,\"-\",\"OK\")","v":"-"},{"$f":"IF(IFERROR(SEARCH('[1]Критерии руб_рсч'!$C$68,J51),IFERROR(SEARCH('[1]Критерии руб_рсч'!$C$69,J51),IFERROR(SEARCH('[1]Критерии руб_рсч'!$C$70,J51),IFERROR(SEARCH('[1]Критерии руб_рсч'!$C$71,J51),$AP$1))))=$AP$1,\"-\",\"OK\")","v":"-"},{"$f":"IF(IFERROR(SEARCH('[1]Критерии руб_рсч'!$C$73,J51),IFERROR(SEARCH('[1]Критерии руб_рсч'!$C$74,J51),IFERROR(SEARCH('[1]Критерии руб_рсч'!$C$75,J51),IFERROR(SEARCH('[1]Критерии руб_рсч'!$C$76,J51),$AP$1))))=$AP$1,\"-\",\"OK\")","v":"-"},{"$f":"IF(IFERROR(SEARCH('[1]Критерии руб_рсч'!$C$78,J51),IFERROR(SEARCH('[1]Критерии руб_рсч'!$C$79,J51),IFERROR(SEARCH('[1]Критерии руб_рсч'!$C$80,J51),IFERROR(SEARCH('[1]Критерии руб_рсч'!$C$81,J51),$AP$1))))=$AP$1,\"-\",\"OK\")","v":"-"},{"$f":"IF(IFERROR(SEARCH('[1]Критерии руб_рсч'!$C$83,J51),IFERROR(SEARCH('[1]Критерии руб_рсч'!$C$84,J51),$AP$1))=$AP$1,\"-\",\"OK\")","v":"-"},{"$f":"IF(IFERROR(SEARCH('[1]Критерии руб_рсч'!$C$86,J51),IFERROR(SEARCH('[1]Критерии руб_рсч'!$C$87,J51),IFERROR(SEARCH('[1]Критерии руб_рсч'!$C$88,J51),$AP$1)))=$AP$1,\"-\",\"OK\")","v":"-"},{"$f":"IF(IFERROR(SEARCH('[1]Критерии руб_рсч'!$C$90,J51),IFERROR(SEARCH('[1]Критерии руб_рсч'!$C$91,J51),IFERROR(SEARCH('[1]Критерии руб_рсч'!$C$92,J51),IFERROR(SEARCH('[1]Критерии руб_рсч'!$C$93,J51),$AP$1))))=$AP$1,\"-\",\"OK\")","v":"-"},{"$f":"IF(IFERROR(SEARCH('[1]Критерии руб_рсч'!$C$95,J51),IFERROR(SEARCH('[1]Критерии руб_рсч'!$C$96,J51),IFERROR(SEARCH('[1]Критерии руб_рсч'!$C$97,J51),IFERROR(SEARCH('[1]Критерии руб_рсч'!$C$98,J51),IFERROR(SEARCH('[1]Критерии руб_рсч'!$C$99,J51),IFERROR(SEARCH('[1]Критерии руб_рсч'!$C$100,J51),$AP$1))))))=$AP$1,\"-\",\"OK\")","v":"-"},{"$f":"IF(IFERROR(SEARCH('[1]Критерии руб_рсч'!$C$102,J51),IFERROR(SEARCH('[1]Критерии руб_рсч'!$C$103,J51),IFERROR(SEARCH('[1]Критерии руб_рсч'!$C$104,J51),IFERROR(SEARCH('[1]Критерии руб_рсч'!$C$105,J51),IFERROR(SEARCH('[1]Критерии руб_рсч'!$C$106,J51),IFERROR(SEARCH('[1]Критерии руб_рсч'!$C$107,J51),$AP$1))))))=$AP$1,\"-\",\"OK\")","v":"-"},{"$f":"IF(IFERROR(SEARCH('[1]Критерии руб_рсч'!$C$109,J51),IFERROR(SEARCH('[1]Критерии руб_рсч'!$C$109,J51),$AP$1))=$AP$1,\"-\",\"OK\")","v":"-"}]
["Солр5031","25.02.2015","Солид банк",33500,0,null,null,null,"АРТО","(224) 33500,00 За аренду склада по счету №12404 от 15.02.2015г.  Договор от 20.05.2014г.  за март  НДС не облагается","o",{"$f":"VLOOKUP(O52,[1]Справочник!$A$2:$B$44,2,0)","v":"опер"},2,2015,{"$f":"IFERROR(IF(T52=\"Оплата от покупателя\",\"income\",INDEX('Критерии руб_рсч'!$D$2:$D$91,MATCH(TRUE,ISNUMBER(SEARCH('Критерии руб_рсч'!$C$2:$C$91,рсч_руб!J52)),0))),\"other\")","v":"income"},"руб.",2,2015,"Правда","Оплата от покупателя",{"$f":"IF(IFERROR(SEARCH('[1]Критерии руб_рсч'!$C$2,J52),IFERROR(SEARCH('[1]Критерии руб_рсч'!$C$3,J52),IFERROR(SEARCH('[1]Критерии руб_рсч'!$C$4,J52),IFERROR(SEARCH('[1]Критерии руб_рсч'!$C$5,J52),IFERROR(SEARCH('[1]Критерии руб_рсч'!$C$6,J52),IFERROR(SEARCH('[1]Критерии руб_рсч'!$C$7,J52),IFERROR(SEARCH('[1]Критерии руб_рсч'!$C$8,J52),IFERROR(SEARCH('[1]Критерии руб_рсч'!$C$8,J52),IFERROR(SEARCH('[1]Критерии руб_рсч'!$C$10,J52),IFERROR(SEARCH('[1]Критерии руб_рсч'!$C$11,J52),\"-\"))))))))))=$AP$1,\"-\",\"OK\")","v":"-"},{"$f":"IF(IFERROR(SEARCH('[1]Критерии руб_рсч'!$C$13,J52),IFERROR(SEARCH('[1]Критерии руб_рсч'!$C$14,J52),IFERROR(SEARCH('[1]Критерии руб_рсч'!$C$15,J52),IFERROR(SEARCH('[1]Критерии руб_рсч'!$C$16,J52),IFERROR(SEARCH('[1]Критерии руб_рсч'!$C$17,J52),IFERROR(SEARCH('[1]Критерии руб_рсч'!$C$18,J52),IFERROR(SEARCH('[1]Критерии руб_рсч'!$C$19,J52),IFERROR(SEARCH('[1]Критерии руб_рсч'!$C$20,J52),IFERROR(SEARCH('[1]Критерии руб_рсч'!$C$21,J52),IFERROR(SEARCH('[1]Критерии руб_рсч'!$C$22,J52),IFERROR(SEARCH('[1]Критерии руб_рсч'!$C$23,J52),IFERROR(SEARCH('[1]Критерии руб_рсч'!$C$24,J52),IFERROR(SEARCH('[1]Критерии руб_рсч'!$C$25,J52),IFERROR(SEARCH('[1]Критерии руб_рсч'!$C$26,J52),$AP$1))))))))))))))=$AP$1,\"-\",\"OK\")","v":"-"},{"$f":"IF(IFERROR(SEARCH('[1]Критерии руб_рсч'!$C$28,J52),IFERROR(SEARCH('[1]Критерии руб_рсч'!$C$29,J52),IFERROR(SEARCH('[1]Критерии руб_рсч'!$C$30,J52),$AP$1)))=$AP$1,\"-\",\"OK\")","v":"-"},{"$f":"IF(IFERROR(SEARCH('[1]Критерии руб_рсч'!$C$32,J52),IFERROR(SEARCH('[1]Критерии руб_рсч'!$C$33,J52),IFERROR(SEARCH('[1]Критерии руб_рсч'!$C$34,J52),IFERROR(SEARCH('[1]Критерии руб_рсч'!$C$35,J52),IFERROR(SEARCH('[1]Критерии руб_рсч'!$C$36,J52),$AP$1)))))=$AP$1,\"-\",\"OK\")","v":"-"},{"$f":"IF(IFERROR(SEARCH('[1]Критерии руб_рсч'!$C$38,J52),IFERROR(SEARCH('[1]Критерии руб_рсч'!$C$39,J52),IFERROR(SEARCH('[1]Критерии руб_рсч'!$C$40,J52),IFERROR(SEARCH('[1]Критерии руб_рсч'!$C$41,J52),IFERROR(SEARCH('[1]Критерии руб_рсч'!$C$42,J52),IFERROR(SEARCH('[1]Критерии руб_рсч'!$C$43,J52),$AP$1))))))=$AP$1,\"-\",\"OK\")","v":"-"},{"$f":"IF(IFERROR(SEARCH('[1]Критерии руб_рсч'!$C$45,J52),IFERROR(SEARCH('[1]Критерии руб_рсч'!$C$46,J52),IFERROR(SEARCH('[1]Критерии руб_рсч'!$C$47,J52),IFERROR(SEARCH('[1]Критерии руб_рсч'!$C$48,J52),IFERROR(SEARCH('[1]Критерии руб_рсч'!$C$49,J52),IFERROR(SEARCH('[1]Критерии руб_рсч'!$C$50,J52),IFERROR(SEARCH('[1]Критерии руб_рсч'!$C$51,J52),$AP$1)))))))=$AP$1,\"-\",\"OK\")","v":"-"},{"$f":"IF(IFERROR(SEARCH('[1]Критерии руб_рсч'!$C$53,J52),$AP$1)=$AP$1,\"-\",\"OK\")","v":"-"},{"$f":"IF(IFERROR(SEARCH('[1]Критерии руб_рсч'!$C$55,J52),IFERROR(SEARCH('[1]Критерии руб_рсч'!$C$56,J52),IFERROR(SEARCH('[1]Критерии руб_рсч'!$C$57,J52),IFERROR(SEARCH('[1]Критерии руб_рсч'!$C$58,J52),IFERROR(SEARCH('[1]Критерии руб_рсч'!$C$59,J52),$AP$1)))))=$AP$1,\"-\",\"OK\")","v":"-"},{"$f":"IF(IFERROR(SEARCH('[1]Критерии руб_рсч'!$C$61,J52),IFERROR(SEARCH('[1]Критерии руб_рсч'!$C$62,J52),IFERROR(SEARCH('[1]Критерии руб_рсч'!$C$63,J52),IFERROR(SEARCH('[1]Критерии руб_рсч'!$C$64,J52),$AP$1))))=$AP$1,\"-\",\"OK\")","v":"-"},{"$f":"IF(IFERROR(SEARCH('[1]Критерии руб_рсч'!$C$66,J52),$AP$1)=$AP$1,\"-\",\"OK\")","v":"-"},{"$f":"IF(IFERROR(SEARCH('[1]Критерии руб_рсч'!$C$68,J52),IFERROR(SEARCH('[1]Критерии руб_рсч'!$C$69,J52),IFERROR(SEARCH('[1]Критерии руб_рсч'!$C$70,J52),IFERROR(SEARCH('[1]Критерии руб_рсч'!$C$71,J52),$AP$1))))=$AP$1,\"-\",\"OK\")","v":"-"},{"$f":"IF(IFERROR(SEARCH('[1]Критерии руб_рсч'!$C$73,J52),IFERROR(SEARCH('[1]Критерии руб_рсч'!$C$74,J52),IFERROR(SEARCH('[1]Критерии руб_рсч'!$C$75,J52),IFERROR(SEARCH('[1]Критерии руб_рсч'!$C$76,J52),$AP$1))))=$AP$1,\"-\",\"OK\")","v":"-"},{"$f":"IF(IFERROR(SEARCH('[1]Критерии руб_рсч'!$C$78,J52),IFERROR(SEARCH('[1]Критерии руб_рсч'!$C$79,J52),IFERROR(SEARCH('[1]Критерии руб_рсч'!$C$80,J52),IFERROR(SEARCH('[1]Критерии руб_рсч'!$C$81,J52),$AP$1))))=$AP$1,\"-\",\"OK\")","v":"-"},{"$f":"IF(IFERROR(SEARCH('[1]Критерии руб_рсч'!$C$83,J52),IFERROR(SEARCH('[1]Критерии руб_рсч'!$C$84,J52),$AP$1))=$AP$1,\"-\",\"OK\")","v":"-"},{"$f":"IF(IFERROR(SEARCH('[1]Критерии руб_рсч'!$C$86,J52),IFERROR(SEARCH('[1]Критерии руб_рсч'!$C$87,J52),IFERROR(SEARCH('[1]Критерии руб_рсч'!$C$88,J52),$AP$1)))=$AP$1,\"-\",\"OK\")","v":"-"},{"$f":"IF(IFERROR(SEARCH('[1]Критерии руб_рсч'!$C$90,J52),IFERROR(SEARCH('[1]Критерии руб_рсч'!$C$91,J52),IFERROR(SEARCH('[1]Критерии руб_рсч'!$C$92,J52),IFERROR(SEARCH('[1]Критерии руб_рсч'!$C$93,J52),$AP$1))))=$AP$1,\"-\",\"OK\")","v":"-"},{"$f":"IF(IFERROR(SEARCH('[1]Критерии руб_рсч'!$C$95,J52),IFERROR(SEARCH('[1]Критерии руб_рсч'!$C$96,J52),IFERROR(SEARCH('[1]Критерии руб_рсч'!$C$97,J52),IFERROR(SEARCH('[1]Критерии руб_рсч'!$C$98,J52),IFERROR(SEARCH('[1]Критерии руб_рсч'!$C$99,J52),IFERROR(SEARCH('[1]Критерии руб_рсч'!$C$100,J52),$AP$1))))))=$AP$1,\"-\",\"OK\")","v":"-"},{"$f":"IF(IFERROR(SEARCH('[1]Критерии руб_рсч'!$C$102,J52),IFERROR(SEARCH('[1]Критерии руб_рсч'!$C$103,J52),IFERROR(SEARCH('[1]Критерии руб_рсч'!$C$104,J52),IFERROR(SEARCH('[1]Критерии руб_рсч'!$C$105,J52),IFERROR(SEARCH('[1]Критерии руб_рсч'!$C$106,J52),IFERROR(SEARCH('[1]Критерии руб_рсч'!$C$107,J52),$AP$1))))))=$AP$1,\"-\",\"OK\")","v":"-"},{"$f":"IF(IFERROR(SEARCH('[1]Критерии руб_рсч'!$C$109,J52),IFERROR(SEARCH('[1]Критерии руб_рсч'!$C$109,J52),$AP$1))=$AP$1,\"-\",\"OK\")","v":"-"}]

{"sheet":"Критерии руб_рсч","index":1,"n_rows":106,"n_cols":4,"rows_kept":106,"cut":false,"hidden":false,"merged":[]}
["Справочник критериев для сортировки операций по Солид Банку (рсч_руб)"]
[null,"фин","по договору беспроцентного денежного займа",{"$f":"IF(C2=\"\",\"\",IF(B2=\"\",D1,B2))","v":"фин"}]
[null,null,"Арендная плата по договору субаренды",{"$f":"IF(C3=\"\",\"\",IF(B3=\"\",D2,B3))","v":"фин"}]
[null,null,"Возврат займа","фин"]
[null,null,"Займ по договору","фин"]
[null,null,"Перечисление займа по договору займа","фин"]
[null,null,"Предоставление займа по договору","фин"]
[null,null,"Услуги по аренде помещения","фин"]
[null,null,"получение кредита","фин"]
[null,null,"по договорам займа","фин"]
[null,null,"по договору денежного займа","фин"]
[null,"bank","Абонентская плата за обслуживание с использованием Системы Ibank",{"$f":"IF(C12=\"\",\"\",IF(B12=\"\",#REF!,B12))","v":"bank"}]
[null,null,"Комиссионное вознаграждение Банка за исполн.функций валютного контроля","bank"]
[null,null,"согласно Тарифам Банка","bank"]
[null,null,"Комиссия за ведение счета, согласно договора банковского счета","bank"]
[null,null,"Комиссия за выдачу","bank"]
[null,null,"Комиссия за заверение","bank"]
[null,null,"Комиссия за обслуживание по системе электронных расчетов iBank2","bank"]
[null,null,"Комиссия за","bank"]
[null,null,"Комиссия за отправку платежей согласно тарифам Банка","bank"]
[null,null,"Комиссия за Перечисление денежных средств","bank"]
[null,null,"Комиссия за прием и пересчет наличных денежных средств","bank"]
[null,null,"за исполнение функций валютного контроля","bank"]
[null,null,"НДС за оказание услуги по","bank"]
[null,null,"Оплата комиссии за оказание услуг по зачислению денежных средств","bank"]
[null,"other","Государственная пошлина за рассмотрение",{"$f":"IF(C26=\"\",\"\",IF(B26=\"\",#REF!,B26))","v":"other"}]
[null,null,"Услуги по ведению бухгалтерского учета и подготовке отчетности","other"]
[null,null,"за ремонт грузового подъемника","other"]
[null,"nachisl","Взыск ден ср",{"$f":"IF(C29=\"\",\"\",IF(B29=\"\",#REF!,B29))","v":"nachisl"}]
[null,null,"Взыск.ден.ср-в","nachisl"]
[null,null,"НДФЛ","nachisl"]
[null,null,"Страховой взнос на обязательное социальное страхование","nachisl"]
[null,null,"Страховые взносы","nachisl"]
[null,"ДДС","Конверсия денежных средств при покупке иностранной валюты у клиента",{"$f":"IF(C34=\"\",\"\",IF(B34=\"\",#REF!,B34))","v":"ДДС"}]
[null,null,"за продвижение сайта www.safe-box.ru","ДДС"]
[null,null,"за услуги по уборке  нежилых помещений","ДДС"]
[null,null,"за разбор металлоконструкций и вынос мусора","ДДС"]
[null,null,"r на выдачу зпл","ДДС"]
[null,null,"Торговая выручка","ДДС"]
[null,"office","Заправка катриджа",{"$f":"IF(C40=\"\",\"\",IF(B40=\"\",#REF!,B40))","v":"office"}]
[null,null,"за Марки-пломбы и техническое обслуживание","office"]
[null,null,"оплата по счету № 0VT","office"]
[null,null,"за стаканы","office"]
[null,null,"за магнитные карточки","office"]
[null,null,"(18,9","office"]
[null,null,"VT/","office"]
[null,"taxes",{"$f":"[2]taxes!B2","v":"минимальный налог"},{"$f":"IF(C47=\"\",\"\",IF(B47=\"\",#REF!,B47))","v":"taxes"}]
[null,"telef","Оплата за услуги международной и междугородной связи по договору",{"$f":"IF(C48=\"\",\"\",IF(B48=\"\",#REF!,B48))","v":"telef"}]
[null,null,"Оплата по договору 02/12 за SMS услуги","telef"]
[null,null,"за услуги электросвязи","telef"]
[null,null,"за услуги мг и мн связи по договору","telef"]
[null,null,"за услуги междугородной и международной телефонной связи","telef"]
[null,"marketing","за рекламн",{"$f":"IF(C53=\"\",\"\",IF(B53=\"\",#REF!,B53))","v":"marketing"}]
[null,null,"на оказание комплекса рекламных услуг","marketing"]
[null,null,"за размещение рекламно-информационных материалов","marketing"]
[null,null,"за размещение рекламных материалов","marketing"]
[null,"insurance","страховая премия",{"$f":"IF(C57=\"\",\"\",IF(B57=\"\",#REF!,B57))","v":"insurance"}]
[null,"security","охранных услуг",{"$f":"IF(C58=\"\",\"\",IF(B58=\"\",#REF!,B58))","v":"security"}]
[null,null,"за охранные услуги",{"$f":"IF(C59=\"\",\"\",IF(B59=\"\",D58,B59))","v":"security"}]
[null,null,"за услуги по охране объекта","security"]
[null,null,"охрана ","security"]
[null,"deposit","обеспечительный платеж",{"$f":"IF(C62=\"\",\"\",IF(B62=\"\",#REF!,B62))","v":"deposit"}]
[null,null,"обеспечительного платежа","deposit"]
[null,null,"обеспечительного взноса","deposit"]
[null,null,"депозит","deposit"]
[null,"deposit_return","Возврат обеспечительного платежа",{"$f":"IF(C66=\"\",\"\",IF(B66=\"\",#REF!,B66))","v":"deposit_return"}]
[null,null,"возврат депозита","deposit_return"]
[null,null,"Возврат неизрасходованных средств по договору","deposit_return"]
[null,null,"Возврат оплаты по заявлению клиента","deposit_return"]
[null,"c.soft","1С",{"$f":"IF(C70=\"\",\"\",IF(B70=\"\",#REF!,B70))","v":"c.soft"}]
[null,null,"КонсультантБухгалтер","c.soft"]
[null,"parking","выдача пропуска",{"$f":"IF(C72=\"\",\"\",IF(B72=\"\",#REF!,B72))","v":"parking"}]
[null,null,"за выдачу постоянного пропуска","parking"]
[null,null,"выдача пропуска","parking"]
[null,"goods_sale","замок",{"$f":"IF(C75=\"\",\"\",IF(B75=\"\",#REF!,B75))","v":"goods_sale"}]
[null,null,"материалы","goods_sale"]
[null,null,"коробка","goods_sale"]
[null,null,"за магнитную карту","goods_sale"]
[null,"arenda","N26-10Пр6",{"$f":"IF(C79=\"\",\"\",IF(B79=\"\",#REF!,B79))","v":"arenda"}]
[null,null,"Аренда переменная часть","arenda"]
[null,null,"по договору аренды нежилого помещения","arenda"]
[null,null,"055-12/00177","arenda"]
[null,null,"055-13/00318","arenda"]
[null,null,"055-13/00369","arenda"]
[null,"goods","за короба",{"$f":"IF(C85=\"\",\"\",IF(B85=\"\",#REF!,B85))","v":"goods"}]
[null,null,"Короб","goods"]
[null,null,"за стрейч пленку для поддонов","goods"]
[null,null,"за замки висячие","goods"]
[null,null,"apecs","goods"]
[null,null,"Пленка","goods"]
[null,"Income","возмещение оплаты товаров и услуг",{"$f":"IF(C91=\"\",\"\",IF(B91=\"\",#REF!,B91))","v":"Income"}]
[null,"курс. разн",null,{"$f":"IF(C92=\"\",\"\",IF(B92=\"\",#REF!,B92))","v":""}]
[null,"transport",null,{"$f":"IF(C93=\"\",\"\",IF(B93=\"\",D92,B93))","v":""}]
[null,"ДДС-депозит",null,""]
[null,"Constraction",null,{"$f":"IF(C95=\"\",\"\",IF(B95=\"\",#REF!,B95))","v":""}]
[null,"customs",null,""]
[null,"partitioning",null,""]
[null,"fire deptmnt",null,""]
[null,"inventories",null,""]
[null,"Access Control +CCTV",null,""]
[null,"mezzanine",null,""]
[null,"Costractions_signboard",null,""]
[null,"Lift",null,""]
[null,"обучение - вне расходов",null,""]
[null,"income",null,{"$f":"IF(C105=\"\",\"\",IF(B105=\"\",#REF!,B105))","v":""}]
[null,"income_other",null,{"$f":"IF(C106=\"\",\"\",IF(B106=\"\",#REF!,B106))","v":""}]

{"sheet":"Справочник","index":2,"n_rows":44,"n_cols":2,"rows_kept":44,"cut":false,"hidden":false,"merged":[]}
["группа","тип деятельности"]
["Access Control +CCTV","инвест"]
["Constraction","инвест"]
["Costractions_signboard","инвест"]
["customs","инвест"]
["fire deptmnt","инвест"]
["inventories","инвест"]
["Lift","инвест"]
["mezzanine","инвест"]
["partitioning","инвест"]
["storage","инвест"]
["% BB&MS","опер"]
["% on capital","опер"]
["% Sh","опер"]
["%%","опер"]
["грузчики","опер"]
["курс. разн","опер"]
["фин.оп","опер"]
["arenda","опер"]
["arenda-deposit","опер"]
["bank","опер"]
["c.soft","опер"]
["deposit","опер"]
["deposit_return","опер"]
["goods","опер"]
["goods_sale","опер"]
["income","опер"]
["income_other","опер"]
["insurance","опер"]
["marketing","опер"]
["nachisl","опер"]
["office","опер"]
["other","опер"]
["parking","опер"]
["premiya","опер"]
["security","опер"]
["taxes","опер"]
["telef","опер"]
["transport","опер"]
["zpl","опер"]
["бух. услуги","опер"]
["repair constr","опер"]
["ДДС","CF"]
["фин","фин"]

{"sheet":"Лист1","index":3,"n_rows":52,"n_cols":4,"rows_kept":52,"cut":false,"hidden":false,"merged":[]}
[]
["Абонентская плата за обслуживание с использованием Системы Ibank 2 за январь 2015 г.",{"$f":"FindBestMatchTxt(A2,$A$1:A1,0.5,\"#\")","v":0},{"$f":" TextSimilarity(A2, D2, \"#\")","v":1},{"$f":"IF(B2>0,INDEX($A$1:$A$52,B2),A2)","v":"Абонентская плата за обслуживание с использованием Системы Ibank 2 за январь 2015 г."}]
["оплата за аренду бокса С158, по Договору об оказании складских услуг от 11.03.2012 г.",{"$f":"FindBestMatchTxt(A3,$A$1:A2,0.5,\"#\")","v":0},{"$f":" TextSimilarity(A3, D3, \"#\")","v":1},{"$f":"IF(B3>0,INDEX($A$1:$A$52,B3),A3)","v":"оплата за аренду бокса С158, по Договору об оказании складских услуг от 11.03.2012 г."}]
["Комиссия за Перечисление денежных средств со счета Клиента в другие кредитные организации по платежным поручениям,  полученным по Системе Ibank2. Тариф 1.2.3.2",{"$f":"FindBestMatchTxt(A4,$A$1:A3,0.5,\"#\")","v":0},1,{"$f":"IF(B4>0,INDEX($A$1:$A$52,B4),A4)","v":"Комиссия за Перечисление денежных средств со счета Клиента в другие кредитные организации по платежным поручениям,  полученным по Системе Ibank2. Тариф 1.2.3.2"}]
["Комиссия за Перечисление денежных средств со счета Клиента в другие кредитные организации по платежным поручениям,  полученным по Системе Ibank2. Тариф 1.2.3.2",{"$f":"FindBestMatchTxt(A5,$A$1:A4,0.5,\"#\")","v":4},1,{"$f":"IF(B5>0,INDEX($A$1:$A$52,B5),A5)","v":"Комиссия за Перечисление денежных средств со счета Клиента в другие кредитные организации по платежным поручениям,  полученным по Системе Ibank2. Тариф 1.2.3.2"}]
["Комиссия за Перечисление денежных средств со счета Клиента в другие кредитные организации по платежным поручениям,  полученным по Системе Ibank2. Тариф 1.2.3.2",{"$f":"FindBestMatchTxt(A6,$A$1:A5,0.5,\"#\")","v":4},1,{"$f":"IF(B6>0,INDEX($A$1:$A$52,B6),A6)","v":"Комиссия за Перечисление денежных средств со счета Клиента в другие кредитные организации по платежным поручениям,  полученным по Системе Ibank2. Тариф 1.2.3.2"}]
["Комиссия за Перечисление денежных средств со счета Клиента в другие кредитные организации по платежным поручениям,  полученным по Системе Ibank2. Тариф 1.2.3.2",{"$f":"FindBestMatchTxt(A7,$A$1:A6,0.5,\"#\")","v":4},1,{"$f":"IF(B7>0,INDEX($A$1:$A$52,B7),A7)","v":"Комиссия за Перечисление денежных средств со счета Клиента в другие кредитные организации по платежным поручениям,  полученным по Системе Ibank2. Тариф 1.2.3.2"}]
["Комиссия за Перечисление денежных средств со счета Клиента в другие кредитные организации по платежным поручениям,  полученным по Системе Ibank2. Тариф 1.2.3.2",{"$f":"FindBestMatchTxt(A8,$A$1:A7,0.5,\"#\")","v":4},1,{"$f":"IF(B8>0,INDEX($A$1:$A$52,B8),A8)","v":"Комиссия за Перечисление денежных средств со счета Клиента в другие кредитные организации по платежным поручениям,  полученным по Системе Ibank2. Тариф 1.2.3.2"}]
["Комиссия за Перечисление денежных средств со счета Клиента в другие кредитные организации по платежным поручениям,  полученным по Системе Ibank2. Тариф 1.2.3.2",{"$f":"FindBestMatchTxt(A9,$A$1:A8,0.5,\"#\")","v":4},1,{"$f":"IF(B9>0,INDEX($A$1:$A$52,B9),A9)","v":"Комиссия за Перечисление денежных средств со счета Клиента в другие кредитные организации по платежным поручениям,  полученным по Системе Ibank2. Тариф 1.2.3.2"}]
["Оплата за услуги международной и междугородной связи по договору №8С#ГИГ2 от 30.03.11 за декабрь 2014 Сумма 87-65 В т.ч. НДС  (18/118) 13-37",{"$f":"FindBestMatchTxt(A10,$A$1:A9,0.5,\"#\")","v":0},1,{"$f":"IF(B10>0,INDEX($A$1:$A$52,B10),A10)","v":"Оплата за услуги международной и междугородной связи по договору №8С#ГИГ2 от 30.03.11 за декабрь 2014 Сумма 87-65 В т.ч. НДС  (18/118) 13-37"}]
["Оплата по договору 02/12 за SMS услуги (предоставление доступа к програмному приложению) за период с 01.12.14 по 31.12.14 Сумма 986-46 В т.ч. НДС  (18%) 150-48",{"$f":"FindBestMatchTxt(A11,$A$1:A10,0.5,\"#\")","v":0},1,{"$f":"IF(B11>0,INDEX($A$1:$A$52,B11),A11)","v":"Оплата по договору 02/12 за SMS услуги (предоставление доступа к програмному приложению) за период с 01.12.14 по 31.12.14 Сумма 986-46 В т.ч. НДС  (18%) 150-48"}]
["Оплата по счету Л-00002726 от 15.01.2015 за Воду (18,9) 8 шт. Сумма 1900-00 В т.ч. НДС  (18%) 289-83",{"$f":"FindBestMatchTxt(A12,$A$1:A11,0.5,\"#\")","v":0},1,{"$f":"IF(B12>0,INDEX($A$1:$A$52,B12),A12)","v":"Оплата по счету Л-00002726 от 15.01.2015 за Воду (18,9) 8 шт. Сумма 1900-00 В т.ч. НДС  (18%) 289-83"}]
["Оплата по счету № 239 от 20.11.2014. Сопровождение ПП 1С на ноябрь  2014г. по договору №101-2013-07-01-1220 от 01.07.2013г. обновление конфигурации  Сумма 4000-00 В т.ч. НДС  (18%) 610-17",{"$f":"FindBestMatchTxt(A13,$A$1:A12,0.5,\"#\")","v":0},1,{"$f":"IF(B13>0,INDEX($A$1:$A$52,B13),A13)","v":"Оплата по счету № 239 от 20.11.2014. Сопровождение ПП 1С на ноябрь  2014г. по договору №101-2013-07-01-1220 от 01.07.2013г. обновление конфигурации  Сумма 4000-00 В т.ч. НДС  (18%) 610-17"}]
["Доплата по счету №29 от 12.01.2015 за короб №3 архивный Сумма 5096-00 В т.ч. НДС  (18%) 777-36",{"$f":"FindBestMatchTxt(A14,$A$1:A13,0.5,\"#\")","v":12},0.5641025641025641,{"$f":"IF(B14>0,INDEX($A$1:$A$52,B14),A14)","v":"Оплата по счету Л-00002726 от 15.01.2015 за Воду (18,9) 8 шт. Сумма 1900-00 В т.ч. НДС  (18%) 289-83"}]
["Оплата за услуги электросвязи по договору №23743/1 от 30.03.11 за декабрь  2014 Сумма 9097-00 В т.ч. НДС  (18/118) 1387-68",{"$f":"FindBestMatchTxt(A15,$A$1:A14,0.5,\"#\")","v":10},0.68965517241379315,{"$f":"IF(B15>0,INDEX($A$1:$A$52,B15),A15)","v":"Оплата за услуги международной и междугородной связи по договору №8С#ГИГ2 от 30.03.11 за декабрь 2014 Сумма 87-65 В т.ч. НДС  (18/118) 13-37"}]
["Оплата по счету N 12071 от 17.01.2015 за аренду бокса #C58 c 01.02.2015 по 28.02.2014. НДС не облагается.",{"$f":"FindBestMatchTxt(A16,$A$1:A15,0.5,\"#\")","v":0},1,{"$f":"IF(B16>0,INDEX($A$1:$A$52,B16),A16)","v":"Оплата по счету N 12071 от 17.01.2015 за аренду бокса #C58 c 01.02.2015 по 28.02.2014. НДС не облагается."}]
["Государственная пошлина: подача кассационной жалобы",{"$f":"FindBestMatchTxt(A17,$A$1:A16,0.5,\"#\")","v":0},1,{"$f":"IF(B17>0,INDEX($A$1:$A$52,B17),A17)","v":"Государственная пошлина: подача кассационной жалобы"}]
["НДС-18%, удержанный сверх суммы комиссионного вознаграждения за исполнение функций валютного контроля согласно Тарифам Банка. Распоряжение  от 22.01.2015г.",{"$f":"FindBestMatchTxt(A18,$A$1:A17,0.5,\"#\")","v":0},1,{"$f":"IF(B18>0,INDEX($A$1:$A$52,B18),A18)","v":"НДС-18%, удержанный сверх суммы комиссионного вознаграждения за исполнение функций валютного контроля согласно Тарифам Банка. Распоряжение  от 22.01.2015г."}]
["НДС за оказание услуги по Изготовлению и заверению копий документов в рамках оказания услуг клиенту, кроме накопительных счетов. Тариф 1.4.4",{"$f":"FindBestMatchTxt(A19,$A$1:A18,0.5,\"#\")","v":0},1,{"$f":"IF(B19>0,INDEX($A$1:$A$52,B19),A19)","v":"НДС за оказание услуги по Изготовлению и заверению копий документов в рамках оказания услуг клиенту, кроме накопительных счетов. Тариф 1.4.4"}]
["Комиссионное вознаграждение Банка за исполн.функций валютного контроля, согласно Тарифам Банка. Распоряжение от 22.01.2015г",{"$f":"FindBestMatchTxt(A20,$A$1:A19,0.5,\"#\")","v":18},0.94871794871794868,{"$f":"IF(B20>0,INDEX($A$1:$A$52,B20),A20)","v":"НДС-18%, удержанный сверх суммы комиссионного вознаграждения за исполнение функций валютного контроля согласно Тарифам Банка. Распоряжение  от 22.01.2015г."}]
["Комиссия за Перечисление денежных средств со счета Клиента в другие кредитные организации по платежным поручениям,  полученным по Системе Ibank2. Тариф 1.2.3.2",{"$f":"FindBestMatchTxt(A21,$A$1:A20,0.5,\"#\")","v":4},1,{"$f":"IF(B21>0,INDEX($A$1:$A$52,B21),A21)","v":"Комиссия за Перечисление денежных средств со счета Клиента в другие кредитные организации по платежным поручениям,  полученным по Системе Ibank2. Тариф 1.2.3.2"}]
["Комиссия за оказание услуги по Изготовлению и заверению копий документов в рамках оказания услуг клиенту, кроме накопительных счетов. Тариф 1.4.4",{"$f":"FindBestMatchTxt(A22,$A$1:A21,0.5,\"#\")","v":19},0.93333333333333335,{"$f":"IF(B22>0,INDEX($A$1:$A$52,B22),A22)","v":"НДС за оказание услуги по Изготовлению и заверению копий документов в рамках оказания услуг клиенту, кроме накопительных счетов. Тариф 1.4.4"}]
["{VO42015} Возврат займа по договору беспроцентного денежного займа №1 от 23.06.2011  Сумма 15000 Без налога (НДС) Сумма 15000",{"$f":"FindBestMatchTxt(A23,$A$1:A22,0.5,\"#\")","v":0},1,{"$f":"IF(B23>0,INDEX($A$1:$A$52,B23),A23)","v":"{VO42015} Возврат займа по договору беспроцентного денежного займа №1 от 23.06.2011  Сумма 15000 Без налога (НДС) Сумма 15000"}]
["Оплата по счету 11875 от 13.01.2015., Сумма: 5100-00, НДС не облагается.",{"$f":"FindBestMatchTxt(A24,$A$1:A23,0.5,\"#\")","v":16},0.6875,{"$f":"IF(B24>0,INDEX($A$1:$A$52,B24),A24)","v":"Оплата по счету N 12071 от 17.01.2015 за аренду бокса #C58 c 01.02.2015 по 28.02.2014. НДС не облагается."}]
["{VO20100} Оплата по счету №11951 от 16.01.2015г. за складские услуги В101 с 01.02. по 31.07.15. НДС не облагается.",{"$f":"FindBestMatchTxt(A25,$A$1:A24,0.5,\"#\")","v":0},1,{"$f":"IF(B25>0,INDEX($A$1:$A$52,B25),A25)","v":"{VO20100} Оплата по счету №11951 от 16.01.2015г. за складские услуги В101 с 01.02. по 31.07.15. НДС не облагается."}]
["Оплата по счету № 11668 от 11/12/2014 за складские услуги с 1/010 по 31/01 2015 г.  НДС не облагается",{"$f":"FindBestMatchTxt(A26,$A$1:A25,0.5,\"#\")","v":25},0.8125,{"$f":"IF(B26>0,INDEX($A$1:$A$52,B26),A26)","v":"{VO20100} Оплата по счету №11951 от 16.01.2015г. за складские услуги В101 с 01.02. по 31.07.15. НДС не облагается."}]
["Торговая выручка",{"$f":"FindBestMatchTxt(A27,$A$1:A26,0.5,\"#\")","v":0},1,{"$f":"IF(B27>0,INDEX($A$1:$A$52,B27),A27)","v":"Торговая выручка"}]
["Комиссия за Перечисление денежных средств со счета Клиента в другие кредитные организации по платежным поручениям,  полученным по Системе Ibank2. Тариф 1.2.3.2",{"$f":"FindBestMatchTxt(A28,$A$1:A27,0.5,\"#\")","v":4},1,{"$f":"IF(B28>0,INDEX($A$1:$A$52,B28),A28)","v":"Комиссия за Перечисление денежных средств со счета Клиента в другие кредитные организации по платежным поручениям,  полученным по Системе Ibank2. Тариф 1.2.3.2"}]
["НДС-18%, удержанный сверх суммы комиссионного вознаграждения за исполнение функций валютного контроля согласно Тарифам Банка. Распоряжение  от  27.01.2015г.",{"$f":"FindBestMatchTxt(A29,$A$1:A28,0.5,\"#\")","v":18},0.98958333333333337,{"$f":"IF(B29>0,INDEX($A$1:$A$52,B29),A29)","v":"НДС-18%, удержанный сверх суммы комиссионного вознаграждения за исполнение функций валютного контроля согласно Тарифам Банка. Распоряжение  от 22.01.2015г."}]
["Комиссионное вознаграждение Банка за исполн.функций валютного контроля, согласно Тарифам Банка. Распоряжение от 27.01.2015г",{"$f":"FindBestMatchTxt(A30,$A$1:A29,0.5,\"#\")","v":20},0.98717948717948723,{"$f":"IF(B30>0,INDEX($A$1:$A$52,B30),A30)","v":"Комиссионное вознаграждение Банка за исполн.функций валютного контроля, согласно Тарифам Банка. Распоряжение от 22.01.2015г"}]
["Комиссия за Прием наличных денежных средств на счет: купюры. Тариф 1.3.1.2",{"$f":"FindBestMatchTxt(A31,$A$1:A30,0.5,\"#\")","v":28},0.63414634146341464,{"$f":"IF(B31>0,INDEX($A$1:$A$52,B31),A31)","v":"Комиссия за Перечисление денежных средств со счета Клиента в другие кредитные организации по платежным поручениям,  полученным по Системе Ibank2. Тариф 1.2.3.2"}]
["{VO42015} Возврат займа по договору беспроцентного денежного займа №1 от 23.06.2011  Сумма 300000 Без налога (НДС) Сумма 300000",{"$f":"FindBestMatchTxt(A32,$A$1:A31,0.5,\"#\")","v":23},0.91428571428571426,{"$f":"IF(B32>0,INDEX($A$1:$A$52,B32),A32)","v":"{VO42015} Возврат займа по договору беспроцентного денежного займа №1 от 23.06.2011  Сумма 15000 Без налога (НДС) Сумма 15000"}]
["Торговая выручка",{"$f":"FindBestMatchTxt(A33,$A$1:A32,0.5,\"#\")","v":27},1,{"$f":"IF(B33>0,INDEX($A$1:$A$52,B33),A33)","v":"Торговая выручка"}]
["Комиссия за Перечисление денежных средств со счета Клиента в другие кредитные организации по платежным поручениям,  полученным по Системе Ibank2. Тариф 1.2.3.2",{"$f":"FindBestMatchTxt(A34,$A$1:A33,0.5,\"#\")","v":4},1,{"$f":"IF(B34>0,INDEX($A$1:$A$52,B34),A34)","v":"Комиссия за Перечисление денежных средств со счета Клиента в другие кредитные организации по платежным поручениям,  полученным по Системе Ibank2. Тариф 1.2.3.2"}]
["НДС-18%, удержанный сверх суммы комиссионного вознаграждения за исполнение функций валютного контроля согласно Тарифам Банка. Распоряжение  от 28.01.2015г.",{"$f":"FindBestMatchTxt(A35,$A$1:A34,0.5,\"#\")","v":29},0.98958333333333337,{"$f":"IF(B35>0,INDEX($A$1:$A$52,B35),A35)","v":"НДС-18%, удержанный сверх суммы комиссионного вознаграждения за исполнение функций валютного контроля согласно Тарифам Банка. Распоряжение  от  27.01.2015г."}]
["Комиссионное вознаграждение Банка за исполн.функций валютного контроля, согласно Тарифам Банка. Распоряжение от 28.01.2015г",{"$f":"FindBestMatchTxt(A36,$A$1:A35,0.5,\"#\")","v":30},0.98717948717948723,{"$f":"IF(B36>0,INDEX($A$1:$A$52,B36),A36)","v":"Комиссионное вознаграждение Банка за исполн.функций валютного контроля, согласно Тарифам Банка. Распоряжение от 27.01.2015г"}]
["Комиссия за Прием наличных денежных средств на счет: купюры. Тариф 1.3.1.2",{"$f":"FindBestMatchTxt(A37,$A$1:A36,0.5,\"#\")","v":31},1,{"$f":"IF(B37>0,INDEX($A$1:$A$52,B37),A37)","v":"Комиссия за Прием наличных денежных средств на счет: купюры. Тариф 1.3.1.2"}]
["{VO42015} Возврат займа по договору беспроцентного денежного займа №1 от 23.06.2011  Сумма 300000 Без налога (НДС) Сумма 300000",{"$f":"FindBestMatchTxt(A38,$A$1:A37,0.5,\"#\")","v":32},1,{"$f":"IF(B38>0,INDEX($A$1:$A$52,B38),A38)","v":"{VO42015} Возврат займа по договору беспроцентного денежного займа №1 от 23.06.2011  Сумма 300000 Без налога (НДС) Сумма 300000"}]
["Комиссия за ведение счета, согласно договора банковского счета за январь 2015 г..",{"$f":"FindBestMatchTxt(A39,$A$1:A38,0.5,\"#\")","v":0},1,{"$f":"IF(B39>0,INDEX($A$1:$A$52,B39),A39)","v":"Комиссия за ведение счета, согласно договора банковского счета за январь 2015 г.."}]
["СЧЕТ N 11933 АРЕНДА БОКСА В34 С 01/02/15ПО 30/04/15",{"$f":"FindBestMatchTxt(A40,$A$1:A39,0.5,\"#\")","v":16},0.5,{"$f":"IF(B40>0,INDEX($A$1:$A$52,B40),A40)","v":"Оплата по счету N 12071 от 17.01.2015 за аренду бокса #C58 c 01.02.2015 по 28.02.2014. НДС не облагается."}]
["исковое заявление об обязании заключить дополнительное соглашение к договору аренды № 26-10Пр6/114А",{"$f":"FindBestMatchTxt(A41,$A$1:A40,0.5,\"#\")","v":0},1,{"$f":"IF(B41>0,INDEX($A$1:$A$52,B41),A41)","v":"исковое заявление об обязании заключить дополнительное соглашение к договору аренды № 26-10Пр6/114А"}]
["НДС за оказание услуги по Изготовлению и заверению копий документов в рамках оказания услуг клиенту, кроме накопительных счетов. Тариф 1.4.4",{"$f":"FindBestMatchTxt(A42,$A$1:A41,0.5,\"#\")","v":19},1,{"$f":"IF(B42>0,INDEX($A$1:$A$52,B42),A42)","v":"НДС за оказание услуги по Изготовлению и заверению копий документов в рамках оказания услуг клиенту, кроме накопительных счетов. Тариф 1.4.4"}]
["Комиссия за оказание услуги по Изготовлению и заверению копий документов в рамках оказания услуг клиенту, кроме накопительных счетов. Тариф 1.4.4",{"$f":"FindBestMatchTxt(A43,$A$1:A42,0.5,\"#\")","v":22},1,{"$f":"IF(B43>0,INDEX($A$1:$A$52,B43),A43)","v":"Комиссия за оказание услуги по Изготовлению и заверению копий документов в рамках оказания услуг клиенту, кроме накопительных счетов. Тариф 1.4.4"}]
["Абонентская плата за обслуживание с использованием Системы Ibank 2 за февраль 2015 г.",{"$f":"FindBestMatchTxt(A44,$A$1:A43,0.5,\"#\")","v":2},0.90740740740740744,{"$f":"IF(B44>0,INDEX($A$1:$A$52,B44),A44)","v":"Абонентская плата за обслуживание с использованием Системы Ibank 2 за январь 2015 г."}]
["Торговая выручка",{"$f":"FindBestMatchTxt(A45,$A$1:A44,0.5,\"#\")","v":27},1,{"$f":"IF(B45>0,INDEX($A$1:$A$52,B45),A45)","v":"Торговая выручка"}]
["Комиссия за Прием наличных денежных средств на счет: купюры. Тариф 1.3.1.2",{"$f":"FindBestMatchTxt(A46,$A$1:A45,0.5,\"#\")","v":31},1,{"$f":"IF(B46>0,INDEX($A$1:$A$52,B46),A46)","v":"Комиссия за Прием наличных денежных средств на счет: купюры. Тариф 1.3.1.2"}]
["Комиссия за Перечисление денежных средств со счета Клиента в другие кредитные организации по платежным поручениям,  полученным по Системе Ibank2. Тариф 1.2.3.2",{"$f":"FindBestMatchTxt(A47,$A$1:A46,0.5,\"#\")","v":4},1,{"$f":"IF(B47>0,INDEX($A$1:$A$52,B47),A47)","v":"Комиссия за Перечисление денежных средств со счета Клиента в другие кредитные организации по платежным поручениям,  полученным по Системе Ibank2. Тариф 1.2.3.2"}]
["НДС-18%, удержанный сверх суммы комиссионного вознаграждения за исполнение функций валютного контроля согласно Тарифам Банка. Распоряжение  от 24.02.2015г.",{"$f":"FindBestMatchTxt(A48,$A$1:A47,0.5,\"#\")","v":35},0.97916666666666663,{"$f":"IF(B48>0,INDEX($A$1:$A$52,B48),A48)","v":"НДС-18%, удержанный сверх суммы комиссионного вознаграждения за исполнение функций валютного контроля согласно Тарифам Банка. Распоряжение  от 28.01.2015г."}]
["Комиссионное вознаграждение Банка за исполн.функций валютного контроля, согласно Тарифам Банка. Распоряжение от  24.02.2015г",{"$f":"FindBestMatchTxt(A49,$A$1:A48,0.5,\"#\")","v":36},0.97435897435897434,{"$f":"IF(B49>0,INDEX($A$1:$A$52,B49),A49)","v":"Комиссионное вознаграждение Банка за исполн.функций валютного контроля, согласно Тарифам Банка. Распоряжение от 28.01.2015г"}]
["{VO42015} Возврат займа по договору беспроцентного денежного займа №1 от 23.06.2011  Сумма 200000 Без налога (НДС) Сумма 200000",{"$f":"FindBestMatchTxt(A50,$A$1:A49,0.5,\"#\")","v":38},0.97142857142857142,{"$f":"IF(B50>0,INDEX($A$1:$A$52,B50),A50)","v":"{VO42015} Возврат займа по договору беспроцентного денежного займа №1 от 23.06.2011  Сумма 300000 Без налога (НДС) Сумма 300000"}]
["Оплата по счету № 11968 от 11/12/2014 за складские услуги с 01/02/2015 по 28/02/2015г.  НДС не облагается",{"$f":"FindBestMatchTxt(A51,$A$1:A50,0.5,\"#\")","v":26},0.82,{"$f":"IF(B51>0,INDEX($A$1:$A$52,B51),A51)","v":"Оплата по счету № 11668 от 11/12/2014 за складские услуги с 1/010 по 31/01 2015 г.  НДС не облагается"}]
["(224) 33500,00 За аренду склада по счету №12404 от 15.02.2015г.  Договор от 20.05.2014г.  за март  НДС не облагается",{"$f":"FindBestMatchTxt(A52,$A$1:A51,0.5,\"#\")","v":0},1,{"$f":"IF(B52>0,INDEX($A$1:$A$52,B52),A52)","v":"(224) 33500,00 За аренду склада по счету №12404 от 15.02.2015г.  Договор от 20.05.2014г.  за март  НДС не облагается"}]

{"sheet":"Без дубликатов","index":4,"n_rows":26,"n_cols":1,"rows_kept":26,"cut":false,"hidden":false,"merged":[]}
["(224) 33500,00 За аренду склада по счету №12404 от 15.02.2015г.  Договор от 20.05.2014г.  за март  НДС не облагается"]
["{VO20100} Оплата по счету №11951 от 16.01.2015г. за складские услуги В101 с 01.02. по 31.07.15. НДС не облагается."]
["{VO42015} Возврат займа по договору беспроцентного денежного займа №1 от 23.06.2011  Сумма 15000 Без налога (НДС) Сумма 15000"]
["{VO42015} Возврат займа по договору беспроцентного денежного займа №1 от 23.06.2011  Сумма 300000 Без налога (НДС) Сумма 300000"]
["Абонентская плата за обслуживание с использованием Системы Ibank 2 за январь 2015 г."]
["Государственная пошлина: подача кассационной жалобы"]
["исковое заявление об обязании заключить дополнительное соглашение к договору аренды № 26-10Пр6/114А"]
["Комиссионное вознаграждение Банка за исполн.функций валютного контроля, согласно Тарифам Банка. Распоряжение от 22.01.2015г"]
["Комиссионное вознаграждение Банка за исполн.функций валютного контроля, согласно Тарифам Банка. Распоряжение от 27.01.2015г"]
["Комиссионное вознаграждение Банка за исполн.функций валютного контроля, согласно Тарифам Банка. Распоряжение от 28.01.2015г"]
["Комиссия за ведение счета, согласно договора банковского счета за январь 2015 г.."]
["Комиссия за оказание услуги по Изготовлению и заверению копий документов в рамках оказания услуг клиенту, кроме накопительных счетов. Тариф 1.4.4"]
["Комиссия за Перечисление денежных средств со счета Клиента в другие кредитные организации по платежным поручениям,  полученным по Системе Ibank2. Тариф 1.2.3.2"]
["Комиссия за Прием наличных денежных средств на счет: купюры. Тариф 1.3.1.2"]
["НДС за оказание услуги по Изготовлению и заверению копий документов в рамках оказания услуг клиенту, кроме накопительных счетов. Тариф 1.4.4"]
["НДС-18%, удержанный сверх суммы комиссионного вознаграждения за исполнение функций валютного контроля согласно Тарифам Банка. Распоряжение  от  27.01.2015г."]
["НДС-18%, удержанный сверх суммы комиссионного вознаграждения за исполнение функций валютного контроля согласно Тарифам Банка. Распоряжение  от 22.01.2015г."]
["НДС-18%, удержанный сверх суммы комиссионного вознаграждения за исполнение функций валютного контроля согласно Тарифам Банка. Распоряжение  от 28.01.2015г."]
["оплата за аренду бокса С158, по Договору об оказании складских услуг от 11.03.2012 г."]
["Оплата за услуги международной и междугородной связи по договору №8С#ГИГ2 от 30.03.11 за декабрь 2014 Сумма 87-65 В т.ч. НДС  (18/118) 13-37"]
["Оплата по договору 02/12 за SMS услуги (предоставление доступа к програмному приложению) за период с 01.12.14 по 31.12.14 Сумма 986-46 В т.ч. НДС  (18%) 150-48"]
["Оплата по счету N 12071 от 17.01.2015 за аренду бокса #C58 c 01.02.2015 по 28.02.2014. НДС не облагается."]
["Оплата по счету № 11668 от 11/12/2014 за складские услуги с 1/010 по 31/01 2015 г.  НДС не облагается"]
["Оплата по счету № 239 от 20.11.2014. Сопровождение ПП 1С на ноябрь  2014г. по договору №101-2013-07-01-1220 от 01.07.2013г. обновление конфигурации  Сумма 4000-00 В т.ч. НДС  (18%) 610-17"]
["Оплата по счету Л-00002726 от 15.01.2015 за Воду (18,9) 8 шт. Сумма 1900-00 В т.ч. НДС  (18%) 289-83"]
["Торговая выручка"]